Workbook

Sheet Coding matrix
A1: Please note: Some rows in this table might have been deleted due to confidentiality reasons!
C2: Item | D2: Phase | E2: Therapeutic area | F2: Type of study | G2: Sample size | L2: Randomisation | N2: Baseline characterization | P2: Blinded assessment | S2: Exclusion of data from analysis | U2: Controls | W2: Model choice | AA2: Outcome choice | AC2: Dose reponse (RATE ON IB LEVEL) | AE2: Age matched to patients (RATE ON IB LEVEL) | AG2: Mechanistic evidence (RATE ON IB LEVEL) | AH2: Replication of experiment (RATE ON IB LEVEL) | AJ2: Replication in different model (RATE ON IB LEVEL) | AK2: Replication in different species (RATE ON IB LEVEL) | AM2: Citation of references | AO2: Reporting on direction of results | BU2: Dose reponse (RATE ON IB LEVEL) | BW2: Age matched to patients (RATE ON IB LEVEL) | BY2: Mechanistic evidence (RATE ON IB LEVEL) | BZ2: Replication of experiment (RATE ON IB LEVEL) | CB2: Replication in different model (RATE ON IB LEVEL) | CD2: Replication in different species (RATE ON IB LEVEL) | CF2: Citation of references | CH2: Reporting on direction of results
C3: Research questions | F3: Determine whether experiment listed in an efficacy study, Yes, no or unclear | G3: Is sample size reported, Yes or no? | H3: If yes, how many? | J3: group size | K3: If yes, is sample size calculation reported, Yes or no? | L3: Is randomisation reported, Yes or no? | M3: If yes, describe the method used to generate the randomization sequence.? | N3: Is baseline characterization reported, Yes or no? | O3: If yes, what type? | P3: Is blinded assessment for treatment allocation reported, Yes or no? | Q3: Is blinded assessment for outcome assessment reported, Yes or no? | R3: If yes, when? | S3: Is exclusion of data reported, Yes or no? | T3: If yes, justification? | U3: Is control group reported, Yes or no? | V3: If yes, what type of control? | W3: Is the species of animal reported? | X3: If yes, what species? | Y3: Is the type of model reported? | Z3: Is the specifications of model reported? | AA3: Is the outcome choice reported, Yes or no? | AB3: If yes, is the metric or time-course or both reported? | AC3: Is dose response reported? Yes or no? | AD3: If yes, is positive reponse reported, Yes or no? | AE3: Is the age of animals reported, Yes or no? | AF3: If yes, is it matched to patients? | AG3: Yes or no? | AH3: Is there replication of experiment, Yes or no? | AI3: If no, is there other similar study? | AJ3: Is there replication in different model, Yes or no? | AK3: Is there replication in different species, Yes or no? | AL3: If yes, species type? | AM3: Is there references reported, Yes or no? | AN3: If yes, what type of references? | AO3: Is effect size reported? Yes or no? (Step 1) | AP3: Is significant value reported? Yes or no? (Step 2) | AQ3: Was the investigation positive, inconclusive or negative? | BU3: Is dose response reported? Yes or no? | BV3: If yes, is positive reponse reported, Yes or no? | BW3: Is the age of animals reported, Yes or no? | BX3: If yes, is it matched to patients? | BY3: Yes or no? | BZ3: Is there replication of experiment, Yes or no? | CA3: If no, is there other similar study? | CB3: Is there replication in different model, Yes or no? | CC3: If yes, model type? | CD3: Is there replication in different species, Yes or no? | CE3: If yes, species type? | CF3: Is there references reported, Yes or no? | CG3: If yes, what type of references? | CH3: Is effect size reported? Yes or no? (Step 1) | CI3: Is significant value reported? Yes or no? (Step 2) | CJ3: Was the investigation positive, inconclusive or negative?
A4: PCES | B4: IB | C4: Coding criteria | F4: ■ In cases where drug are tested for efficacy in their respective therapeutic indications, complete experiment level and IB level extraction. DO NOT PERFORM AN EXTRACTION for non-efficacy studies | G4: ■ Does the experiment report sample sizes for all extractable groups? ■ Is information provided on the number of animal per treatment group or total number of animal for the whole experiment? | H4: n = ? | I4: group size | K4: ■ Has a power calculation been performed a priori to determine sample size? ■ Select no if there are no explicit statements about sample size determination. | L4: ■ Were animals randomly assigned to treatment? ■ Select unclear if there are no explicit statements about allocation. | M4: Group designation, Cage randomization, Permanent designation, Randomization to treatment | N4: ■ Was the emergence of confounding physiological variables monitored and addressed (e.g. blood pressure, body temperature)? ■ Were the groups similar at baseline or were they adjusted for confounders in the analysis? ■ Was the distribution of relevant baseline characteristics balanced for the intervention and control groups? ■ If relevant, did the investigators adequately adjust for unequal distribution of some relevant baseline characteristics in the analysis? ■ Was the timing of disease induction adequate? | O4: Sex, age, immune status, weight, microbial status of the animal | P4: ■ Was treatment allocation concealed from the investigators during the experiment? ■ Select no if there are no explicit statements about blinding to treatment allocation. | Q4: ■ Were investigators blinded to treatment allocation during outcome assessment? ■ Select no if there are no explicit statements about blinding to outcome assessment. | S4: ■ Do studies explain the flow of animals from inclusion through to analysis? ■ Has every animal been accounted for, from entry into experiment through treatment, outcome assessment, sacri ce and analysis? | T4: Animal death | U4: ■ Were appropriate controls used in all in vivo experiments (e.g. positive, negative)? | V4: Positive control, negative control, sham, comparator arm | W4: Mouse, rat, dog, monkey, etc. | Y4: Induced or Experimental, spontaneous (xenograft, orthotopic), transgenic, type of disease | Z4: Tumor size, etc. | AA4: Endpoints, type of measurement (survival, tumor shrinkage, etc), time-course of measurement, mean survival | AC4: ■ Was there a demonstration of dose-response relationship of the adverse effect? ■ Was there a time course (e.g., onset and duration of response) of the adverse effect? ■ Was the doses eliciting the adverse effect compared to the doses eliciting the primary pharmacodynamic effect in the test species or the proposed therapeutic effect in humans? ■ Minimum of 3 different doses | AE4: ■ Is age of animals mentioned? | AF4: ■ Check inclusion criteria of patients | AH4: ■ Is it the same model? ■ Is it the same drug? ■ Is it measuring the same outcome? | AJ4: ■ Whether efficacy studies were replicated in more than one model. ■ Is it the same species? | AK4: ■ Whether efficacy studies were replicated in more than one species. | AM4: ■ If there is internal study number, citation, … then it is a yes. | AN4: Peer-reviewed, in house data | AP4: ■ Is there a p-value reported in the figure description or in the experiment results? | AQ4: ■ If p value significant (typically ≤ 0.05), then it is positiv.e | AW4: Mouse | AX4: Rat | AY4: Rabbit | AZ4: Monkey/Primate | BA4: Hamster | BB4: Dog | BC4: chicken | BD4: guinea-pig | BE4: ferret | BF4: pig | BI4: Anzahl Yes PCES | BJ4: Anzahl No PCES | BK4: Prozent Yes PCES | BL4: Anzahl Yes IB | BM4: Anzahl No IB
A5: 1 | B5: IB1 | D5: 2 | F5: no efficacy | G5: - | H5: - | K5: - | L5: - | M5: - | N5: - | O5: - | P5: - | Q5: - | R5: - | S5: - | T5: - | U5: - | V5: - | W5: - | X5: - | Y5: - | Z5: - | AA5: - | AB5: - | AC5: - | AD5: - | AE5: - | AF5: - | AG5: - | AH5: - | AI5: - | AJ5: - | AK5: - | AL5: - | AM5: - | AN5: - | AO5: - | AP5: - | AQ5: - | AR5: only positive PCES | AS5: any references reported | AT5: any peer-reviewed references reported | AW5: =COUNTIFS(X6:X735,"*mouse") -> 492 | AX5: =COUNTIFS($X6:$X735,"*rat") -> 60 | AY5: =COUNTIFS($X6:$X735,"*rabbit") -> 9 | AZ5: =COUNTIFS($X6:$X735,"*monkey") -> 3 | BA5: =COUNTIFS($X6:$X735,"*hamster*") -> 12 | BB5: =COUNTIFS($X6:$X735,"*dog*") -> 5 | BC5: =COUNTIFS($X6:$X735,"*chick*") -> 4 | BD5: =COUNTIFS($X6:$X735,"*guin*") -> 2 | BE5: =COUNTIFS($X6:$X735,"*ferr*") -> 1 | BF5: =COUNTIFS($X6:$X735,"pig*") -> 1 | BG5: yes | BH5: =COUNTIFS(AH6,"no",AJ6,"no",AK6,"no") -> 0 | BI5: =COUNTIFS(A5:AB5,"yes") -> 0 | BJ5: =COUNTIFS(A5:AP5,"no") -> 0 | BK5: =BI5/SUM(BI5:BJ5) ->  | BL5: =COUNTIFS(AC5:AL5,"yes") -> 0 | BM5: =COUNTIFS(AC5:AL5,"no") -> 0 | BN5: =BL5/SUM(BL5:BM5) -> 
A6: =A5+1 -> 2 | B6: IB2 | D6: 2 | E6: Anti-neoplastic & immune-modulating agents | F6: efficacy | G6: no | H6: - | K6: no | L6: no | M6: - | N6: no | O6: - | P6: no | Q6: no | R6: - | S6: no | T6: - | U6: yes | V6: Positive control | W6: yes | X6: Mouse | Y6: yes | Z6: yes | AA6: yes | AB6: both | AC6: no | AD6: - | AE6: no | AF6: - | AG6: yes | AH6: no | AI6: no | AJ6: yes | AK6: no | AL6: - | AM6: yes | AN6: In house | AO6: yes | AP6: no | AQ6: positive | AR6: yes | AS6: yes | AT6: no | AU6: yes | AW6: =COUNTIFS(X6:X735,"*mice") -> 21 | AZ6: =COUNTIFS($X6:$X735,"prima*") -> 6 | BG6: no | BH6: 0 | BI6: =SUM(G6=BG$5,L6=BG$5,N6=BG$5,P6=BG$5,Q6=BG$5,S6=BG$5,U6=BG$5,W6=BG$5,Y6=BG$5,Z6=BG$5,AA6=BG$5) -> 5 | BJ6: =SUM(G6=BG$6,L6=BG$6,N6=BG$6,P6=BG$6,Q6=BG$6,S6=BG$6,U6=BG$6,W6=BG$6,Y6=BG$6,Z6=BG$6,AA6=BG$6) -> 6 | BK6: =BI6/SUM(BI6:BJ6) -> 0.4545454545 | BL6: =SUM(AC6=BG$5,AE6=BG$5,AG6=BG$5,AH6=BG$5,AJ6=BG$5,AK6=BG$5) -> 2 | BM6: =SUM(AC6=BG$6,AE6=BG$6,AG6=BG$6,AH6=BG$6,AJ6=BG$6,AK6=BG$6) -> 4 | BN6: =BL6/SUM(BL6:BM6) -> 0.3333333333 | BO6: =(AVERAGE(BK6:BK9)*11+BN6*6)/17 -> 0.4117647059 | BP6: =SUM(BI6:BJ6,BL6:BM6) -> 17
A7: =A6+1 -> 3 | B7: IB2 | D7: 2 | E7: Anti-neoplastic & immune-modulating agents | F7: efficacy | G7: no | H7: - | K7: no | L7: no | M7: - | N7: no | O7: - | P7: no | Q7: no | R7: - | S7: no | T7: - | U7: yes | V7: Positive control | W7: yes | X7: Mouse | Y7: yes | Z7: yes | AA7: yes | AB7: both | AL7: - | AM7: yes | AN7: In house | AO7: yes | AP7: no | AQ7: positive | AW7: =COUNTIFS(X6:X74,"*mur*") -> 6 | BH7: 0 | BI7: 5 | BJ7: 6 | BK7: 0.4545454545 | BP7: =SUM(BI7:BJ7,BL7:BM7) -> 11
A8: 4 | B8: IB2 | D8: 2 | E8: Anti-neoplastic & immune-modulating agents | F8: efficacy | G8: no | H8: - | K8: no | L8: no | M8: - | N8: no | O8: - | P8: no | Q8: no | R8: - | S8: no | T8: - | U8: yes | V8: Positive control | W8: yes | X8: Mouse | Y8: yes | Z8: yes | AA8: yes | AB8: both | AL8: - | AM8: yes | AN8: In house | AO8: yes | AP8: no | AQ8: positive | BH8: 0 | BI8: 5 | BJ8: 6 | BK8: 0.4545454545 | BP8: 11
A9: 5 | B9: IB2 | D9: 2 | E9: Anti-neoplastic & immune-modulating agents | F9: efficacy | G9: no | H9: - | K9: no | L9: no | M9: - | N9: no | O9: - | P9: no | Q9: no | R9: - | S9: no | T9: - | U9: yes | V9: Positive control | W9: yes | X9: Mouse | Y9: yes | Z9: yes | AA9: yes | AB9: metric | AL9: - | AM9: yes | AN9: In house | AO9: yes | AP9: no | AQ9: positive | AW9: =SUM(AW5:AW7) -> 519 | AX9: =SUM(AX5:AX7) -> 60 | AY9: 9 | AZ9: 9 | BA9: 12 | BB9: 5 | BC9: 4 | BD9: =SUM(BD5:BD7) -> 2 | BE9: =SUM(BE5:BE7) -> 1 | BF9: 1 | BH9: 1 | BI9: 5 | BJ9: 6 | BK9: 0.4545454545 | BP9: 11
A10: 6 | B10: IB3 | D10: 1 | E10: Blood product & biotech | F10: efficacy | G10: no | H10: - | K10: no | L10: no | M10: - | N10: yes | O10: Bodyweight | P10: no | Q10: no | R10: - | S10: no | T10: - | U10: yes | V10: Positive control, negative control | W10: yes | X10: Mouse | Y10: yes | Z10: yes | AA10: yes | AB10: both | AC10: no | AD10: - | AE10: no | AF10: - | AG10: yes | AH10: no | AI10: no | AJ10: no | AK10: no | AL10: - | AM10: no | AN10: - | AO10: yes | AP10: no | AQ10: positive | AR10: yes | AS10: no | AT10: no | AU10: yes | AW10: =AW9/$AW11 -> 0.8344051447 | AX10: =AX9/$AW11 -> 0.09646302251 | AY10: 0.01446945338 | AZ10: =AZ9/$AW11 -> 0.01446945338 | BA10: 0.0192926045 | BB10: 0.008038585209 | BC10: 0.006430868167 | BD10: 0.003215434084 | BE10: =BE9/$AW11 -> 0.001607717042 | BF10: =BF9/$AW11 -> 0.001607717042 | BH10: 0 | BI10: 6 | BJ10: 5 | BK10: 0.5454545455 | BL10: =SUM(AC10=BG$5,AE10=BG$5,AG10=BG$5,AH10=BG$5,AJ10=BG$5,AK10=BG$5) -> 1 | BM10: =SUM(AC10=BG$6,AE10=BG$6,AG10=BG$6,AH10=BG$6,AJ10=BG$6,AK10=BG$6) -> 5 | BN10: =BL10/SUM(BL10:BM10) -> 0.1666666667 | BO10: =(AVERAGE(BK10:BK11)+BN10)/2 -> 0.3787878788 | BP10: 17
A11: 7 | B11: IB3 | D11: 1 | E11: Blood product & biotech | F11: efficacy | G11: yes | H11: 48 | I11: 12 | J11: 12 | K11: no | L11: no | M11: - | N11: yes | O11: Sex | P11: no | Q11: no | R11: - | S11: no | T11: - | U11: yes | V11: Positive control, negative control | W11: yes | X11: Mouse | Y11: yes | Z11: yes | AA11: yes | AB11: both | AD11: - | AM11: no | AN11: - | AO11: yes | AP11: no | AQ11: positive | AW11: =SUM(AW9:BF9) -> 622 | BH11: 0 | BI11: 7 | BJ11: 4 | BK11: 0.6363636364 | BP11: 11
A12: 8 | B12: IB4 | D12: 2 | E12: Respiratory system | F12: efficacy | G12: no | H12: - | K12: no | L12: no | M12: - | N12: no | O12: - | P12: no | Q12: no | R12: - | S12: no | T12: - | U12: no | V12: - | W12: no | X12: - | Y12: yes | Z12: no | AA12: yes | AB12: metric | AC12: yes | AD12: yes | AE12: no | AF12: - | AG12: yes | AH12: no | AI12: no | AJ12: yes | AK12: no | AL12: - | AM12: yes | AN12: in house | AO12: no | AP12: yes | AQ12: positive | AR12: yes | AS12: yes | AT12: no | AU12: yes | AW12: =AW11/708 -> 0.8785310734 | BH12: 0 | BI12: 2 | BJ12: 9 | BK12: 0.1818181818 | BL12: =SUM(AC12=BG$5,AE12=BG$5,AG12=BG$5,AH12=BG$5,AJ12=BG$5,AK12=BG$5) -> 3 | BM12: =SUM(AC12=BG$6,AE12=BG$6,AG12=BG$6,AH12=BG$6,AJ12=BG$6,AK12=BG$6) -> 3 | BN12: 0.5 | BO12: =(AVERAGE(BK12:BK32)*11+BN12*6)/17 -> 0.299719888 | BP12: 17
A13: 9 | B13: IB4 | D13: 2 | E13: Respiratory system | F13: efficacy | G13: yes | H13: 38 | I13: n=9-10, 4 groups | J13: 9 | K13: no | L13: no | M13: - | N13: no | O13: - | P13: no | Q13: no | R13: - | S13: no | T13: - | U13: yes | V13: negative | W13: no | X13: - | Y13: yes | Z13: no | AA13: no | AB13: - | AM13: yes | AN13: in house | AO13: no | AP13: no | AQ13: positive | BH13: 0 | BI13: 3 | BJ13: 8 | BK13: 0.2727272727 | BL13: 0 | BM13: 0 | BP13: 11
A14: 10 | B14: IB4 | D14: 2 | E14: Respiratory system | F14: efficacy | G14: no | H14: - | K14: no | L14: no | M14: - | N14: no | O14: - | P14: no | Q14: no | R14: - | S14: no | T14: - | U14: no | V14: - | W14: no | X14: - | Y14: yes | Z14: no | AA14: yes | AB14: metric | AM14: yes | AN14: in house | AO14: no | AP14: yes | AQ14: positive | BH14: 0 | BI14: 2 | BJ14: 9 | BK14: 0.1818181818 | BL14: 0 | BM14: 0 | BP14: 11
A15: 11 | B15: IB4 | D15: 2 | E15: Respiratory system | F15: efficacy | G15: no | H15: - | K15: no | L15: no | M15: - | N15: no | O15: - | P15: no | Q15: no | R15: - | S15: no | T15: - | U15: no | V15: - | W15: no | X15: - | Y15: yes | Z15: no | AA15: yes | AB15: metric | AM15: yes | AN15: in house | AO15: no | AP15: yes | AQ15: positive | BH15: 0 | BI15: 2 | BJ15: 9 | BK15: 0.1818181818 | BL15: 0 | BM15: 0 | BP15: 11
A16: 12 | B16: IB4 | D16: 2 | E16: Respiratory system | F16: efficacy | G16: no | H16: - | K16: no | L16: no | M16: - | N16: no | O16: - | P16: no | Q16: no | R16: - | S16: no | T16: - | U16: no | V16: - | W16: no | X16: - | Y16: yes | Z16: no | AA16: yes | AB16: metric | AM16: yes | AN16: in house | AO16: no | AP16: yes | AQ16: positive | AW16: =SUM(AW9:AX9) -> 579 | AX16: =SUM(AY9,BA9,BD9:BE9) -> 24 | AY16: =SUM(BB9,BC9,BF9) -> 10 | AZ16: 9 | BA16: =SUM(AZ9,AW16:AY16) -> 622 | BB16: Unspecified | BC16: Total | BH16: 0 | BI16: 2 | BJ16: 9 | BK16: 0.1818181818 | BL16: 0 | BM16: 0 | BP16: 11
A17: 13 | B17: IB4 | D17: 2 | E17: Respiratory system | F17: efficacy | G17: no | H17: - | K17: no | L17: no | M17: - | N17: no | O17: - | P17: no | Q17: no | R17: - | S17: no | T17: - | U17: no | V17: - | W17: no | X17: - | Y17: yes | Z17: no | AA17: yes | AB17: metric | AM17: yes | AN17: in house | AO17: no | AP17: yes | AQ17: positive | AW17: =AW16/AW11 -> 0.9308681672 | AX17: =AX16/AW11 -> 0.038585209 | AY17: =AY16/AW11 -> 0.01607717042 | AZ17: =AZ16/BA16 -> 0.01446945338 | BB17: =BC17-BA16 -> 86 | BC17: 708 | BH17: 0 | BI17: 2 | BJ17: 9 | BK17: 0.1818181818 | BL17: 0 | BM17: 0 | BP17: 11
A18: 14 | B18: IB4 | D18: 2 | E18: Respiratory system | F18: efficacy | G18: no | H18: - | K18: no | L18: no | M18: - | N18: no | O18: - | P18: no | Q18: no | R18: - | S18: no | T18: - | U18: no | V18: - | W18: no | X18: - | Y18: yes | Z18: no | AA18: yes | AB18: metric | AM18: yes | AN18: in house | AO18: no | AP18: yes | AQ18: positive | AW18: =AW16/$BC17 -> 0.8177966102 | AX18: =AX16/$BC17 -> 0.03389830508 | AY18: =AY16/$BC17 -> 0.01412429379 | AZ18: =AZ16/$BC17 -> 0.01271186441 | BA18: =BA16/$BC17 -> 0.8785310734 | BB18: =BB17/$BC17 -> 0.1214689266 | BC18: =BC17/$BC17 -> 1 | BH18: 0 | BI18: 2 | BJ18: 9 | BK18: 0.1818181818 | BL18: 0 | BM18: 0 | BP18: 11
A19: 15 | B19: IB4 | D19: 2 | E19: Respiratory system | F19: efficacy | G19: yes | H19: 36 | I19: 5-7 size per group, 9 groups | J19: 5 | K19: no | L19: no | M19: - | N19: no | O19: - | P19: no | Q19: no | R19: - | S19: no | T19: - | U19: yes | V19: negative | W19: yes | X19: murine | Y19: yes | Z19: yes | AA19: yes | AB19: both | AM19: yes | AN19: in house | AO19: no | AP19: no | AQ19: positive | BH19: 0 | BI19: 6 | BJ19: 5 | BK19: 0.5454545455 | BL19: 0 | BM19: 0 | BP19: 11
A20: 16 | B20: IB4 | D20: 2 | E20: Respiratory system | F20: efficacy | G20: no | H20: - | K20: - | L20: no | M20: - | N20: no | O20: - | P20: no | Q20: no | R20: - | S20: no | T20: - | U20: no | V20: - | W20: yes | X20: murine | Y20: yes | Z20: no | AA20: yes | AB20: both | AM20: yes | AN20: in house | AO20: yes | AP20: no | AQ20: positive | BH20: 0 | BI20: 3 | BJ20: 8 | BK20: 0.2727272727 | BL20: 0 | BM20: 0 | BP20: 11
A21: 17 | B21: IB4 | D21: 2 | E21: Respiratory system | F21: efficacy | G21: no | H21: - | K21: - | L21: no | M21: - | N21: no | O21: - | P21: no | Q21: no | R21: - | S21: no | T21: - | U21: no | V21: - | W21: yes | X21: murine | Y21: yes | Z21: no | AA21: no | AB21: - | AM21: yes | AN21: in house | AO21: no | AP21: no | AQ21: inconclusive | BH21: 0 | BI21: 2 | BJ21: 9 | BK21: 0.1818181818 | BL21: 0 | BM21: 0 | BP21: 11
A22: 18 | B22: IB4 | D22: 2 | E22: Respiratory system | F22: efficacy | G22: no | H22: - | K22: - | L22: no | M22: - | N22: no | O22: - | P22: no | Q22: no | R22: - | S22: no | T22: - | U22: no | V22: - | W22: yes | X22: murine | Y22: yes | Z22: no | AA22: no | AB22: - | AM22: yes | AN22: in house | AO22: no | AP22: no | AQ22: inconclusive | BH22: 0 | BI22: 2 | BJ22: 9 | BK22: 0.1818181818 | BL22: 0 | BM22: 0 | BP22: 11
A23: 19 | B23: IB4 | D23: 2 | E23: Respiratory system | F23: efficacy | G23: no | H23: - | K23: - | L23: no | M23: - | N23: no | O23: - | P23: no | Q23: no | R23: - | S23: no | T23: - | U23: no | V23: - | W23: yes | X23: murine | Y23: yes | Z23: no | AA23: yes | AB23: both | AM23: yes | AN23: in house | AO23: no | AP23: no | AQ23: inconclusive | BH23: 0 | BI23: 3 | BJ23: 8 | BK23: 0.2727272727 | BL23: 0 | BM23: 0 | BP23: 11
A24: 20 | B24: IB4 | D24: 2 | E24: Respiratory system | F24: efficacy | G24: no | H24: - | K24: - | L24: no | M24: - | N24: no | O24: - | P24: no | Q24: no | R24: - | S24: no | T24: - | U24: no | V24: - | W24: no | X24: - | Y24: yes | Z24: no | AA24: no | AB24: - | AM24: yes | AN24: in house | AO24: no | AP24: no | AQ24: inconclusive | BH24: 0 | BI24: 1 | BJ24: 10 | BK24: 0.09090909091 | BL24: 0 | BM24: 0 | BP24: 11
A25: 21 | B25: IB4 | D25: 2 | E25: Respiratory system | F25: efficacy | G25: no | H25: - | K25: - | L25: no | M25: - | N25: no | O25: - | P25: no | Q25: no | R25: - | S25: no | T25: - | U25: no | V25: - | W25: yes | X25: murine | Y25: yes | Z25: no | AA25: no | AB25: - | AM25: yes | AN25: in house | AO25: no | AP25: no | AQ25: inconclusive | BH25: 0 | BI25: 2 | BJ25: 9 | BK25: 0.1818181818 | BL25: 0 | BM25: 0 | BP25: 11
A26: 22 | B26: IB4 | D26: 2 | E26: Respiratory system | F26: efficacy | G26: no | H26: - | K26: - | L26: no | M26: - | N26: no | O26: - | P26: no | Q26: no | R26: - | S26: no | T26: - | U26: no | V26: - | W26: no | X26: - | Y26: yes | Z26: no | AA26: no | AB26: - | AM26: yes | AN26: in house | AO26: no | AP26: no | AQ26: inconclusive | BH26: 0 | BI26: 1 | BJ26: 10 | BK26: 0.09090909091 | BL26: 0 | BM26: 0 | BP26: 11
A27: 23 | B27: IB4 | D27: 2 | E27: Respiratory system | F27: efficacy | G27: no | H27: - | K27: - | L27: no | M27: - | N27: no | O27: - | P27: no | Q27: no | R27: - | S27: no | T27: - | U27: no | V27: - | W27: no | X27: - | Y27: yes | Z27: no | AA27: no | AB27: - | AM27: yes | AN27: in house | AO27: no | AP27: no | AQ27: inconclusive | BH27: 0 | BI27: 1 | BJ27: 10 | BK27: 0.09090909091 | BL27: 0 | BM27: 0 | BP27: 11
A28: 24 | B28: IB4 | D28: 2 | E28: Respiratory system | F28: efficacy | G28: no | H28: - | K28: - | L28: no | M28: - | N28: no | O28: - | P28: no | Q28: no | R28: - | S28: no | T28: - | U28: yes | V28: positive | W28: no | X28: - | Y28: yes | Z28: no | AA28: no | AB28: - | AM28: yes | AN28: in house | AO28: no | AP28: no | AQ28: inconclusive | BH28: 0 | BI28: 2 | BJ28: 9 | BK28: 0.1818181818 | BL28: 0 | BM28: 0 | BP28: 11
A29: 25 | B29: IB4 | D29: 2 | E29: Respiratory system | F29: efficacy | G29: no | H29: - | K29: - | L29: no | M29: - | N29: no | O29: - | P29: no | Q29: no | R29: - | S29: no | T29: - | U29: yes | V29: positive | W29: no | X29: - | Y29: yes | Z29: no | AA29: no | AB29: - | AM29: yes | AN29: in house | AO29: no | AP29: no | AQ29: inconclusive | BH29: 0 | BI29: 2 | BJ29: 9 | BK29: 0.1818181818 | BL29: 0 | BM29: 0 | BP29: 11
A30: 26 | B30: IB4 | D30: 2 | E30: Respiratory system | F30: efficacy | G30: no | H30: - | K30: - | L30: no | M30: - | N30: no | O30: - | P30: no | Q30: no | R30: - | S30: no | T30: - | U30: yes | V30: positive | W30: no | X30: - | Y30: yes | Z30: no | AA30: no | AB30: - | AM30: yes | AN30: in house | AO30: no | AP30: no | AQ30: inconclusive | BH30: 0 | BI30: 2 | BJ30: 9 | BK30: 0.1818181818 | BL30: 0 | BM30: 0 | BP30: 11
A31: 27 | B31: IB4 | D31: 2 | E31: Respiratory system | F31: efficacy | G31: no | H31: - | K31: - | L31: no | M31: - | N31: no | O31: - | P31: no | Q31: no | R31: - | S31: no | T31: - | U31: no | V31: - | W31: no | X31: - | Y31: yes | Z31: no | AA31: no | AB31: - | AM31: yes | AN31: in house | AO31: no | AP31: no | AQ31: inconclusive | BH31: 0 | BI31: 1 | BJ31: 10 | BK31: 0.09090909091 | BL31: 0 | BM31: 0 | BP31: 11
A32: 28 | B32: IB4 | D32: 2 | E32: Respiratory system | F32: efficacy | G32: no | H32: - | K32: - | L32: no | M32: - | N32: no | O32: - | P32: no | Q32: no | R32: - | S32: no | T32: - | U32: no | V32: - | W32: no | X32: - | Y32: yes | Z32: no | AA32: no | AB32: - | AM32: yes | AN32: in house | AO32: no | AP32: no | AQ32: inconclusive | BH32: 1 | BI32: 1 | BJ32: 10 | BK32: 0.09090909091 | BL32: 0 | BM32: 0 | BP32: 11
A33: 29 | B33: IB5 | E33: Respiratory system | F33: efficacy | G33: no | H33: - | K33: no | L33: no | M33: - | N33: no | O33: - | P33: no | Q33: no | R33: - | S33: no | T33: - | U33: no | V33: - | W33: yes | X33: Dog | Y33: yes | Z33: no | AA33: no | AB33: - | AC33: no | AD33: - | AE33: yes | AF33: yes | AG33: no | AH33: no | AI33: no | AJ33: no | AK33: no | AL33: - | AM33: yes | AN33: In house | AO33: no | AP33: no | AQ33: inconclusive | AR33: no | AS33: yes | AT33: no | AU33: no | BH33: 0 | BI33: 2 | BJ33: 9 | BK33: 0.1818181818 | BL33: 1 | BM33: 5 | BN33: 0.1666666667 | BO33: =(AVERAGE(BK33:BK34)*11+BN33*6)/17 -> 0.1764705882 | BP33: 17
A34: 30 | B34: IB5 | E34: Respiratory system | F34: efficacy | G34: no | H34: - | K34: no | L34: no | M34: - | N34: no | O34: - | P34: no | Q34: no | R34: - | S34: no | T34: - | U34: no | V34: - | W34: yes | X34: mouse | Y34: yes | Z34: no | AA34: no | AB34: - | AD34: - | AM34: yes | AN34: In house | AO34: no | AP34: no | AQ34: inconclusive | BH34: 0 | BI34: 2 | BJ34: 9 | BK34: 0.1818181818 | BL34: 0 | BM34: 0 | BP34: 11
A35: 31 | B35: IB6 | E35: Blood product & biotech | F35: efficacy | G35: no | H35: - | K35: no | L35: no | M35: - | N35: yes | O35: Nude | P35: no | Q35: no | R35: - | S35: no | T35: - | U35: no | V35: - | W35: yes | X35: mouse | Y35: yes | Z35: no | AA35: yes | AB35: metric | AC35: yes | AD35: yes | AE35: no | AF35: - | AG35: yes | AH35: no | AI35: yes | AJ35: yes | AK35: no | AL35: - | AM35: yes | AN35: In house | AO35: no | AP35: no | AQ35: positive | AR35: yes | AS35: yes | AT35: no | AU35: yes | BH35: 0 | BI35: 4 | BJ35: 7 | BK35: 0.3636363636 | BL35: 3 | BM35: 3 | BN35: 0.5 | BO35: =(AVERAGE(BK35:BK45)*11+BN35*6)/17 -> 0.4385026738 | BP35: 17
A36: 32 | B36: IB6 | E36: Blood product & biotech | F36: efficacy | G36: no | H36: - | K36: no | L36: no | M36: - | N36: yes | O36: Nude | P36: no | Q36: no | R36: - | S36: no | T36: - | U36: no | V36: - | W36: yes | X36: mouse | Y36: yes | Z36: no | AA36: yes | AB36: metric | AM36: yes | AN36: In house | AO36: no | AP36: no | AQ36: positive | BH36: 0 | BI36: 4 | BJ36: 7 | BK36: 0.3636363636 | BL36: 0 | BM36: 0 | BP36: 11
A37: 33 | B37: IB6 | E37: Blood product & biotech | F37: efficacy | G37: no | H37: - | K37: no | L37: no | M37: - | N37: yes | O37: Nude | P37: no | Q37: no | R37: - | S37: no | T37: - | U37: no | V37: - | W37: yes | X37: mouse | Y37: yes | Z37: no | AA37: yes | AB37: metric | AM37: yes | AN37: In house | AO37: no | AP37: no | AQ37: positive | BH37: 0 | BI37: 4 | BJ37: 7 | BK37: 0.3636363636 | BL37: 0 | BM37: 0 | BP37: 11
A38: 34 | B38: IB6 | E38: Blood product & biotech | F38: efficacy | G38: no | H38: - | K38: no | L38: no | M38: - | N38: yes | O38: Nude | P38: no | Q38: no | R38: - | S38: no | T38: - | U38: no | V38: - | W38: yes | X38: mouse | Y38: yes | Z38: no | AA38: yes | AB38: metric | AI38: yes | AL38: - | AM38: yes | AN38: In house | AO38: yes | AP38: no | AQ38: positive | BH38: 0 | BI38: 4 | BJ38: 7 | BK38: 0.3636363636 | BL38: 0 | BM38: 0 | BP38: 11
A39: 35 | B39: IB6 | E39: Blood product & biotech | F39: efficacy | G39: no | H39: - | K39: no | L39: no | M39: - | N39: yes | O39: Nude | P39: no | Q39: no | R39: - | S39: no | T39: - | U39: no | V39: - | W39: yes | X39: mouse | Y39: yes | Z39: no | AA39: yes | AB39: metric | AL39: - | AM39: yes | AN39: In house | AO39: no | AP39: no | AQ39: positive | BH39: 0 | BI39: 4 | BJ39: 7 | BK39: 0.3636363636 | BL39: 0 | BM39: 0 | BP39: 11
A40: 36 | B40: IB6 | E40: Blood product & biotech | F40: efficacy | G40: no | H40: - | K40: no | L40: no | M40: - | N40: yes | O40: Nude | P40: no | Q40: no | R40: - | S40: no | T40: - | U40: no | V40: - | W40: yes | X40: mouse | Y40: yes | Z40: no | AA40: yes | AB40: metric | AL40: - | AM40: yes | AN40: In house | AO40: no | AP40: no | AQ40: positive | BH40: 0 | BI40: 4 | BJ40: 7 | BK40: 0.3636363636 | BL40: 0 | BM40: 0 | BP40: 11
A41: 37 | B41: IB6 | E41: Blood product & biotech | F41: efficacy | G41: no | H41: - | K41: no | L41: no | M41: - | N41: yes | O41: Nude | P41: no | Q41: no | R41: - | S41: no | T41: - | U41: yes | V41: Postive control | W41: yes | X41: mouse | Y41: yes | Z41: no | AA41: yes | AB41: metric | AL41: - | AM41: yes | AN41: In house | AO41: no | AP41: no | AQ41: positive | BH41: 0 | BI41: 5 | BJ41: 6 | BK41: 0.4545454545 | BL41: 0 | BM41: 0 | BP41: 11
A42: 38 | B42: IB6 | E42: Blood product & biotech | F42: efficacy | G42: no | H42: - | K42: no | L42: no | M42: - | N42: yes | O42: Nude | P42: no | Q42: no | R42: - | S42: no | T42: - | U42: yes | V42: Postive control | W42: yes | X42: mouse | Y42: yes | Z42: no | AA42: yes | AB42: metric | AL42: - | AM42: yes | AN42: In house | AO42: no | AP42: no | AQ42: positive | BH42: 0 | BI42: 5 | BJ42: 6 | BK42: 0.4545454545 | BL42: 0 | BM42: 0 | BP42: 11
A43: 39 | B43: IB6 | E43: Blood product & biotech | F43: efficacy | G43: no | H43: - | K43: no | L43: no | M43: - | N43: yes | O43: Nude | P43: no | Q43: no | R43: - | S43: no | T43: - | U43: yes | V43: Postive control | W43: yes | X43: mouse | Y43: yes | Z43: no | AA43: yes | AB43: metric | AL43: - | AM43: yes | AN43: In house | AO43: no | AP43: no | AQ43: positive | BH43: 0 | BI43: 5 | BJ43: 6 | BK43: 0.4545454545 | BL43: 0 | BM43: 0 | BP43: 11
A44: 40 | B44: IB6 | E44: Blood product & biotech | F44: efficacy | G44: no | H44: - | K44: no | L44: no | M44: - | N44: yes | O44: Nude | P44: no | Q44: no | R44: - | S44: no | T44: - | U44: yes | V44: Postive control | W44: yes | X44: mouse | Y44: yes | Z44: no | AA44: yes | AB44: metric | AL44: - | AM44: yes | AN44: In house | AO44: no | AP44: no | AQ44: positive | BH44: 0 | BI44: 5 | BJ44: 6 | BK44: 0.4545454545 | BL44: 0 | BM44: 0 | BP44: 11
A45: 41 | B45: IB6 | E45: Blood product & biotech | F45: efficacy | G45: no | H45: - | K45: no | L45: no | M45: - | N45: yes | O45: Nude | P45: no | Q45: no | R45: - | S45: no | T45: - | U45: yes | V45: Postive control | W45: yes | X45: mouse | Y45: yes | Z45: no | AA45: yes | AB45: metric | AL45: - | AM45: yes | AN45: In house | AO45: no | AP45: no | AQ45: positive | BH45: 0 | BI45: 5 | BJ45: 6 | BK45: 0.4545454545 | BL45: 0 | BM45: 0 | BP45: 11
A46: 42 | B46: IB7 | E46: Blood product & biotech | F46: efficacy | G46: no | H46: - | K46: no | L46: no | M46: - | N46: yes | O46: nude | P46: no | Q46: no | R46: - | S46: no | T46: - | U46: no | V46: - | W46: yes | X46: mouse | Y46: yes | Z46: no | AA46: no | AB46: - | AC46: yes | AD46: yes | AE46: no | AF46: - | AG46: yes | AH46: no | AI46: yes | AJ46: yes | AK46: no | AL46: - | AM46: yes | AN46: In house | AO46: no | AP46: no | AQ46: positive | AR46: no | AS46: yes | AT46: yes | AU46: yes | BH46: 0 | BI46: 3 | BJ46: 8 | BK46: 0.2727272727 | BL46: 3 | BM46: 3 | BN46: 0.5 | BO46: =(AVERAGE(BK46:BK60)*11+BN46*6)/17 -> 0.3764705882 | BP46: 17
A47: 43 | B47: IB7 | E47: Blood product & biotech | F47: efficacy | G47: no | H47: - | K47: no | L47: no | M47: - | N47: yes | O47: nude | P47: no | Q47: no | R47: - | S47: no | T47: - | U47: no | V47: - | W47: yes | X47: mouse | Y47: yes | Z47: no | AA47: no | AB47: - | AM47: yes | AN47: In house | AO47: no | AP47: no | AQ47: positive | BH47: 0 | BI47: 3 | BJ47: 8 | BK47: 0.2727272727 | BL47: 0 | BM47: 0 | BP47: 11
A48: 44 | B48: IB7 | E48: Blood product & biotech | F48: efficacy | G48: no | H48: - | K48: no | L48: no | M48: - | N48: yes | O48: nude | P48: no | Q48: no | R48: - | S48: no | T48: - | U48: no | V48: - | W48: yes | X48: mouse | Y48: yes | Z48: no | AA48: no | AB48: - | AM48: yes | AN48: In house | AO48: no | AP48: no | AQ48: positive | BH48: 0 | BI48: 3 | BJ48: 8 | BK48: 0.2727272727 | BL48: 0 | BM48: 0 | BP48: 11
A49: 45 | B49: IB7 | E49: Blood product & biotech | F49: efficacy | G49: no | H49: - | K49: no | L49: no | M49: - | N49: yes | O49: nude | P49: no | Q49: no | R49: - | S49: no | T49: - | U49: no | V49: - | W49: yes | X49: mouse | Y49: yes | Z49: no | AA49: no | AB49: - | AM49: yes | AN49: peer revieweded | AO49: no | AP49: no | AQ49: positive | BH49: 0 | BI49: 3 | BJ49: 8 | BK49: 0.2727272727 | BL49: 0 | BM49: 0 | BP49: 11
A50: 46 | B50: IB7 | E50: Blood product & biotech | F50: efficacy | G50: no | H50: - | K50: no | L50: no | M50: - | N50: yes | O50: Nude | P50: no | Q50: no | R50: - | S50: no | T50: - | U50: no | V50: - | W50: yes | X50: mouse | Y50: yes | Z50: no | AA50: no | AB50: - | AL50: - | AM50: yes | AN50: In house | AO50: yes | AP50: no | AQ50: positive | BH50: 0 | BI50: 3 | BJ50: 8 | BK50: 0.2727272727 | BL50: 0 | BM50: 0 | BP50: 11
A51: 47 | B51: IB7 | E51: Blood product & biotech | F51: efficacy | G51: no | H51: - | K51: no | L51: no | M51: - | N51: yes | O51: Nude | P51: no | Q51: no | R51: - | S51: no | T51: - | U51: no | V51: - | W51: yes | X51: mouse | Y51: yes | Z51: no | AA51: no | AB51: - | AL51: - | AM51: yes | AN51: In house | AO51: yes | AP51: no | AQ51: positive | BH51: 0 | BI51: 3 | BJ51: 8 | BK51: 0.2727272727 | BL51: 0 | BM51: 0 | BP51: 11
A52: 48 | B52: IB7 | E52: Blood product & biotech | F52: efficacy | G52: no | H52: - | K52: no | L52: no | M52: - | N52: yes | O52: Nude | P52: no | Q52: no | R52: - | S52: no | T52: - | U52: no | V52: - | W52: yes | X52: mouse | Y52: yes | Z52: no | AA52: no | AB52: - | AL52: - | AM52: yes | AN52: In house | AO52: yes | AP52: no | AQ52: positive | BH52: 0 | BI52: 3 | BJ52: 8 | BK52: 0.2727272727 | BL52: 0 | BM52: 0 | BP52: 11
A53: 49 | B53: IB7 | E53: Blood product & biotech | F53: efficacy | G53: no | H53: - | K53: no | L53: no | M53: - | N53: yes | O53: Nude | P53: no | Q53: no | R53: - | S53: no | T53: - | U53: no | V53: - | W53: yes | X53: mouse | Y53: yes | Z53: no | AA53: no | AB53: - | AL53: - | AM53: yes | AN53: In house | AO53: yes | AP53: no | AQ53: positive | BH53: 0 | BI53: 3 | BJ53: 8 | BK53: 0.2727272727 | BL53: 0 | BM53: 0 | BP53: 11
A54: 50 | B54: IB7 | E54: Blood product & biotech | F54: efficacy | G54: no | H54: - | K54: no | L54: no | M54: - | N54: yes | O54: Nude | P54: no | Q54: no | R54: - | S54: no | T54: - | U54: no | V54: - | W54: yes | X54: mouse | Y54: yes | Z54: no | AA54: no | AB54: - | AL54: - | AM54: yes | AN54: In house | AO54: no | AP54: no | AQ54: positive | BH54: 0 | BI54: 3 | BJ54: 8 | BK54: 0.2727272727 | BL54: 0 | BM54: 0 | BP54: 11
A55: 51 | B55: IB7 | E55: Blood product & biotech | F55: efficacy | G55: no | H55: - | K55: no | L55: no | M55: - | N55: yes | O55: Nude | P55: no | Q55: no | R55: - | S55: no | T55: - | U55: no | V55: - | W55: yes | X55: mouse | Y55: yes | Z55: no | AA55: no | AB55: - | AL55: - | AM55: yes | AN55: In house | AO55: no | AP55: no | AQ55: positive | BH55: 0 | BI55: 3 | BJ55: 8 | BK55: 0.2727272727 | BL55: 0 | BM55: 0 | BP55: 11
A56: 52 | B56: IB7 | E56: Blood product & biotech | F56: efficacy | G56: no | H56: - | K56: no | L56: no | M56: - | N56: yes | O56: Nude | P56: no | Q56: no | R56: - | S56: no | T56: - | U56: yes | V56: Postive control | W56: yes | X56: mouse | Y56: yes | Z56: no | AA56: no | AB56: no | AL56: - | AM56: yes | AN56: In house | AO56: no | AP56: no | AQ56: positive | BH56: 0 | BI56: 4 | BJ56: 7 | BK56: 0.3636363636 | BL56: 0 | BM56: 0 | BP56: 11
A57: 53 | B57: IB7 | E57: Blood product & biotech | F57: efficacy | G57: no | H57: - | K57: no | L57: no | M57: - | N57: yes | O57: Nude | P57: no | Q57: no | R57: - | S57: no | T57: - | U57: yes | V57: Postive control | W57: yes | X57: mouse | Y57: yes | Z57: no | AA57: yes | AB57: metric | AL57: - | AM57: yes | AN57: In house | AO57: no | AP57: no | AQ57: positive | BH57: 0 | BI57: 5 | BJ57: 6 | BK57: 0.4545454545 | BL57: 0 | BM57: 0 | BP57: 11
A58: 54 | B58: IB7 | E58: Blood product & biotech | F58: efficacy | G58: no | H58: - | K58: no | L58: no | M58: - | N58: yes | O58: Nude | P58: no | Q58: no | R58: - | S58: no | T58: - | U58: yes | V58: Postive control | W58: yes | X58: mouse | Y58: yes | Z58: no | AA58: no | AB58: no | AL58: - | AM58: yes | AN58: In house | AO58: no | AP58: no | AQ58: negative | BH58: 0 | BI58: 4 | BJ58: 7 | BK58: 0.3636363636 | BL58: 0 | BM58: 0 | BP58: 11
A59: 55 | B59: IB7 | E59: Blood product & biotech | F59: efficacy | G59: no | H59: - | K59: no | L59: no | M59: - | N59: yes | O59: Nude | P59: no | Q59: no | R59: - | S59: no | T59: - | U59: yes | V59: Postive control | W59: yes | X59: mouse | Y59: yes | Z59: no | AA59: no | AB59: no | AL59: - | AM59: yes | AN59: In house | AO59: no | AP59: no | AQ59: positive | BH59: 0 | BI59: 4 | BJ59: 7 | BK59: 0.3636363636 | BL59: 0 | BM59: 0 | BP59: 11
A60: 56 | B60: IB7 | E60: Blood product & biotech | F60: efficacy | G60: no | H60: - | K60: no | L60: no | M60: - | N60: yes | O60: Nude | P60: no | Q60: no | R60: - | S60: no | T60: - | U60: yes | V60: Postive control | W60: yes | X60: mouse | Y60: yes | Z60: no | AA60: no | AB60: no | AL60: - | AM60: yes | AN60: In house | AO60: no | AP60: no | AQ60: positive | BH60: 1 | BI60: 4 | BJ60: 7 | BK60: 0.3636363636 | BL60: 0 | BM60: 0 | BP60: 11
A61: 57 | B61: IB8 | E61: Respiratory system | F61: efficacy | G61: no | H61: - | K61: no | L61: no | M61: - | N61: yes | O61: Wistar | P61: no | Q61: no | R61: - | S61: no | T61: - | U61: yes | V61: negative, positive | W61: yes | X61: rat | Y61: yes | Z61: yes | AA61: yes | AB61: both | AC61: yes | AD61: yes | AE61: no | AF61: - | AG61: yes | AH61: no | AI61: no | AJ61: no | AK61: no | AL61: - | AM61: yes | AN61: In house | AO61: yes | AP61: no | AQ61: positive | AR61: yes | AS61: yes | AT61: no | AU61: yes | BH61: 0 | BI61: 6 | BJ61: 5 | BK61: 0.5454545455 | BL61: 2 | BM61: 4 | BN61: 0.3333333333 | BO61: =(AVERAGE(BK61:BK62)*11+BN61*6)/17 -> 0.4705882353 | BP61: 17
A62: 58 | B62: IB8 | E62: Respiratory system | F62: efficacy | G62: no | H62: - | K62: no | L62: no | M62: - | N62: yes | O62: Wistar | P62: no | Q62: no | R62: - | S62: no | T62: - | U62: yes | V62: Negative | W62: yes | X62: rat | Y62: yes | Z62: yes | AA62: yes | AB62: both | AM62: yes | AN62: In house | AO62: yes | AP62: no | AQ62: positive | BH62: 0 | BI62: 6 | BJ62: 5 | BK62: 0.5454545455 | BL62: 0 | BM62: 0 | BP62: 11
A63: 59 | B63: IB9 | E63: Rheumatology | F63: efficacy | G63: yes | H63: 48 | J63: 12 | K63: no | L63: no | M63: - | N63: no | O63: - | P63: no | Q63: no | R63: - | S63: no | T63: - | U63: yes | V63: Positive | W63: yes | X63: Rat | Y63: no | Z63: no | AA63: no | AB63: - | AC63: yes | AD63: yes | AE63: yes | AF63: yes | AG63: yes | AH63: yes | AI63: yes | AJ63: no | AK63: no | AL63: - | AM63: yes | AN63: In house | AO63: no | AP63: no | AQ63: positive | AR63: yes | AS63: yes | AT63: no | AU63: no | BH63: 0 | BI63: 3 | BJ63: 8 | BK63: 0.2727272727 | BL63: 4 | BM63: 2 | BN63: 0.6666666667 | BO63: =(AVERAGE(BK63:BK66)*11+BN63*6)/17 -> 0.5294117647 | BP63: 17
A64: 60 | B64: IB9 | E64: Rheumatology | F64: efficacy | G64: yes | H64: 70 | J64: 10 | K64: no | L64: no | M64: - | N64: no | O64: - | P64: no | Q64: no | R64: - | S64: no | T64: - | U64: yes | V64: Positive, Negative | W64: yes | X64: Rat | Y64: no | Z64: no | AA64: no | AB64: - | AM64: yes | AN64: In house | AO64: no | AP64: no | AQ64: positive | BH64: 0 | BI64: 3 | BJ64: 8 | BK64: 0.2727272727 | BL64: 0 | BM64: 0 | BP64: 11
A65: 61 | B65: IB9 | E65: Rheumatology | F65: efficacy | G65: yes | H65: 50 | J65: 10 | K65: no | L65: no | M65: - | N65: yes | O65: Sex, young adult | P65: no | Q65: no | R65: - | S65: no | T65: - | U65: yes | V65: Negative | W65: yes | X65: Rat | Y65: yes | Z65: yes | AA65: yes | AB65: both | AM65: yes | AN65: In house | AO65: no | AP65: no | AQ65: positive | BH65: 0 | BI65: 7 | BJ65: 4 | BK65: 0.6363636364 | BL65: 0 | BM65: 0 | BP65: 11
A66: 62 | B66: IB9 | E66: Rheumatology | F66: efficacy | G66: yes | H66: 48 | J66: 12 | K66: no | L66: no | M66: - | N66: no | O66: - | P66: no | Q66: no | R66: - | S66: yes | T66: yes | U66: yes | V66: Negative | W66: yes | X66: Rat | Y66: yes | Z66: yes | AA66: yes | AB66: both | AM66: yes | AN66: In house | AO66: no | AP66: no | AQ66: positive | BH66: 1 | BI66: 7 | BJ66: 4 | BK66: 0.6363636364 | BL66: 0 | BM66: 0 | BP66: 11
A67: 63 | B67: IB13 | E67: Anti-neoplastic & immune-modulating agents | F67: efficacy | G67: no | H67: - | K67: - | L67: no | M67: - | N67: no | O67: - | P67: no | Q67: no | R67: - | S67: yes | T67: yes | U67: yes | V67: Negative, positive | W67: yes | X67: mouse | Y67: yes | Z67: no | AA67: yes | AB67: metric | AC67: no | AD67: - | AE67: yes | AF67: yes | AG67: yes | AH67: no | AI67: no | AJ67: no | AK67: no | AL67: - | AM67: yes | AN67: Peer-reviewed | AO67: yes | AP67: yes | AQ67: positive | AR67: yes | AS67: yes | AT67: yes | AU67: yes | BH67: 0 | BI67: 5 | BJ67: 6 | BK67: 0.4545454545 | BL67: 2 | BM67: 4 | BN67: 0.3333333333 | BO67: =(AVERAGE(BK67:BK70)*11+BN67*6)/17 -> 0.3970588235 | BP67: 17
A68: 64 | B68: IB13 | E68: Anti-neoplastic & immune-modulating agents | F68: efficacy | G68: yes | H68: 25 | J68: 6 | K68: no | L68: no | M68: - | N68: no | O68: - | P68: no | Q68: no | R68: - | S68: yes | T68: yes | U68: yes | V68: Negative, positive | W68: yes | X68: mouse | Y68: yes | Z68: no | AA68: yes | AB68: both | AD68: - | AM68: yes | AN68: Peer-reviewed | AO68: yes | AP68: yes | AQ68: positive | BH68: 0 | BI68: 6 | BJ68: 5 | BK68: 0.5454545455 | BL68: 0 | BM68: 0 | BP68: 11
A69: 65 | B69: IB13 | E69: Anti-neoplastic & immune-modulating agents | F69: efficacy | G69: no | H69: - | K69: - | L69: yes | M69: ARCaPM cells were injected into the tibiae of nude mice on Day 1, and on Day 31 animals with established bone lesions were randomized to receive cabozantinib or vehicle qd for 7 weeks of treatment | N69: no | O69: - | P69: no | Q69: no | R69: - | S69: no | T69: - | U69: yes | V69: negative | W69: yes | X69: mouse | Y69: yes | Z69: no | AA69: yes | AB69: no | AM69: yes | AN69: Peer-reviewed | AO69: no | AP69: no | AQ69: positive | BH69: =COUNTIFS(AH70,"no",AJ70,"no",AK70,"no") -> 0 | BI69: 5 | BJ69: 6 | BK69: 0.4545454545 | BL69: 0 | BM69: 0 | BP69: 11
A70: 66 | B70: IB13 | E70: Anti-neoplastic & immune-modulating agents | F70: efficacy | G70: no | H70: - | K70: - | L70: no | M70: - | N70: no | O70: - | P70: no | Q70: no | R70: - | S70: no | T70: - | U70: no | V70: - | W70: yes | X70: mouse | Y70: yes | Z70: no | AA70: yes | AB70: metric | AM70: yes | AN70: Peer-reviewed | AO70: yes | AP70: no | AQ70: positive | BH70: 0 | BI70: =SUM(G70=BG$5,L70=BG$5,N70=BG$5,P70=BG$5,Q70=BG$5,S70=BG$5,U70=BG$5,W70=BG$5,Y70=BG$5,Z70=BG$5,AA70=BG$5) -> 3 | BJ70: =SUM(G70=BG$6,L70=BG$6,N70=BG$6,P70=BG$6,Q70=BG$6,S70=BG$6,U70=BG$6,W70=BG$6,Y70=BG$6,Z70=BG$6,AA70=BG$6) -> 8 | BK70: =BI70/SUM(BI70:BJ70) -> 0.2727272727 | BL70: 0 | BM70: 0 | BP70: 11
A71: =A70+1 -> 67 | B71: IB10 | E71: Anti-neoplastic & immune-modulating agents | F71: efficacy | G71: yes | H71: 6 | J71: 2 | K71: no | L71: no | M71: - | N71: yes | O71: sex | P71: no | Q71: no | R71: - | S71: no | T71: - | U71: yes | V71: unclear | W71: yes | X71: mouse | Y71: yes | Z71: no | AA71: yes | AB71: metric | AC71: yes | AD71: yes | AE71: no | AF71: - | AG71: yes | AH71: yes | AI71: - | AJ71: yes | AK71: no | AL71: - | AM71: no | AN71: - | AO71: yes | AP71: no | AQ71: positive | AR71: yes | AS71: no | AT71: no | AU71: yes | BH71: 0 | BI71: 6 | BJ71: 5 | BK71: 0.5454545455 | BL71: 4 | BM71: 2 | BN71: =BL71/SUM(BL71:BM71) -> 0.6666666667 | BO71: =(AVERAGE(BK71:BK74)*11+BN71*6)/17 -> 0.4705882353 | BP71: =SUM(BI71:BJ71,BL71:BM71) -> 17
A72: 68 | B72: IB10 | E72: Anti-neoplastic & immune-modulating agents | F72: efficacy | G72: yes | H72: 6 | J72: 2 | K72: no | L72: no | M72: - | N72: yes | O72: sex | P72: no | Q72: no | R72: - | S72: no | T72: - | U72: yes | V72: unclear | W72: yes | X72: mouse | Y72: yes | Z72: no | AA72: yes | AB72: metric | AM72: no | AN72: - | AO72: yes | AP72: no | AQ72: positive | BH72: 0 | BI72: 6 | BJ72: 5 | BK72: 0.5454545455 | BL72: 0 | BM72: 0 | BP72: 11
A73: 69 | B73: IB10 | E73: Anti-neoplastic & immune-modulating agents | F73: efficacy | G73: no | H73: - | K73: - | L73: no | M73: - | N73: no | O73: - | P73: no | Q73: no | R73: - | S73: no | T73: - | U73: no | V73: - | W73: yes | X73: mouse | Y73: yes | Z73: no | AA73: no | AB73: - | AM73: no | AN73: - | AO73: no | AP73: no | AQ73: positive | BH73: 0 | BI73: 2 | BJ73: 9 | BK73: 0.1818181818 | BL73: 0 | BM73: 0 | BP73: 11
A74: 70 | B74: IB10 | E74: Anti-neoplastic & immune-modulating agents | F74: efficacy | G74: no | H74: - | K74: - | L74: no | M74: - | N74: no | O74: - | P74: no | Q74: no | R74: - | S74: no | T74: - | U74: no | V74: - | W74: yes | X74: mouse | Y74: yes | Z74: no | AA74: no | AB74: - | AM74: no | AN74: - | AO74: no | AP74: no | AQ74: positive | BH74: 0 | BI74: 2 | BJ74: 9 | BK74: 0.1818181818 | BL74: 0 | BM74: 0 | BP74: 11
A75: 71 | B75: IB10 | E75: Anti-neoplastic & immune-modulating agents | F75: efficacy | G75: no | H75: - | K75: - | L75: no | M75: - | N75: no | O75: - | P75: no | Q75: no | R75: - | S75: no | T75: - | U75: no | V75: - | W75: yes | X75: mouse | Y75: yes | Z75: no | AA75: no | AB75: - | AM75: no | AN75: - | AO75: no | AP75: no | AQ75: positive | BH75: 0 | BI75: 2 | BJ75: 9 | BK75: 0.1818181818 | BL75: 0 | BM75: 0 | BP75: 11
A76: 72 | B76: IB10 | E76: Anti-neoplastic & immune-modulating agents | F76: efficacy | G76: yes | H76: 6 | J76: 2 | K76: no | L76: no | M76: - | N76: yes | O76: sex | P76: no | Q76: no | R76: - | S76: no | T76: - | U76: yes | V76: unclear | W76: yes | X76: mouse | Y76: yes | Z76: no | AA76: yes | AB76: metric | AM76: no | AN76: - | AO76: yes | AP76: no | AQ76: positive | BH76: 0 | BI76: 6 | BJ76: 5 | BK76: =BI76/SUM(BI76:BJ76) -> 0.5454545455 | BL76: =SUM(AC76=BG$5,AE76=BG$5,AG76=BG$5,AH76=BG$5,AJ76=BG$5,AK76=BG$5) -> 0 | BM76: =SUM(AC76=BG$6,AE76=BG$6,AG76=BG$6,AH76=BG$6,AJ76=BG$6,AK76=BG$6) -> 0 | BP76: 11
A77: 73 | B77: IB11 | E77: Anti-neoplastic & immune-modulating agents | F77: efficacy | G77: yes | H77: 21 | J77: 7 | K77: no | L77: no | M77: - | N77: yes | O77: sex | P77: no | Q77: no | R77: - | S77: no | T77: - | U77: yes | V77: negative | W77: yes | X77: rat | Y77: yes | Z77: yes | AA77: yes | AB77: both | AC77: yes | AD77: yes | AE77: no | AF77: - | AG77: yes | AH77: no | AI77: yes | AJ77: yes | AK77: no | AL77: - | AM77: yes | AN77: In house | AO77: yes | AP77: yes | AQ77: positive | AR77: yes | AS77: yes | AT77: no | AU77: yes | BH77: 0 | BI77: 7 | BJ77: 4 | BK77: 0.6363636364 | BL77: 3 | BM77: 3 | BN77: =BL77/SUM(BL77:BM77) -> 0.5 | BO77: =(AVERAGE(BK77:BK84)*11+BN77*6)/17 -> 0.4411764706 | BP77: 17
A78: 74 | B78: IB11 | E78: Anti-neoplastic & immune-modulating agents | F78: efficacy | G78: no | H78: - | K78: - | L78: no | M78: - | N78: no | O78: - | P78: no | Q78: no | R78: - | S78: no | T78: - | U78: yes | V78: negative | W78: no | X78: - | Y78: yes | Z78: yes | AA78: yes | AB78: both | AM78: yes | AN78: In house | AO78: yes | AP78: no | AQ78: positive | BH78: 0 | BI78: 4 | BJ78: 7 | BK78: 0.3636363636 | BL78: 0 | BM78: 0 | BP78: 11
A79: 75 | B79: IB11 | E79: Anti-neoplastic & immune-modulating agents | F79: efficacy | G79: no | H79: - | K79: - | L79: no | M79: - | N79: no | O79: - | P79: no | Q79: no | R79: - | S79: no | T79: - | U79: yes | V79: negative | W79: no | X79: - | Y79: yes | Z79: yes | AA79: yes | AB79: both | AM79: yes | AN79: In house | AO79: yes | AP79: no | AQ79: positive | BH79: 0 | BI79: 4 | BJ79: 7 | BK79: 0.3636363636 | BL79: 0 | BM79: 0 | BP79: 11
A80: 76 | B80: IB11 | E80: Anti-neoplastic & immune-modulating agents | F80: efficacy | G80: no | H80: - | K80: - | L80: no | M80: - | N80: no | O80: - | P80: no | Q80: no | R80: - | S80: yes | T80: yes | U80: yes | V80: negative, positive | W80: no | X80: - | Y80: yes | Z80: yes | AA80: yes | AB80: both | AM80: yes | AN80: In house | AO80: yes | AP80: no | AQ80: positive | BH80: 0 | BI80: 5 | BJ80: 6 | BK80: 0.4545454545 | BL80: 0 | BM80: 0 | BP80: 11
A81: 77 | B81: IB11 | E81: Anti-neoplastic & immune-modulating agents | F81: efficacy | G81: no | H81: - | K81: - | L81: no | M81: - | N81: no | O81: - | P81: no | Q81: no | R81: - | S81: no | T81: - | U81: yes | V81: negative, positive | W81: no | X81: - | Y81: yes | Z81: yes | AA81: yes | AB81: both | AM81: yes | AN81: In house | AO81: yes | AP81: no | AQ81: positive | BH81: 0 | BI81: 4 | BJ81: 7 | BK81: 0.3636363636 | BL81: 0 | BM81: 0 | BP81: 11
A82: 78 | B82: IB11 | E82: Anti-neoplastic & immune-modulating agents | F82: efficacy | G82: no | H82: - | K82: - | L82: no | M82: - | N82: no | O82: - | P82: no | Q82: no | R82: - | S82: no | T82: - | U82: yes | V82: Negative, positive | W82: no | X82: - | Y82: yes | Z82: yes | AA82: yes | AB82: both | AM82: yes | AN82: In house | AO82: yes | AP82: no | AQ82: positive | BH82: 0 | BI82: 4 | BJ82: 7 | BK82: 0.3636363636 | BL82: 0 | BM82: 0 | BP82: 11
A83: 79 | B83: IB11 | E83: Anti-neoplastic & immune-modulating agents | F83: efficacy | G83: no | H83: - | K83: - | L83: no | M83: - | N83: no | O83: - | P83: no | Q83: no | R83: - | S83: no | T83: - | U83: yes | V83: Negative, positive | W83: no | X83: - | Y83: yes | Z83: yes | AA83: yes | AB83: both | AM83: yes | AN83: In house | AO83: yes | AP83: no | AQ83: positive | BH83: 0 | BI83: 4 | BJ83: 7 | BK83: 0.3636363636 | BL83: 0 | BM83: 0 | BP83: 11
A84: 80 | B84: IB11 | E84: Anti-neoplastic & immune-modulating agents | F84: efficacy | G84: no | H84: - | K84: - | L84: no | M84: - | N84: no | O84: - | P84: no | Q84: no | R84: - | S84: no | T84: - | U84: yes | V84: Negative, positive | W84: no | X84: - | Y84: yes | Z84: yes | AA84: yes | AB84: both | AM84: yes | AN84: In house | AO84: yes | AP84: no | AQ84: positive | BH84: 0 | BI84: 4 | BJ84: 7 | BK84: 0.3636363636 | BL84: 0 | BM84: 0 | BP84: 11
A85: 81 | B85: IB12 | E85: Respiratory system | F85: efficacy | G85: no | H85: - | K85: - | L85: no | M85: - | N85: no | O85: - | P85: no | Q85: no | R85: - | S85: no | T85: - | U85: no | V85: - | W85: yes | X85: mouse | Y85: yes | Z85: no | AA85: yes | AB85: metric | AC85: yes | AD85: yes | AE85: no | AF85: - | AG85: yes | AH85: yes | AI85: - | AJ85: yes | AK85: no | AL85: - | AM85: yes | AN85: In house | AO85: no | AP85: no | AQ85: positive | AR85: no | AS85: yes | AT85: no | AU85: yes | BH85: 0 | BI85: 3 | BJ85: 8 | BK85: 0.2727272727 | BL85: 4 | BM85: 2 | BN85: 0.6666666667 | BO85: =(AVERAGE(BK85:BK104)*11+BN85*6)/17 -> 0.3794117647 | BP85: 17
A86: 82 | B86: IB12 | E86: Respiratory system | F86: efficacy | G86: no | H86: - | K86: - | L86: no | M86: - | N86: no | O86: - | P86: no | Q86: no | R86: - | S86: no | T86: - | U86: no | V86: - | W86: yes | X86: mouse | Y86: yes | Z86: no | AA86: yes | AB86: metric | AM86: yes | AN86: In house | AO86: no | AP86: no | AQ86: positive | BH86: 0 | BI86: 3 | BJ86: 8 | BK86: 0.2727272727 | BL86: 0 | BM86: 0 | BP86: 11
A87: 83 | B87: IB12 | E87: Respiratory system | F87: efficacy | G87: no | H87: - | K87: - | L87: no | M87: - | N87: no | O87: - | P87: no | Q87: no | R87: - | S87: no | T87: - | U87: no | V87: - | W87: yes | X87: mouse | Y87: yes | Z87: no | AA87: no | AB87: no | AM87: yes | AN87: In house | AO87: no | AP87: no | AQ87: positive | BH87: 0 | BI87: 2 | BJ87: 9 | BK87: 0.1818181818 | BL87: 0 | BM87: 0 | BP87: 11
A88: 84 | B88: IB12 | E88: Respiratory system | F88: efficacy | G88: no | H88: - | K88: - | L88: no | M88: - | N88: yes | O88: sex, nude mice | P88: no | Q88: no | R88: - | S88: no | T88: - | U88: no | V88: - | W88: yes | X88: mouse | Y88: yes | Z88: yes | AA88: yes | AB88: both | AM88: yes | AN88: In house | AO88: yes | AP88: yes | AQ88: positive | BH88: 0 | BI88: 5 | BJ88: 6 | BK88: 0.4545454545 | BL88: 0 | BM88: 0 | BP88: 11
A89: 85 | B89: IB12 | E89: Respiratory system | F89: efficacy | G89: yes | H89: 26 | I89: 12-14 | J89: 12 | K89: no | L89: yes | M89: To determine the histologic effect of vismodegib treatment on SC LS180 xenografts in CD-1 nude mice, 26 mice with a mean LS180 tumor volume of 75 mm 3 were grouped randomly into two groups of 12–14 mice each. | N89: yes | O89: nude | P89: no | Q89: no | R89: - | S89: yes | T89: no | U89: yes | V89: negative | W89: yes | X89: mouse | Y89: yes | Z89: yes | AA89: yes | AB89: both | AM89: yes | AN89: In house | AO89: yes | AP89: yes | AQ89: positive | BH89: 0 | BI89: 9 | BJ89: 2 | BK89: 0.8181818182 | BL89: 0 | BM89: 0 | BP89: 11
A90: 86 | B90: IB12 | E90: Respiratory system | F90: efficacy | G90: no | H90: - | K90: - | L90: no | M90: - | N90: no | O90: - | P90: no | Q90: no | R90: - | S90: no | T90: - | U90: no | V90: - | W90: no | X90: - | Y90: yes | Z90: no | AA90: no | AB90: - | AM90: yes | AN90: In house | AO90: no | AP90: no | AQ90: positive | BH90: 0 | BI90: 1 | BJ90: 10 | BK90: 0.09090909091 | BL90: 0 | BM90: 0 | BP90: 11
A91: 87 | B91: IB12 | E91: Respiratory system | F91: efficacy | G91: no | H91: - | K91: - | L91: no | M91: - | N91: no | O91: - | P91: no | Q91: no | R91: - | S91: no | T91: - | U91: no | V91: - | W91: no | X91: - | Y91: yes | Z91: no | AA91: no | AB91: - | AM91: yes | AN91: In house | AO91: no | AP91: no | AQ91: positive | BH91: 0 | BI91: 1 | BJ91: 10 | BK91: 0.09090909091 | BL91: 0 | BM91: 0 | BP91: 11
A92: 88 | B92: IB12 | E92: Respiratory system | F92: efficacy | G92: no | H92: - | K92: - | L92: no | M92: - | N92: no | O92: - | P92: no | Q92: no | R92: - | S92: no | T92: - | U92: no | V92: - | W92: no | X92: - | Y92: yes | Z92: no | AA92: no | AB92: - | AM92: yes | AN92: In house | AO92: no | AP92: no | AQ92: positive | BH92: 0 | BI92: 1 | BJ92: 10 | BK92: 0.09090909091 | BL92: 0 | BM92: 0 | BP92: 11
A93: 89 | B93: IB12 | E93: Respiratory system | F93: efficacy | G93: no | H93: - | K93: - | L93: no | M93: - | N93: no | O93: - | P93: no | Q93: no | R93: - | S93: no | T93: - | U93: no | V93: - | W93: no | X93: - | Y93: yes | Z93: no | AA93: no | AB93: - | AM93: yes | AN93: In house | AO93: no | AP93: no | AQ93: positive | BH93: 0 | BI93: 1 | BJ93: 10 | BK93: 0.09090909091 | BL93: 0 | BM93: 0 | BP93: 11
A94: 90 | B94: IB12 | E94: Respiratory system | F94: efficacy | G94: yes | H94: 45 | I94: 5-7 | J94: 5 | K94: no | L94: no | N94: no | O94: - | P94: no | Q94: no | R94: - | S94: yes | T94: no | U94: yes | V94: negative | W94: yes | X94: mouse | Y94: yes | Z94: yes | AA94: yes | AB94: both | AM94: yes | AN94: In house | AO94: yes | AP94: no | AQ94: positive | BH94: 0 | BI94: 7 | BJ94: 4 | BK94: 0.6363636364 | BL94: 0 | BM94: 0 | BP94: 11
A95: 91 | B95: IB12 | E95: Respiratory system | F95: efficacy | G95: no | H95: - | K95: - | L95: no | M95: - | N95: no | O95: - | P95: no | Q95: no | R95: - | S95: no | T95: - | U95: yes | V95: negative | W95: yes | X95: mouse | Y95: yes | Z95: yes | AA95: yes | AB95: both | AM95: yes | AN95: In house | AO95: no | AP95: no | AQ95: positive | BH95: 0 | BI95: 5 | BJ95: 6 | BK95: 0.4545454545 | BL95: 0 | BM95: 0 | BP95: 11
A96: 92 | B96: IB12 | E96: Respiratory system | F96: efficacy | G96: no | H96: - | K96: - | L96: no | M96: - | N96: no | O96: - | P96: no | Q96: no | R96: - | S96: no | T96: - | U96: no | V96: - | W96: no | X96: - | Y96: yes | Z96: no | AA96: no | AB96: - | AM96: yes | AN96: In house | AO96: no | AP96: yes | AQ96: positive | BH96: 0 | BI96: 1 | BJ96: 10 | BK96: 0.09090909091 | BL96: 0 | BM96: 0 | BP96: 11
A97: 93 | B97: IB12 | E97: Respiratory system | F97: efficacy | G97: no | H97: - | K97: - | L97: no | M97: - | N97: no | O97: - | P97: no | Q97: no | R97: - | S97: no | T97: - | U97: no | V97: - | W97: no | X97: - | Y97: yes | Z97: no | AA97: no | AB97: - | AM97: yes | AN97: In house | AO97: no | AP97: yes | AQ97: positive | BH97: 0 | BI97: 1 | BJ97: 10 | BK97: 0.09090909091 | BL97: 0 | BM97: 0 | BP97: 11
A98: 94 | B98: IB12 | E98: Respiratory system | F98: efficacy | G98: no | H98: - | K98: - | L98: no | M98: - | N98: no | O98: - | P98: no | Q98: no | R98: - | S98: no | T98: - | U98: no | V98: - | W98: no | X98: - | Y98: yes | Z98: no | AA98: no | AB98: - | AM98: yes | AN98: In house | AO98: no | AP98: yes | AQ98: positive | BH98: 0 | BI98: 1 | BJ98: 10 | BK98: 0.09090909091 | BL98: 0 | BM98: 0 | BP98: 11
A99: 95 | B99: IB12 | E99: Respiratory system | F99: efficacy | G99: no | H99: - | K99: - | L99: no | M99: - | N99: no | O99: - | P99: no | Q99: no | R99: - | S99: no | T99: - | U99: no | V99: - | W99: no | X99: - | Y99: yes | Z99: no | AA99: no | AB99: - | AM99: yes | AN99: In house | AO99: no | AP99: yes | AQ99: positive | BH99: 0 | BI99: 1 | BJ99: 10 | BK99: 0.09090909091 | BL99: 0 | BM99: 0 | BP99: 11
A100: 96 | B100: IB12 | E100: Respiratory system | F100: efficacy | G100: no | H100: - | K100: - | L100: no | M100: - | N100: no | O100: - | P100: no | Q100: no | R100: - | S100: no | T100: - | U100: no | V100: - | W100: no | X100: - | Y100: yes | Z100: no | AA100: no | AB100: - | AM100: yes | AN100: In house | AO100: no | AP100: yes | AQ100: positive | BH100: 0 | BI100: 1 | BJ100: 10 | BK100: 0.09090909091 | BL100: 0 | BM100: 0 | BP100: 11
A101: 97 | B101: IB12 | E101: Respiratory system | F101: efficacy | G101: no | H101: - | K101: - | L101: no | M101: - | N101: no | O101: - | P101: no | Q101: no | R101: - | S101: no | T101: - | U101: no | V101: - | W101: no | X101: - | Y101: yes | Z101: no | AA101: no | AB101: - | AM101: yes | AN101: In house | AO101: no | AP101: yes | AQ101: positive | BH101: 0 | BI101: 1 | BJ101: 10 | BK101: 0.09090909091 | BL101: 0 | BM101: 0 | BP101: 11
A102: 98 | B102: IB12 | E102: Respiratory system | F102: efficacy | G102: no | H102: - | K102: - | L102: no | M102: - | N102: no | O102: - | P102: no | Q102: no | R102: - | S102: no | T102: - | U102: no | W102: no | X102: - | Y102: yes | Z102: no | AA102: no | AB102: - | AM102: yes | AN102: In house | AO102: no | AP102: no | AQ102: negative | BH102: 0 | BI102: 1 | BJ102: 10 | BK102: 0.09090909091 | BL102: 0 | BM102: 0 | BP102: 11
A103: 99 | B103: IB12 | E103: Respiratory system | F103: efficacy | G103: no | H103: - | K103: - | L103: no | M103: - | N103: no | O103: - | P103: no | Q103: no | R103: - | S103: no | T103: - | U103: no | V103: - | W103: no | X103: - | Y103: yes | Z103: no | AA103: yes | AB103: metric | AM103: yes | AN103: In house | AO103: no | AP103: no | AQ103: positive | BH103: 0 | BI103: 2 | BJ103: 9 | BK103: 0.1818181818 | BL103: 0 | BM103: 0 | BP103: 11
A104: 100 | B104: IB12 | E104: Respiratory system | F104: efficacy | G104: no | H104: - | K104: - | L104: no | M104: - | N104: yes | O104: Nude | P104: no | Q104: no | R104: - | S104: no | T104: - | U104: no | W104: no | X104: - | Y104: yes | Z104: no | AA104: no | AB104: - | AM104: yes | AN104: In house | AO104: no | AP104: no | AQ104: positive | BH104: 0 | BI104: 2 | BJ104: 9 | BK104: 0.1818181818 | BL104: 0 | BM104: 0 | BP104: 11
A105: 101 | B105: IB14 | E105: Anti-neoplastic & immune-modulating agents | F105: efficacy | G105: no | H105: - | K105: - | L105: no | M105: - | N105: no | O105: - | P105: no | Q105: no | R105: - | S105: no | T105: - | U105: no | W105: yes | X105: rat | Y105: yes | Z105: no | AA105: yes | AB105: metric | AC105: no | AD105: - | AE105: no | AF105: - | AG105: yes | AH105: no | AI105: no | AJ105: yes | AK105: no | AL105: - | AM105: yes | AN105: peer revieweded | AO105: no | AP105: no | AQ105: positive | AR105: yes | AS105: yes | AT105: yes | AU105: no | BH105: 0 | BI105: 3 | BJ105: 8 | BK105: 0.2727272727 | BL105: 2 | BM105: 4 | BN105: 0.3333333333 | BO105: =(AVERAGE(BK105:BK106)*11+BN105*6)/17 -> 0.2941176471 | BP105: 17
A106: 102 | B106: IB14 | E106: Anti-neoplastic & immune-modulating agents | F106: efficacy | G106: no | H106: - | K106: - | L106: no | M106: - | N106: no | O106: - | P106: no | Q106: no | R106: - | S106: no | T106: - | U106: no | W106: yes | X106: rat | Y106: yes | Z106: no | AA106: yes | AB106: metric | AM106: yes | AN106: peer revieweded | AO106: no | AP106: no | AQ106: positive | BH106: 0 | BI106: 3 | BJ106: 8 | BK106: 0.2727272727 | BL106: 0 | BM106: 0 | BP106: 11
A107: 103 | B107: IB15 | E107: Anti-neoplastic & immune-modulating agents | F107: efficacy | G107: no | H107: - | K107: - | L107: no | M107: - | N107: no | O107: - | P107: no | Q107: no | R107: - | S107: no | T107: - | U107: no | V107: - | W107: yes | X107: rat | Y107: yes | Z107: no | AA107: no | AB107: - | AC107: yes | AD107: yes | AE107: no | AF107: - | AG107: yes | AH107: no | AI107: yes | AJ107: yes | AK107: yes | AL107: rat, mice | AM107: yes | AN107: peer revieweded | AO107: no | AP107: no | AQ107: positive | AR107: no | AS107: yes | AT107: yes | AU107: yes | BH107: 0 | BI107: 2 | BJ107: 9 | BK107: 0.1818181818 | BL107: 4 | BM107: 2 | BN107: 0.6666666667 | BO107: =(AVERAGE(BK107:BK122)*11+BN107*6)/17 -> 0.4154411765 | BP107: 17
A108: 104 | B108: IB15 | E108: Anti-neoplastic & immune-modulating agents | F108: efficacy | G108: no | H108: - | K108: - | L108: no | M108: - | N108: no | O108: - | P108: no | Q108: no | R108: - | S108: no | T108: - | U108: yes | V108: negative | W108: yes | X108: mouse | Y108: yes | Z108: yes | AA108: yes | AB108: both | AM108: yes | AN108: peer revieweded | AO108: no | AP108: no | AQ108: positive | BH108: 0 | BI108: 5 | BJ108: 6 | BK108: 0.4545454545 | BL108: 0 | BM108: 0 | BP108: 11
A109: 105 | B109: IB15 | E109: Anti-neoplastic & immune-modulating agents | F109: efficacy | G109: no | H109: - | K109: - | L109: no | M109: - | N109: no | O109: - | P109: no | Q109: no | R109: - | S109: no | T109: - | U109: yes | V109: negative | W109: yes | X109: mouse | Y109: yes | Z109: yes | AA109: yes | AB109: both | AM109: yes | AN109: peer revieweded | AO109: no | AP109: no | AQ109: positive | BH109: 0 | BI109: 5 | BJ109: 6 | BK109: 0.4545454545 | BL109: 0 | BM109: 0 | BP109: 11
A110: 106 | B110: IB15 | E110: Anti-neoplastic & immune-modulating agents | F110: efficacy | G110: no | H110: - | K110: - | L110: no | M110: - | N110: no | O110: - | P110: no | Q110: no | R110: - | S110: no | T110: - | U110: no | V110: - | W110: yes | X110: mouse | Y110: yes | Z110: no | AA110: no | AB110: - | AM110: yes | AN110: In house | AO110: no | AP110: no | AQ110: negative | BH110: 0 | BI110: 2 | BJ110: 9 | BK110: 0.1818181818 | BL110: 0 | BM110: 0 | BP110: 11
A111: 107 | B111: IB15 | E111: Anti-neoplastic & immune-modulating agents | F111: efficacy | G111: yes | H111: 30 | J111: 10 | K111: no | L111: no | M111: - | N111: no | O111: - | P111: no | Q111: no | R111: - | S111: no | T111: - | U111: yes | V111: Negative, positive | W111: yes | X111: mouse | Y111: yes | Z111: no | AA111: yes | AB111: metric | AM111: yes | AN111: peer revieweded | AO111: no | AP111: no | AQ111: positive | BH111: 0 | BI111: 5 | BJ111: 6 | BK111: 0.4545454545 | BL111: 0 | BM111: 0 | BP111: 11
A112: 108 | B112: IB15 | E112: Anti-neoplastic & immune-modulating agents | F112: efficacy | G112: yes | H112: 30 | J112: 10 | K112: no | L112: no | M112: - | N112: no | O112: - | P112: no | Q112: no | R112: - | S112: no | T112: - | U112: yes | V112: Negative, positive | W112: yes | X112: mouse | Y112: yes | Z112: no | AA112: yes | AB112: metric | AM112: yes | AN112: peer revieweded | AO112: no | AP112: no | AQ112: positive | BH112: 0 | BI112: 5 | BJ112: 6 | BK112: 0.4545454545 | BL112: 0 | BM112: 0 | BP112: 11
A113: 109 | B113: IB15 | E113: Anti-neoplastic & immune-modulating agents | F113: efficacy | G113: no | H113: - | K113: - | L113: no | M113: - | N113: no | O113: - | P113: no | Q113: no | R113: - | S113: no | T113: - | U113: yes | V113: Postive control | W113: yes | X113: mouse | Y113: yes | Z113: no | AA113: yes | AB113: both | AM113: yes | AN113: peer revieweded | AO113: no | AP113: no | AQ113: positive | BH113: 0 | BI113: 4 | BJ113: 7 | BK113: 0.3636363636 | BL113: 0 | BM113: 0 | BP113: 11
A114: 110 | B114: IB15 | E114: Anti-neoplastic & immune-modulating agents | F114: efficacy | G114: no | H114: - | K114: - | L114: no | M114: - | N114: no | O114: - | P114: no | Q114: no | R114: - | S114: no | T114: - | U114: yes | V114: Postive control | W114: yes | X114: mouse | Y114: yes | Z114: no | AA114: yes | AB114: both | AM114: yes | AN114: peer revieweded | AO114: no | AP114: no | AQ114: positive | BH114: 0 | BI114: 4 | BJ114: 7 | BK114: 0.3636363636 | BL114: 0 | BM114: 0 | BP114: 11
A115: 111 | B115: IB15 | E115: Anti-neoplastic & immune-modulating agents | F115: efficacy | G115: no | H115: - | K115: - | L115: no | M115: - | N115: no | O115: - | P115: no | Q115: no | R115: - | S115: no | T115: - | U115: no | V115: - | W115: yes | X115: mouse | Y115: no | Z115: no | AA115: no | AB115: - | AM115: yes | AN115: peer revieweded | AO115: no | AP115: no | AQ115: positive | BH115: 0 | BI115: 1 | BJ115: 10 | BK115: 0.09090909091 | BL115: 0 | BM115: 0 | BP115: 11
A116: 112 | B116: IB15 | E116: Anti-neoplastic & immune-modulating agents | F116: efficacy | G116: no | H116: - | K116: - | L116: no | M116: - | N116: no | O116: - | P116: no | Q116: no | R116: - | S116: no | T116: - | U116: no | V116: - | W116: yes | X116: mouse | Y116: no | Z116: no | AA116: no | AB116: - | AM116: yes | AN116: peer revieweded | AO116: no | AP116: no | AQ116: positive | BH116: 0 | BI116: 1 | BJ116: 10 | BK116: 0.09090909091 | BL116: 0 | BM116: 0 | BP116: 11
A117: 113 | B117: IB15 | E117: Anti-neoplastic & immune-modulating agents | F117: efficacy | G117: no | H117: - | K117: - | L117: no | M117: - | N117: no | O117: - | P117: no | Q117: no | R117: - | S117: no | T117: - | U117: no | V117: - | W117: yes | X117: mouse | Y117: yes | Z117: no | AA117: no | AB117: - | AM117: yes | AN117: peer revieweded | AO117: no | AP117: no | AQ117: positive | BH117: 0 | BI117: 2 | BJ117: 9 | BK117: 0.1818181818 | BL117: 0 | BM117: 0 | BP117: 11
A118: 114 | B118: IB15 | E118: Anti-neoplastic & immune-modulating agents | F118: efficacy | G118: no | H118: - | K118: - | L118: no | M118: - | N118: no | O118: - | P118: no | Q118: no | R118: - | S118: no | T118: - | U118: no | V118: - | W118: yes | X118: mouse | Y118: yes | Z118: no | AA118: yes | AB118: metric | AM118: yes | AN118: peer revieweded | AO118: yes | AP118: no | AQ118: positive | BH118: 0 | BI118: 3 | BJ118: 8 | BK118: 0.2727272727 | BL118: 0 | BM118: 0 | BP118: 11
A119: 115 | B119: IB15 | E119: Anti-neoplastic & immune-modulating agents | F119: efficacy | G119: no | H119: - | K119: - | L119: no | M119: - | N119: yes | O119: sex, female | P119: no | Q119: no | R119: - | S119: no | T119: - | U119: no | V119: - | W119: yes | X119: mouse | Y119: yes | Z119: no | AA119: no | AB119: - | AM119: yes | AN119: peer revieweded | AO119: no | AP119: no | AQ119: positive | BH119: 0 | BI119: 3 | BJ119: 8 | BK119: 0.2727272727 | BL119: 0 | BM119: 0 | BP119: 11
A120: 116 | B120: IB15 | E120: Anti-neoplastic & immune-modulating agents | F120: efficacy | G120: no | H120: - | K120: - | L120: no | M120: - | N120: no | O120: - | P120: no | Q120: no | R120: - | S120: no | T120: - | U120: no | V120: - | W120: yes | X120: mouse | Y120: yes | Z120: no | AA120: no | AB120: - | AM120: yes | AN120: peer revieweded | AO120: no | AP120: no | AQ120: positive | BH120: 0 | BI120: 2 | BJ120: 9 | BK120: 0.1818181818 | BL120: 0 | BM120: 0 | BP120: 11
A121: 117 | B121: IB15 | E121: Anti-neoplastic & immune-modulating agents | F121: efficacy | G121: no | H121: - | K121: - | L121: no | M121: - | N121: no | O121: - | P121: no | Q121: no | R121: - | S121: no | T121: - | U121: no | V121: - | W121: yes | X121: rat | Y121: no | Z121: no | AA121: no | AB121: - | AM121: yes | AN121: peer revieweded | AO121: no | AP121: no | AQ121: positive | BH121: 0 | BI121: 1 | BJ121: 10 | BK121: 0.09090909091 | BL121: 0 | BM121: 0 | BP121: 11
A122: 118 | B122: IB15 | E122: Anti-neoplastic & immune-modulating agents | F122: efficacy | G122: no | H122: - | K122: - | L122: no | M122: - | N122: no | O122: - | P122: no | Q122: no | R122: - | S122: no | T122: - | U122: yes | V122: Postive control | W122: yes | X122: rat | Y122: yes | Z122: no | AA122: yes | AB122: both | AM122: yes | AN122: peer revieweded | AO122: no | AP122: no | AQ122: positive | BH122: 0 | BI122: 4 | BJ122: 7 | BK122: 0.3636363636 | BL122: 0 | BM122: 0 | BP122: 11
A123: 119 | B123: IB16 | D123: 2 | F123: no efficacy | L123: - | M123: - | N123: - | O123: - | P123: - | Q123: - | R123: - | S123: - | T123: - | U123: - | V123: - | W123: - | X123: - | Y123: - | Z123: - | AA123: - | AB123: - | AC123: - | AD123: - | AE123: - | AF123: - | AG123: - | AH123: - | AI123: - | AJ123: - | AK123: - | AL123: - | AM123: - | AN123: - | AO123: - | BH123: 0 | BI123: 0 | BJ123: 0 | BL123: 0 | BM123: 0 | BP123: 0
A124: 120 | B124: IB17 | E124: Anti-infectives | F124: efficacy | G124: yes | H124: 31 | I124: 7-8 | J124: 7 | K124: no | L124: no | M124: - | N124: yes | O124: bodyweight at day 0 | P124: no | Q124: no | R124: - | S124: yes | T124: no | U124: yes | V124: negative | W124: yes | X124: mouse | Y124: yes | Z124: no | AA124: yes | AB124: both | AC124: yes | AD124: yes | AE124: no | AG124: yes | AH124: no | AI124: yes | AJ124: yes | AK124: yes | AL124: mouse, dog | AM124: no | AN124: - | AO124: no | AP124: yes | AQ124: positive | AR124: yes | AS124: no | AT124: no | AU124: no | BH124: 0 | BI124: 7 | BJ124: 4 | BK124: 0.6363636364 | BL124: 4 | BM124: 2 | BN124: 0.6666666667 | BO124: =(AVERAGE(BK124:BK130)*11+BN124*6)/17 -> 0.5798319328 | BP124: 17
A125: 121 | B125: IB17 | E125: Anti-infectives | F125: efficacy | G125: yes | H125: 16 | J125: 8 | K125: no | L125: no | M125: - | N125: no | O125: - | P125: no | Q125: no | R125: - | S125: no | T125: - | U125: yes | V125: negative | W125: yes | X125: mouse | Y125: yes | Z125: no | AA125: yes | AB125: both | AM125: no | AN125: - | AO125: no | AP125: yes | AQ125: positive | BH125: 0 | BI125: 5 | BJ125: 6 | BK125: 0.4545454545 | BL125: 0 | BM125: 0 | BP125: 11
A126: 122 | B126: IB17 | E126: Anti-infectives | F126: efficacy | G126: yes | H126: 56 | J126: 8 | K126: no | L126: no | M126: - | N126: yes | O126: sex, age | P126: no | Q126: no | R126: - | S126: no | T126: - | U126: yes | V126: negative | W126: yes | X126: rat | Y126: yes | Z126: no | AA126: yes | AB126: both | AM126: no | AN126: - | AO126: no | AP126: yes | AQ126: positive | BH126: 0 | BI126: 6 | BJ126: 5 | BK126: 0.5454545455 | BL126: 0 | BM126: 0 | BP126: 11
A127: 123 | B127: IB17 | E127: Anti-infectives | F127: efficacy | G127: yes | H127: 40 | J127: 8 | K127: no | L127: no | M127: - | N127: yes | O127: sex | P127: no | Q127: no | R127: - | S127: no | T127: - | U127: yes | V127: negative | W127: yes | X127: dog | Y127: yes | Z127: no | AA127: yes | AB127: both | AM127: no | AN127: - | AO127: no | AP127: yes | AQ127: positive | BH127: 0 | BI127: 6 | BJ127: 5 | BK127: 0.5454545455 | BL127: 0 | BM127: 0 | BP127: 11
A128: 124 | B128: IB17 | E128: Anti-infectives | F128: efficacy | G128: yes | H128: 3 | J128: 3 | K128: no | L128: no | M128: - | N128: yes | O128: sex, age | P128: no | Q128: no | R128: - | S128: no | T128: - | U128: yes | V128: cross over | W128: yes | X128: monkey | Y128: no | Z128: no | AA128: yes | AB128: both | AM128: no | AN128: - | AO128: no | AP128: yes | AQ128: positive | BH128: 0 | BI128: 5 | BJ128: 6 | BK128: 0.4545454545 | BL128: 0 | BM128: 0 | BP128: 11
A129: 125 | B129: IB17 | E129: Anti-infectives | F129: efficacy | G129: yes | H129: 40 | J129: 8 | K129: no | L129: no | M129: - | N129: yes | O129: sex | P129: no | Q129: no | R129: - | S129: no | T129: - | U129: yes | V129: negative | W129: yes | X129: hamster | Y129: no | Z129: no | AA129: yes | AB129: both | AM129: no | AN129: - | AO129: no | AP129: yes | AQ129: positive | BH129: 0 | BI129: 5 | BJ129: 6 | BK129: 0.4545454545 | BL129: 0 | BM129: 0 | BP129: 11
A130: 126 | B130: IB17 | E130: Anti-infectives | F130: efficacy | G130: yes | H130: 24 | J130: 8 | K130: no | L130: no | M130: - | N130: yes | O130: sex | P130: no | Q130: no | R130: - | S130: no | T130: - | U130: yes | V130: negative | W130: yes | X130: guinea pigs | Y130: yes | Z130: yes | AA130: yes | AB130: both | AM130: no | AN130: - | AO130: no | AP130: yes | AQ130: positive | BH130: 0 | BI130: 7 | BJ130: 4 | BK130: 0.6363636364 | BL130: 0 | BM130: 0 | BP130: 11
A131: 127 | B131: IB18 | E131: Alimentary tract & metabolism | F131: efficacy | G131: yes | H131: 60 | J131: 10 | K131: no | L131: no | M131: - | N131: no | O131: - | P131: no | Q131: no | R131: - | S131: no | T131: - | U131: yes | V131: negative | W131: yes | X131: mouse | Y131: yes | Z131: no | AA131: yes | AB131: both | AC131: yes | AD131: yes | AE131: yes | AF131: yes | AG131: no | AH131: yes | AI131: - | AJ131: yes | AK131: yes | AL131: mice, rat, monkey | AM131: yes | AN131: in house | AO131: yes | AP131: yes | AQ131: positive | AR131: yes | AS131: yes | AT131: no | AU131: yes | BH131: 0 | BI131: 5 | BJ131: 6 | BK131: 0.4545454545 | BL131: 5 | BM131: 1 | BN131: 0.8333333333 | BO131: =(AVERAGE(BK131:BK141)*11+BN131*6)/17 -> 0.6363636364 | BP131: 17
A132: 128 | B132: IB18 | E132: Alimentary tract & metabolism | F132: efficacy | G132: yes | H132: 36 | J132: 6 | K132: no | L132: no | M132: - | N132: no | O132: - | P132: no | Q132: no | R132: - | S132: no | T132: - | U132: yes | V132: negative | W132: yes | X132: rat | Y132: yes | Z132: no | AA132: yes | AB132: both | AM132: yes | AN132: in house | AO132: yes | AP132: yes | AQ132: positive | BH132: 0 | BI132: 5 | BJ132: 6 | BK132: 0.4545454545 | BL132: 0 | BM132: 0 | BP132: 11
A133: 129 | B133: IB18 | E133: Alimentary tract & metabolism | F133: efficacy | G133: yes | H133: 16 | I133: 5-6 | J133: 5 | K133: no | L133: no | M133: - | N133: no | O133: - | P133: no | Q133: no | R133: - | S133: yes | T133: no | U133: no | V133: - | W133: yes | X133: monkey | Y133: no | Z133: no | AA133: yes | AB133: both | AM133: yes | AN133: in house | AO133: yes | AP133: yes | AQ133: positive | BH133: =COUNTIFS(AH134,"no",AJ134,"no",AK134,"no") -> 0 | BI133: 4 | BJ133: 7 | BK133: 0.3636363636 | BL133: 0 | BM133: 0 | BP133: 11
A134: 130 | B134: IB18 | E134: Alimentary tract & metabolism | F134: efficacy | G134: yes | H134: 96 | J134: 12 | K134: no | L134: yes | M134: yes | N134: yes | O134: sex | P134: no | Q134: no | R134: - | S134: no | T134: - | U134: yes | V134: Negative, positive | W134: yes | X134: mouse | Y134: yes | Z134: yes | AA134: yes | AB134: both | AM134: yes | AN134: in house | AO134: yes | AP134: yes | AQ134: positive | BH134: 0 | BI134: =SUM(G134=BG$5,L134=BG$5,N134=BG$5,P134=BG$5,Q134=BG$5,S134=BG$5,U134=BG$5,W134=BG$5,Y134=BG$5,Z134=BG$5,AA134=BG$5) -> 8 | BJ134: =SUM(G134=BG$6,L134=BG$6,N134=BG$6,P134=BG$6,Q134=BG$6,S134=BG$6,U134=BG$6,W134=BG$6,Y134=BG$6,Z134=BG$6,AA134=BG$6) -> 3 | BK134: 0.7272727273 | BL134: 0 | BM134: 0 | BP134: 11
A135: =A134+1 -> 131 | B135: IB18 | E135: Alimentary tract & metabolism | F135: efficacy | G135: yes | H135: 72 | J135: 12 | K135: no | L135: yes | M135: yes | N135: yes | O135: sex | P135: no | Q135: no | R135: - | S135: no | T135: - | U135: yes | V135: Negative, positive | W135: yes | X135: mouse | Y135: yes | Z135: yes | AA135: yes | AB135: both | AM135: yes | AN135: in house | AO135: no | AP135: yes | AQ135: positive | BH135: 0 | BI135: 8 | BJ135: 3 | BK135: 0.7272727273 | BL135: 0 | BM135: 0 | BP135: =SUM(BI135:BJ135,BL135:BM135) -> 11
A136: 132 | B136: IB18 | E136: Alimentary tract & metabolism | F136: efficacy | G136: yes | H136: 40 | J136: 8 | K136: no | L136: no | M136: - | N136: no | O136: - | P136: no | Q136: no | R136: - | S136: no | T136: - | U136: yes | V136: negative | W136: yes | X136: mouse | Y136: yes | Z136: no | AA136: yes | AB136: metric | AM136: yes | AN136: in house | AO136: yes | AP136: yes | AQ136: positive | BH136: 0 | BI136: 5 | BJ136: 6 | BK136: 0.4545454545 | BL136: 0 | BM136: 0 | BP136: 11
A137: 133 | B137: IB18 | E137: Alimentary tract & metabolism | F137: efficacy | G137: yes | H137: 50 | J137: 10 | K137: no | L137: no | M137: - | N137: no | O137: - | P137: no | Q137: no | R137: - | S137: no | T137: - | U137: yes | V137: positive | W137: yes | X137: mouse | Y137: yes | Z137: no | AA137: yes | AB137: metric | AM137: yes | AN137: in house | AO137: yes | AP137: yes | AQ137: positive | BH137: 0 | BI137: 5 | BJ137: 6 | BK137: 0.4545454545 | BL137: 0 | BM137: 0 | BP137: 11
A138: 134 | B138: IB18 | E138: Alimentary tract & metabolism | F138: efficacy | G138: yes | H138: 90 | J138: 10 | K138: no | L138: yes | M138: yes | N138: no | O138: - | P138: no | Q138: no | R138: - | S138: no | T138: - | U138: yes | V138: negative | W138: yes | X138: mouse | Y138: yes | Z138: no | AA138: yes | AB138: both | AM138: yes | AN138: in house | AO138: yes | AP138: yes | AQ138: positive | BH138: 0 | BI138: 6 | BJ138: 5 | BK138: 0.5454545455 | BL138: 0 | BM138: 0 | BP138: 11
A139: 135 | B139: IB18 | E139: Alimentary tract & metabolism | F139: efficacy | G139: yes | H139: 90 | J139: 10 | K139: no | L139: no | M139: - | N139: no | O139: - | P139: no | Q139: no | R139: - | S139: no | T139: - | U139: yes | V139: Negative, positive | W139: yes | X139: mouse | Y139: yes | Z139: no | AA139: yes | AB139: both | AM139: yes | AN139: in house | AO139: yes | AP139: yes | AQ139: positive | BH139: 0 | BI139: 5 | BJ139: 6 | BK139: 0.4545454545 | BL139: 0 | BM139: 0 | BP139: 11
A140: 136 | B140: IB18 | E140: Alimentary tract & metabolism | F140: efficacy | G140: no | H140: - | K140: - | L140: yes | M140: yes | N140: yes | O140: sex | P140: no | Q140: no | R140: - | S140: no | T140: - | U140: yes | V140: negative | W140: yes | X140: mouse | Y140: yes | Z140: no | AA140: yes | AB140: both | AM140: yes | AN140: in house | AO140: yes | AP140: yes | AQ140: positive | BH140: 0 | BI140: 6 | BJ140: 5 | BK140: =BI140/SUM(BI140:BJ140) -> 0.5454545455 | BL140: =SUM(AC140=BG$5,AE140=BG$5,AG140=BG$5,AH140=BG$5,AJ140=BG$5,AK140=BG$5) -> 0 | BM140: =SUM(AC140=BG$6,AE140=BG$6,AG140=BG$6,AH140=BG$6,AJ140=BG$6,AK140=BG$6) -> 0 | BP140: 11
A141: 137 | B141: IB18 | E141: Alimentary tract & metabolism | F141: efficacy | G141: yes | H141: 56 | J141: 14 | K141: no | L141: yes | M141: yes | N141: yes | O141: sex, age | P141: no | Q141: no | R141: - | S141: no | T141: - | U141: yes | V141: Negative, positive | W141: yes | X141: mouse | Y141: yes | Z141: no | AA141: yes | AB141: both | AM141: yes | AN141: in house | AO141: yes | AP141: yes | AQ141: positive | BH141: 1 | BI141: 7 | BJ141: 4 | BK141: 0.6363636364 | BL141: 0 | BM141: 0 | BP141: 11
A142: 138 | B142: IB19 | E142: Anti-neoplastic & immune-modulating agents | F142: efficacy | G142: yes | H142: 12 | J142: 6 | K142: no | L142: yes | M142: yes | N142: no | O142: - | P142: no | Q142: no | R142: - | S142: no | T142: - | U142: yes | V142: negative | W142: yes | X142: mouse | Y142: yes | Z142: yes | AA142: yes | AB142: both | AC142: no | AD142: - | AE142: no | AF142: - | AG142: no | AH142: no | AI142: no | AJ142: no | AK142: no | AL142: - | AM142: no | AO142: yes | AP142: no | AQ142: positive | AR142: yes | AS142: no | AT142: no | AU142: yes | BH142: 0 | BI142: 7 | BJ142: 4 | BK142: 0.6363636364 | BL142: 0 | BM142: 6 | BN142: =BL142/SUM(BL142:BM142) -> 0 | BO142: =(AVERAGE(BK142)*11+BN142*6)/17 -> 0.4117647059 | BP142: 17
A143: 139 | B143: IB20 | E143: Anti-neoplastic & immune-modulating agents | F143: efficacy | G143: no | H143: - | K143: - | L143: no | M143: no | N143: no | P143: no | Q143: no | R143: - | S143: no | T143: - | U143: no | V143: - | W143: yes | X143: rat | Y143: yes | Z143: yes | AA143: no | AB143: - | AC143: yes | AD143: yes | AE143: no | AF143: - | AG143: yes | AH143: yes | AI143: - | AJ143: yes | AK143: yes | AL143: rat, mice | AM143: yes | AN143: peer revieweded | AO143: yes | AP143: no | AQ143: positive | AR143: yes | AS143: yes | AT143: yes | AU143: yes | BH143: 0 | BI143: 3 | BJ143: 8 | BK143: 0.2727272727 | BL143: 5 | BM143: 1 | BN143: 0.8333333333 | BO143: =(AVERAGE(BK143:BK158)*11+BN143*6)/17 -> 0.4963235294 | BP143: 17
A144: 140 | B144: IB20 | E144: Anti-neoplastic & immune-modulating agents | F144: efficacy | G144: no | H144: - | K144: - | L144: no | M144: no | N144: yes | O144: sex | P144: no | Q144: no | R144: - | S144: no | T144: - | U144: yes | V144: negative | W144: yes | X144: rat | Y144: yes | Z144: yes | AA144: yes | AB144: both | AM144: yes | AN144: peer revieweded | AO144: yes | AP144: no | AQ144: positive | BH144: 0 | BI144: 6 | BJ144: 5 | BK144: 0.5454545455 | BL144: 0 | BM144: 0 | BP144: 11
A145: 141 | B145: IB20 | E145: Anti-neoplastic & immune-modulating agents | F145: efficacy | G145: no | H145: - | K145: - | L145: no | M145: no | N145: yes | O145: sex | P145: no | Q145: no | R145: - | S145: no | T145: - | U145: yes | V145: negative | W145: yes | X145: rat | Y145: yes | Z145: yes | AA145: yes | AB145: both | AM145: yes | AN145: peer revieweded | AO145: yes | AP145: no | AQ145: positive | BH145: 0 | BI145: 6 | BJ145: 5 | BK145: 0.5454545455 | BL145: 0 | BM145: 0 | BP145: 11
A146: 142 | B146: IB20 | E146: Anti-neoplastic & immune-modulating agents | F146: efficacy | G146: no | H146: - | K146: - | L146: no | M146: no | N146: no | O146: - | P146: no | Q146: no | R146: - | S146: no | T146: - | U146: no | V146: - | W146: yes | X146: mouse | Y146: yes | Z146: no | AA146: no | AB146: - | AM146: yes | AN146: peer revieweded | AO146: yes | AP146: no | AQ146: positive | BH146: 0 | BI146: 2 | BJ146: 9 | BK146: 0.1818181818 | BL146: 0 | BM146: 0 | BP146: 11
A147: 143 | B147: IB20 | E147: Anti-neoplastic & immune-modulating agents | F147: efficacy | G147: no | H147: - | K147: - | L147: no | M147: no | N147: no | O147: - | P147: no | Q147: no | R147: - | S147: no | T147: - | U147: yes | V147: Negative, positive | W147: yes | X147: mouse | Y147: yes | Z147: no | AA147: yes | AB147: both | AM147: yes | AN147: peer revieweded | AO147: yes | AP147: no | AQ147: positive | BH147: 0 | BI147: 4 | BJ147: 7 | BK147: 0.3636363636 | BL147: 0 | BM147: 0 | BP147: 11
A148: 144 | B148: IB20 | E148: Anti-neoplastic & immune-modulating agents | F148: efficacy | G148: no | H148: - | K148: - | L148: no | M148: no | N148: no | O148: - | P148: no | Q148: no | R148: - | S148: no | T148: - | U148: yes | V148: Negative, positive | W148: yes | X148: mouse | Y148: yes | Z148: no | AA148: yes | AB148: both | AM148: yes | AN148: peer revieweded | AO148: yes | AP148: no | AQ148: positive | BH148: 0 | BI148: 4 | BJ148: 7 | BK148: 0.3636363636 | BL148: 0 | BM148: 0 | BP148: 11
A149: 145 | B149: IB20 | E149: Anti-neoplastic & immune-modulating agents | F149: efficacy | G149: no | H149: - | K149: - | L149: no | M149: no | N149: no | O149: - | P149: no | Q149: no | R149: - | S149: no | T149: - | U149: yes | V149: positive | W149: yes | X149: mouse | Y149: yes | Z149: yes | AA149: yes | AB149: both | AM149: yes | AN149: peer revieweded | AO149: yes | AP149: no | AQ149: positive | BH149: 0 | BI149: 5 | BJ149: 6 | BK149: 0.4545454545 | BL149: 0 | BM149: 0 | BP149: 11
A150: 146 | B150: IB20 | E150: Anti-neoplastic & immune-modulating agents | F150: efficacy | G150: no | H150: - | K150: - | L150: no | M150: no | N150: no | O150: - | P150: no | Q150: no | R150: - | S150: no | T150: - | U150: no | V150: - | W150: yes | X150: mouse | Y150: yes | Z150: no | AA150: yes | AB150: both | AM150: yes | AN150: peer revieweded | AO150: no | AP150: no | AQ150: positive | BH150: 0 | BI150: 3 | BJ150: 8 | BK150: 0.2727272727 | BL150: 0 | BM150: 0 | BP150: 11
A151: 147 | B151: IB20 | E151: Anti-neoplastic & immune-modulating agents | F151: efficacy | G151: no | H151: - | K151: - | L151: no | M151: no | N151: no | O151: - | P151: no | Q151: no | R151: - | S151: no | T151: - | U151: no | V151: - | W151: yes | X151: mouse | Y151: yes | Z151: no | AA151: yes | AB151: both | AM151: yes | AN151: peer revieweded | AO151: no | AP151: no | AQ151: positive | BH151: 0 | BI151: 3 | BJ151: 8 | BK151: 0.2727272727 | BL151: 0 | BM151: 0 | BP151: 11
A152: 148 | B152: IB20 | E152: Anti-neoplastic & immune-modulating agents | F152: efficacy | G152: no | H152: - | K152: - | L152: no | M152: no | N152: yes | O152: sex | P152: no | Q152: no | R152: - | S152: no | T152: - | U152: no | V152: - | W152: yes | X152: mouse | Y152: yes | Z152: no | AA152: no | AB152: - | AM152: yes | AN152: peer revieweded | AO152: no | AP152: no | AQ152: positive | BH152: 0 | BI152: 3 | BJ152: 8 | BK152: 0.2727272727 | BL152: 0 | BM152: 0 | BP152: 11
A153: 149 | B153: IB20 | E153: Anti-neoplastic & immune-modulating agents | F153: efficacy | G153: no | H153: - | K153: - | L153: no | M153: no | N153: no | O153: - | P153: no | Q153: no | R153: - | S153: no | T153: - | U153: no | V153: - | W153: yes | X153: mouse | Y153: yes | Z153: no | AA153: no | AB153: - | AM153: yes | AN153: peer revieweded | AO153: no | AP153: no | AQ153: positive | BH153: 0 | BI153: 2 | BJ153: 9 | BK153: 0.1818181818 | BL153: 0 | BM153: 0 | BP153: 11
A154: 150 | B154: IB20 | E154: Anti-neoplastic & immune-modulating agents | F154: efficacy | G154: no | H154: - | K154: - | L154: no | M154: no | N154: no | O154: - | P154: no | Q154: no | R154: - | S154: no | T154: - | U154: no | V154: - | W154: yes | X154: mouse | Y154: yes | Z154: no | AA154: yes | AB154: both | AM154: yes | AN154: peer revieweded | AO154: no | AP154: no | AQ154: positive | BH154: 0 | BI154: 3 | BJ154: 8 | BK154: 0.2727272727 | BL154: 0 | BM154: 0 | BP154: 11
A155: 151 | B155: IB20 | E155: Anti-neoplastic & immune-modulating agents | F155: efficacy | G155: no | H155: - | K155: - | L155: no | M155: no | N155: no | O155: - | P155: no | Q155: no | R155: - | S155: no | T155: - | U155: no | V155: - | W155: yes | X155: rat | Y155: yes | Z155: no | AA155: no | AB155: - | AM155: yes | AN155: peer revieweded | AO155: no | AP155: no | AQ155: positive | BH155: 0 | BI155: 2 | BJ155: 9 | BK155: 0.1818181818 | BL155: 0 | BM155: 0 | BP155: 11
A156: 152 | B156: IB20 | E156: Anti-neoplastic & immune-modulating agents | F156: efficacy | G156: no | H156: - | K156: - | L156: no | M156: no | N156: no | O156: - | P156: no | Q156: no | R156: - | S156: no | T156: - | U156: no | V156: - | W156: yes | X156: mouse | Y156: yes | Z156: no | AA156: no | AB156: - | AM156: yes | AN156: peer revieweded | AO156: no | AP156: no | AQ156: positive | BH156: 0 | BI156: 2 | BJ156: 9 | BK156: 0.1818181818 | BL156: 0 | BM156: 0 | BP156: 11
A157: 153 | B157: IB20 | E157: Anti-neoplastic & immune-modulating agents | F157: efficacy | G157: no | H157: - | K157: - | L157: no | M157: no | N157: no | O157: - | P157: no | Q157: no | R157: - | S157: no | T157: - | U157: yes | V157: negative | W157: yes | X157: mouse | Y157: yes | Z157: no | AA157: no | AB157: - | AM157: yes | AN157: peer revieweded | AO157: no | AP157: no | AQ157: positive | BH157: 0 | BI157: 3 | BJ157: 8 | BK157: 0.2727272727 | BL157: 0 | BM157: 0 | BP157: 11
A158: 154 | B158: IB20 | E158: Anti-neoplastic & immune-modulating agents | F158: efficacy | G158: no | H158: - | K158: - | L158: no | M158: no | N158: no | O158: - | P158: no | Q158: no | R158: - | S158: no | T158: - | U158: yes | V158: positive | W158: yes | X158: rat | Y158: yes | Z158: no | AA158: yes | AB158: both | AM158: yes | AN158: peer revieweded | AO158: no | AP158: no | AQ158: positive | BH158: 0 | BI158: 4 | BJ158: 7 | BK158: 0.3636363636 | BL158: 0 | BM158: 0 | BP158: 11
A159: 155 | B159: IB21 | E159: Anti-neoplastic & immune-modulating agents | F159: efficacy | G159: no | H159: - | K159: - | L159: no | M159: no | N159: no | O159: - | P159: no | Q159: no | R159: - | S159: no | T159: - | U159: yes | V159: positive | W159: yes | X159: mouse | Y159: yes | Z159: no | AA159: yes | AB159: both | AC159: yes | AD159: yes | AE159: no | AG159: yes | AH159: yes | AJ159: yes | AK159: no | AL159: - | AM159: no | AN159: - | AO159: yes | AP159: no | AQ159: positive | AR159: no | AS159: no | AT159: no | AU159: yes | BH159: 0 | BI159: 4 | BJ159: 7 | BK159: 0.3636363636 | BL159: 4 | BM159: 2 | BN159: 0.6666666667 | BO159: =(AVERAGE(BK159:BK176)*11+BN159*6)/17 -> 0.4575163399 | BP159: 17
A160: 156 | B160: IB21 | E160: Anti-neoplastic & immune-modulating agents | F160: efficacy | G160: no | H160: - | K160: - | L160: no | M160: no | N160: no | O160: - | P160: no | Q160: no | R160: - | S160: no | T160: - | U160: yes | V160: positive | W160: yes | X160: mouse | Y160: yes | Z160: no | AA160: yes | AB160: both | AM160: no | AN160: - | AO160: yes | AP160: no | AQ160: positive | BH160: 0 | BI160: 4 | BJ160: 7 | BK160: 0.3636363636 | BL160: 0 | BM160: 0 | BP160: 11
A161: 157 | B161: IB21 | E161: Anti-neoplastic & immune-modulating agents | F161: efficacy | G161: no | H161: - | K161: - | L161: no | M161: - | N161: no | O161: - | P161: no | Q161: no | R161: - | S161: no | T161: - | U161: yes | V161: positive | W161: yes | X161: mouse | Y161: yes | Z161: yes | AA161: yes | AB161: both | AM161: no | AN161: - | AO161: yes | AP161: yes | AQ161: positive | BH161: 0 | BI161: 5 | BJ161: 6 | BK161: 0.4545454545 | BL161: 0 | BM161: 0 | BP161: 11
A162: 158 | B162: IB21 | E162: Anti-neoplastic & immune-modulating agents | F162: efficacy | G162: no | H162: - | K162: - | L162: no | M162: - | N162: no | O162: - | P162: no | Q162: no | R162: - | S162: no | T162: - | U162: yes | V162: negative, positive | W162: yes | X162: mouse | Y162: yes | Z162: yes | AA162: yes | AB162: both | AM162: no | AN162: - | AO162: no | AP162: yes | AQ162: positive | BH162: 0 | BI162: 5 | BJ162: 6 | BK162: 0.4545454545 | BL162: 0 | BM162: 0 | BP162: 11
A163: 159 | B163: IB21 | E163: Anti-neoplastic & immune-modulating agents | F163: efficacy | G163: no | H163: - | K163: - | L163: no | M163: - | N163: no | O163: - | P163: no | Q163: no | R163: - | S163: no | T163: - | U163: yes | V163: negative, positive | W163: yes | X163: mouse | Y163: yes | Z163: yes | AA163: yes | AB163: both | AM163: no | AN163: - | AO163: no | AP163: yes | AQ163: positive | BH163: 0 | BI163: 5 | BJ163: 6 | BK163: 0.4545454545 | BL163: 0 | BM163: 0 | BP163: 11
A164: 160 | B164: IB21 | E164: Anti-neoplastic & immune-modulating agents | F164: efficacy | G164: no | H164: - | K164: - | L164: no | M164: - | N164: no | O164: - | P164: no | Q164: no | R164: - | S164: no | T164: - | U164: yes | V164: negative, positive | W164: yes | X164: mouse | Y164: yes | Z164: yes | AA164: yes | AB164: both | AM164: no | AN164: - | AO164: no | AP164: yes | AQ164: positive | BH164: 0 | BI164: 5 | BJ164: 6 | BK164: 0.4545454545 | BL164: 0 | BM164: 0 | BP164: 11
A165: 161 | B165: IB21 | E165: Anti-neoplastic & immune-modulating agents | F165: efficacy | G165: yes | H165: 40 | J165: 10 | K165: no | L165: no | M165: - | N165: no | O165: - | P165: no | Q165: no | R165: - | S165: no | T165: - | U165: yes | V165: negative, positive | W165: yes | X165: mouse | Y165: yes | Z165: yes | AA165: yes | AB165: both | AM165: no | AN165: - | AO165: no | AP165: yes | AQ165: positive | BH165: 0 | BI165: 6 | BJ165: 5 | BK165: 0.5454545455 | BL165: 0 | BM165: 0 | BP165: 11
A166: 162 | B166: IB21 | E166: Anti-neoplastic & immune-modulating agents | F166: efficacy | G166: yes | H166: 20 | J166: 10 | K166: no | L166: no | M166: - | N166: no | O166: - | P166: no | Q166: no | R166: - | S166: no | T166: - | U166: yes | V166: negative, positive | W166: yes | X166: mouse | Y166: yes | Z166: yes | AA166: yes | AB166: both | AM166: no | AN166: - | AO166: no | AP166: yes | AQ166: positive | BH166: 0 | BI166: 6 | BJ166: 5 | BK166: 0.5454545455 | BL166: 0 | BM166: 0 | BP166: 11
A167: 163 | B167: IB21 | E167: Anti-neoplastic & immune-modulating agents | F167: efficacy | G167: yes | H167: 20 | J167: 5 | K167: no | L167: no | M167: - | N167: no | O167: - | P167: no | Q167: no | R167: - | S167: yes | T167: no | U167: yes | V167: negative, positive | W167: yes | X167: mouse | Y167: yes | Z167: yes | AA167: yes | AB167: both | AM167: no | AN167: - | AO167: no | AP167: no | AQ167: positive | BH167: 0 | BI167: 7 | BJ167: 4 | BK167: 0.6363636364 | BL167: 0 | BM167: 0 | BP167: 11
A168: 164 | B168: IB21 | E168: Anti-neoplastic & immune-modulating agents | F168: efficacy | G168: yes | H168: 12 | J168: 3 | K168: no | L168: no | M168: - | N168: no | O168: - | P168: no | Q168: no | R168: - | S168: yes | T168: no | U168: yes | V168: negative, positive | W168: yes | X168: mouse | Y168: yes | Z168: yes | AA168: yes | AB168: both | AM168: no | AN168: - | AO168: no | AP168: no | AQ168: positive | BH168: 0 | BI168: 7 | BJ168: 4 | BK168: 0.6363636364 | BL168: 0 | BM168: 0 | BP168: 11
A169: 165 | B169: IB21 | E169: Anti-neoplastic & immune-modulating agents | F169: efficacy | G169: yes | H169: 20 | J169: 5 | K169: no | L169: no | M169: - | N169: no | O169: - | P169: no | Q169: no | R169: - | S169: yes | T169: no | U169: yes | V169: negative, positive | W169: yes | X169: mouse | Y169: yes | Z169: yes | AA169: yes | AB169: both | AM169: no | AN169: - | AO169: no | AP169: no | AQ169: positive | BH169: 0 | BI169: 7 | BJ169: 4 | BK169: 0.6363636364 | BL169: 0 | BM169: 0 | BP169: 11
A170: 166 | B170: IB21 | E170: Anti-neoplastic & immune-modulating agents | F170: efficacy | G170: no | H170: - | K170: - | L170: no | M170: - | N170: no | O170: - | P170: no | Q170: no | R170: - | S170: no | T170: - | U170: no | V170: - | W170: no | X170: - | Y170: yes | Z170: no | AA170: no | AB170: - | AM170: no | AN170: - | AO170: yes | AP170: no | AQ170: positive | BH170: 0 | BI170: 1 | BJ170: 10 | BK170: 0.09090909091 | BL170: 0 | BM170: 0 | BP170: 11
A171: 167 | B171: IB21 | E171: Anti-neoplastic & immune-modulating agents | F171: efficacy | G171: no | H171: - | K171: - | L171: no | M171: - | N171: no | O171: - | P171: no | Q171: no | R171: - | S171: no | T171: - | U171: no | V171: - | W171: no | X171: - | Y171: yes | Z171: no | AA171: no | AB171: - | AM171: no | AN171: - | AO171: yes | AP171: no | AQ171: positive | BH171: 0 | BI171: 1 | BJ171: 10 | BK171: 0.09090909091 | BL171: 0 | BM171: 0 | BP171: 11
A172: 168 | B172: IB21 | E172: Anti-neoplastic & immune-modulating agents | F172: efficacy | G172: no | H172: - | K172: - | L172: no | M172: - | N172: no | O172: - | P172: no | Q172: no | R172: - | S172: no | T172: - | U172: no | V172: - | W172: no | X172: - | Y172: yes | Z172: no | AA172: no | AB172: - | AM172: no | AN172: - | AO172: yes | AP172: no | AQ172: positive | BH172: 0 | BI172: 1 | BJ172: 10 | BK172: 0.09090909091 | BL172: 0 | BM172: 0 | BP172: 11
A173: 169 | B173: IB21 | E173: Anti-neoplastic & immune-modulating agents | F173: efficacy | G173: no | H173: - | K173: - | L173: no | M173: - | N173: no | O173: - | P173: no | Q173: no | R173: - | S173: no | T173: - | U173: no | V173: - | W173: no | X173: - | Y173: yes | Z173: no | AA173: no | AB173: - | AM173: no | AN173: - | AO173: yes | AP173: no | AQ173: negative | BH173: 0 | BI173: 1 | BJ173: 10 | BK173: 0.09090909091 | BL173: 0 | BM173: 0 | BP173: 11
A174: 170 | B174: IB21 | E174: Anti-neoplastic & immune-modulating agents | F174: efficacy | G174: no | H174: - | K174: - | L174: no | M174: - | N174: no | O174: - | P174: no | Q174: no | R174: - | S174: no | T174: - | U174: no | V174: - | W174: no | X174: - | Y174: yes | Z174: no | AA174: no | AB174: - | AM174: no | AN174: - | AO174: yes | AP174: no | AQ174: positive | BH174: 0 | BI174: 1 | BJ174: 10 | BK174: 0.09090909091 | BL174: 0 | BM174: 0 | BP174: 11
A175: 171 | B175: IB21 | E175: Anti-neoplastic & immune-modulating agents | F175: efficacy | G175: no | H175: - | K175: - | L175: no | M175: - | N175: no | O175: - | P175: no | Q175: no | R175: - | S175: no | T175: - | U175: no | V175: - | W175: no | X175: - | Y175: yes | Z175: no | AA175: no | AB175: - | AM175: no | AN175: - | AO175: yes | AP175: no | AQ175: positive | BH175: 0 | BI175: 1 | BJ175: 10 | BK175: 0.09090909091 | BL175: 0 | BM175: 0 | BP175: 11
A176: 172 | B176: IB21 | E176: Anti-neoplastic & immune-modulating agents | F176: efficacy | G176: no | H176: - | K176: - | L176: no | M176: - | N176: no | O176: - | P176: no | Q176: no | R176: - | S176: no | T176: - | U176: no | V176: - | W176: no | X176: - | Y176: yes | Z176: no | AA176: no | AB176: - | AM176: no | AN176: - | AO176: no | AP176: no | AQ176: positive | BH176: 0 | BI176: 1 | BJ176: 10 | BK176: 0.09090909091 | BL176: 0 | BM176: 0 | BP176: 11
A177: 173 | B177: IB22 | E177: Anti-neoplastic & immune-modulating agents | F177: efficacy | G177: yes | H177: 24 | J177: 8 | K177: no | L177: no | M177: - | N177: yes | O177: sex | P177: no | Q177: no | R177: - | S177: no | T177: - | U177: no | V177: - | W177: yes | X177: mouse | Y177: yes | Z177: no | AA177: yes | AB177: both | AC177: yes | AD177: yes | AE177: no | AG177: yes | AH177: yes | AI177: - | AJ177: yes | AK177: yes | AL177: mice, rat | AM177: no | AN177: - | AO177: yes | AP177: no | AQ177: positive | AR177: no | AS177: no | AT177: no | AU177: yes | BH177: 0 | BI177: 5 | BJ177: 6 | BK177: 0.4545454545 | BL177: 5 | BM177: 1 | BN177: 0.8333333333 | BO177: =(AVERAGE(BK177:BK204)*11+BN177*6)/17 -> 0.4831932773 | BP177: 17
A178: 174 | B178: IB22 | E178: Anti-neoplastic & immune-modulating agents | F178: efficacy | G178: no | H178: - | K178: - | L178: no | M178: - | N178: yes | O178: sex | P178: no | Q178: no | R178: - | S178: no | T178: - | U178: no | V178: - | W178: yes | X178: mouse | Y178: yes | Z178: no | AA178: yes | AB178: both | AM178: no | AN178: - | AO178: yes | AP178: no | AQ178: positive | BH178: 0 | BI178: 4 | BJ178: 7 | BK178: 0.3636363636 | BL178: 0 | BM178: 0 | BP178: 11
A179: 175 | B179: IB22 | E179: Anti-neoplastic & immune-modulating agents | F179: efficacy | G179: no | H179: - | K179: - | L179: no | M179: - | N179: no | O179: - | P179: no | Q179: no | R179: - | S179: no | T179: - | U179: no | V179: - | W179: yes | X179: mouse | Y179: yes | Z179: no | AA179: yes | AB179: both | AM179: no | AN179: - | AO179: yes | AP179: no | AQ179: positive | BH179: 0 | BI179: 3 | BJ179: 8 | BK179: 0.2727272727 | BL179: 0 | BM179: 0 | BP179: 11
A180: 176 | B180: IB22 | E180: Anti-neoplastic & immune-modulating agents | F180: efficacy | G180: no | H180: - | K180: - | L180: no | M180: - | N180: no | O180: - | P180: no | Q180: no | R180: - | S180: no | T180: - | U180: no | V180: - | W180: yes | X180: rat | Y180: yes | Z180: no | AA180: yes | AB180: both | AM180: no | AN180: - | AO180: yes | AP180: no | AQ180: positive | BH180: 0 | BI180: 3 | BJ180: 8 | BK180: 0.2727272727 | BL180: 0 | BM180: 0 | BP180: 11
A181: 177 | B181: IB22 | E181: Anti-neoplastic & immune-modulating agents | F181: efficacy | G181: no | H181: - | K181: - | L181: no | M181: - | N181: yes | O181: sex | P181: no | Q181: no | R181: - | S181: no | T181: - | U181: no | V181: - | W181: yes | X181: rat | Y181: yes | Z181: no | AA181: yes | AB181: both | AM181: no | AN181: - | AO181: yes | AP181: no | AQ181: positive | BH181: 0 | BI181: 4 | BJ181: 7 | BK181: 0.3636363636 | BL181: 0 | BM181: 0 | BP181: 11
A182: 178 | B182: IB22 | E182: Anti-neoplastic & immune-modulating agents | F182: efficacy | G182: no | H182: - | K182: - | L182: no | M182: - | N182: yes | O182: sex | P182: no | Q182: no | R182: - | S182: no | T182: - | U182: no | V182: - | W182: yes | X182: rat | Y182: yes | Z182: no | AA182: yes | AB182: both | AM182: no | AN182: - | AO182: yes | AP182: no | AQ182: positive | BH182: 0 | BI182: 4 | BJ182: 7 | BK182: 0.3636363636 | BL182: 0 | BM182: 0 | BP182: 11
A183: 179 | B183: IB22 | E183: Anti-neoplastic & immune-modulating agents | F183: efficacy | G183: no | H183: - | K183: - | L183: no | M183: - | N183: no | O183: - | P183: no | Q183: no | R183: - | S183: no | T183: - | U183: no | V183: - | W183: yes | X183: rabbit | Y183: yes | Z183: no | AA183: yes | AB183: both | AM183: no | AN183: - | AO183: yes | AP183: no | AQ183: positive | BH183: 0 | BI183: 3 | BJ183: 8 | BK183: 0.2727272727 | BL183: 0 | BM183: 0 | BP183: 11
A184: 180 | B184: IB22 | E184: Anti-neoplastic & immune-modulating agents | F184: efficacy | G184: no | H184: - | K184: - | L184: no | M184: - | N184: no | O184: - | P184: no | Q184: no | R184: - | S184: no | T184: - | U184: no | V184: - | W184: yes | X184: rabbit | Y184: yes | Z184: no | AA184: yes | AB184: both | AM184: no | AN184: - | AO184: yes | AP184: no | AQ184: negative | BH184: 0 | BI184: 3 | BJ184: 8 | BK184: 0.2727272727 | BL184: 0 | BM184: 0 | BP184: 11
A185: 181 | B185: IB22 | E185: Anti-neoplastic & immune-modulating agents | F185: efficacy | G185: no | H185: - | K185: - | L185: no | M185: - | N185: no | O185: - | P185: no | Q185: no | R185: - | S185: no | T185: - | U185: no | V185: - | W185: yes | X185: mouse | Y185: yes | Z185: no | AA185: yes | AB185: metric | AM185: no | AN185: - | AO185: no | AP185: no | AQ185: positive | BH185: 0 | BI185: 3 | BJ185: 8 | BK185: 0.2727272727 | BL185: 0 | BM185: 0 | BP185: 11
A186: 182 | B186: IB22 | E186: Anti-neoplastic & immune-modulating agents | F186: efficacy | G186: no | H186: - | K186: - | L186: no | M186: - | N186: no | O186: - | P186: no | Q186: no | R186: - | S186: no | T186: - | U186: no | V186: - | W186: yes | X186: mouse | Y186: yes | Z186: no | AA186: yes | AB186: metric | AM186: no | AN186: - | AO186: no | AP186: no | AQ186: negative | BH186: 0 | BI186: 3 | BJ186: 8 | BK186: 0.2727272727 | BL186: 0 | BM186: 0 | BP186: 11
A187: 183 | B187: IB22 | E187: Anti-neoplastic & immune-modulating agents | F187: efficacy | G187: no | H187: - | K187: - | L187: no | M187: - | N187: no | O187: - | P187: no | Q187: no | R187: - | S187: no | T187: - | U187: no | V187: - | W187: yes | X187: mouse | Y187: yes | Z187: no | AA187: yes | AB187: metric | AM187: no | AN187: - | AO187: no | AP187: no | AQ187: positive | BH187: 0 | BI187: 3 | BJ187: 8 | BK187: 0.2727272727 | BL187: 0 | BM187: 0 | BP187: 11
A188: 184 | B188: IB22 | E188: Anti-neoplastic & immune-modulating agents | F188: efficacy | G188: no | H188: - | K188: - | L188: no | M188: - | N188: no | O188: - | P188: no | Q188: no | R188: - | S188: no | T188: - | U188: no | V188: - | W188: yes | X188: mouse | Y188: yes | Z188: no | AA188: yes | AB188: metric | AM188: no | AN188: - | AO188: no | AP188: no | AQ188: positive | BH188: 0 | BI188: 3 | BJ188: 8 | BK188: 0.2727272727 | BL188: 0 | BM188: 0 | BP188: 11
A189: 185 | B189: IB22 | E189: Anti-neoplastic & immune-modulating agents | F189: efficacy | G189: no | H189: - | K189: - | L189: no | M189: - | N189: no | O189: - | P189: no | Q189: no | R189: - | S189: no | T189: - | U189: no | V189: - | W189: yes | X189: mouse | Y189: yes | Z189: no | AA189: yes | AB189: metric | AM189: no | AN189: - | AO189: no | AP189: no | AQ189: positive | BH189: 0 | BI189: 3 | BJ189: 8 | BK189: 0.2727272727 | BL189: 0 | BM189: 0 | BP189: 11
A190: 186 | B190: IB22 | E190: Anti-neoplastic & immune-modulating agents | F190: efficacy | G190: no | H190: - | K190: - | L190: no | M190: - | N190: no | O190: - | P190: no | Q190: no | R190: - | S190: no | T190: - | U190: no | V190: - | W190: yes | X190: mouse | Y190: yes | Z190: no | AA190: yes | AB190: metric | AM190: no | AN190: - | AO190: no | AP190: no | AQ190: positive | BH190: 0 | BI190: 3 | BJ190: 8 | BK190: 0.2727272727 | BL190: 0 | BM190: 0 | BP190: 11
A191: 187 | B191: IB22 | E191: Anti-neoplastic & immune-modulating agents | F191: efficacy | G191: no | H191: - | K191: - | L191: no | M191: - | N191: no | O191: - | P191: no | Q191: no | R191: - | S191: no | T191: - | U191: no | V191: - | W191: yes | X191: mouse | Y191: yes | Z191: no | AA191: yes | AB191: metric | AM191: no | AN191: - | AO191: no | AP191: no | AQ191: positive | BH191: 0 | BI191: 3 | BJ191: 8 | BK191: 0.2727272727 | BL191: 0 | BM191: 0 | BP191: 11
A192: 188 | B192: IB22 | E192: Anti-neoplastic & immune-modulating agents | F192: efficacy | G192: no | H192: - | K192: - | L192: no | M192: - | N192: no | O192: - | P192: no | Q192: no | R192: - | S192: no | T192: - | U192: no | V192: - | W192: yes | X192: mouse | Y192: yes | Z192: yes | AA192: yes | AB192: both | AM192: no | AN192: - | AO192: no | AP192: no | AQ192: negative | BH192: 0 | BI192: 4 | BJ192: 7 | BK192: 0.3636363636 | BL192: 0 | BM192: 0 | BP192: 11
A193: 189 | B193: IB22 | E193: Anti-neoplastic & immune-modulating agents | F193: efficacy | G193: no | H193: - | K193: - | L193: no | M193: - | N193: no | O193: - | P193: no | Q193: no | R193: - | S193: no | T193: - | U193: no | V193: - | W193: yes | X193: mouse | Y193: yes | Z193: no | AA193: yes | AB193: metric | AM193: no | AN193: - | AO193: no | AP193: no | AQ193: negative | BH193: 0 | BI193: 3 | BJ193: 8 | BK193: 0.2727272727 | BL193: 0 | BM193: 0 | BP193: 11
A194: 190 | B194: IB22 | E194: Anti-neoplastic & immune-modulating agents | F194: efficacy | G194: no | H194: - | K194: - | L194: no | M194: - | N194: no | O194: - | P194: no | Q194: no | R194: - | S194: no | T194: - | U194: no | V194: - | W194: yes | X194: mouse | Y194: yes | Z194: no | AA194: yes | AB194: metric | AM194: no | AN194: - | AO194: no | AP194: no | AQ194: negative | BH194: 0 | BI194: 3 | BJ194: 8 | BK194: 0.2727272727 | BL194: 0 | BM194: 0 | BP194: 11
A195: 191 | B195: IB22 | E195: Anti-neoplastic & immune-modulating agents | F195: efficacy | G195: no | H195: - | K195: - | L195: no | M195: - | N195: no | O195: - | P195: no | Q195: no | R195: - | S195: no | T195: - | U195: no | V195: - | W195: yes | X195: mouse | Y195: yes | Z195: no | AA195: yes | AB195: metric | AM195: no | AN195: - | AO195: no | AP195: no | AQ195: negative | BH195: 0 | BI195: 3 | BJ195: 8 | BK195: 0.2727272727 | BL195: 0 | BM195: 0 | BP195: 11
A196: 192 | B196: IB22 | E196: Anti-neoplastic & immune-modulating agents | F196: efficacy | G196: no | H196: - | K196: - | L196: no | M196: - | N196: no | O196: - | P196: no | Q196: no | R196: - | S196: no | T196: - | U196: no | V196: - | W196: yes | X196: mouse | Y196: yes | Z196: no | AA196: yes | AB196: metric | AM196: no | AN196: - | AO196: no | AP196: no | AQ196: negative | BH196: 0 | BI196: 3 | BJ196: 8 | BK196: 0.2727272727 | BL196: 0 | BM196: 0 | BP196: 11
A197: 193 | B197: IB22 | E197: Anti-neoplastic & immune-modulating agents | F197: efficacy | G197: no | H197: - | K197: - | L197: no | M197: - | N197: no | O197: - | P197: no | Q197: no | R197: - | S197: no | T197: - | U197: no | V197: - | W197: yes | X197: mouse | Y197: yes | Z197: no | AA197: yes | AB197: metric | AM197: no | AN197: - | AO197: no | AP197: no | AQ197: positive | BH197: =COUNTIFS(AH198,"no",AJ198,"no",AK198,"no") -> 0 | BI197: 3 | BJ197: 8 | BK197: 0.2727272727 | BL197: 0 | BM197: 0 | BP197: 11
A198: 194 | B198: IB22 | E198: Anti-neoplastic & immune-modulating agents | F198: efficacy | G198: no | H198: - | K198: - | L198: no | M198: - | N198: no | O198: - | P198: no | Q198: no | R198: - | S198: no | T198: - | U198: no | V198: - | W198: yes | X198: mouse | Y198: yes | Z198: no | AA198: yes | AB198: metric | AM198: no | AN198: - | AO198: no | AP198: no | AQ198: positive | BH198: 0 | BI198: =SUM(G198=BG$5,L198=BG$5,N198=BG$5,P198=BG$5,Q198=BG$5,S198=BG$5,U198=BG$5,W198=BG$5,Y198=BG$5,Z198=BG$5,AA198=BG$5) -> 3 | BJ198: =SUM(G198=BG$6,L198=BG$6,N198=BG$6,P198=BG$6,Q198=BG$6,S198=BG$6,U198=BG$6,W198=BG$6,Y198=BG$6,Z198=BG$6,AA198=BG$6) -> 8 | BK198: 0.2727272727 | BL198: 0 | BM198: 0 | BP198: 11
A199: =A198+1 -> 195 | B199: IB22 | E199: Anti-neoplastic & immune-modulating agents | F199: efficacy | G199: no | H199: - | K199: - | L199: no | M199: - | N199: no | O199: - | P199: no | Q199: no | R199: - | S199: no | T199: - | U199: no | V199: - | W199: yes | X199: mouse | Y199: yes | Z199: no | AA199: yes | AB199: metric | AM199: no | AN199: - | AO199: no | AP199: no | AQ199: positive | BH199: 0 | BI199: 3 | BJ199: 8 | BK199: 0.2727272727 | BL199: 0 | BM199: 0 | BP199: =SUM(BI199:BJ199,BL199:BM199) -> 11
A200: 196 | B200: IB22 | E200: Anti-neoplastic & immune-modulating agents | F200: efficacy | G200: no | H200: - | K200: - | L200: no | M200: - | N200: no | O200: - | P200: no | Q200: no | R200: - | S200: no | T200: - | U200: no | V200: - | W200: yes | X200: mouse | Y200: yes | Z200: no | AA200: yes | AB200: metric | AM200: no | AN200: - | AO200: no | AP200: no | AQ200: negative | BH200: 0 | BI200: 3 | BJ200: 8 | BK200: 0.2727272727 | BL200: 0 | BM200: 0 | BP200: 11
... 542 more rows

Sheet First in man trials
A1: Please note: Some rows in this table might have been deleted due to confidentiality reasons!
B2: Item | C2: Phase | D2: Therapeutic area | E2: Type of study | F2: Sample size | K2: Randomisation | M2: Baseline characterization | O2: Blinded assessment | R2: Exclusion of data from analysis | T2: Controls | V2: Model choice | Z2: Outcome choice | AB2: Dose reponse (RATE ON IB LEVEL) | AD2: Age matched to patients (RATE ON IB LEVEL) | AF2: Mechanistic evidence (RATE ON IB LEVEL) | AG2: Replication of experiment (RATE ON IB LEVEL) | AI2: Replication in different model (RATE ON IB LEVEL) | AJ2: Replication in different species (RATE ON IB LEVEL) | AL2: Citation of references | AN2: Reporting on direction of results | BR2: Dose reponse (RATE ON IB LEVEL) | BT2: Age matched to patients (RATE ON IB LEVEL) | BV2: Mechanistic evidence (RATE ON IB LEVEL) | BW2: Replication of experiment (RATE ON IB LEVEL) | BY2: Replication in different model (RATE ON IB LEVEL) | CA2: Replication in different species (RATE ON IB LEVEL) | CC2: Citation of references | CE2: Reporting on direction of results
B3: Research questions | E3: Determine whether experiment listed in an efficacy study, Yes, no or unclear | F3: Is sample size reported, Yes or no? | G3: If yes, how many? | I3: group size | J3: If yes, is sample size calculation reported, Yes or no? | K3: Is randomisation reported, Yes or no? | L3: If yes, describe the method used to generate the randomization sequence.? | M3: Is baseline characterization reported, Yes or no? | N3: If yes, what type? | O3: Is blinded assessment for treatment allocation reported, Yes or no? | P3: Is blinded assessment for outcome assessment reported, Yes or no? | Q3: If yes, when? | R3: Is exclusion of data reported, Yes or no? | S3: If yes, justification? | T3: Is control group reported, Yes or no? | U3: If yes, what type of control? | V3: Is the species of animal reported? | W3: If yes, what species? | X3: Is the type of model reported? | Y3: Is the specifications of model reported? | Z3: Is the outcome choice reported, Yes or no? | AA3: If yes, is the metric or time-course or both reported? | AB3: Is dose response reported? Yes or no? | AC3: If yes, is positive reponse reported, Yes or no? | AD3: Is the age of animals reported, Yes or no? | AE3: If yes, is it matched to patients? | AF3: Yes or no? | AG3: Is there replication of experiment, Yes or no? | AH3: If no, is there other similar study? | AI3: Is there replication in different model, Yes or no? | AJ3: Is there replication in different species, Yes or no? | AK3: If yes, species type? | AL3: Is there references reported, Yes or no? | AM3: If yes, what type of references? | AN3: Is effect size reported? Yes or no? (Step 1) | AO3: Is significant value reported? Yes or no? (Step 2) | AP3: Was the investigation positive, inconclusive or negative? | BR3: Is dose response reported? Yes or no? | BS3: If yes, is positive reponse reported, Yes or no? | BT3: Is the age of animals reported, Yes or no? | BU3: If yes, is it matched to patients? | BV3: Yes or no? | BW3: Is there replication of experiment, Yes or no? | BX3: If no, is there other similar study? | BY3: Is there replication in different model, Yes or no? | BZ3: If yes, model type? | CA3: Is there replication in different species, Yes or no? | CB3: If yes, species type? | CC3: Is there references reported, Yes or no? | CD3: If yes, what type of references? | CE3: Is effect size reported? Yes or no? (Step 1) | CF3: Is significant value reported? Yes or no? (Step 2) | CG3: Was the investigation positive, inconclusive or negative?
A4: IB | B4: Coding criteria | E4: ■ In cases where drug are tested for efficacy in their respective therapeutic indications, complete experiment level and IB level extraction. DO NOT PERFORM AN EXTRACTION for non-efficacy studies | F4: ■ Does the experiment report sample sizes for all extractable groups? ■ Is information provided on the number of animal per treatment group or total number of animal for the whole experiment? | G4: n = ? | H4: group size | J4: ■ Has a power calculation been performed a priori to determine sample size? ■ Select no if there are no explicit statements about sample size determination. | K4: ■ Were animals randomly assigned to treatment? ■ Select unclear if there are no explicit statements about allocation. | L4: Group designation, Cage randomization, Permanent designation, Randomization to treatment | M4: ■ Was the emergence of confounding physiological variables monitored and addressed (e.g. blood pressure, body temperature)? ■ Were the groups similar at baseline or were they adjusted for confounders in the analysis? ■ Was the distribution of relevant baseline characteristics balanced for the intervention and control groups? ■ If relevant, did the investigators adequately adjust for unequal distribution of some relevant baseline characteristics in the analysis? ■ Was the timing of disease induction adequate? | N4: Sex, age, immune status, weight, microbial status of the animal | O4: ■ Was treatment allocation concealed from the investigators during the experiment? ■ Select no if there are no explicit statements about blinding to treatment allocation. | P4: ■ Were investigators blinded to treatment allocation during outcome assessment? ■ Select no if there are no explicit statements about blinding to outcome assessment. | R4: ■ Do studies explain the flow of animals from inclusion through to analysis? ■ Has every animal been accounted for, from entry into experiment through treatment, outcome assessment, sacri ce and analysis? | S4: Animal death | T4: ■ Were appropriate controls used in all in vivo experiments (e.g. positive, negative)? | U4: Positive control, negative control, sham, comparator arm | V4: Mouse, rat, dog, monkey, etc. | X4: Induced or Experimental, spontaneous (xenograft, orthotopic), transgenic, type of disease | Y4: Tumor size, etc. | Z4: Endpoints, type of measurement (survival, tumor shrinkage, etc), time-course of measurement, mean survival | AB4: ■ Was there a demonstration of dose-response relationship of the adverse effect? ■ Was there a time course (e.g., onset and duration of response) of the adverse effect? ■ Was the doses eliciting the adverse effect compared to the doses eliciting the primary pharmacodynamic effect in the test species or the proposed therapeutic effect in humans? ■ Minimum of 3 different doses | AD4: ■ Is age of animals mentioned? | AE4: ■ Check inclusion criteria of patients | AG4: ■ Is it the same model? ■ Is it the same drug? ■ Is it measuring the same outcome? | AI4: ■ Whether efficacy studies were replicated in more than one model. ■ Is it the same species? | AJ4: ■ Whether efficacy studies were replicated in more than one species. | AL4: ■ If there is internal study number, citation, … then it is a yes. | AM4: Peer-reviewed, in house data | AO4: ■ Is there a p-value reported in the figure description or in the experiment results? | AP4: ■ If p value significant (typically ≤ 0.05), then it is positiv.e
A5: IB3 | C5: 1 | D5: Blood product & biotech | E5: efficacy | F5: no | G5: - | J5: na | K5: no | L5: - | M5: yes | N5: Bodyweight | O5: no | P5: no | Q5: - | R5: no | S5: - | T5: yes | U5: Positive control, negative control | V5: yes | W5: Mouse | X5: yes | Y5: yes | Z5: yes | AA5: both | AB5: no | AC5: - | AD5: no | AE5: - | AF5: yes | AG5: no | AH5: no | AI5: no | AJ5: no | AK5: - | AL5: no | AM5: - | AN5: yes | AO5: no | AP5: positive
A6: IB3 | C6: 1 | D6: Blood product & biotech | E6: efficacy | F6: yes | G6: 48 | H6: 12 | I6: 12 | J6: no | K6: no | L6: - | M6: yes | N6: Sex | O6: no | P6: no | Q6: - | R6: no | S6: - | T6: yes | U6: Positive control, negative control | V6: yes | W6: Mouse | X6: yes | Y6: yes | Z6: yes | AA6: both | AC6: - | AL6: no | AM6: - | AN6: yes | AO6: no | AP6: positive
A7: IB43 | D7: Anti-neoplastic & immune-modulating agents | E7: efficacy | F7: no | G7: - | J7: - | K7: no | L7: - | M7: yes | N7: amount of tumor cell, tumor size | O7: no | P7: no | Q7: - | R7: no | S7: - | T7: yes | U7: positive, negative | V7: yes | W7: mouse | X7: yes | Y7: no | Z7: yes | AA7: both | AB7: yes | AC7: yes | AD7: yes | AE7: no | AF7: yes | AG7: yes | AI7: yes | AJ7: no | AL7: yes | AM7: peer reviewed | AN7: yes | AO7: yes | AP7: positive
A8: IB43 | D8: Anti-neoplastic & immune-modulating agents | E8: efficacy | F8: yes | G8: 20 | I8: 10 | J8: no | K8: yes | M8: yes | O8: no | P8: no | Q8: - | R8: no | S8: - | T8: yes | U8: negative | V8: yes | W8: mouse | X8: yes | Y8: no | Z8: yes | AA8: both | AL8: yes | AM8: in house | AN8: yes | AO8: yes | AP8: positive
A9: IB43 | D9: Anti-neoplastic & immune-modulating agents | E9: efficacy | F9: yes | G9: 102 | I9: 23 | J9: no | K9: yes | M9: yes | O9: no | P9: no | Q9: - | R9: no | S9: - | T9: yes | U9: negative | V9: yes | W9: mouse | X9: yes | Y9: no | Z9: yes | AA9: both | AL9: yes | AM9: in house | AN9: no | AO9: yes | AP9: positive
A10: IB43 | D10: Anti-neoplastic & immune-modulating agents | E10: efficacy | F10: yes | G10: 60 | I10: 12 | J10: no | K10: yes | M10: yes | O10: no | P10: no | Q10: - | R10: yes | S10: yes | T10: yes | U10: negative | V10: yes | W10: mouse | X10: yes | Y10: no | Z10: yes | AA10: both | AL10: yes | AM10: in house | AN10: yes | AO10: yes | AP10: positive
A11: IB43 | D11: Anti-neoplastic & immune-modulating agents | E11: efficacy | F11: yes | G11: 32 | H11: 10-12 | I11: 10 | J11: no | K11: no | L11: - | M11: no | N11: - | O11: no | P11: no | Q11: - | R11: no | S11: - | T11: yes | U11: negative | V11: yes | W11: mouse | X11: yes | Y11: no | Z11: yes | AA11: metric | AL11: yes | AM11: in house | AN11: no | AO11: no | AP11: positive
A12: IB46 | D12: Respiratory system | E12: efficacy | F12: no | G12: - | J12: - | K12: no | L12: - | M12: no | N12: - | O12: no | P12: no | Q12: - | R12: no | S12: - | T12: no | U12: - | V12: yes | W12: mouse | X12: yes | Y12: no | Z12: no | AA12: - | AB12: no | AD12: yes | AE12: yes | AF12: no | AG12: yes | AI12: yes | AJ12: yes | AL12: no | AM12: - | AN12: no | AO12: no | AP12: positive
A13: IB46 | D13: Respiratory system | E13: efficacy | F13: no | G13: - | J13: - | K13: no | L13: - | M13: no | N13: - | O13: no | P13: no | Q13: - | R13: no | S13: - | T13: no | U13: - | V13: yes | W13: ferrets | X13: yes | Y13: no | Z13: no | AA13: - | AL13: no | AM13: - | AN13: no | AO13: no | AP13: positive
A14: IB46 | D14: Respiratory system | E14: efficacy | F14: no | G14: - | J14: - | K14: no | L14: - | M14: no | N14: - | O14: no | P14: no | Q14: - | R14: no | S14: - | T14: no | U14: - | V14: yes | W14: rabbit | X14: no | Y14: no | Z14: yes | AA14: time-course | AL14: no | AM14: - | AN14: no | AO14: no | AP14: positive
A15: IB46 | D15: Respiratory system | E15: efficacy | F15: no | G15: - | J15: - | K15: no | L15: - | M15: yes | N15: age | O15: no | P15: no | Q15: - | R15: no | S15: - | T15: yes | U15: negative | V15: yes | W15: mouse | X15: yes | Y15: no | Z15: no | AA15: - | AL15: no | AM15: - | AN15: no | AO15: no | AP15: positive
A16: IB46 | D16: Respiratory system | E16: efficacy | F16: no | G16: - | J16: - | K16: no | L16: - | M16: yes | N16: age | O16: no | P16: no | Q16: - | R16: no | S16: - | T16: yes | U16: negative | V16: yes | W16: mouse | X16: yes | Y16: no | Z16: no | AA16: - | AL16: no | AM16: - | AN16: no | AO16: no | AP16: positive
A17: IB46 | D17: Respiratory system | E17: efficacy | F17: no | G17: - | J17: - | K17: no | L17: - | M17: yes | N17: age | O17: no | P17: no | Q17: - | R17: no | S17: - | T17: yes | U17: negative | V17: yes | W17: mouse | X17: yes | Y17: no | Z17: no | AA17: - | AL17: no | AM17: - | AN17: no | AO17: no | AP17: positive
A18: IB46 | D18: Respiratory system | E18: efficacy | F18: no | G18: - | J18: - | K18: no | L18: - | M18: yes | N18: age | O18: no | P18: no | Q18: - | R18: no | S18: - | T18: yes | U18: negative | V18: yes | W18: mouse | X18: yes | Y18: no | Z18: no | AA18: - | AL18: no | AM18: - | AN18: no | AO18: no | AP18: positive
A19: IB50 | D19: Anti-neoplastic & immune-modulating agents | E19: efficacy | F19: yes | G19: 48 | I19: 12 | J19: no | K19: no | L19: - | M19: no | N19: - | O19: no | P19: no | Q19: - | R19: no | S19: - | T19: no | U19: negative | V19: yes | W19: mouse | X19: yes | Y19: no | Z19: yes | AA19: metric | AB19: no | AD19: no | AF19: yes | AG19: no | AI19: no | AJ19: no | AL19: no | AM19: - | AN19: no | AO19: no | AP19: positive
A20: IB50 | D20: Anti-neoplastic & immune-modulating agents | E20: efficacy | F20: yes | G20: 40 | I20: 8 | J20: no | K20: no | L20: - | M20: no | N20: - | O20: no | P20: no | Q20: - | R20: no | S20: - | T20: no | U20: negative | V20: yes | W20: mouse | X20: yes | Y20: no | Z20: yes | AA20: both | AL20: no | AM20: - | AN20: no | AO20: no | AP20: positive
A21: IB50 | D21: Anti-neoplastic & immune-modulating agents | E21: efficacy | F21: yes | G21: 56 | I21: 12 | J21: no | K21: no | L21: - | M21: no | N21: - | O21: no | P21: no | Q21: - | R21: no | S21: - | T21: no | U21: negative | V21: yes | W21: mouse | X21: yes | Y21: no | Z21: yes | AA21: both | AL21: no | AM21: - | AN21: no | AO21: no | AP21: positive
A22: IB4a | C22: 1 | D22: Anti-neoplastic & immune-modulating agents | E22: efficacy | F22: yes | G22: 20 | H22: 10 per group | I22: 10 | J22: no | K22: no | M22: no | O22: no | P22: no | R22: no | T22: yes | U22: negative | V22: yes | W22: Mouse | X22: yes | Y22: yes | Z22: yes | AA22: metric | AB22: no | AD22: no | AF22: yes | AG22: yes | AI22: no | AJ22: no | AL22: no | AN22: yes | AO22: yes | AP22: positive
A23: IB4a | D23: Anti-neoplastic & immune-modulating agents | E23: efficacy | F23: yes | G23: 44 | H23: 11 per group | I23: 11 | J23: no | K23: no | M23: no | O23: no | P23: no | R23: no | T23: yes | U23: negative | V23: yes | W23: Mouse | X23: yes | Y23: yes | Z23: yes | AA23: metric | AL23: no | AN23: yes | AO23: yes | AP23: positive
A24: IB2b | C24: 1 | D24: Nervous system | E24: efficacy | F24: yes | H24: 9-10 per group | I24: 9 | J24: no | K24: yes | L24: no | M24: no | O24: no | P24: no | R24: no | T24: yes | U24: negative | V24: yes | W24: mice | X24: yes | Y24: yes | Z24: yes | AA24: both | AB24: yes | AC24: yes | AD24: no | AF24: yes | AG24: no | AI24: yes | AJ24: yes | AK24: rats | AL24: no | AN24: no | AO24: yes | AP24: positive
A25: IB2b | D25: Nervous system | E25: efficacy | F25: no | K25: no | M25: no | O25: no | P25: no | R25: no | T25: yes | U25: negative | V25: yes | W25: rat | X25: yes | Y25: yes | Z25: yes | AA25: both | AL25: no | AN25: no | AO25: yes | AP25: positive
A26: IB2b | D26: Nervous system | E26: efficacy | F26: no | K26: no | M26: yes | N26: female | O26: no | P26: no | R26: no | T26: yes | U26: negative | V26: yes | W26: mice | X26: yes | Y26: yes | Z26: yes | AA26: both | AL26: no | AN26: no | AO26: yes | AP26: positive
A27: IB4b | C27: 1 | D27: Anti-neoplastic & immune-modulating agents | E27: efficacy | F27: no | K27: no | M27: yes | N27: sex | O27: no | P27: no | R27: no | T27: yes | U27: negative | V27: yes | W27: mice | X27: yes | Y27: yes | Z27: yes | AA27: both | AB27: yes | AC27: yes | AD27: no | AF27: yes | AG27: yes | AI27: yes | AJ27: yes | AK27: mouse, rat | AL27: yes | AM27: in-house | AN27: yes | AO27: yes | AP27: positive
A28: IB4b | D28: Anti-neoplastic & immune-modulating agents | E28: efficacy | F28: no | K28: no | M28: yes | N28: sex | O28: no | P28: no | R28: no | T28: yes | U28: negative | V28: yes | W28: rat | X28: yes | Y28: yes | Z28: yes | AA28: both | AL28: yes | AM28: in-house | AN28: yes | AO28: yes | AP28: positive
A29: IB4b | D29: Anti-neoplastic & immune-modulating agents | E29: efficacy | F29: no | K29: no | M29: yes | N29: sex | O29: no | P29: no | R29: no | T29: yes | U29: negative | V29: yes | W29: mice | X29: yes | Y29: yes | Z29: yes | AA29: both | AL29: yes | AM29: in-house | AN29: yes | AO29: yes | AP29: positive
A30: IB4b | D30: Anti-neoplastic & immune-modulating agents | E30: efficacy | F30: no | K30: no | M30: yes | N30: sex | O30: no | P30: no | R30: no | T30: yes | U30: negative | V30: yes | W30: mice | X30: yes | Y30: yes | Z30: yes | AA30: both | AL30: yes | AM30: in-house | AN30: yes | AO30: yes | AP30: positive
A31: IB4b | D31: Anti-neoplastic & immune-modulating agents | E31: efficacy | F31: no | K31: no | M31: yes | N31: sex | O31: no | P31: no | R31: no | T31: yes | U31: negative | V31: yes | W31: mice | X31: yes | Y31: yes | Z31: yes | AA31: both | AL31: yes | AM31: in-house | AN31: yes | AO31: yes | AP31: positive
A32: IB4b | D32: Anti-neoplastic & immune-modulating agents | E32: efficacy | F32: yes | H32: 8-10 per group | I32: 8 | J32: no | K32: no | M32: yes | N32: sex | O32: no | P32: no | R32: no | T32: yes | U32: negative | V32: yes | W32: mice | X32: yes | Y32: yes | Z32: yes | AA32: both | AL32: yes | AM32: in-house | AN32: no | AO32: yes | AP32: positive
A33: IB4b | D33: Anti-neoplastic & immune-modulating agents | E33: efficacy | F33: no | K33: no | M33: yes | N33: sex | O33: no | P33: no | R33: no | T33: yes | U33: negative | V33: yes | W33: mice | X33: yes | Y33: yes | Z33: yes | AA33: both | AL33: yes | AM33: in-house | AN33: yes | AO33: yes | AP33: positive
A34: IB4b | D34: Anti-neoplastic & immune-modulating agents | E34: efficacy | F34: no | K34: no | M34: yes | N34: sex | O34: no | P34: no | R34: no | T34: yes | U34: negative | V34: yes | W34: mice | X34: yes | Y34: yes | Z34: yes | AA34: both | AL34: yes | AM34: in-house | AN34: yes | AO34: yes | AP34: positive
G117: total sample size | I117: group size
G119: =AVERAGE(G5:G34) -> 47 | H119: mean | I119: =AVERAGE(I5:I34) -> 11.41666667 | J119: =COUNTIFS(G5:G34,"*group*") -> 0
G120: =MEDIAN(G5:G34) -> 46 | H120: median | I120: =MEDIAN(I5:I34) -> 10.5
E123: Total | F123: Mean | G123: However, given that the mean sample size in the PCES of our sample was 35, even if the mean effect size for every study in our sample were d= 0.8 (a large effect), 37 % of studies should fail to demonstrate significance at a p value of .05. (power 0,632)
E124: Berechnung?
E125: Total | F125: Median | G125: However, given that the median sample size in the PCES of our sample was 32, even if the mean effect size for every study in our sample were d= 0.8 (a large effect), 41% of studies should fail to demonstrate significance at a p value of .05. (Power 0,591)
E129: Group size, t-test, two independent means | F129: Median | G129: However, given that the median group size in the PCES of our sample was 8, even if the mean effect size for every study in our sample were d= 0.8 (a large effect), 55% of studies should fail to demonstrate significance at a p value of .05. (Power 0,451)
... 1 more rows

Sheet Results
A1: Please note: Some rows in this table might have been deleted due to confidentiality reasons!
B2: ALL | C2: x | E2: n | J2: only 1 | K2: x | M2: n | R2: only a | S2: x | U2: n | Z2: only b | AA2: x | AC2: n | AH2: 1 - subset with publication check | AI2: x | AK2: n | AP2: 1 - publication check | AQ2: x | AS2: n | AX2: First in man studies | AY2: x | BA2: n
C3: Yes | D3: No | E3: Total | F3: yes in % | G3: no in % | K3: Yes | L3: No | M3: Total | N3: yes in % | O3: no in % | S3: Yes | T3: No | U3: Total | V3: yes in % | W3: no in % | AA3: Yes | AB3: No | AC3: Total | AD3: yes in % | AE3: no in % | AI3: Yes | AJ3: No | AK3: Total | AL3: yes in % | AM3: no in % | AQ3: Yes | AR3: No | AS3: Total | AT3: yes in % | AU3: no in % | AY3: Yes | AZ3: No | BA3: Total | BB3: yes in % | BC3: no in %
A4: Sample size | B4: Is sample size reported, Yes or no? | C4: =COUNTIF('Coding matrix'!G$5:G$735,"yes") -> 184 | D4: =COUNTIF('Coding matrix'!G$5:G$735,"no") -> 524 | E4: =SUM(C4:D4) -> 708 | F4: =C4/E4 -> 0.2598870056 | G4: =D4/E4 -> 0.7401129944 | J4: Is sample size reported, Yes or no? | K4: =COUNTIF('Coding matrix'!G$5:G$695,"yes") -> 164 | L4: =COUNTIF('Coding matrix'!G$5:G$695,"no") -> 504 | M4: =SUM(K4:L4) -> 668 | N4: =K4/M4 -> 0.245508982 | O4: =L4/M4 -> 0.754491018 | R4: Is sample size reported, Yes or no? | S4: =COUNTIF('Coding matrix'!G$696:G$710,"yes") -> 15 | T4: =COUNTIF('Coding matrix'!X$696:X$710,"no") -> 0 | U4: =SUM(S4:T4) -> 15 | V4: =S4/U4 -> 1 | W4: =T4/U4 -> 0 | Z4: Is sample size reported, Yes or no? | AA4: =COUNTIF('Coding matrix'!G$711:G$735,"yes") -> 5 | AB4: =COUNTIF('Coding matrix'!G$711:G$735,"no") -> 20 | AC4: =SUM(AA4:AB4) -> 25 | AD4: =AA4/AC4 -> 0.2 | AE4: =AB4/AC4 -> 0.8 | AH4: Is sample size reported, Yes or no? | AI4: =COUNTIF('peer-reviewed publications IB'!G$5:G$84,"yes") -> 8 | AJ4: =COUNTIF('peer-reviewed publications IB'!G$5:G$84,"no") -> 72 | AK4: =SUM(AI4:AJ4) -> 80 | AL4: =AI4/AK4 -> 0.1 | AM4: =AJ4/AK4 -> 0.9 | AP4: Is sample size reported, Yes or no? | AQ4: =COUNTIF('peer-reviewed publications pub'!$G$5:$G$84,"yes") -> 73 | AR4: =COUNTIF('peer-reviewed publications pub'!$G$5:$G$84,"no") -> 7 | AS4: =SUM(AQ4:AR4) -> 80 | AT4: =AQ4/AS4 -> 0.9125 | AU4: =AR4/AS4 -> 0.0875 | AX4: Is sample size reported, Yes or no? | AY4: =COUNTIF('First in man trials'!F$5:F$695,"yes") -> 12 | AZ4: =COUNTIF('First in man trials'!F$5:F$695,"no") -> 18 | BA4: =SUM(AY4:AZ4) -> 30 | BB4: =AY4/BA4 -> 0.4 | BC4: =AZ4/BA4 -> 0.6
B5: If yes, how many? | E5: =SUM(C5:D5) -> 0 | J5: If yes, how many? | M5: =SUM(K5:L5) -> 0 | R5: If yes, how many? | U5: =SUM(S5:T5) -> 0 | Z5: If yes, how many? | AC5: =SUM(AA5:AB5) -> 0 | AH5: If yes, how many? | AI5: =COUNTIF('peer-reviewed publications IB'!H$5:H$84,"yes") -> 0 | AJ5: =COUNTIF('peer-reviewed publications IB'!H$5:H$84,"no") -> 0 | AK5: =SUM(AI5:AJ5) -> 0 | AP5: If yes, how many? | AQ5: =COUNTIF('peer-reviewed publications pub'!$H$5:$H$84,"yes") -> 0 | AR5: =COUNTIF('peer-reviewed publications pub'!$H$5:$H$84,"no") -> 0 | AS5: =SUM(AQ5:AR5) -> 0 | AX5: If yes, how many? | BA5: =SUM(AY5:AZ5) -> 0
B6: If yes, is sample size calculation reported? | C6: =COUNTIF('Coding matrix'!$K$5:$K$735,"yes") -> 0 | D6: =COUNTIF('Coding matrix'!$K$5:$K$735,"no") -> 225 | E6: 225 | F6: =C6/E6 -> 0 | G6: =D6/E6 -> 1 | J6: If yes, is sample size calculation reported? | K6: =COUNTIF('Coding matrix'!$K$5:$K$695,"yes") -> 0 | L6: =COUNTIF('Coding matrix'!$K$5:$K$695,"no") -> 205 | M6: 205 | N6: =K6/M6 -> 0 | O6: =L6/M6 -> 1 | R6: If yes, is sample size calculation reported? | S6: =COUNTIF('Coding matrix'!$K$696:$K$710,"yes") -> 0 | T6: =COUNTIF('Coding matrix'!$K$696:$K$710,"no") -> 15 | U6: =SUM(S6:T6) -> 15 | V6: =S6/U6 -> 0 | W6: =T6/U6 -> 1 | Z6: If yes, is sample size calculation reported? | AA6: =COUNTIF('Coding matrix'!$K$711:$K$735,"yes") -> 0 | AB6: =COUNTIF('Coding matrix'!$K$711:$K$735,"no") -> 5 | AC6: 5 | AD6: =AA6/AC6 -> 0 | AE6: =AB6/AC6 -> 1 | AH6: If yes, is sample size calculation reported? | AI6: =COUNTIF('peer-reviewed publications IB'!I$5:I$84,"yes") -> 0 | AJ6: =COUNTIF('peer-reviewed publications IB'!I$5:I$84,"no") -> 30 | AK6: 30 | AL6: =AI6/AK6 -> 0 | AM6: =AJ6/AK6 -> 1 | AP6: If yes, is sample size calculation reported? | AQ6: =COUNTIF('peer-reviewed publications pub'!$I$5:$I$84,"yes") -> 0 | AR6: =COUNTIF('peer-reviewed publications pub'!$I$5:$I$84,"no") -> 63 | AS6: 63 | AT6: =AQ6/AS6 -> 0 | AU6: =AR6/AS6 -> 1 | AX6: If yes, is sample size calculation reported? | AY6: =COUNTIF('First in man trials'!$J$5:$J$695,"yes") -> 0 | AZ6: =COUNTIF('First in man trials'!$J$5:$J$695,"no") -> 12 | BA6: 12 | BB6: =AY6/BA6 -> 0 | BC6: =AZ6/BA6 -> 1
A7: Randomisation | B7: Is randomisation reported? | C7: =COUNTIF('Coding matrix'!$L$5:$L$735,"yes") -> 26 | D7: =COUNTIF('Coding matrix'!$L$5:$L$735,"no") -> 682 | E7: 708 | F7: 0.03672316384 | G7: 0.9632768362 | J7: Is randomisation reported? | K7: =COUNTIF('Coding matrix'!$L$5:$L$695,"yes") -> 22 | L7: =COUNTIF('Coding matrix'!$L$5:$L$695,"no") -> 646 | M7: 668 | N7: 0.03293413174 | O7: 0.9670658683 | R7: Is randomisation reported? | S7: =COUNTIF('Coding matrix'!$L$696:$L$710,"yes") -> 0 | T7: =COUNTIF('Coding matrix'!$L$696:$L$710,"no") -> 15 | U7: 15 | V7: 0 | W7: 1 | Z7: Is randomisation reported? | AA7: =COUNTIF('Coding matrix'!$L$711:$L$735,"yes") -> 4 | AB7: =COUNTIF('Coding matrix'!$L$711:$L$735,"no") -> 21 | AC7: 25 | AD7: 0.16 | AE7: 0.84 | AH7: Is randomisation reported? | AI7: =COUNTIF('peer-reviewed publications IB'!J$5:J$84,"yes") -> 1 | AJ7: =COUNTIF('peer-reviewed publications IB'!J$5:J$84,"no") -> 79 | AK7: 80 | AL7: 0.0125 | AM7: 0.9875 | AP7: Is randomisation reported? | AQ7: =COUNTIF('peer-reviewed publications pub'!$J$5:$J$84,"yes") -> 22 | AR7: =COUNTIF('peer-reviewed publications pub'!$J$5:$J$84,"no") -> 58 | AS7: 80 | AT7: 0.275 | AU7: 0.725 | AX7: Is randomisation reported? | AY7: =COUNTIF('First in man trials'!$K$5:$K$695,"yes") -> 4 | AZ7: =COUNTIF('First in man trials'!$K$5:$K$695,"no") -> 26 | BA7: 30 | BB7: 0.1333333333 | BC7: 0.8666666667
B8: If yes, describe the method used to generate the randomization sequence? | J8: If yes, describe the method used to generate the randomization sequence? | R8: If yes, describe the method used to generate the randomization sequence? | Z8: If yes, describe the method used to generate the randomization sequence? | AH8: If yes, describe the method used to generate the randomization sequence? | AI8: =COUNTIF('peer-reviewed publications IB'!K$5:K$84,"yes") -> 0 | AJ8: =COUNTIF('peer-reviewed publications IB'!K$5:K$84,"no") -> 1 | AP8: If yes, describe the method used to generate the randomization sequence? | AQ8: =COUNTIF('peer-reviewed publications pub'!$K$5:$K$84,"yes") -> 0 | AR8: =COUNTIF('peer-reviewed publications pub'!$K$5:$K$84,"no") -> 9 | AX8: If yes, describe the method used to generate the randomization sequence?
A9: Baseline characterization | B9: Is baseline characterization reported? | C9: =COUNTIF('Coding matrix'!$N$5:$N$735,"yes") -> 127 | D9: =COUNTIF('Coding matrix'!$N$5:$N$735,"no") -> 581 | E9: 708 | F9: 0.1793785311 | G9: 0.8206214689 | J9: Is baseline characterization reported? | K9: =COUNTIF('Coding matrix'!$N$5:$N$695,"yes") -> 109 | L9: =COUNTIF('Coding matrix'!$N$5:$N$695,"no") -> 559 | M9: =SUM(K9:L9) -> 668 | N9: =K9/M9 -> 0.1631736527 | O9: =L9/M9 -> 0.8368263473 | R9: Is baseline characterization reported? | S9: =COUNTIF('Coding matrix'!$N$696:$N$710,"yes") -> 4 | T9: =COUNTIF('Coding matrix'!$N$696:$N$710,"no") -> 11 | U9: =SUM(S9:T9) -> 15 | V9: =S9/U9 -> 0.2666666667 | W9: =T9/U9 -> 0.7333333333 | Z9: Is baseline characterization reported? | AA9: =COUNTIF('Coding matrix'!$N$711:$N$735,"yes") -> 14 | AB9: =COUNTIF('Coding matrix'!$N$711:$N$735,"no") -> 11 | AC9: =SUM(AA9:AB9) -> 25 | AD9: =AA9/AC9 -> 0.56 | AE9: =AB9/AC9 -> 0.44 | AH9: Is baseline characterization reported? | AI9: =COUNTIF('peer-reviewed publications IB'!L$5:L$84,"yes") -> 5 | AJ9: =COUNTIF('peer-reviewed publications IB'!L$5:L$84,"no") -> 75 | AK9: =SUM(AI9:AJ9) -> 80 | AL9: =AI9/AK9 -> 0.0625 | AM9: =AJ9/AK9 -> 0.9375 | AP9: Is baseline characterization reported? | AQ9: =COUNTIF('peer-reviewed publications pub'!$L$5:$L$84,"yes") -> 61 | AR9: =COUNTIF('peer-reviewed publications pub'!$L$5:$L$84,"no") -> 19 | AS9: =SUM(AQ9:AR9) -> 80 | AT9: =AQ9/AS9 -> 0.7625 | AU9: =AR9/AS9 -> 0.2375 | AX9: Is baseline characterization reported? | AY9: =COUNTIF('First in man trials'!$M$5:$M$695,"yes") -> 19 | AZ9: =COUNTIF('First in man trials'!$M$5:$M$695,"no") -> 11 | BA9: =SUM(AY9:AZ9) -> 30 | BB9: =AY9/BA9 -> 0.6333333333 | BC9: =AZ9/BA9 -> 0.3666666667
B10: If yes, what type? | J10: If yes, what type? | R10: If yes, what type? | Z10: If yes, what type? | AH10: If yes, what type? | AI10: =COUNTIF('peer-reviewed publications IB'!M$5:M$84,"yes") -> 0 | AJ10: =COUNTIF('peer-reviewed publications IB'!M$5:M$84,"no") -> 0 | AP10: If yes, what type? | AQ10: =COUNTIF('peer-reviewed publications pub'!$M$5:$M$84,"yes") -> 0 | AR10: =COUNTIF('peer-reviewed publications pub'!$M$5:$M$84,"no") -> 0 | AX10: If yes, what type?
A11: Blinded assessment | B11: Is blinded assessment for treatment allocation reported? | C11: =COUNTIF('Coding matrix'!$P$5:$P$6861,"yes") -> 0 | D11: =COUNTIF('Coding matrix'!$P$5:$P$735,"no") -> 708 | E11: 708 | F11: 0 | G11: 1 | J11: Is blinded assessment for treatment allocation reported? | K11: =COUNTIF('Coding matrix'!$P$5:$P$695,"yes") -> 0 | L11: =COUNTIF('Coding matrix'!$P$5:$P$695,"no") -> 668 | M11: =SUM(K11:L11) -> 668 | N11: =K11/M11 -> 0 | O11: =L11/M11 -> 1 | R11: Is blinded assessment for treatment allocation reported? | S11: =COUNTIF('Coding matrix'!$P$696:$P$6861,"yes") -> 0 | T11: =COUNTIF('Coding matrix'!$P$696:$P$710,"no") -> 15 | U11: =SUM(S11:T11) -> 15 | V11: =S11/U11 -> 0 | W11: =T11/U11 -> 1 | Z11: Is blinded assessment for treatment allocation reported? | AA11: =COUNTIF('Coding matrix'!$P$711:$P$6861,"yes") -> 0 | AB11: =COUNTIF('Coding matrix'!$P$711:$P$735,"no") -> 25 | AC11: =SUM(AA11:AB11) -> 25 | AD11: =AA11/AC11 -> 0 | AE11: =AB11/AC11 -> 1 | AH11: Is blinded assessment for treatment allocation reported? | AI11: =COUNTIF('peer-reviewed publications IB'!N$5:N$84,"yes") -> 0 | AJ11: =COUNTIF('peer-reviewed publications IB'!N$5:N$84,"no") -> 80 | AK11: =SUM(AI11:AJ11) -> 80 | AL11: =AI11/AK11 -> 0 | AM11: =AJ11/AK11 -> 1 | AP11: Is blinded assessment for treatment allocation reported? | AQ11: =COUNTIF('peer-reviewed publications pub'!$N$5:$N$84,"yes") -> 0 | AR11: =COUNTIF('peer-reviewed publications pub'!$N$5:$N$84,"no") -> 80 | AS11: =SUM(AQ11:AR11) -> 80 | AT11: =AQ11/AS11 -> 0 | AU11: =AR11/AS11 -> 1 | AX11: Is blinded assessment for treatment allocation reported? | AY11: =COUNTIF('First in man trials'!$O$5:$O$695,"yes") -> 0 | AZ11: =COUNTIF('First in man trials'!$O$5:$O$695,"no") -> 30 | BA11: =SUM(AY11:AZ11) -> 30 | BB11: =AY11/BA11 -> 0 | BC11: =AZ11/BA11 -> 1
B12: Is blinded assessment for outcome assessment reported? | C12: =COUNTIF('Coding matrix'!$Q$5:$Q$735,"yes") -> 0 | D12: =COUNTIF('Coding matrix'!$Q$5:$Q$735,"no") -> 708 | E12: 708 | F12: 0 | G12: 1 | J12: Is blinded assessment for outcome assessment reported? | K12: =COUNTIF('Coding matrix'!$Q$5:$Q$695,"yes") -> 0 | L12: =COUNTIF('Coding matrix'!$Q$5:$Q$695,"no") -> 668 | M12: 668 | N12: 0 | O12: 1 | R12: Is blinded assessment for outcome assessment reported? | S12: =COUNTIF('Coding matrix'!$Q$696:$Q$710,"yes") -> 0 | T12: =COUNTIF('Coding matrix'!$Q$696:$Q$710,"no") -> 15 | U12: 15 | V12: 0 | W12: 1 | Z12: Is blinded assessment for outcome assessment reported? | AA12: =COUNTIF('Coding matrix'!$Q$711:$Q$735,"yes") -> 0 | AB12: =COUNTIF('Coding matrix'!$Q$711:$Q$735,"no") -> 25 | AC12: 25 | AD12: 0 | AE12: 1 | AH12: Is blinded assessment for outcome assessment reported? | AI12: =COUNTIF('peer-reviewed publications IB'!O$5:O$84,"yes") -> 0 | AJ12: =COUNTIF('peer-reviewed publications IB'!O$5:O$84,"no") -> 80 | AK12: 80 | AL12: 0 | AM12: 1 | AP12: Is blinded assessment for outcome assessment reported? | AQ12: =COUNTIF('peer-reviewed publications pub'!$O$5:$O$84,"yes") -> 4 | AR12: =COUNTIF('peer-reviewed publications pub'!$O$5:$O$84,"no") -> 76 | AS12: 80 | AT12: 0.05 | AU12: 0.95 | AX12: Is blinded assessment for outcome assessment reported? | AY12: =COUNTIF('First in man trials'!$P$5:$P$695,"yes") -> 0 | AZ12: =COUNTIF('First in man trials'!$P$5:$P$695,"no") -> 30 | BA12: 30 | BB12: 0 | BC12: 1
B13: If yes, when? | J13: If yes, when? | R13: If yes, when? | Z13: If yes, when? | AH13: If yes, when? | AI13: =COUNTIF('peer-reviewed publications IB'!P$5:P$84,"yes") -> 0 | AJ13: =COUNTIF('peer-reviewed publications IB'!P$5:P$84,"no") -> 0 | AP13: If yes, when? | AQ13: =COUNTIF('peer-reviewed publications pub'!$P$5:$P$84,"yes") -> 0 | AR13: =COUNTIF('peer-reviewed publications pub'!$P$5:$P$84,"no") -> 0 | AX13: If yes, when?
A14: Exclusion of data from analysis | B14: Is exclusion of data reported? | C14: =COUNTIF('Coding matrix'!$S$5:$S$735,"yes") -> 38 | D14: =COUNTIF('Coding matrix'!$S$5:$S$735,"no") -> 670 | E14: 708 | F14: 0.05367231638 | G14: 0.9463276836 | J14: Is exclusion of data reported? | K14: =COUNTIF('Coding matrix'!$S$5:$S$695,"yes") -> 38 | L14: =COUNTIF('Coding matrix'!$S$5:$S$695,"no") -> 630 | M14: =SUM(K14:L14) -> 668 | N14: =K14/M14 -> 0.05688622754 | O14: =L14/M14 -> 0.9431137725 | R14: Is exclusion of data reported? | S14: =COUNTIF('Coding matrix'!$S$696:$S$710,"yes") -> 0 | T14: =COUNTIF('Coding matrix'!$S$696:$S$710,"no") -> 15 | U14: =SUM(S14:T14) -> 15 | V14: =S14/U14 -> 0 | W14: =T14/U14 -> 1 | Z14: Is exclusion of data reported? | AA14: =COUNTIF('Coding matrix'!$S$711:$S$735,"yes") -> 0 | AB14: =COUNTIF('Coding matrix'!$S$711:$S$735,"no") -> 25 | AC14: =SUM(AA14:AB14) -> 25 | AD14: =AA14/AC14 -> 0 | AE14: =AB14/AC14 -> 1 | AH14: Is exclusion of data reported? | AI14: =COUNTIF('peer-reviewed publications IB'!Q$5:Q$84,"yes") -> 4 | AJ14: =COUNTIF('peer-reviewed publications IB'!Q$5:Q$84,"no") -> 76 | AK14: =SUM(AI14:AJ14) -> 80 | AL14: =AI14/AK14 -> 0.05 | AM14: =AJ14/AK14 -> 0.95 | AP14: Is exclusion of data reported? | AQ14: =COUNTIF('peer-reviewed publications pub'!$Q$5:$Q$84,"yes") -> 11 | AR14: =COUNTIF('peer-reviewed publications pub'!$Q$5:$Q$84,"no") -> 69 | AS14: =SUM(AQ14:AR14) -> 80 | AT14: =AQ14/AS14 -> 0.1375 | AU14: =AR14/AS14 -> 0.8625 | AX14: Is exclusion of data reported? | AY14: =COUNTIF('First in man trials'!$R$5:$R$695,"yes") -> 1 | AZ14: =COUNTIF('First in man trials'!$R$5:$R$695,"no") -> 29 | BA14: =SUM(AY14:AZ14) -> 30 | BB14: =AY14/BA14 -> 0.03333333333 | BC14: =AZ14/BA14 -> 0.9666666667
B15: If yes, justification? | C15: =COUNTIF('Coding matrix'!$T$5:$T$735,"yes") -> 26 | D15: =COUNTIF('Coding matrix'!$T$5:$T$735,"no") -> 12 | E15: 38 | F15: 0.6842105263 | G15: 0.3157894737 | J15: If yes, justification? | K15: =COUNTIF('Coding matrix'!$T$5:$T$695,"yes") -> 26 | L15: =COUNTIF('Coding matrix'!$T$5:$T$695,"no") -> 12 | M15: 38 | N15: 0.6842105263 | O15: 0.3157894737 | R15: If yes, justification? | S15: =COUNTIF('Coding matrix'!$T$696:$T$710,"yes") -> 0 | T15: =COUNTIF('Coding matrix'!$T$696:$T$710,"no") -> 0 | U15: =SUM(S15:T15) -> 0 | Z15: If yes, justification? | AA15: =COUNTIF('Coding matrix'!$T$711:$T$735,"yes") -> 0 | AB15: =COUNTIF('Coding matrix'!$T$711:$T$735,"no") -> 0 | AC15: 0 | AH15: If yes, justification? | AI15: =COUNTIF('peer-reviewed publications IB'!R$5:R$84,"yes") -> 4 | AJ15: =COUNTIF('peer-reviewed publications IB'!R$5:R$84,"no") -> 0 | AK15: 4 | AL15: 1 | AM15: 0 | AP15: If yes, justification? | AQ15: =COUNTIF('peer-reviewed publications pub'!$R$5:$R$84,"yes") -> 8 | AR15: =COUNTIF('peer-reviewed publications pub'!$R$5:$R$84,"no") -> 1 | AS15: 9 | AT15: 0.8888888889 | AU15: 0.1111111111 | AX15: If yes, justification? | AY15: =COUNTIF('First in man trials'!$S$5:$S$695,"yes") -> 1 | AZ15: =COUNTIF('First in man trials'!$S$5:$S$695,"no") -> 0 | BA15: 1 | BB15: 1 | BC15: 0
A16: Controls | B16: Is control group reported? | C16: =COUNTIF('Coding matrix'!$U$5:$U$735,"yes") -> 329 | D16: =COUNTIF('Coding matrix'!$U$5:$U$735,"no") -> 379 | E16: 708 | F16: 0.4646892655 | G16: 0.5353107345 | J16: Is control group reported? | K16: =COUNTIF('Coding matrix'!$U$5:$U$695,"yes") -> 290 | L16: =COUNTIF('Coding matrix'!$U$5:$U$695,"no") -> 378 | M16: 668 | N16: 0.4341317365 | O16: 0.5658682635 | R16: Is control group reported? | S16: =COUNTIF('Coding matrix'!$U$696:$U$710,"yes") -> 14 | T16: =COUNTIF('Coding matrix'!$U$696:$U$710,"no") -> 1 | U16: 15 | V16: 0.9333333333 | W16: 0.06666666667 | Z16: Is control group reported? | AA16: =COUNTIF('Coding matrix'!$U$711:$U$735,"yes") -> 25 | AB16: =COUNTIF('Coding matrix'!$U$711:$U$735,"no") -> 0 | AC16: 25 | AD16: 1 | AE16: 0 | AH16: Is control group reported? | AI16: =COUNTIF('peer-reviewed publications IB'!S$5:S$84,"yes") -> 30 | AJ16: =COUNTIF('peer-reviewed publications IB'!S$5:S$84,"no") -> 50 | AK16: =SUM(AI16:AJ16) -> 80 | AL16: 0.375 | AM16: 0.625 | AP16: Is control group reported? | AQ16: =COUNTIF('peer-reviewed publications pub'!$S$5:$S$84,"yes") -> 78 | AR16: =COUNTIF('peer-reviewed publications pub'!$S$5:$S$84,"no") -> 2 | AS16: 80 | AT16: 0.975 | AU16: 0.025 | AX16: Is control group reported? | AY16: =COUNTIF('First in man trials'!$T$5:$T$695,"yes") -> 24 | AZ16: =COUNTIF('First in man trials'!$T$5:$T$695,"no") -> 6 | BA16: 30 | BB16: 0.8 | BC16: 0.2
B17: If yes, what type of control? | J17: If yes, what type of control? | R17: If yes, what type of control? | Z17: If yes, what type of control? | AH17: If yes, what type of control? | AI17: =COUNTIF('peer-reviewed publications IB'!T$5:T$84,"yes") -> 0 | AJ17: =COUNTIF('peer-reviewed publications IB'!T$5:T$84,"no") -> 0 | AP17: If yes, what type of control? | AQ17: =COUNTIF('peer-reviewed publications pub'!$T$5:$T$84,"yes") -> 0 | AR17: =COUNTIF('peer-reviewed publications pub'!$T$5:$T$84,"no") -> 0 | AX17: If yes, what type of control?
A18: Model choice | B18: Is the species of animal reported? | C18: =COUNTIF('Coding matrix'!$W$5:$W$735,"yes") -> 622 | D18: =COUNTIF('Coding matrix'!$W$5:$W$735,"no") -> 86 | E18: =SUM(C18:D18) -> 708 | F18: 0.8785310734 | G18: 0.1214689266 | J18: Is the species of animal reported? | K18: =COUNTIF('Coding matrix'!$W$5:$W$695,"yes") -> 583 | L18: =COUNTIF('Coding matrix'!$W$5:$W$695,"no") -> 85 | M18: =SUM(K18:L18) -> 668 | N18: =K18/M18 -> 0.872754491 | O18: =L18/M18 -> 0.127245509 | R18: Is the species of animal reported? | S18: =COUNTIF('Coding matrix'!$W$696:$W$710,"yes") -> 15 | T18: =COUNTIF('Coding matrix'!$W$696:$W$710,"no") -> 0 | U18: =SUM(S18:T18) -> 15 | V18: =S18/U18 -> 1 | W18: =T18/U18 -> 0 | Z18: Is the species of animal reported? | AA18: =COUNTIF('Coding matrix'!$W$711:$W$735,"yes") -> 24 | AB18: =COUNTIF('Coding matrix'!$W$711:$W$735,"no") -> 1 | AC18: =SUM(AA18:AB18) -> 25 | AD18: =AA18/AC18 -> 0.96 | AE18: =AB18/AC18 -> 0.04 | AH18: Is the species of animal reported? | AI18: =COUNTIF('peer-reviewed publications IB'!U$5:U$84,"yes") -> 69 | AJ18: =COUNTIF('peer-reviewed publications IB'!U$5:U$84,"no") -> 11 | AK18: =SUM(AI18:AJ18) -> 80 | AL18: =AI18/AK18 -> 0.8625 | AM18: =AJ18/AK18 -> 0.1375 | AP18: Is the species of animal reported? | AQ18: =COUNTIF('peer-reviewed publications pub'!$U$5:$U$84,"yes") -> 80 | AR18: =COUNTIF('peer-reviewed publications pub'!$U$5:$U$84,"no") -> 0 | AS18: =SUM(AQ18:AR18) -> 80 | AT18: =AQ18/AS18 -> 1 | AU18: =AR18/AS18 -> 0 | AX18: Is the species of animal reported? | AY18: =COUNTIF('First in man trials'!$V$5:$V$695,"yes") -> 30 | AZ18: =COUNTIF('First in man trials'!$V$5:$V$695,"no") -> 0 | BA18: =SUM(AY18:AZ18) -> 30 | BB18: =AY18/BA18 -> 1 | BC18: =AZ18/BA18 -> 0
B19: If yes, what species? | J19: If yes, what species? | R19: If yes, what species? | Z19: If yes, what species? | AH19: If yes, what species? | AI19: =COUNTIF('peer-reviewed publications IB'!V$5:V$84,"yes") -> 0 | AJ19: =COUNTIF('peer-reviewed publications IB'!V$5:V$84,"no") -> 0 | AP19: If yes, what species? | AQ19: =COUNTIF('peer-reviewed publications pub'!$V$5:$V$84,"yes") -> 0 | AR19: =COUNTIF('peer-reviewed publications pub'!$V$5:$V$84,"no") -> 0 | AX19: If yes, what species?
B20: Is the type of model reported? | C20: =COUNTIF('Coding matrix'!$Y$5:$Y$735,"yes") -> 684 | D20: =COUNTIF('Coding matrix'!$Y$5:$Y$735,"no") -> 24 | E20: 708 | F20: 0.9661016949 | G20: 0.03389830508 | J20: Is the type of model reported? | K20: =COUNTIF('Coding matrix'!$Y$5:$Y$695,"yes") -> 644 | L20: =COUNTIF('Coding matrix'!$Y$5:$Y$695,"no") -> 24 | M20: =SUM(K20:L20) -> 668 | N20: =K20/M20 -> 0.9640718563 | O20: =L20/M20 -> 0.03592814371 | R20: Is the type of model reported? | S20: =COUNTIF('Coding matrix'!$Y$696:$Y$710,"yes") -> 15 | T20: =COUNTIF('Coding matrix'!$Y$696:$Y$710,"no") -> 0 | U20: =SUM(S20:T20) -> 15 | V20: =S20/U20 -> 1 | W20: =T20/U20 -> 0 | Z20: Is the type of model reported? | AA20: =COUNTIF('Coding matrix'!$Y$711:$Y$735,"yes") -> 25 | AB20: =COUNTIF('Coding matrix'!$Y$711:$Y$735,"no") -> 0 | AC20: =SUM(AA20:AB20) -> 25 | AD20: =AA20/AC20 -> 1 | AE20: =AB20/AC20 -> 0 | AH20: Is the type of model reported? | AI20: =COUNTIF('peer-reviewed publications IB'!W$5:W$84,"yes") -> 73 | AJ20: =COUNTIF('peer-reviewed publications IB'!W$5:W$84,"no") -> 7 | AK20: =SUM(AI20:AJ20) -> 80 | AL20: =AI20/AK20 -> 0.9125 | AM20: =AJ20/AK20 -> 0.0875 | AP20: Is the type of model reported? | AQ20: =COUNTIF('peer-reviewed publications pub'!$W$5:$W$84,"yes") -> 80 | AR20: =COUNTIF('peer-reviewed publications pub'!$W$5:$W$84,"no") -> 0 | AS20: =SUM(AQ20:AR20) -> 80 | AT20: =AQ20/AS20 -> 1 | AU20: =AR20/AS20 -> 0 | AX20: Is the type of model reported? | AY20: =COUNTIF('First in man trials'!$X$5:$X$695,"yes") -> 29 | AZ20: =COUNTIF('First in man trials'!$X$5:$X$695,"no") -> 1 | BA20: =SUM(AY20:AZ20) -> 30 | BB20: =AY20/BA20 -> 0.9666666667 | BC20: =AZ20/BA20 -> 0.03333333333
B21: If yes, what model? | J21: If yes, what model? | R21: If yes, what model? | Z21: If yes, what model? | AH21: If yes, what model? | AI21: =COUNTIF('peer-reviewed publications IB'!#REF!,"yes") ->  | AJ21: =COUNTIF('peer-reviewed publications IB'!#REF!,"no") ->  | AP21: If yes, what model? | AQ21: =COUNTIF('peer-reviewed publications pub'!#REF!,"yes") ->  | AR21: =COUNTIF('peer-reviewed publications pub'!#REF!,"no") ->  | AX21: If yes, what model?
B22: Is the specifications of model reported? | C22: =COUNTIF('Coding matrix'!$Z$5:$Z$735,"yes") -> 193 | D22: =COUNTIF('Coding matrix'!$Z$5:$Z$735,"no") -> 515 | E22: 708 | F22: 0.2725988701 | G22: 0.7274011299 | J22: Is the specifications of model reported? | K22: =COUNTIF('Coding matrix'!$Z$5:$Z$695,"yes") -> 166 | L22: =COUNTIF('Coding matrix'!$Z$5:$Z$695,"no") -> 502 | M22: =SUM(K22:L22) -> 668 | N22: =K22/M22 -> 0.248502994 | O22: =L22/M22 -> 0.751497006 | R22: Is the specifications of model reported? | S22: =COUNTIF('Coding matrix'!$Z$696:$Z$710,"yes") -> 8 | T22: =COUNTIF('Coding matrix'!$Z$696:$Z$710,"no") -> 7 | U22: =SUM(S22:T22) -> 15 | V22: =S22/U22 -> 0.5333333333 | W22: =T22/U22 -> 0.4666666667 | Z22: Is the specifications of model reported? | AA22: =COUNTIF('Coding matrix'!$Z$711:$Z$735,"yes") -> 19 | AB22: =COUNTIF('Coding matrix'!$Z$711:$Z$735,"no") -> 6 | AC22: =SUM(AA22:AB22) -> 25 | AD22: =AA22/AC22 -> 0.76 | AE22: =AB22/AC22 -> 0.24 | AH22: Is the specifications of model reported? | AI22: =COUNTIF('peer-reviewed publications IB'!X$5:X$84,"yes") -> 12 | AJ22: =COUNTIF('peer-reviewed publications IB'!X$5:X$84,"no") -> 68 | AK22: =SUM(AI22:AJ22) -> 80 | AL22: =AI22/AK22 -> 0.15 | AM22: =AJ22/AK22 -> 0.85 | AP22: Is the specifications of model reported? | AQ22: =COUNTIF('peer-reviewed publications pub'!$X$5:$X$84,"yes") -> 74 | AR22: =COUNTIF('peer-reviewed publications pub'!$X$5:$X$84,"no") -> 6 | AS22: =SUM(AQ22:AR22) -> 80 | AT22: =AQ22/AS22 -> 0.925 | AU22: =AR22/AS22 -> 0.075 | AX22: Is the specifications of model reported? | AY22: =COUNTIF('First in man trials'!$Y$5:$Y$695,"yes") -> 15 | AZ22: =COUNTIF('First in man trials'!$Y$5:$Y$695,"no") -> 15 | BA22: =SUM(AY22:AZ22) -> 30 | BB22: =AY22/BA22 -> 0.5 | BC22: =AZ22/BA22 -> 0.5
B23: If yes, details | J23: If yes, details | R23: If yes, details | Z23: If yes, details | AH23: If yes, details | AI23: =COUNTIF('peer-reviewed publications IB'!#REF!,"yes") ->  | AJ23: =COUNTIF('peer-reviewed publications IB'!#REF!,"no") ->  | AP23: If yes, details | AQ23: =COUNTIF('peer-reviewed publications pub'!#REF!,"yes") ->  | AR23: =COUNTIF('peer-reviewed publications pub'!#REF!,"no") ->  | AX23: If yes, details
A24: Outcome choice | B24: Is the outcome choice reported? | C24: =COUNTIF('Coding matrix'!$AA$5:$AA$735,"yes") -> 575 | D24: =COUNTIF('Coding matrix'!$AA$5:$AA$735,"no") -> 133 | E24: 708 | F24: 0.8121468927 | G24: 0.1878531073 | J24: Is the outcome choice reported? | K24: =COUNTIF('Coding matrix'!$AA$5:$AA$695,"yes") -> 537 | L24: =COUNTIF('Coding matrix'!$AA$5:$AA$695,"no") -> 131 | M24: =SUM(K24:L24) -> 668 | N24: =K24/M24 -> 0.8038922156 | O24: =L24/M24 -> 0.1961077844 | R24: Is the outcome choice reported? | S24: =COUNTIF('Coding matrix'!$AA$696:$AA$710,"yes") -> 15 | T24: =COUNTIF('Coding matrix'!$AA$696:$AA$710,"no") -> 0 | U24: =SUM(S24:T24) -> 15 | V24: =S24/U24 -> 1 | W24: =T24/U24 -> 0 | Z24: Is the outcome choice reported? | AA24: =COUNTIF('Coding matrix'!$AA$711:$AA$735,"yes") -> 23 | AB24: =COUNTIF('Coding matrix'!$AA$711:$AA$735,"no") -> 2 | AC24: =SUM(AA24:AB24) -> 25 | AD24: =AA24/AC24 -> 0.92 | AE24: =AB24/AC24 -> 0.08 | AH24: Is the outcome choice reported? | AI24: =COUNTIF('peer-reviewed publications IB'!Y$5:Y$84,"yes") -> 67 | AJ24: =COUNTIF('peer-reviewed publications IB'!Y$5:Y$84,"no") -> 13 | AK24: =SUM(AI24:AJ24) -> 80 | AL24: =AI24/AK24 -> 0.8375 | AM24: =AJ24/AK24 -> 0.1625 | AP24: Is the outcome choice reported? | AQ24: =COUNTIF('peer-reviewed publications pub'!$Y$5:$Y$84,"yes") -> 80 | AR24: =COUNTIF('peer-reviewed publications pub'!$Y$5:$Y$84,"no") -> 0 | AS24: =SUM(AQ24:AR24) -> 80 | AT24: =AQ24/AS24 -> 1 | AU24: =AR24/AS24 -> 0 | AX24: Is the outcome choice reported? | AY24: =COUNTIF('First in man trials'!$Z$5:$Z$695,"yes") -> 24 | AZ24: =COUNTIF('First in man trials'!$Z$5:$Z$695,"no") -> 6 | BA24: =SUM(AY24:AZ24) -> 30 | BB24: =AY24/BA24 -> 0.8 | BC24: =AZ24/BA24 -> 0.2
B25: If yes, is the metric or time-course or both reported? | J25: If yes, is the metric or time-course or both reported? | R25: If yes, is the metric or time-course or both reported? | Z25: If yes, is the metric or time-course or both reported? | AH25: If yes, is the metric or time-course or both reported? | AI25: =COUNTIF('peer-reviewed publications IB'!Z$5:Z$84,"yes") -> 0 | AJ25: =COUNTIF('peer-reviewed publications IB'!Z$5:Z$84,"no") -> 1 | AP25: If yes, is the metric or time-course or both reported? | AQ25: =COUNTIF('peer-reviewed publications pub'!$Z$5:$Z$84,"yes") -> 0 | AR25: =COUNTIF('peer-reviewed publications pub'!$Z$5:$Z$84,"no") -> 0 | AX25: If yes, is the metric or time-course or both reported?
A26: Dose reponse (RATE ON IB LEVEL) | B26: Is dose response reported? | C26: =COUNTIF('Coding matrix'!$AC$5:$AC$735,"yes") -> 67 | D26: =COUNTIF('Coding matrix'!$AC$5:$AC$735,"no") -> 24 | E26: =SUM(C26:D26) -> 91 | F26: 0.7362637363 | G26: 0.2637362637 | J26: Is dose response reported? | K26: =COUNTIF('Coding matrix'!$AC$5:$AC$695,"yes") -> 58 | L26: =COUNTIF('Coding matrix'!$AC$5:$AC$695,"no") -> 21 | M26: =SUM(K26:L26) -> 79 | N26: =K26/M26 -> 0.7341772152 | O26: =L26/M26 -> 0.2658227848 | R26: Is dose response reported? | S26: =COUNTIF('Coding matrix'!$AC$696:$AC$710,"yes") -> 4 | T26: =COUNTIF('Coding matrix'!$AC$696:$AC$710,"no") -> 2 | U26: =SUM(S26:T26) -> 6 | V26: =S26/U26 -> 0.6666666667 | W26: =T26/U26 -> 0.3333333333 | Z26: Is dose response reported? | AA26: =COUNTIF('Coding matrix'!$AC$711:$AC$735,"yes") -> 5 | AB26: =COUNTIF('Coding matrix'!$AC$711:$AC$735,"no") -> 1 | AC26: =SUM(AA26:AB26) -> 6 | AD26: =AA26/AC26 -> 0.8333333333 | AE26: =AB26/AC26 -> 0.1666666667 | AH26: Is dose response reported? | AI26: =COUNTIF('peer-reviewed publications IB'!AA$5:AA$84,"yes") -> 12 | AJ26: =COUNTIF('peer-reviewed publications IB'!AA$5:AA$84,"no") -> 8 | AK26: =SUM(AI26:AJ26) -> 20 | AL26: =AI26/AK26 -> 0.6 | AM26: =AJ26/AK26 -> 0.4 | AP26: Is dose response reported? | AQ26: =COUNTIF('peer-reviewed publications pub'!$AA$5:$AA$84,"yes") -> 13 | AR26: =COUNTIF('peer-reviewed publications pub'!$AA$5:$AA$84,"no") -> 7 | AS26: =SUM(AQ26:AR26) -> 20 | AT26: =AQ26/AS26 -> 0.65 | AU26: =AR26/AS26 -> 0.35 | AX26: Is dose response reported? | AY26: =COUNTIF('First in man trials'!$AB$5:$AB$695,"yes") -> 3 | AZ26: =COUNTIF('First in man trials'!$AB$5:$AB$695,"no") -> 4 | BA26: =SUM(AY26:AZ26) -> 7 | BB26: =AY26/BA26 -> 0.4285714286 | BC26: =AZ26/BA26 -> 0.5714285714
B27: If yes, is positive reponse reported? | C27: =COUNTIF('Coding matrix'!$AD$5:$AD$735,"yes") -> 67 | D27: =COUNTIF('Coding matrix'!$AD$5:$AD$735,"no") -> 0 | E27: 67 | F27: =C27/E27 -> 1 | G27: 0 | J27: If yes, is positive reponse reported? | K27: =COUNTIF('Coding matrix'!$AD$5:$AD$695,"yes") -> 58 | L27: =COUNTIF('Coding matrix'!$AD$5:$AD$695,"no") -> 0 | M27: =SUM(K27:L27) -> 58 | N27: =K27/M27 -> 1 | O27: 0 | R27: If yes, is positive reponse reported? | S27: =COUNTIF('Coding matrix'!$AD$696:$AD$710,"yes") -> 4 | T27: =COUNTIF('Coding matrix'!$AD$696:$AD$710,"no") -> 0 | U27: =SUM(S27:T27) -> 4 | V27: =S27/U27 -> 1 | W27: 0 | Z27: If yes, is positive reponse reported? | AA27: =COUNTIF('Coding matrix'!$AD$711:$AD$735,"yes") -> 5 | AB27: =COUNTIF('Coding matrix'!$AD$711:$AD$735,"no") -> 0 | AC27: =SUM(AA27:AB27) -> 5 | AD27: =AA27/AC27 -> 1 | AE27: 0 | AH27: If yes, is positive reponse reported? | AI27: =COUNTIF('peer-reviewed publications IB'!AB$5:AB$84,"yes") -> 12 | AJ27: =COUNTIF('peer-reviewed publications IB'!AB$5:AB$84,"no") -> 0 | AK27: =SUM(AI27:AJ27) -> 12 | AL27: =AI27/AK27 -> 1 | AM27: 0 | AP27: If yes, is positive reponse reported? | AQ27: =COUNTIF('peer-reviewed publications pub'!$AB$5:$AB$84,"yes") -> 13 | AR27: =COUNTIF('peer-reviewed publications pub'!$AB$5:$AB$84,"no") -> 0 | AS27: =SUM(AQ27:AR27) -> 13 | AT27: =AQ27/AS27 -> 1 | AU27: 0 | AX27: If yes, is positive reponse reported? | AY27: =COUNTIF('First in man trials'!$AC$5:$AC$695,"yes") -> 3 | AZ27: =COUNTIF('First in man trials'!$AC$5:$AC$695,"no") -> 0 | BA27: =SUM(AY27:AZ27) -> 3 | BB27: =AY27/BA27 -> 1 | BC27: 0
A28: Age matched to patients (RATE ON IB LEVEL) | B28: Is the age of animals reported? | C28: =COUNTIF('Coding matrix'!$AE$5:$AE$735,"yes") -> 14 | D28: =COUNTIF('Coding matrix'!$AE$5:$AE$735,"no") -> 77 | E28: 91 | F28: 0.1538461538 | G28: 0.8461538462 | J28: Is the age of animals reported? | K28: =COUNTIF('Coding matrix'!$AE$5:$AE$695,"yes") -> 13 | L28: =COUNTIF('Coding matrix'!$AE$5:$AE$695,"no") -> 66 | M28: 79 | N28: =K28/M28 -> 0.164556962 | O28: 0.835443038 | R28: Is the age of animals reported? | S28: =COUNTIF('Coding matrix'!$AE$696:$AE$710,"yes") -> 1 | T28: =COUNTIF('Coding matrix'!$AE$696:$AE$710,"no") -> 5 | U28: 6 | V28: =S28/U28 -> 0.1666666667 | W28: 0.8333333333 | Z28: Is the age of animals reported? | AA28: =COUNTIF('Coding matrix'!$AE$711:$AE$735,"yes") -> 0 | AB28: =COUNTIF('Coding matrix'!$AE$711:$AE$735,"no") -> 6 | AC28: 6 | AD28: =AA28/AC28 -> 0 | AE28: 1 | AH28: Is the age of animals reported? | AI28: =COUNTIF('peer-reviewed publications IB'!AC$5:AC$84,"yes") -> 3 | AJ28: =COUNTIF('peer-reviewed publications IB'!AC$5:AC$84,"no") -> 17 | AK28: 20 | AL28: =AI28/AK28 -> 0.15 | AM28: 0.85 | AP28: Is the age of animals reported? | AQ28: =COUNTIF('peer-reviewed publications pub'!$AC$5:$AC$84,"yes") -> 14 | AR28: =COUNTIF('peer-reviewed publications pub'!$AC$5:$AC$84,"no") -> 6 | AS28: 20 | AT28: =AQ28/AS28 -> 0.7 | AU28: 0.3 | AX28: Is the age of animals reported? | AY28: =COUNTIF('First in man trials'!$AD$5:$AD$695,"yes") -> 2 | AZ28: =COUNTIF('First in man trials'!$AD$5:$AD$695,"no") -> 5 | BA28: 7 | BB28: =AY28/BA28 -> 0.2857142857 | BC28: 0.7142857143
B29: Is the age of animals matched to patients? | C29: =COUNTIF('Coding matrix'!$AF$5:$AF$735,"yes") -> 8 | D29: =COUNTIF('Coding matrix'!$AF$5:$AF$735,"no") -> 6 | E29: 14 | F29: 0.5714285714 | G29: 0.4285714286 | H29: =C29/E28 -> 0.08791208791 | J29: Is the age of animals matched to patients? | K29: =COUNTIF('Coding matrix'!$AF$5:$AF$695,"yes") -> 8 | L29: =COUNTIF('Coding matrix'!$AF$5:$AF$695,"no") -> 5 | M29: 13 | N29: 0.6153846154 | O29: 0.3846153846 | P29: =K29/M28 -> 0.1012658228 | R29: Is the age of animals matched to patients? | S29: =COUNTIF('Coding matrix'!$AF$696:$AF$710,"yes") -> 0 | T29: =COUNTIF('Coding matrix'!$AF$696:$AF$710,"no") -> 1 | U29: 1 | V29: 0 | W29: 1 | X29: =S29/U28 -> 0 | Z29: Is the age of animals matched to patients? | AA29: =COUNTIF('Coding matrix'!$AF$711:$AF$735,"yes") -> 0 | AB29: =COUNTIF('Coding matrix'!$AF$711:$AF$735,"no") -> 0 | AC29: 0 | AF29: =AA29/AC28 -> 0 | AH29: Is the age of animals matched to patients? | AI29: =COUNTIF('peer-reviewed publications IB'!AD$5:AD$84,"yes") -> 1 | AJ29: =COUNTIF('peer-reviewed publications IB'!AD$5:AD$84,"no") -> 2 | AK29: 3 | AL29: 0.3333333333 | AM29: 0.6666666667 | AN29: =AI29/AK28 -> 0.05 | AP29: Is the age of animals matched to patients? | AQ29: =COUNTIF('peer-reviewed publications pub'!$AD$5:$AD$84,"yes") -> 1 | AR29: =COUNTIF('peer-reviewed publications pub'!$AD$5:$AD$84,"no") -> 13 | AS29: 14 | AT29: =AQ29/AS29 -> 0.07142857143 | AU29: 0.9285714286 | AV29: =AQ29/AS28 -> 0.05 | AX29: Is the age of animals matched to patients? | AY29: =COUNTIF('First in man trials'!$AE$5:$AE$695,"yes") -> 1 | AZ29: =COUNTIF('First in man trials'!$AE$5:$AE$695,"no") -> 1 | BA29: 2 | BB29: 0.5 | BC29: 0.5 | BD29: =AY29/BA28 -> 0.1428571429
A30: Mechanistic evidence (RATE ON IB LEVEL) | B30: Yes or no? | C30: =COUNTIF('Coding matrix'!$AG$5:$AG$735,"yes") -> 64 | D30: =COUNTIF('Coding matrix'!$AG$5:$AG$735,"no") -> 27 | E30: 91 | F30: 0.7032967033 | G30: 0.2967032967 | J30: Mechanistic evidence | K30: =COUNTIF('Coding matrix'!$AG$5:$AG$695,"yes") -> 54 | L30: =COUNTIF('Coding matrix'!$AG$5:$AG$695,"no") -> 25 | M30: 79 | N30: 0.6835443038 | O30: 0.3164556962 | R30: Mechanistic evidence | S30: =COUNTIF('Coding matrix'!$AG$696:$AG$710,"yes") -> 5 | T30: =COUNTIF('Coding matrix'!$AG$696:$AG$710,"no") -> 1 | U30: 6 | V30: 0.8333333333 | W30: 0.1666666667 | Z30: Mechanistic evidence | AA30: =COUNTIF('Coding matrix'!$AG$711:$AG$735,"yes") -> 5 | AB30: =COUNTIF('Coding matrix'!$AG$711:$AG$735,"no") -> 1 | AC30: 6 | AD30: 0.8333333333 | AE30: 0.1666666667 | AH30: Mechanistic evidence | AI30: =COUNTIF('peer-reviewed publications IB'!AE$5:AE$84,"yes") -> 15 | AJ30: =COUNTIF('peer-reviewed publications IB'!AE$5:AE$84,"no") -> 5 | AK30: 20 | AL30: 0.75 | AM30: 0.25 | AP30: Mechanistic evidence | AQ30: =COUNTIF('peer-reviewed publications pub'!$AE$5:$AE$84,"yes") -> 15 | AR30: =COUNTIF('peer-reviewed publications pub'!$AE$5:$AE$84,"no") -> 5 | AS30: 20 | AT30: 0.75 | AU30: 0.25 | AX30: Mechanistic evidence | AY30: =COUNTIF('First in man trials'!$AF$5:$AF$695,"yes") -> 6 | AZ30: =COUNTIF('First in man trials'!$AF$5:$AF$695,"no") -> 1 | BA30: 7 | BB30: 0.8571428571 | BC30: 0.1428571429
A31: Replication of experiment (RATE ON IB LEVEL) | B31: Is there replication of experiment? | C31: =COUNTIF('Coding matrix'!$AH$5:$AH$735,"yes") -> 27 | D31: =COUNTIF('Coding matrix'!$AH$5:$AH$735,"no") -> 64 | E31: 91 | F31: 0.2967032967 | G31: 0.7032967033 | J31: Is there replication of experiment? | K31: =COUNTIF('Coding matrix'!$AH$5:$AH$695,"yes") -> 24 | L31: =COUNTIF('Coding matrix'!$AH$5:$AH$695,"no") -> 55 | M31: 79 | N31: 0.3037974684 | O31: 0.6962025316 | R31: Is there replication of experiment? | S31: =COUNTIF('Coding matrix'!$AH$696:$AH$710,"yes") -> 1 | T31: =COUNTIF('Coding matrix'!$AH$696:$AH$710,"no") -> 5 | U31: 6 | V31: 0.1666666667 | W31: 0.8333333333 | Z31: Is there replication of experiment? | AA31: =COUNTIF('Coding matrix'!$AH$711:$AH$735,"yes") -> 2 | AB31: =COUNTIF('Coding matrix'!$AH$711:$AH$735,"no") -> 4 | AC31: 6 | AD31: 0.3333333333 | AE31: 0.6666666667 | AH31: Is there replication of experiment? | AI31: =COUNTIF('peer-reviewed publications IB'!AF$5:AF$84,"yes") -> 8 | AJ31: =COUNTIF('peer-reviewed publications IB'!AF$5:AF$84,"no") -> 12 | AK31: 20 | AL31: 0.4 | AM31: 0.6 | AP31: Is there replication of experiment? | AQ31: =COUNTIF('peer-reviewed publications pub'!$AF$5:$AF$84,"yes") -> 8 | AR31: =COUNTIF('peer-reviewed publications pub'!$AF$5:$AF$84,"no") -> 12 | AS31: 20 | AT31: 0.4 | AU31: 0.6 | AX31: Is there replication of experiment? | AY31: =COUNTIF('First in man trials'!$AG$5:$AG$695,"yes") -> 4 | AZ31: =COUNTIF('First in man trials'!$AG$5:$AG$695,"no") -> 3 | BA31: 7 | BB31: 0.5714285714 | BC31: 0.4285714286
B32: If no, is there other similar study? | C32: =COUNTIF('Coding matrix'!$AI$5:$AI$735,"yes") -> 17 | D32: =COUNTIF('Coding matrix'!$AI$5:$AI$735,"no") -> 12 | E32: 29 | F32: 0.5862068966 | G32: 0.4137931034 | J32: If no, is there other similar study? | K32: =COUNTIF('Coding matrix'!$AI$5:$AI$695,"yes") -> 17 | L32: =COUNTIF('Coding matrix'!$AI$5:$AI$695,"no") -> 12 | M32: 29 | N32: 0.5862068966 | O32: 0.4137931034 | R32: If no, is there other similar study? | S32: =COUNTIF('Coding matrix'!$AI$696:$AI$710,"yes") -> 0 | T32: =COUNTIF('Coding matrix'!$AI$696:$AI$710,"no") -> 0 | U32: 0 | Z32: If no, is there other similar study? | AA32: =COUNTIF('Coding matrix'!$AI$711:$AI$735,"yes") -> 0 | AB32: =COUNTIF('Coding matrix'!$AI$711:$AI$735,"no") -> 0 | AC32: 0 | AH32: If no, is there other similar study? | AI32: =COUNTIF('peer-reviewed publications IB'!AG5:AG$84,"yes") -> 3 | AJ32: =COUNTIF('peer-reviewed publications IB'!AG$5:AG$84,"no") -> 2 | AK32: 5 | AL32: 0.6 | AM32: 0.4 | AP32: If no, is there other similar study? | AQ32: =COUNTIF('peer-reviewed publications pub'!$AG$5:$AG$84,"yes") -> 3 | AR32: =COUNTIF('peer-reviewed publications pub'!$AG$5:$AG$84,"no") -> 2 | AS32: 5 | AT32: 0.6 | AU32: 0.4 | AX32: If no, is there other similar study? | AY32: =COUNTIF('First in man trials'!$AH$5:$AH$695,"yes") -> 0 | AZ32: =COUNTIF('First in man trials'!$AH$5:$AH$695,"no") -> 1 | BA32: 1 | BB32: 0 | BC32: 1
A33: Replication in different model (RATE ON IB LEVEL) | B33: Is there replication in different model? | C33: =COUNTIF('Coding matrix'!$AJ$5:$AJ$735,"yes") -> 70 | D33: =COUNTIF('Coding matrix'!$AJ$5:$AJ$735,"no") -> 21 | E33: =SUM(C33:D33) -> 91 | F33: =C33/E33 -> 0.7692307692 | G33: 0.2307692308 | J33: Is there replication in different model? | K33: =COUNTIF('Coding matrix'!$AJ$5:$AJ$695,"yes") -> 61 | L33: =COUNTIF('Coding matrix'!$AJ$5:$AJ$695,"no") -> 18 | M33: =SUM(K33:L33) -> 79 | N33: 0.7721518987 | O33: 0.2278481013 | R33: Is there replication in different model? | S33: =COUNTIF('Coding matrix'!$AJ$696:$AJ$710,"yes") -> 4 | T33: =COUNTIF('Coding matrix'!$AJ$696:$AJ$710,"no") -> 2 | U33: =SUM(S33:T33) -> 6 | V33: 0.6666666667 | W33: 0.3333333333 | Z33: Is there replication in different model? | AA33: =COUNTIF('Coding matrix'!$AJ$711:$AJ$735,"yes") -> 5 | AB33: =COUNTIF('Coding matrix'!$AJ$711:$AJ$735,"no") -> 1 | AC33: =SUM(AA33:AB33) -> 6 | AD33: 0.8333333333 | AE33: 0.1666666667 | AH33: Is there replication in different model? | AI33: =COUNTIF('peer-reviewed publications IB'!AH$5:AH84,"yes") -> 18 | AJ33: =COUNTIF('peer-reviewed publications IB'!AH$5:AH$84,"no") -> 2 | AK33: =SUM(AI33:AJ33) -> 20 | AL33: 0.9 | AM33: 0.1 | AP33: Is there replication in different model? | AQ33: =COUNTIF('peer-reviewed publications pub'!$AH$5:$AH$84,"yes") -> 19 | AR33: =COUNTIF('peer-reviewed publications pub'!$AH$5:$AH$84,"no") -> 1 | AS33: =SUM(AQ33:AR33) -> 20 | AT33: 0.95 | AU33: 0.05 | AX33: Is there replication in different model? | AY33: =COUNTIF('First in man trials'!$AI$5:$AI$695,"yes") -> 4 | AZ33: =COUNTIF('First in man trials'!$AI$5:$AI$695,"no") -> 3 | BA33: =SUM(AY33:AZ33) -> 7 | BB33: 0.5714285714 | BC33: 0.4285714286
B34: If yes, model type? | J34: If yes, model type? | R34: If yes, model type? | Z34: If yes, model type? | AH34: If yes, model type? | AI34: =COUNTIF('peer-reviewed publications IB'!#REF!,"yes") ->  | AJ34: =COUNTIF('peer-reviewed publications IB'!#REF!,"no") ->  | AP34: If yes, model type? | AQ34: =COUNTIF('peer-reviewed publications pub'!#REF!,"yes") ->  | AR34: =COUNTIF('peer-reviewed publications pub'!#REF!,"no") ->  | AX34: If yes, model type?
A35: Replication in different species (RATE ON IB LEVEL) | B35: Is there replication in different species? | C35: =COUNTIF('Coding matrix'!$AK$5:$AK$735,"yes") -> 25 | D35: =COUNTIF('Coding matrix'!$AK$5:$AK$735,"no") -> 66 | E35: 91 | F35: 0.2747252747 | G35: 0.7252747253 | J35: Is there replication in different species? | K35: =COUNTIF('Coding matrix'!$AK$5:$AK$695,"yes") -> 22 | L35: =COUNTIF('Coding matrix'!$AK$5:$AK$695,"no") -> 57 | M35: =SUM(K35:L35) -> 79 | N35: =K35/M35 -> 0.2784810127 | O35: =L35/M35 -> 0.7215189873 | R35: Is there replication in different species? | S35: =COUNTIF('Coding matrix'!$AK$696:$AK$710,"yes") -> 1 | T35: =COUNTIF('Coding matrix'!$AK$696:$AK$710,"no") -> 5 | U35: =SUM(S35:T35) -> 6 | V35: =S35/U35 -> 0.1666666667 | W35: =T35/U35 -> 0.8333333333 | Z35: Is there replication in different species? | AA35: =COUNTIF('Coding matrix'!$AK$711:$AK$735,"yes") -> 2 | AB35: =COUNTIF('Coding matrix'!$AK$711:$AK$735,"no") -> 4 | AC35: =SUM(AA35:AB35) -> 6 | AD35: =AA35/AC35 -> 0.3333333333 | AE35: =AB35/AC35 -> 0.6666666667 | AH35: Is there replication in different species? | AI35: =COUNTIF('peer-reviewed publications IB'!AI$5:AI$84,"yes") -> 8 | AJ35: =COUNTIF('peer-reviewed publications IB'!AI$5:AI$84,"no") -> 12 | AK35: =SUM(AI35:AJ35) -> 20 | AL35: =AI35/AK35 -> 0.4 | AM35: =AJ35/AK35 -> 0.6 | AP35: Is there replication in different species? | AQ35: =COUNTIF('peer-reviewed publications pub'!$AI$5:$AI$84,"yes") -> 8 | AR35: =COUNTIF('peer-reviewed publications pub'!$AI$5:$AI$84,"no") -> 12 | AS35: =SUM(AQ35:AR35) -> 20 | AT35: =AQ35/AS35 -> 0.4 | AU35: =AR35/AS35 -> 0.6 | AX35: Is there replication in different species? | AY35: =COUNTIF('First in man trials'!$AJ$5:$AJ$695,"yes") -> 3 | AZ35: =COUNTIF('First in man trials'!$AJ$5:$AJ$695,"no") -> 4 | BA35: =SUM(AY35:AZ35) -> 7 | BB35: =AY35/BA35 -> 0.4285714286 | BC35: =AZ35/BA35 -> 0.5714285714
B36: If yes, species type? | J36: If yes, species type? | R36: If yes, species type? | Z36: If yes, species type? | AH36: If yes, species type? | AI36: =COUNTIF('peer-reviewed publications IB'!AJ$5:AJ$84,"yes") -> 0 | AJ36: =COUNTIF('peer-reviewed publications IB'!AJ$5:AJ$84,"no") -> 0 | AP36: If yes, species type? | AQ36: =COUNTIF('peer-reviewed publications pub'!$AJ$5:$AJ$84,"yes") -> 0 | AR36: =COUNTIF('peer-reviewed publications pub'!$AJ$5:$AJ$84,"no") -> 0 | AX36: If yes, species type?
A37: Citation of references | B37: Is there references reported? | C37: =COUNTIF('Coding matrix'!$AM$5:$AM$735,"yes") -> 514 | D37: =COUNTIF('Coding matrix'!$AM$5:$AM$735,"no") -> 194 | E37: 708 | F37: 0.7259887006 | G37: 0.2740112994 | J37: Is there references reported? | K37: =COUNTIF('Coding matrix'!$AM$5:$AM$695,"yes") -> 492 | L37: =COUNTIF('Coding matrix'!$AM$5:$AM$695,"no") -> 176 | M37: =SUM(K37:L37) -> 668 | N37: =K37/M37 -> 0.7365269461 | O37: =L37/M37 -> 0.2634730539 | R37: Is there references reported? | S37: =COUNTIF('Coding matrix'!$AM$696:$AM$710,"yes") -> 9 | T37: =COUNTIF('Coding matrix'!$AM$696:$AM$710,"no") -> 6 | U37: =SUM(S37:T37) -> 15 | V37: =S37/U37 -> 0.6 | W37: =T37/U37 -> 0.4 | Z37: Is there references reported? | AA37: =COUNTIF('Coding matrix'!$AM$711:$AM$735,"yes") -> 13 | AB37: =COUNTIF('Coding matrix'!$AM$711:$AM$735,"no") -> 12 | AC37: =SUM(AA37:AB37) -> 25 | AD37: =AA37/AC37 -> 0.52 | AE37: =AB37/AC37 -> 0.48 | AH37: Is there references reported? | AI37: =COUNTIF('peer-reviewed publications IB'!AK$5:AK$84,"yes") -> 80 | AJ37: =COUNTIF('peer-reviewed publications IB'!AK$5:AK$84,"no") -> 0 | AK37: =SUM(AI37:AJ37) -> 80 | AL37: =AI37/AK37 -> 1 | AM37: =AJ37/AK37 -> 0 | AP37: Is there references reported? | AQ37: =COUNTIF('peer-reviewed publications pub'!$AK$5:$AK$84,"yes") -> 80 | AR37: =COUNTIF('peer-reviewed publications pub'!$AK$5:$AK$84,"no") -> 0 | AS37: =SUM(AQ37:AR37) -> 80 | AT37: =AQ37/AS37 -> 1 | AU37: =AR37/AS37 -> 0 | AX37: Is there references reported? | AY37: =COUNTIF('First in man trials'!$AL$5:$AL$695,"yes") -> 13 | AZ37: =COUNTIF('First in man trials'!$AL$5:$AL$695,"no") -> 17 | BA37: =SUM(AY37:AZ37) -> 30 | BB37: =AY37/BA37 -> 0.4333333333 | BC37: =AZ37/BA37 -> 0.5666666667
B38: If yes, what type of references? | J38: If yes, what type of references? | R38: If yes, what type of references? | Z38: If yes, what type of references? | AH38: If yes, what type of references? | AI38: =COUNTIF('peer-reviewed publications IB'!AL$5:AL$84,"yes") -> 0 | AJ38: =COUNTIF('peer-reviewed publications IB'!AL$5:AL$84,"no") -> 0 | AP38: If yes, what type of references? | AQ38: =COUNTIF('peer-reviewed publications pub'!$AL$5:$AL$84,"yes") -> 0 | AR38: =COUNTIF('peer-reviewed publications pub'!$AL$5:$AL$84,"no") -> 0 | AX38: If yes, what type of references?
A39: Inferential statistics | B39: Is effect size reported? | C39: =COUNTIF('Coding matrix'!$AO$5:$AO$735,"yes") -> 211 | D39: =COUNTIF('Coding matrix'!$AO$5:$AO$735,"no") -> 497 | E39: 708 | F39: 0.2980225989 | G39: 0.7019774011 | H39: 16 | I39: =16/91 -> 0.1758241758 | J39: Is effect size reported? | K39: =COUNTIF('Coding matrix'!$AO$5:$AO$695,"yes") -> 188 | L39: =COUNTIF('Coding matrix'!$AO$5:$AO$695,"no") -> 480 | M39: =SUM(K39:L39) -> 668 | N39: =K39/M39 -> 0.2814371257 | O39: =L39/M39 -> 0.7185628743 | P39: 16 | Q39: =16/91 -> 0.1758241758 | R39: Is effect size reported? | S39: =COUNTIF('Coding matrix'!$AO$696:$AO$710,"yes") -> 7 | T39: =COUNTIF('Coding matrix'!$AO$696:$AO$710,"no") -> 8 | U39: =SUM(S39:T39) -> 15 | V39: =S39/U39 -> 0.4666666667 | W39: =T39/U39 -> 0.5333333333 | X39: 16 | Y39: =16/91 -> 0.1758241758 | Z39: Is effect size reported? | AA39: =COUNTIF('Coding matrix'!$AO$711:$AO$735,"yes") -> 16 | AB39: =COUNTIF('Coding matrix'!$AO$711:$AO$735,"no") -> 9 | AC39: =SUM(AA39:AB39) -> 25 | AD39: =AA39/AC39 -> 0.64 | AE39: =AB39/AC39 -> 0.36 | AF39: 16 | AG39: =16/91 -> 0.1758241758 | AH39: Is effect size reported? | AI39: =COUNTIF('peer-reviewed publications IB'!AM$5:AM$84,"yes") -> 13 | AJ39: =COUNTIF('peer-reviewed publications IB'!AM$5:AM$84,"no") -> 67 | AK39: =SUM(AI39:AJ39) -> 80 | AL39: =AI39/AK39 -> 0.1625 | AM39: =AJ39/AK39 -> 0.8375 | AN39: 16 | AO39: =16/91 -> 0.1758241758 | AP39: Is effect size reported? | AQ39: =COUNTIF('peer-reviewed publications pub'!$AM$5:$AM$84,"yes") -> 49 | AR39: =COUNTIF('peer-reviewed publications pub'!$AM$5:$AM$84,"no") -> 31 | AS39: =SUM(AQ39:AR39) -> 80 | AT39: =AQ39/AS39 -> 0.6125 | AU39: =AR39/AS39 -> 0.3875 | AV39: 16 | AW39: =16/91 -> 0.1758241758 | AX39: Is effect size reported? | AY39: =COUNTIF('First in man trials'!$AN$5:$AN$695,"yes") -> 14 | AZ39: =COUNTIF('First in man trials'!$AN$5:$AN$695,"no") -> 16 | BA39: =SUM(AY39:AZ39) -> 30 | BB39: =AY39/BA39 -> 0.4666666667 | BC39: =AZ39/BA39 -> 0.5333333333 | BD39: 16 | BE39: =16/91 -> 0.1758241758
B40: Is significant value reported? | C40: =COUNTIF('Coding matrix'!$AP$5:$AP$735,"yes") -> 161 | D40: =COUNTIF('Coding matrix'!$AP$5:$AP$735,"no") -> 547 | E40: 708 | F40: 0.2274011299 | G40: 0.7725988701 | H40: =91-H39 -> 75 | I40: =H40/91 -> 0.8241758242 | J40: Is significant value reported? | K40: =COUNTIF('Coding matrix'!$AP$5:$AP$695,"yes") -> 139 | L40: =COUNTIF('Coding matrix'!$AP$5:$AP$695,"no") -> 529 | M40: 668 | N40: 0.2080838323 | O40: 0.7919161677 | P40: =91-P39 -> 75 | Q40: =P40/91 -> 0.8241758242 | R40: Is significant value reported? | S40: =COUNTIF('Coding matrix'!$AP$696:$AP$710,"yes") -> 8 | T40: =COUNTIF('Coding matrix'!$AP$696:$AP$710,"no") -> 7 | U40: 15 | V40: 0.5333333333 | W40: 0.4666666667 | X40: =91-X39 -> 75 | Y40: =X40/91 -> 0.8241758242 | Z40: Is significant value reported? | AA40: =COUNTIF('Coding matrix'!$AP$711:$AP$735,"yes") -> 14 | AB40: =COUNTIF('Coding matrix'!$AP$711:$AP$735,"no") -> 11 | AC40: 25 | AD40: 0.56 | AE40: 0.44 | AF40: =91-AF39 -> 75 | AG40: =AF40/91 -> 0.8241758242 | AH40: Is significant value reported? | AI40: =COUNTIF('peer-reviewed publications IB'!AN$5:AN$84,"yes") -> 11 | AJ40: =COUNTIF('peer-reviewed publications IB'!AN$5:AN$84,"no") -> 69 | AK40: 80 | AL40: 0.1375 | AM40: 0.8625 | AN40: =91-AN39 -> 75 | AO40: =AN40/91 -> 0.8241758242 | AP40: Is significant value reported? | AQ40: =COUNTIF('peer-reviewed publications pub'!$AN$5:$AN$84,"yes") -> 61 | AR40: =COUNTIF('peer-reviewed publications pub'!$AN$5:$AN$84,"no") -> 19 | AS40: 80 | AT40: 0.7625 | AU40: 0.2375 | AV40: =91-AV39 -> 75 | AW40: =AV40/91 -> 0.8241758242 | AX40: Is significant value reported? | AY40: =COUNTIF('First in man trials'!$AO$5:$AO$695,"yes") -> 17 | AZ40: =COUNTIF('First in man trials'!$AO$5:$AO$695,"no") -> 13 | BA40: 30 | BB40: 0.5666666667 | BC40: 0.4333333333 | BD40: =91-BD39 -> 75 | BE40: =BD40/91 -> 0.8241758242
B41: Was the investigation positive, inconclusive or negative? | C41: =COUNTIF('Coding matrix'!AQ5:AQ735,"positive") -> 636 | D41: =COUNTIF('Coding matrix'!AQ5:AQ735,"negative") -> 43 | E41: =COUNTIF('Coding matrix'!AQ5:AQ695,"inconclusive") -> 29 | F41: =SUM(C41:E41) -> 708 | J41: Was the investigation positive, inconclusive or negative? | K41: =COUNTIF('Coding matrix'!$AQ$5:$AQ$695,"positive") -> 596 | L41: =COUNTIF('Coding matrix'!$AQ$5:$AQ$695,"inconclusive") -> 29 | M41: =COUNTIF('Coding matrix'!$AQ$5:$AQ$695,"negative") -> 43 | N41: =SUM(K41:M41) -> 668 | R41: Was the investigation positive, inconclusive or negative? | S41: =COUNTIF('Coding matrix'!$AQ$696:$AQ$710,"positive") -> 15 | T41: =COUNTIF('Coding matrix'!$AQ$696:$AQ$710,"negative") -> 0 | U41: =COUNTIF('Coding matrix'!$AQ$696:$AQ$710,"inconclusive") -> 0 | V41: =SUM(S41:U41) -> 15 | Z41: Was the investigation positive, inconclusive or negative? | AA41: =COUNTIF('Coding matrix'!$AQ$711:$AQ$735,"positive") -> 25 | AB41: =COUNTIF('Coding matrix'!$AQ$711:$AQ$735,"negative") -> 0 | AC41: =COUNTIF('Coding matrix'!$AQ$711:$AQ$735,"inconclusive") -> 0 | AD41: =SUM(AA41:AC41) -> 25 | AH41: Was the investigation positive, inconclusive or negative? | AI41: =COUNTIF('peer-reviewed publications IB'!AO$5:AO$84,"positive") -> 78 | AJ41: =COUNTIF('peer-reviewed publications IB'!AO$5:AO$84,"negative") -> 0 | AK41: =COUNTIF('peer-reviewed publications IB'!AO$5:AO$84,"inconclusive") -> 2 | AL41: =SUM(AI41:AK41) -> 80 | AP41: Was the investigation positive, inconclusive or negative? | AQ41: =COUNTIF('peer-reviewed publications pub'!$AO$5:$AO$84,"positive") -> 77 | AR41: =COUNTIF('peer-reviewed publications pub'!$AO$5:$AO$84,"negative") -> 0 | AS41: =COUNTIF('peer-reviewed publications pub'!$AO$5:$AO$84,"inconclusive") -> 3 | AT41: =SUM(AQ41:AS41) -> 80 | AX41: Was the investigation positive, inconclusive or negative? | AY41: =COUNTIF('First in man trials'!$AP$5:$AP$695,"positive") -> 30 | AZ41: =COUNTIF('First in man trials'!$AP$5:$AP$695,"inconclusive") -> 0 | BA41: =COUNTIF('First in man trials'!$AP$5:$AP$695,"negative") -> 0 | BB41: =SUM(AY41:BA41) -> 30
C42: positive | D42: negative | E42: inconclusive | K42: positive | L42: negative | M42: inconclusive | S42: positive | T42: negative | U42: inconclusive | AA42: positive | AB42: negative | AC42: inconclusive | AI42: positive | AJ42: negative | AK42: inconclusive | AQ42: positive | AR42: negative | AS42: inconclusive | AY42: positive | AZ42: negative | BA42: inconclusive
C43: =C41/$F41 -> 0.8983050847 | D43: =D41/$F41 -> 0.06073446328 | E43: =E41/$F41 -> 0.04096045198 | K43: =K41/$N41 -> 0.8922155689 | L43: =L41/$N41 -> 0.04341317365 | M43: 0.06437125749 | S43: =S41/$V41 -> 1 | T43: =T41/$F41 -> 0 | U43: =U41/$F41 -> 0 | AA43: =AA41/$AD41 -> 1 | AB43: =AB41/$AD41 -> 0 | AC43: =AC41/$AD41 -> 0 | AI43: =AI41/$AL41 -> 0.975 | AJ43: =AJ41/$AL41 -> 0 | AK43: 0.025 | AQ43: =AQ41/$AL41 -> 0.9625 | AR43: =AR41/$AL41 -> 0 | AS43: 0.0375 | AY43: =AY41/$N41 -> 0.04491017964 | AZ43: =AZ41/$N41 -> 0 | BA43: 0
B44: neither effect size nor significance value reported? | C44: =SUM(BH:BH) -> 0 | D44: =C44/E40 -> 0 | E44: =COUNTIFS('Coding matrix'!AU5:AU732,"no") -> 22 | F44: =E44/E35 -> 0.2417582418 | J44: neither effect size nor significance value reported? | K44: =SUM(BL:BL) -> 0 | L44: =K44/M40 -> 0 | R44: neither effect size nor significance value reported? | S44: =SUM(BT:BT) -> 0 | T44: =S44/U40 -> 0 | Z44: neither effect size nor significance value reported? | AA44: =SUM(CB:CB) -> 0 | AB44: =AA44/AC40 -> 0 | AH44: neither effect size nor significance value reported? | AI44: =SUM(CJ:CJ) -> 0 | AJ44: =AI44/AK40 -> 0 | AP44: neither effect size nor significance value reported? | AQ44: =SUM(CR:CR) -> 0 | AR44: =AQ44/AS40 -> 0 | AX44: neither effect size nor significance value reported? | AY44: =SUM(CZ:CZ) -> 0 | AZ44: =AY44/BA40 -> 0
B45: effect size and/or significance value reported | C45: =E40-C44 -> 708 | D45: =C45/E40 -> 1 | E45: =91-E44 -> 69 | F45: =E45/E35 -> 0.7582417582 | J45: effect size and/or significance value reported | K45: =M40-K44 -> 668 | L45: =K45/M40 -> 1 | R45: effect size and/or significance value reported | S45: =U40-S44 -> 15 | T45: =S45/U40 -> 1 | Z45: effect size and/or significance value reported | AA45: =AC40-AA44 -> 25 | AB45: =AA45/AC40 -> 1 | AH45: effect size and/or significance value reported | AI45: =AK40-AI44 -> 80 | AJ45: =AI45/AK40 -> 1 | AP45: effect size and/or significance value reported | AQ45: =AS40-AQ44 -> 80 | AR45: =AQ45/AS40 -> 1 | AX45: effect size and/or significance value reported | AY45: =BA40-AY44 -> 30 | AZ45: =AY45/BA40 -> 1
B46: "positive" without effect size or significance value | C46: =SUM(BI:BI) -> 0 | D46: =C46/E40 -> 0 | J46: "positive" without effect size or significance value | K46: =SUM(BM:BM) -> 0 | L46: =K46/M40 -> 0 | R46: "positive" without effect size or significance value | S46: =SUM(BU:BU) -> 0 | T46: =S46/U40 -> 0 | Z46: "positive" without effect size or significance value | AA46: =SUM(CC:CC) -> 0 | AB46: =AA46/AC40 -> 0 | AH46: "positive" without effect size or significance value | AI46: =SUM(CK:CK) -> 0 | AJ46: =AI46/AK40 -> 0 | AP46: "positive" without effect size or significance value | AQ46: =SUM(CS:CS) -> 0 | AR46: =AQ46/AS40 -> 0 | AX46: "positive" without effect size or significance value | AY46: =SUM(DA:DA) -> 0 | AZ46: =AY46/BA40 -> 0
B47: "negative" without effect size or significance value | C47: =SUM(BF:BF) -> 0 | D47: =C47/E40 -> 0 | J47: "negative" without effect size or significance value | K47: =SUM(BN:BN) -> 0 | L47: =K47/M40 -> 0 | R47: "negative" without effect size or significance value | S47: =SUM(BV:BV) -> 0 | T47: =S47/U40 -> 0 | Z47: "negative" without effect size or significance value | AA47: =SUM(CD:CD) -> 0 | AB47: =AA47/AC40 -> 0 | AH47: "negative" without effect size or significance value | AI47: =SUM(CL:CL) -> 0 | AJ47: =AI47/AK40 -> 0 | AP47: "negative" without effect size or significance value | AQ47: =SUM(CT:CT) -> 0 | AR47: =AQ47/AS40 -> 0 | AX47: "negative" without effect size or significance value | AY47: =SUM(DB:DB) -> 0 | AZ47: =AY47/BA40 -> 0
B48: "unclear" without effect size or significance value | C48: =SUM(BG:BG) -> 0 | D48: =C48/E40 -> 0 | J48: "unclear" without effect size or significance value | K48: =SUM(BO:BO) -> 0 | L48: =K48/M40 -> 0 | R48: "unclear" without effect size or significance value | S48: =SUM(BW:BW) -> 0 | T48: =S48/U40 -> 0 | Z48: "unclear" without effect size or significance value | AA48: =SUM(CE:CE) -> 0 | AB48: =AA48/AC40 -> 0 | AH48: "unclear" without effect size or significance value | AI48: =SUM(CM:CM) -> 0 | AJ48: =AI48/AK40 -> 0 | AP48: "unclear" without effect size or significance value | AQ48: =SUM(CU:CU) -> 0 | AR48: =AQ48/AS40 -> 0 | AX48: "unclear" without effect size or significance value | AY48: =SUM(DC:DC) -> 0 | AZ48: =AY48/BA40 -> 0
D49: =SUM(D46:D48) -> 0 | L49: =SUM(L46:L48) -> 0 | T49: =SUM(T46:T48) -> 0 | AB49: =SUM(AB46:AB48) -> 0 | AJ49: =SUM(AJ46:AJ48) -> 0 | AR49: =SUM(AR46:AR48) -> 0 | AZ49: =SUM(AZ46:AZ48) -> 0
C53: =SUM(C46:C47) -> 0 | D53: =C53/E37 -> 0
A58: Ibs | B58: 12 | C58: =B58/E35 -> 0.1318681319 | E58: =E35-B58 -> 79 | F58: =E58/E35 -> 0.8681318681
A59: PCES | B59: 40 | C59: =B59/E39 -> 0.05649717514 | E59: =E39-B59 -> 668 | F59: =E59/E40 -> 0.9435028249
A67: no replication (any type) | B67: ='Coding matrix'!$BH$738 -> 15 | C67: =B67/E35 -> 0.1648351648
A68: any replication | B68: =E35-B67 -> 76 | C68: =B68/E35 -> 0.8351648352
BG1258: =COUNTIFS('Coding matrix'!AO1234,"no",'Coding matrix'!AP1234,"no",'Coding matrix'!AQ1234,"unclear") -> 0
BG1259: =COUNTIFS('Coding matrix'!AO1235,"no",'Coding matrix'!AP1235,"no",'Coding matrix'!AQ1235,"unclear") -> 0

Sheet Distribution data
A1: Please note: Some rows in this table might have been deleted due to confidentiality reasons!
A2: IB | B2: Phase | C2: Number of in vivo efficacy studies | F2: First in man? | G2: First in man`?
A3: IB1 | B3: Phase 2 | C3: 0 | G3: =COUNTIFS(F3,"Yes") -> 0 | H3: =COUNTIFS(F3,"*") -> 0 | I3: =COUNTIFS(F3,"No") -> 0
A4: IB2 | B4: Phase 2 | C4: 4 | D4: a | E4: 0.4117647059 | F4: No | G4: 0 | H4: 1 | I4: 1 | J4: IB7 | N4: 15 | O4: 16 | P4: 18 | Q4: 31 | R4: 4 | S4: 3 | T4: 13 | U4: 6 | V4: =SUM(N4:U5) -> 213 | W4: =668-V4 -> 455 | AO4: Total | AQ4: Evaluated | AR4: Phase | AS4: Number of PCES | AT4: 1.96
A5: IB3 | B5: Phase 1 | C5: 2 | D5: a | E5: 0.3787878788 | F5: Yes | G5: 1 | H5: 1 | I5: 0 | J5: IB12 | N5: 20 | O5: 28 | P5: 14 | Q5: 5 | R5: 8 | S5: 32 | AO5: IB001 | AP5: Phase 2 | AS5: 0 | AT5: IB2 | AU5: 2 | AV5: Anti-neoplastic & immune-modulating agents | AW5: efficacy | AX5: =COUNTIF(AT:AT,"IB1") -> 1
A6: IB4 | B6: Phase 2 | C6: 21 | D6: d | E6: 0.299719888 | F6: No | G6: 0 | H6: 1 | I6: 1 | J6: IB15 | AO6: IB002 | AP6: Phase 2 | AQ6: IB002 | AR6: Phase 2 | AS6: 4 | AT6: IB2 | AU6: 2 | AV6: Anti-neoplastic & immune-modulating agents | AW6: efficacy | AX6: =COUNTIF(AT:AT,"IB2") -> 4
A7: IB5 | B7: Phase 1 b | C7: 2 | D7: a | E7: 0.1764705882 | F7: No | G7: 0 | H7: 1 | I7: 1 | J7: IB21 | AO7: IB003 | AP7: Phase 1 | AQ7: IB003 | AR7: Phase 1 | AS7: 2 | AT7: IB2 | AU7: 2 | AV7: Anti-neoplastic & immune-modulating agents | AW7: efficacy | AX7: =COUNTIF(AT:AT,"IB3") -> 2
A8: IB6 | B8: Phase 1 | C8: 11 | D8: c | E8: 0.4385026738 | F8: No | G8: 0 | H8: 1 | I8: 1 | J8: IB22 | AO8: IB004 | AP8: Phase 2 | AQ8: IB004 | AR8: Phase 2 | AS8: 21 | AT8: IB2 | AU8: 2 | AV8: Anti-neoplastic & immune-modulating agents | AW8: efficacy | AX8: =COUNTIF(AT:AT,"IB4") -> 21
A9: IB7 | B9: Phase 1 | C9: 15 | D9: c | E9: 0.3764705882 | F9: No | G9: 0 | H9: 1 | I9: 1 | AO9: IB005 | AP9: Phase 1 b | AQ9: IB005 | AR9: Phase 1 b | AS9: 2 | AT9: IB3 | AU9: 1 | AV9: Blood product & biotech | AW9: efficacy | AX9: =COUNTIF(AT:AT,"IB5") -> 2
A10: IB8 | B10: Phase 1 | C10: 2 | D10: a | E10: 0.4705882353 | F10: No | G10: 0 | H10: 1 | I10: 1 | AO10: IB006 | AP10: Phase 1 | AQ10: IB006 | AR10: Phase 1 | AS10: 11 | AT10: IB3 | AU10: 1 | AV10: Blood product & biotech | AW10: efficacy | AX10: =COUNTIF(AT:AT,"IB6") -> 11
A11: IB9 | B11: Phase 1 / 2 a | C11: 4 | D11: a | E11: 0.5294117647 | F11: No | G11: 0 | H11: 1 | I11: 1 | AO11: IB007 | AP11: Phase 1 | AQ11: IB007 | AR11: Phase 1 | AS11: 15 | AT11: IB4 | AU11: 2 | AV11: Respiratory system | AW11: efficacy | AX11: =COUNTIF(AT:AT,"IB7") -> 15
A12: IB10 | B12: Phase 1 b | C12: 6 | D12: b | E12: 0.3970588235 | F12: No | G12: 0 | H12: 1 | I12: 1 | AO12: IB008 | AP12: Phase 1 | AQ12: IB008 | AR12: Phase 1 | AS12: 2 | AT12: IB4 | AU12: 2 | AV12: Respiratory system | AW12: efficacy | AX12: =COUNTIF(AT:AT,"IB8") -> 2
A13: IB11 | B13: Phase 1 b / 2 | C13: 8 | D13: b | E13: 0.4705882353 | F13: No | G13: 0 | H13: 1 | I13: 1 | AO13: IB009 | AP13: Phase 1 / 2 a | AQ13: IB009 | AR13: Phase 1 / 2 a | AS13: 4 | AT13: IB4 | AU13: 2 | AV13: Respiratory system | AW13: efficacy | AX13: =COUNTIF(AT:AT,"IB9") -> 4
A14: IB12 | B14: Phase 2 | C14: 20 | D14: d | E14: 0.4411764706 | F14: No | G14: 0 | H14: 1 | I14: 1 | AO14: IB010 | AP14: Phase 1 b | AQ14: IB010 | AR14: Phase 1 b | AS14: 6 | AT14: IB4 | AU14: 2 | AV14: Respiratory system | AW14: efficacy | AX14: =COUNTIF(AT:AT,"IB10") -> 6
A15: IB13 | B15: Phase 2 | C15: 4 | D15: a | E15: 0.3794117647 | F15: No | G15: 0 | H15: 1 | I15: 1 | AO15: IB011 | AP15: Phase 1 b / 2 | AQ15: IB011 | AR15: Phase 1 b / 2 | AS15: 8 | AT15: IB4 | AU15: 2 | AV15: Respiratory system | AW15: efficacy | AX15: =COUNTIF(AT:AT,"IB11") -> 8
A16: IB14 | B16: Phase 2 | C16: 2 | D16: a | E16: 0.2941176471 | F16: No | G16: 0 | H16: 1 | I16: 1 | AO16: IB012 | AP16: Phase 2 | AQ16: IB012 | AR16: Phase 2 | AS16: 20 | AT16: IB4 | AU16: 2 | AV16: Respiratory system | AW16: efficacy | AX16: =COUNTIF(AT:AT,"IB12") -> 20
A17: IB15 | B17: Phase 2 | C17: 16 | D17: d | E17: 0.4154411765 | F17: No | G17: 0 | H17: 1 | I17: 1 | J17: IB29 | AO17: IB013 | AP17: Phase 2 | AQ17: IB013 | AR17: Phase 2 | AS17: 4 | AT17: IB4 | AU17: 2 | AV17: Respiratory system | AW17: efficacy | AX17: =COUNTIF(AT:AT,"IB13") -> 4
A18: IB16 | B18: Phase 2 | C18: 0 | G18: 0 | H18: 0 | I18: 0 | J18: IB31 | AO18: IB014 | AP18: Phase 2 | AQ18: IB014 | AR18: Phase 2 | AS18: 2 | AT18: IB4 | AU18: 2 | AV18: Respiratory system | AW18: efficacy | AX18: =COUNTIF(AT:AT,"IB14") -> 2
A19: IB17 | B19: Phase 2 | C19: 7 | D19: b | E19: 0.5798319328 | F19: No | G19: 0 | H19: 1 | I19: 1 | J19: IB49 | AO19: IB015 | AP19: Phase 2 | AQ19: IB015 | AR19: Phase 2 | AS19: 16 | AT19: IB4 | AU19: 2 | AV19: Respiratory system | AW19: efficacy | AX19: =COUNTIF(AT:AT,"IB15") -> 16
A20: IB18 | B20: Phase 2 | C20: 11 | D20: c | E20: 0.6363636364 | F20: No | G20: 0 | H20: 1 | I20: 1 | AO20: IB016 | AP20: Phase 2 | AS20: 0 | AT20: IB4 | AU20: 2 | AV20: Respiratory system | AW20: efficacy | AX20: =COUNTIF(AT:AT,"IB16") -> 1
A21: IB19 | B21: Phase 2 | C21: 1 | D21: a | E21: 0.4117647059 | F21: No | G21: 0 | H21: 1 | I21: 1 | AO21: IB017 | AP21: Phase 2 | AQ21: IB017 | AR21: Phase 2 | AS21: 7 | AT21: IB4 | AU21: 2 | AV21: Respiratory system | AW21: efficacy | AX21: =COUNTIF(AT:AT,"IB17") -> 7
A22: IB20 | B22: Phase 2 | C22: 16 | D22: d | E22: 0.4963235294 | F22: No | G22: 0 | H22: 1 | I22: 1 | M22: Number of preclinical studies extracted from the IBs | AO22: IB018 | AP22: Phase 2 | AQ22: IB018 | AR22: Phase 2 | AS22: 11 | AT22: IB4 | AU22: 2 | AV22: Respiratory system | AW22: efficacy | AX22: =COUNTIF(AT:AT,"IB18") -> 11
A23: IB21 | B23: Phase 2 | C23: 18 | D23: d | E23: 0.4575163399 | F23: No | G23: 0 | H23: 1 | I23: 1 | AO23: IB019 | AP23: Phase 2 | AQ23: IB019 | AR23: Phase 2 | AS23: 1 | AT23: IB4 | AU23: 2 | AV23: Respiratory system | AW23: efficacy | AX23: =COUNTIF(AT:AT,"IB19") -> 1
A24: IB22 | B24: Phase 2 | C24: 28 | D24: d | E24: 0.4831932773 | F24: No | G24: 0 | H24: 1 | I24: 1 | AO24: IB020 | AP24: Phase 2 | AQ24: IB020 | AR24: Phase 2 | AS24: 16 | AT24: IB4 | AU24: 2 | AV24: Respiratory system | AW24: efficacy | AX24: =COUNTIF(AT:AT,"IB20") -> 16
A25: IB23 | B25: Phase 2 | C25: 28 | D25: d | E25: 0.5336134454 | F25: No | G25: 0 | H25: 1 | I25: 1 | AO25: IB021 | AP25: Phase 2 | AQ25: IB021 | AR25: Phase 2 | AS25: 18 | AT25: IB4 | AU25: 2 | AV25: Respiratory system | AW25: efficacy | AX25: =COUNTIF(AT:AT,"IB21") -> 18
A26: IB24 | B26: Phase 2 | C26: 4 | D26: a | E26: 0.5147058824 | F26: No | G26: 0 | H26: 1 | I26: 1 | AO26: IB022 | AP26: Phase 2 | AQ26: IB022 | AR26: Phase 2 | AS26: 28 | AT26: IB4 | AU26: 2 | AV26: Respiratory system | AW26: efficacy | AX26: =COUNTIF(AT:AT,"IB22") -> 28
A27: IB25 | B27: Phase 2 | C27: 11 | D27: c | E27: 0.4278074866 | F27: No | G27: 0 | H27: 1 | I27: 1 | AO27: IB023 | AP27: Phase 2 | AQ27: IB023 | AR27: Phase 2 | AS27: 28 | AT27: IB4 | AU27: 2 | AV27: Respiratory system | AW27: efficacy | AX27: =COUNTIF(AT:AT,"IB23") -> 28
A28: IB26 | B28: Phase 2 | C28: 4 | D28: a | E28: 0.5588235294 | F28: No | G28: 0 | H28: 1 | I28: 1 | AO28: IB024 | AP28: Phase 2 | AQ28: IB024 | AR28: Phase 2 | AS28: 4 | AT28: IB4 | AU28: 2 | AV28: Respiratory system | AW28: efficacy | AX28: =COUNTIF(AT:AT,"IB24") -> 4
A29: IB27 | B29: Phase 2 | C29: 3 | D29: a | E29: 0.2156862745 | F29: No | G29: 0 | H29: 1 | I29: 1 | AO29: IB025 | AP29: Phase 2 | AQ29: IB025 | AR29: Phase 2 | AS29: 11 | AT29: IB4 | AU29: 2 | AV29: Respiratory system | AW29: efficacy | AX29: =COUNTIF(AT:AT,"IB25") -> 11
A30: IB28 | B30: Phase 2 | C30: 7 | D30: b | E30: 0.4957983193 | F30: No | G30: 0 | H30: 1 | I30: 1 | AO30: IB026 | AP30: Phase 2 | AQ30: IB026 | AR30: Phase 2 | AS30: 4 | AT30: IB4 | AU30: 2 | AV30: Respiratory system | AW30: efficacy | AX30: =COUNTIF(AT:AT,"IB26") -> 4
A31: IB29 | B31: Phase 2 | C31: 14 | D31: c | E31: 0.2941176471 | F31: No | G31: 0 | H31: 1 | I31: 1 | AO31: IB027 | AP31: Phase 2 | AQ31: IB027 | AR31: Phase 2 | AS31: 3 | AT31: IB4 | AU31: 2 | AV31: Respiratory system | AW31: efficacy | AX31: =COUNTIF(AT:AT,"IB27") -> 3
A32: IB30 | B32: Phase 2 | C32: 11 | D32: c | E32: 0.4331550802 | F32: No | G32: 0 | H32: 1 | I32: 1 | J32: IB54 | AO32: IB028 | AP32: Phase 2 | AQ32: IB028 | AR32: Phase 2 | AS32: 7 | AT32: IB5 | AU32: 1b | AV32: Respiratory system | AW32: efficacy | AX32: =COUNTIF(AT:AT,"IB28") -> 7
A33: IB31 | B33: Phase 2 | C33: 5 | D33: a | E33: 0.5529411765 | F33: No | G33: 0 | H33: 1 | I33: 1 | J33: IB63 | AO33: IB029 | AP33: Phase 2 | AQ33: IB029 | AR33: Phase 2 | AS33: 14 | AT33: IB5 | AU33: 1b | AV33: Respiratory system | AW33: efficacy | AX33: =COUNTIF(AT:AT,"IB29") -> 14
A34: IB32 | B34: Phase 2 | C34: 0 | G34: 0 | H34: 0 | I34: 0 | J34: IB77 | AO34: IB030 | AP34: Phase 2 | AQ34: IB030 | AR34: Phase 2 | AS34: 11 | AT34: IB6 | AU34: 1 | AV34: Blood product & biotech | AW34: efficacy | AX34: =COUNTIF(AT:AT,"IB30") -> 11
A35: IB33 | B35: Phase 2 | C35: 0 | G35: =COUNTIFS(F35,"Yes") -> 0 | H35: =COUNTIFS(F35,"*") -> 0 | I35: =COUNTIFS(F35,"No") -> 0 | AO35: IB031 | AP35: Phase 2 | AQ35: IB031 | AR35: Phase 2 | AS35: 5 | AT35: IB6 | AU35: 1 | AV35: Blood product & biotech | AW35: efficacy | AX35: =COUNTIF(AT:AT,"IB31") -> 5
A36: IB34 | B36: Phase 2 a | C36: 1 | D36: a | E36: 0.3235294118 | F36: No | G36: 0 | H36: 1 | I36: 1 | AO36: IB032 | AP36: Phase 2 | AS36: 0 | AT36: IB6 | AU36: 1 | AV36: Blood product & biotech | AW36: efficacy | AX36: =COUNTIF(AT:AT,"IB32") -> 1
A37: IB35 | B37: Phase 2 a | C37: 8 | D37: b | E37: 0.3602941176 | F37: No | G37: 0 | H37: 1 | I37: 1 | J37: IB79 | AO37: IB033 | AP37: Phase 2 | AS37: 0 | AT37: IB6 | AU37: 1 | AV37: Blood product & biotech | AW37: efficacy | AX37: =COUNTIF(AT:AT,"IB33") -> 1
A38: IB36 | B38: Phase 2 a | C38: 8 | D38: b | E38: 0.5441176471 | F38: No | G38: 0 | H38: 1 | I38: 1 | J38: IB84 | AO38: IB034 | AP38: Phase 2 a | AQ38: IB034 | AR38: Phase 2 a | AS38: 1 | AT38: IB6 | AU38: 1 | AV38: Blood product & biotech | AW38: efficacy | AX38: =COUNTIF(AT:AT,"IB34") -> 1
A39: IB37 | B39: Phase 3 | C39: 0 | G39: 0 | H39: 0 | I39: 0 | AO39: IB035 | AP39: Phase 2 a | AQ39: IB035 | AR39: Phase 2 a | AS39: 8 | AT39: IB6 | AU39: 1 | AV39: Blood product & biotech | AW39: efficacy | AX39: =COUNTIF(AT:AT,"IB35") -> 8
A40: IB38 | B40: Phase 3 | C40: 0 | G40: 0 | H40: 0 | I40: 0 | AO40: IB036 | AP40: Phase 2 a | AQ40: IB036 | AR40: Phase 2 a | AS40: 8 | AT40: IB6 | AU40: 1 | AV40: Blood product & biotech | AW40: efficacy | AX40: =COUNTIF(AT:AT,"IB36") -> 8
A41: IB039 | B41: Phase 2 | C41: 0 | G41: 0 | H41: 0 | I41: 0 | J41: IB87 | AO41: IB037 | AP41: Phase 3 | AS41: 0 | AT41: IB6 | AU41: 1 | AV41: Blood product & biotech | AW41: efficacy | AX41: =COUNTIF(AT:AT,"IB37") -> 1
A42: IB040 | B42: Phase 2 | C42: 6 | D42: b | E42: 0.4607843137 | F42: No | G42: 0 | H42: 1 | I42: 1 | AO42: IB038 | AP42: Phase 3 | AS42: 0 | AT42: IB6 | AU42: 1 | AV42: Blood product & biotech | AW42: efficacy | AX42: =COUNTIF(AT:AT,"IB38") -> 1
A43: IB041 | B43: Phase 2 b | C43: 0 | G43: 0 | H43: 0 | I43: 0 | J43: IB91 | O43: von 91 | Q43: von 109 | AO43: IB039 | AP43: Phase 2 | AT43: IB6 | AU43: 1 | AV43: Blood product & biotech | AW43: efficacy | AX43: =COUNTIF(AT:AT,"IB39") -> 1
G44: 0 | H44: 0 | I44: 0 | M44: Sum | O44: =SUM(C3:C107) -> 668 | AO44: IB040 | AP44: Phase 2 | AQ44: IB040 | AR44: Phase 2 | AS44: 6 | AT44: IB6 | AU44: 1 | AV44: Blood product & biotech | AW44: efficacy | AX44: =COUNTIF(AT:AT,"IB40") -> 6
A45: IB043 | B45: Phase 1 | C45: 5 | D45: a | E45: 0.6705882353 | F45: Yes | G45: 1 | H45: 1 | I45: 0 | M45: median | O45: =MEDIAN(C4:C17,C19:C33,C36:C38,C42,C44:C46,C48,C50:C51,C52:C56,C57:C59,C61,C64:C67,C68,C71:C72,C74:C75,C77:C79,C81:C82,C84,C86:C94,C96,C99:C100,C101,C104:C119) -> 6 | Q45: =MEDIAN(C3:C119) -> 5 | R45: =_xlfn.STDEV.P(C3:C119) -> 6.666151387 | AO45: IB041 | AP45: Phase 2 b | AT45: IB7 | AU45: 1 | AV45: Blood product & biotech | AW45: efficacy | AX45: =COUNTIF(AT:AT,"IB41") -> 1
A46: IB044 | B46: Phase 1 / 2 | C46: 3 | D46: a | E46: 0.4901960784 | F46: No | G46: 0 | H46: 1 | I46: 1 | M46: Average | O46: =AVERAGE(C4:C17,C19:C33,C36:C38,C42,C44:C46,C48,C50:C59,C61,C64:C68,C71:C72,C74:C75,C77:C79,C81:C82,C84,C86:C94,C96,C99:C101,C104,C105:C119) -> 7.78021978 | Q46: =AVERAGE(C3:C119) -> 6.103448276 | AO46: IB042 | AP46: Phase 3 | AQ46: IB042 | AR46: Phase 3 | AS46: 2 | AT46: IB7 | AU46: 1 | AV46: Blood product & biotech | AW46: efficacy | AX46: =COUNTIF(AT:AT,"IB42") -> 2
A47: IB045 | B47: Phase 2 b | C47: 0 | G47: 0 | H47: 0 | I47: 0 | L47: a | M47: 1-5 | O47: 45 | P47: =O47/O$52 -> 0.4945054945 | Q47: =O47/109 -> 0.4128440367 | S47: =SUM(O48:O49)/O52 -> 0.3956043956 | AO47: IB043 | AP47: Phase 1 | AQ47: IB043 | AR47: Phase 1 | AS47: 5 | AT47: IB7 | AU47: 1 | AV47: Blood product & biotech | AW47: efficacy | AX47: =COUNTIF(AT:AT,"IB43") -> 5
A48: IB046 | B48: unclear | C48: 7 | D48: b | E48: 0.4201680672 | F48: Yes | G48: 1 | H48: 1 | I48: 0 | L48: b | M48: 6-10 | O48: 21 | P48: =O48/O$52 -> 0.2307692308 | Q48: =O48/109 -> 0.1926605505 | S48: =SUM(O50:O51)/O52 -> 0.1098901099 | AO48: IB044 | AP48: Phase 1 / 2 | AQ48: IB044 | AR48: Phase 1 / 2 | AS48: 3 | AT48: IB7 | AU48: 1 | AV48: Blood product & biotech | AW48: efficacy | AX48: =COUNTIF(AT:AT,"IB44") -> 3
A49: IB047 | B49: Phase 2 | C49: 0 | G49: 0 | H49: 0 | I49: 0 | L49: c | M49: 11-15 | O49: =COUNTIF(D$3:D$107,"c") -> 15 | P49: 0.1648351648 | Q49: 0.1376146789 | AO49: IB045 | AP49: Phase 2 b | AT49: IB7 | AU49: 1 | AV49: Blood product & biotech | AW49: efficacy | AX49: =COUNTIF(AT:AT,"IB45") -> 1
A50: IB048 | B50: Phase 2 | C50: 10 | D50: b | E50: 0.5 | F50: No | G50: 0 | H50: 1 | I50: 1 | L50: d | M50: 16-30 | O50: =COUNTIF(D$3:D$107,"d") -> 8 | P50: 0.08791208791 | Q50: 0.07339449541 | AO50: IB046 | AP50: unclear | AQ50: IB046 | AR50: unclear | AS50: 7 | AT50: IB7 | AU50: 1 | AV50: Blood product & biotech | AW50: efficacy | AX50: =COUNTIF(AT:AT,"IB46") -> 7
A51: IB049 | B51: Phase 2 | C51: 31 | D51: e | E51: 0.2998102467 | F51: No | G51: 0 | H51: 1 | I51: 1 | L51: e | M51: >30 | O51: =COUNTIF(D$3:D$107,"e") -> 2 | P51: 0.02197802198 | Q51: 0.01834862385 | AO51: IB047 | AP51: Phase 2 | AT51: IB7 | AU51: 1 | AV51: Blood product & biotech | AW51: efficacy | AX51: =COUNTIF(AT:AT,"IB47") -> 1
A52: IB050 | B52: Phase 1 / 2 | C52: 3 | D52: a | E52: 0.2941176471 | F52: Yes | G52: 1 | H52: 1 | I52: 0 | O52: =SUM(O47:O51) -> 91 | P52: 1 | Q52: =SUM(Q47:Q51) -> 0.8348623853 | AH52: With PCES | AI52: =COUNTIF('Coding matrix'!AG13:AG703,"efficacy")+COUNTIF('Coding matrix'!AG13:AG703,"unclear") -> 0 | AK52: Numbers | AL52: Percent | AO52: IB048 | AP52: Phase 2 | AQ52: IB048 | AR52: Phase 2 | AS52: 10 | AT52: IB7 | AU52: 1 | AV52: Blood product & biotech | AW52: efficacy | AX52: =COUNTIF(AT:AT,"IB48") -> 10
A53: IB051 | B53: Phase 2 | C53: 2 | D53: a | E53: 0.4705882353 | F53: No | G53: 0 | H53: 1 | I53: 1 | M53: Total | O53: Evaluated | AH53: No PCES | AI53: =COUNTIF('Coding matrix'!AG13:AG703,"no efficacy") -> 0 | AJ53: Phase 1 | AK53: 11 | AL53: 0.1375 | AO53: IB049 | AP53: Phase 2 | AQ53: IB049 | AR53: Phase 2 | AS53: 31 | AT53: IB7 | AU53: 1 | AV53: Blood product & biotech | AW53: efficacy | AX53: =COUNTIF(AT:AT,"IB49") -> 31
A54: IB052 | B54: Phase 1 b | C54: 5 | D54: a | E54: 0.4588235294 | F54: No | G54: 0 | H54: 1 | I54: 1 | O54: Phase | AJ54: Phase 1/2 | AK54: 8 | AL54: 0.1 | AO54: IB050 | AP54: Phase 1 / 2 | AQ54: IB050 | AR54: Phase 1 / 2 | AS54: 3 | AT54: IB7 | AU54: 1 | AV54: Blood product & biotech | AW54: efficacy | AX54: =COUNTIF(AT:AT,"IB50") -> 3
A55: IB053 | B55: Phase 2 | C55: 7 | D55: b | E55: 0.5882352941 | F55: No | G55: 0 | H55: 1 | I55: 1 | M55: Phase 1 | N55: 6 | O55: Phase 1 | P55: 6 | AH55: Single IBss | AI55: =AK58 -> 80 | AJ55: Phase 2 | AK55: 59 | AL55: 0.7375 | AO55: IB051 | AP55: Phase 2 | AQ55: IB051 | AR55: Phase 2 | AS55: 2 | AT55: IB7 | AU55: 1 | AV55: Blood product & biotech | AW55: efficacy | AX55: =COUNTIF(AT:AT,"IB51") -> 2
A56: IB054 | B56: Phase 2 | C56: 4 | D56: a | E56: 0.4117647059 | F56: No | G56: 0 | H56: 1 | I56: 1 | M56: Phase 1 a | N56: 0 | O56: Phase 1 a | P56: 0 | AJ56: Phase 3 | AK56: 1 | AL56: 0.0125 | AO56: IB052 | AP56: Phase 1 b | AQ56: IB052 | AR56: Phase 1 b | AS56: 5 | AT56: IB7 | AU56: 1 | AV56: Blood product & biotech | AW56: efficacy | AX56: =COUNTIF(AT:AT,"IB52") -> 5
A57: IB055 | B57: Phase 2 a / b | C57: 5 | D57: a | E57: 0.3529411765 | F57: No | G57: 0 | H57: 1 | I57: 1 | M57: Phase 1 b | N57: 5 | O57: Phase 1 b | P57: 5 | AJ57: unclear | AK57: 1 | AL57: 0.0125 | AO57: IB053 | AP57: Phase 2 | AQ57: IB053 | AR57: Phase 2 | AS57: 7 | AT57: IB7 | AU57: 1 | AV57: Blood product & biotech | AW57: efficacy | AX57: =COUNTIF(AT:AT,"IB53") -> 7
A58: IB056 | B58: Phase 2 | C58: 2 | D58: a | E58: 0.4117647059 | F58: No | G58: 0 | H58: 1 | I58: 1 | M58: Phase 1 / 2 | N58: 5 | O58: Phase 1 / 2 | P58: 5 | AJ58: Total | AK58: 80 | AL58: 1 | AO58: IB054 | AP58: Phase 2 | AQ58: IB054 | AR58: Phase 2 | AS58: 4 | AT58: IB7 | AU58: 1 | AV58: Blood product & biotech | AW58: efficacy | AX58: =COUNTIF(AT:AT,"IB54") -> 4
A59: IB057 | B59: Phase 2 | C59: 2 | D59: a | E59: 0.2352941176 | F59: No | G59: 0 | H59: 1 | I59: 1 | M59: Phase 1 / 2 a | N59: 1 | O59: Phase 1 / 2 a | P59: 1 | AO59: IB055 | AP59: Phase 2 a / b | AQ59: IB055 | AR59: Phase 2 a / b | AS59: 5 | AT59: IB7 | AU59: 1 | AV59: Blood product & biotech | AW59: efficacy | AX59: =COUNTIF(AT:AT,"IB55") -> 5
A60: IB058 | B60: Phase 2 b | C60: 0 | G60: 0 | H60: 0 | I60: 0 | M60: Phase 1 b / 2 | N60: 1 | O60: Phase 1 b / 2 | P60: 1 | AO60: IB056 | AP60: Phase 2 | AQ60: IB056 | AR60: Phase 2 | AS60: 2 | AT60: IB8 | AU60: 1 | AV60: Respiratory system | AW60: efficacy | AX60: =COUNTIF(AT:AT,"IB56") -> 2
A61: IB059 | B61: Phase 2 | C61: 6 | D61: b | E61: 0.4607843137 | F61: No | G61: 0 | H61: 1 | I61: 1 | M61: Phase 1 b / 2 b | N61: 1 | O61: Phase 1 b / 2 b | P61: 1 | AH61: Total | AJ61: Evaluated | AO61: IB057 | AP61: Phase 2 | AQ61: IB057 | AR61: Phase 2 | AS61: 2 | AT61: IB8 | AU61: 1 | AV61: Respiratory system | AW61: efficacy | AX61: =COUNTIF(AT:AT,"IB57") -> 2
A62: IB060 | B62: Phase 2 a | C62: 0 | G62: 0 | H62: 0 | I62: 0 | M62: Phase 2 | N62: 56 | O62: Phase 2 | P62: 52 | AJ62: Phase | AO62: IB058 | AP62: Phase 2 b | AT62: IB9 | AU62: 1/2a | AV62: Rheumatology | AW62: efficacy | AX62: =COUNTIF(AT:AT,"IB58") -> 1
A63: IB061 | B63: Phase 2 b | C63: 0 | G63: 0 | H63: 0 | I63: 0 | M63: Phase 2 a | N63: 5 | O63: Phase 2 a | P63: 4 | AH63: Phase 1 | AI63: =COUNTIFS(AP$4:AP$686,"Phase 1") -> 6 | AJ63: Phase 1 | AK63: =COUNTIFS(AR$4:AR$686,"Phase 1") -> 6 | AO63: IB059 | AP63: Phase 2 | AQ63: IB059 | AR63: Phase 2 | AS63: 6 | AT63: IB9 | AU63: 1/2a | AV63: Rheumatology | AW63: efficacy | AX63: =COUNTIF(AT:AT,"IB59") -> 6
A64: IB062 | B64: Phase 2 | C64: 11 | D64: c | E64: 0.3529411765 | F64: No | G64: 0 | H64: 1 | I64: 1 | M64: Phase 2 b | N64: 8 | O64: Phase 2 b | P64: 2 | AH64: Phase 1 a | AI64: =COUNTIFS(AP$4:AP$686,"Phase 1 a") -> 0 | AJ64: Phase 1 a | AK64: =COUNTIFS(AR$4:AR$686,"Phase 1 a") -> 0 | AO64: IB060 | AP64: Phase 2 a | AT64: IB9 | AU64: 1/2a | AV64: Rheumatology | AW64: efficacy | AX64: =COUNTIF(AT:AT,"IB60") -> 1
A65: IB063 | B65: Phase 2 b | C65: 8 | D65: b | E65: 0.4338235294 | F65: No | G65: 0 | H65: 1 | I65: 1 | M65: Phase 2 a / b | N65: 1 | O65: Phase 2 a / b | P65: 1 | AH65: Phase 1 b | AI65: =COUNTIFS(AP$4:AP$686,"Phase 1 b") -> 5 | AJ65: Phase 1 b | AK65: =COUNTIFS(AR$4:AR$686,"Phase 1 b") -> 5 | AO65: IB061 | AP65: Phase 2 b | AT65: IB9 | AU65: 1/2a | AV65: Rheumatology | AW65: efficacy | AX65: =COUNTIF(AT:AT,"IB61") -> 1
A66: IB064 | B66: Phase 2 | C66: 6 | D66: b | E66: 0.2647058824 | F66: No | G66: 0 | H66: 1 | I66: 1 | M66: Phase 3 | N66: 3 | O66: Phase 3 | P66: 1 | AH66: Phase 1 / 2 | AI66: =COUNTIFS(AP$4:AP$686,"Phase 1 / 2") -> 5 | AJ66: Phase 1 / 2 | AK66: =COUNTIFS(AR$4:AR$686,"Phase 1 / 2") -> 5 | AO66: IB062 | AP66: Phase 2 | AQ66: IB062 | AR66: Phase 2 | AS66: 8 | AT66: IB13 | AU66: 2 | AV66: Anti-neoplastic & immune-modulating agents | AW66: efficacy | AX66: =COUNTIF(AT:AT,"IB62") -> 8
A67: IB065 | B67: Phase 2 | C67: 3 | D67: a | E67: 0.4509803922 | F67: No | G67: =COUNTIFS(F67,"Yes") -> 0 | H67: =COUNTIFS(F67,"*") -> 1 | I67: =COUNTIFS(F67,"No") -> 1 | M67: unclear | N67: 1 | O67: unclear | P67: 1 | AH67: Phase 1 / 2 a | AI67: =COUNTIFS(AP$4:AP$686,"Phase 1 / 2 a") -> 1 | AJ67: Phase 1 / 2 a | AK67: =COUNTIFS(AR$4:AR$686,"Phase 1 / 2 a") -> 1 | AO67: IB063 | AP67: Phase 2 b | AQ67: IB063 | AR67: Phase 2 b | AS67: 8 | AT67: IB13 | AU67: 2 | AV67: Anti-neoplastic & immune-modulating agents | AW67: efficacy | AX67: =COUNTIF(AT:AT,"IB63") -> 8
A68: IB066 | B68: Phase 2 | C68: 6 | D68: b | E68: 0.2450980392 | F68: No | G68: 0 | H68: 1 | I68: 1 | N68: 93 | P68: 80 | AH68: Phase 1 b / 2 | AI68: =COUNTIFS(AP$4:AP$686,"Phase 1 b / 2") -> 1 | AJ68: Phase 1 b / 2 | AK68: =COUNTIFS(AR$4:AR$686,"Phase 1 b / 2") -> 1 | AO68: IB064 | AP68: Phase 2 | AQ68: IB064 | AR68: Phase 2 | AS68: 6 | AT68: IB13 | AU68: 2 | AV68: Anti-neoplastic & immune-modulating agents | AW68: efficacy | AX68: =COUNTIF(AT:AT,"IB64") -> 6
A69: IB067 | B69: Not IB | C69: 0 | G69: 0 | H69: 0 | I69: 0 | AH69: Phase 1 b / 2 b | AI69: =COUNTIFS(AP$4:AP$686,"Phase 1 b / 2 b") -> 1 | AJ69: Phase 1 b / 2 b | AK69: =COUNTIFS(AR$4:AR$686,"Phase 1 b / 2 b") -> 1 | AO69: IB065 | AP69: Phase 2 | AQ69: IB065 | AR69: Phase 2 | AS69: 3 | AT69: IB13 | AU69: 2 | AV69: Anti-neoplastic & immune-modulating agents | AW69: efficacy | AX69: =COUNTIF(AT:AT,"IB65") -> 3
A70: IB068 | B70: Phase 2 b | C70: 0 | G70: 0 | H70: 0 | I70: 0 | M70: 105 | N70: 102 | O70: 80 | P70: 80 | AH70: Phase 2 | AI70: =COUNTIFS(AP$4:AP$686,"Phase 2") -> 56 | AJ70: Phase 2 | AK70: =COUNTIFS(AR$4:AR$686,"Phase 2") -> 52 | AO70: IB066 | AP70: Phase 2 | AQ70: IB066 | AR70: Phase 2 | AS70: 6 | AT70: IB10 | AU70: 1b | AV70: Anti-neoplastic & immune-modulating agents | AW70: efficacy | AX70: =COUNTIF(AT:AT,"IB66") -> 6
A71: IB069 | B71: Phase 2 | C71: 5 | D71: a | E71: 0.4588235294 | F71: No | G71: 0 | H71: 1 | I71: 1 | P71: N | Q71: % | AH71: Phase 2 a | AI71: =COUNTIFS(AP$4:AP$686,"Phase 2 a") -> 5 | AJ71: Phase 2 a | AK71: =COUNTIFS(AR$4:AR$686,"Phase 2 a") -> 4 | AO71: IB067 | AP71: Not IB | AT71: IB10 | AU71: 1b | AV71: Anti-neoplastic & immune-modulating agents | AW71: efficacy | AX71: =COUNTIF(AT:AT,"IB67") -> 1
A72: IB070 | B72: Phase 2 | C72: 12 | D72: c | E72: 0.2990196078 | F72: No | G72: 0 | H72: 1 | I72: 1 | O72: Phase 1 | P72: 15 | Q72: =P72/P$76 -> 0.1648351648 | AH72: Phase 2 b | AI72: =COUNTIFS(AP$4:AP$686,"Phase 2 b") -> 8 | AJ72: Phase 2 b | AK72: =COUNTIFS(AR$4:AR$686,"Phase 2 b") -> 2 | AO72: IB068 | AP72: Phase 2 b | AT72: IB10 | AU72: 1b | AV72: Anti-neoplastic & immune-modulating agents | AW72: efficacy | AX72: =COUNTIF(AT:AT,"IB68") -> 1
A73: IB071 | B73: Phase 2 | C73: 0 | G73: 0 | H73: 0 | I73: 0 | O73: Phase 1/2 | P73: 10 | Q73: =P73/P$76 -> 0.1098901099 | AH73: Phase 2 a / b | AI73: =COUNTIFS(AP$4:AP$686,"Phase 2 a / b") -> 1 | AJ73: Phase 2 a / b | AK73: =COUNTIFS(AR$4:AR$686,"Phase 2 a / b") -> 1 | AO73: IB069 | AP73: Phase 2 | AQ73: IB069 | AR73: Phase 2 | AS73: 5 | AT73: IB10 | AU73: 1b | AV73: Anti-neoplastic & immune-modulating agents | AW73: efficacy | AX73: =COUNTIF(AT:AT,"IB69") -> 5
A74: IB072 | B74: Phase 1 b | C74: 5 | D74: a | E74: 0.3294117647 | F74: No | G74: 0 | H74: 1 | I74: 1 | O74: Phase 2 | P74: 65 | Q74: 0.7142857143 | AH74: Phase 3 | AI74: =COUNTIFS(AP$4:AP$686,"Phase 3") -> 3 | AJ74: Phase 3 | AK74: =COUNTIFS(AR$4:AR$686,"Phase 3") -> 1 | AO74: IB070 | AP74: Phase 2 | AQ74: IB070 | AR74: Phase 2 | AS74: 12 | AT74: IB10 | AU74: 1b | AV74: Anti-neoplastic & immune-modulating agents | AW74: efficacy | AX74: =COUNTIF(AT:AT,"IB70") -> 12
A75: IB073 | B75: Phase 2 | C75: 5 | D75: a | E75: 0.3411764706 | F75: No | G75: 0 | H75: 1 | I75: 1 | O75: unclear | P75: 1 | Q75: 0.01098901099 | AH75: unclear | AI75: =COUNTIFS(AP$4:AP$686,"unclear") -> 1 | AJ75: unclear | AK75: =COUNTIFS(AR$4:AR$686,"unclear") -> 1 | AO75: IB071 | AP75: Phase 2 | AT75: IB10 | AU75: 1b | AV75: Anti-neoplastic & immune-modulating agents | AW75: efficacy | AX75: =COUNTIF(AT:AT,"IB71") -> 1
A76: IB074 | C76: 0 | G76: 0 | H76: 0 | I76: 0 | O76: Total | P76: =SUM(P72:P75) -> 91 | Q76: 1 | AI76: =SUM(AI63:AI75) -> 93 | AK76: =SUM(AK63:AK75) -> 80 | AO76: IB072 | AP76: Phase 1 b | AQ76: IB072 | AR76: Phase 1 b | AS76: 5 | AT76: IB11 | AU76: 1b/2 | AV76: Anti-neoplastic & immune-modulating agents | AW76: efficacy | AX76: =COUNTIF(AT:AT,"IB72") -> 5
A77: IB075 | B77: Phase 1 / 2 | C77: 5 | D77: a | E77: 0.5882352941 | F77: No | G77: 0 | H77: 1 | I77: 1 | AO77: IB073 | AP77: Phase 2 | AQ77: IB073 | AR77: Phase 2 | AS77: 5 | AT77: IB11 | AU77: 1b/2 | AV77: Anti-neoplastic & immune-modulating agents | AW77: efficacy | AX77: =COUNTIF(AT:AT,"IB73") -> 5
A78: IB076 | B78: Phase 2 | C78: 6 | D78: b | E78: 0.2450980392 | F78: No | G78: 0 | H78: 1 | I78: 1 | AH78: =COUNTIFS(AO12:AO121,"*") -> 98 | AI78: =COUNTIFS(AP12:AP121,"*") -> 95 | AJ78: =COUNTIFS(AQ12:AQ121,"*") -> 74 | AK78: =COUNTIFS(AR12:AR121,"*") -> 74 | AO78: IB074 | AT78: IB11 | AU78: 1b/2 | AV78: Anti-neoplastic & immune-modulating agents | AW78: efficacy | AX78: =COUNTIF(AT:AT,"IB74") -> 1
A79: IB077 | B79: Phase 2 | C79: 32 | D79: e | E79: 0.5202205882 | F79: No | G79: 0 | H79: 1 | I79: 1 | AK79: Numbers | AL79: Percent | AO79: IB075 | AP79: Phase 1 / 2 | AQ79: IB075 | AR79: Phase 1 / 2 | AS79: 5 | AT79: IB11 | AU79: 1b/2 | AV79: Anti-neoplastic & immune-modulating agents | AW79: efficacy | AX79: =COUNTIF(AT:AT,"IB75") -> 5
A80: IB078 | C80: 0 | G80: 0 | H80: 0 | I80: 0 | S80: PCES | U80: IBs | AJ80: Phase 1 | AK80: =SUM(AK63:AK65) -> 11 | AL80: =AK80/$AK$85 -> 0.1375 | AO80: IB076 | AP80: Phase 2 | AQ80: IB076 | AR80: Phase 2 | AS80: 6 | AT80: IB11 | AU80: 1b/2 | AV80: Anti-neoplastic & immune-modulating agents | AW80: efficacy | AX80: =COUNTIF(AT:AT,"IB76") -> 6
A81: IB079 | B81: Phase 2 | C81: 3 | D81: a | E81: 0.5098039216 | F81: No | G81: 0 | H81: 1 | I81: 1 | S81: n | T81: % | U81: n | V81: % | AJ81: Phase 1/2 | AK81: =SUM(AK66:AK69) -> 8 | AL81: =AK81/$AK$85 -> 0.1 | AO81: IB077 | AP81: Phase 2 | AQ81: IB077 | AR81: Phase 2 | AS81: 23 | AT81: IB11 | AU81: 1b/2 | AV81: Anti-neoplastic & immune-modulating agents | AW81: efficacy | AX81: =COUNTIF(AT:AT,"IB77") -> 23
A82: IB080 | B82: Phase 2 | C82: 12 | D82: c | E82: 0.2745098039 | F82: No | G82: 0 | H82: 1 | I82: 1 | R82: Blood product & biotech | S82: =COUNTIFS('Coding matrix'!E:E,"blood product*") -> 74 | T82: =S82/S$93 -> 0.104519774 | U82: ='Therapeutic areas'!G3 -> 6 | V82: ='Therapeutic areas'!H3 -> 0.05504587156 | W82: =COUNTIFS('Therapeutic areas'!D3:D722,"blood product*") -> 6 | X82: =W82/W$93 -> 0.05504587156 | AJ82: Phase 2 | AK82: =SUM(AK70:AK73) -> 59 | AL82: 0.7375 | AO82: IB078 | AT82: IB11 | AU82: 1b/2 | AV82: Anti-neoplastic & immune-modulating agents | AW82: efficacy | AX82: =COUNTIF(AT:AT,"IB78") -> 1
A83: IB081 | B83: Phase 2 | C83: 0 | G83: 0 | H83: 0 | I83: 0 | R83: Anti-neoplastic & immune-modulating agents | S83: =COUNTIFS('Coding matrix'!E:E,"anti-neo*") -> 437 | T83: 0.6172316384 | U83: ='Therapeutic areas'!G4 -> 55 | V83: ='Therapeutic areas'!H4 -> 0.504587156 | W83: =COUNTIFS('Therapeutic areas'!D3:D722,"anti-neo*") -> 55 | X83: =W83/W$93 -> 0.504587156 | AJ83: Phase 3 | AK83: =SUM(AK74) -> 1 | AL83: 0.0125 | AO83: IB079 | AP83: Phase 2 | AQ83: IB079 | AR83: Phase 2 | AS83: 3 | AT83: IB11 | AU83: 1b/2 | AV83: Anti-neoplastic & immune-modulating agents | AW83: efficacy | AX83: =COUNTIF(AT:AT,"IB79") -> 3
A84: IB082 | B84: Phase 2 | C84: 1 | D84: a | E84: 0.4705882353 | F84: No | G84: 0 | H84: 1 | I84: 1 | R84: Respiratory system | S84: =COUNTIFS('Coding matrix'!E:E,"resp*") -> 59 | T84: 0.08333333333 | U84: ='Therapeutic areas'!G5 -> 6 | V84: ='Therapeutic areas'!H5 -> 0.05504587156 | W84: =COUNTIFS('Therapeutic areas'!D3:D722,"resp*") -> 6 | X84: 0.05504587156 | AJ84: unclear | AK84: =SUM(AK75) -> 1 | AL84: 0.0125 | AO84: IB080 | AP84: Phase 2 | AQ84: IB080 | AR84: Phase 2 | AS84: 12 | AT84: IB12 | AU84: 2 | AV84: Respiratory system | AW84: efficacy | AX84: =COUNTIF(AT:AT,"IB80") -> 12
A85: IB083 | B85: Phase 2 | C85: 0 | G85: 0 | H85: 0 | I85: 0 | R85: Rheumatology | S85: =COUNTIFS('Coding matrix'!E:E,"rheum*") -> 10 | T85: 0.01412429379 | U85: ='Therapeutic areas'!G6 -> 4 | V85: ='Therapeutic areas'!H6 -> 0.03669724771 | W85: =COUNTIFS('Therapeutic areas'!D3:D722,"rheum*") -> 4 | X85: 0.03669724771 | AJ85: Total | AK85: =SUM(AK80:AK84) -> 80 | AL85: 1 | AO85: IB081 | AP85: Phase 2 | AT85: IB12 | AU85: 2 | AV85: Respiratory system | AW85: efficacy | AX85: =COUNTIF(AT:AT,"IB81") -> 1
A86: IB084 | B86: Phase 2 | C86: 13 | D86: c | E86: 0.3438914027 | F86: No | G86: 0 | H86: 1 | I86: 1 | R86: Dermatologicals | S86: =COUNTIFS('Coding matrix'!E:E,"derm*") -> 10 | T86: 0.01412429379 | U86: ='Therapeutic areas'!G7 -> 2 | V86: ='Therapeutic areas'!H7 -> 0.01834862385 | W86: =COUNTIFS('Therapeutic areas'!D3:D722,"derm*") -> 2 | X86: 0.01834862385 | AO86: IB082 | AP86: Phase 2 | AQ86: IB082 | AR86: Phase 2 | AS86: 1 | AT86: IB12 | AU86: 2 | AV86: Respiratory system | AW86: efficacy | AX86: =COUNTIF(AT:AT,"IB82") -> 1
A87: IB085 | B87: Phase 2 | C87: 12 | D87: c | E87: 0.387254902 | F87: No | G87: 0 | H87: 1 | I87: 1 | R87: Alimentary tract & metabolism | S87: =COUNTIFS('Coding matrix'!E:E,"aliment*") -> 33 | T87: 0.04661016949 | U87: ='Therapeutic areas'!G8 -> 7 | V87: ='Therapeutic areas'!H8 -> 0.06422018349 | W87: =COUNTIFS('Therapeutic areas'!D3:D722,"aliment*") -> 7 | X87: 0.06422018349 | AO87: IB083 | AP87: Phase 2 | AT87: IB12 | AU87: 2 | AV87: Respiratory system | AW87: efficacy | AX87: =COUNTIF(AT:AT,"IB83") -> 1
A88: IB086 | B88: Phase 2 | C88: 5 | D88: a | E88: 0.3647058824 | F88: No | G88: 0 | H88: 1 | I88: 1 | R88: Anti-infectives | S88: =COUNTIFS('Coding matrix'!E:E,"anti-inf*") -> 48 | T88: 0.06779661017 | U88: ='Therapeutic areas'!G9 -> 20 | V88: ='Therapeutic areas'!H9 -> 0.1834862385 | W88: =COUNTIFS('Therapeutic areas'!D3:D722,"anti-inf*") -> 20 | X88: 0.1834862385 | AO88: IB084 | AP88: Phase 2 | AQ88: IB084 | AR88: Phase 2 | AS88: 13 | AT88: IB12 | AU88: 2 | AV88: Respiratory system | AW88: efficacy | AX88: =COUNTIF(AT:AT,"IB84") -> 13
A89: IB087 | B89: Phase 2 | C89: 19 | D89: d | E89: 0.3003095975 | F89: No | G89: 0 | H89: 1 | I89: 1 | R89: Allergy & Immunology | S89: =COUNTIFS('Coding matrix'!E:E,"allerg*") -> 9 | T89: 0.01271186441 | U89: ='Therapeutic areas'!G10 -> 3 | V89: ='Therapeutic areas'!H10 -> 0.02752293578 | W89: =COUNTIFS('Therapeutic areas'!D3:D722,"allerg*") -> 3 | X89: 0.02752293578 | AO89: IB085 | AP89: Phase 2 | AQ89: IB085 | AR89: Phase 2 | AS89: 12 | AT89: IB12 | AU89: 2 | AV89: Respiratory system | AW89: efficacy | AX89: =COUNTIF(AT:AT,"IB85") -> 12
A90: IB088 | B90: Phase 2 | C90: 10 | D90: b | E90: 0.5588235294 | F90: No | G90: 0 | H90: 1 | I90: 1 | R90: Nervous system | S90: =COUNTIFS('Coding matrix'!E:E,"nerv*") -> 17 | T90: 0.02401129944 | U90: ='Therapeutic areas'!G11 -> 3 | V90: ='Therapeutic areas'!H11 -> 0.02752293578 | W90: =COUNTIFS('Therapeutic areas'!D3:D722,"nerv*") -> 3 | X90: 0.02752293578 | AO90: IB086 | AP90: Phase 2 | AQ90: IB086 | AR90: Phase 2 | AS90: 5 | AT90: IB12 | AU90: 2 | AV90: Respiratory system | AW90: efficacy | AX90: =COUNTIF(AT:AT,"IB86") -> 5
A91: IB089 | B91: Phase 2 | C91: 13 | D91: c | E91: 0.2986425339 | F91: No | G91: 0 | H91: 1 | I91: 1 | R91: Blood & blood forming organs | S91: =COUNTIFS('Coding matrix'!E:E,"blood &*") -> 6 | T91: 0.008474576271 | U91: ='Therapeutic areas'!G12 -> 2 | V91: ='Therapeutic areas'!H12 -> 0.01834862385 | W91: =COUNTIFS('Therapeutic areas'!D3:D722,"blood &*") -> 2 | X91: 0.01834862385 | AO91: IB087 | AP91: Phase 2 | AQ91: IB087 | AR91: Phase 2 | AS91: 19 | AT91: IB12 | AU91: 2 | AV91: Respiratory system | AW91: efficacy | AX91: =COUNTIF(AT:AT,"IB87") -> 19
A92: IB090 | B92: Phase 2 | C92: 3 | D92: a | E92: 0.431372549 | F92: No | G92: 0 | H92: 1 | I92: 1 | R92: Cardiovascular | S92: =COUNTIFS('Coding matrix'!E:E,"cardio*") -> 5 | T92: 0.007062146893 | U92: ='Therapeutic areas'!G13 -> 1 | V92: ='Therapeutic areas'!H13 -> 0.009174311927 | W92: =COUNTIFS('Therapeutic areas'!D3:D722,"cardio*") -> 1 | X92: 0.009174311927 | AO92: IB088 | AP92: Phase 2 | AQ92: IB088 | AR92: Phase 2 | AS92: 10 | AT92: IB12 | AU92: 2 | AV92: Respiratory system | AW92: efficacy | AX92: =COUNTIF(AT:AT,"IB88") -> 10
A93: IB091 | B93: Phase 2 | C93: 6 | D93: b | E93: 0.2745098039 | F93: No | G93: 0 | H93: 1 | I93: 1 | R93: Total | S93: =SUM(S82:S92) -> 708 | T93: 1 | U93: ='Therapeutic areas'!G14 -> 109 | V93: ='Therapeutic areas'!H14 -> 1 | W93: =SUM(W82:W92) -> 109 | X93: 1 | AO93: IB089 | AP93: Phase 2 | AQ93: IB089 | AR93: Phase 2 | AS93: 13 | AT93: IB12 | AU93: 2 | AV93: Respiratory system | AW93: efficacy | AX93: =COUNTIF(AT:AT,"IB89") -> 13
A94: IB092 | B94: Phase 1 | C94: 11 | D94: c | E94: 0.5614973262 | F94: No | G94: 0 | H94: 1 | I94: 1 | AO94: IB090 | AP94: Phase 2 | AQ94: IB090 | AR94: Phase 2 | AS94: 3 | AT94: IB12 | AU94: 2 | AV94: Respiratory system | AW94: efficacy | AX94: =COUNTIF(AT:AT,"IB90") -> 3
A95: IB093 | C95: 0 | G95: 0 | H95: 0 | I95: 0 | AO95: IB091 | AP95: Phase 2 | AQ95: IB091 | AR95: Phase 2 | AS95: 6 | AT95: IB12 | AU95: 2 | AV95: Respiratory system | AW95: efficacy | AX95: =COUNTIF(AT:AT,"IB91") -> 6
A96: IB094 | B96: Phase 2 | C96: 7 | D96: b | E96: 0.4117647059 | F96: No | G96: 0 | H96: 1 | I96: 1 | R96: With PCES | S96: =COUNTIF('Coding matrix'!F5:F735,"efficacy")+COUNTIF('Coding matrix'!F5:F735,"unclear") -> 708 | AO96: IB092 | AP96: Phase 1 | AQ96: IB092 | AR96: Phase 1 | AS96: 11 | AT96: IB12 | AU96: 2 | AV96: Respiratory system | AW96: efficacy | AX96: =COUNTIF(AT:AT,"IB92") -> 11
A97: IB095 | B97: Phase 2 | C97: 0 | G97: 0 | H97: 0 | I97: 0 | R97: No PCES | S97: =COUNTIF('Coding matrix'!F5:F735,"no efficacy") -> 21 | AO97: IB093 | AT97: IB12 | AU97: 2 | AV97: Respiratory system | AW97: efficacy | AX97: =COUNTIF(AT:AT,"IB93") -> 1
A98: IB096 | B98: Phase 2 b | C98: 0 | G98: 0 | H98: 0 | I98: 0 | AO98: IB094 | AP98: Phase 2 | AQ98: IB094 | AR98: Phase 2 | AS98: 7 | AT98: IB12 | AU98: 2 | AV98: Respiratory system | AW98: efficacy | AX98: =COUNTIF(AT:AT,"IB94") -> 7
A99: IB097 | B99: Phase 1 b | C99: 2 | D99: a | E99: 0.4705882353 | F99: No | G99: =COUNTIFS(F99,"Yes") -> 0 | H99: =COUNTIFS(F99,"*") -> 1 | I99: =COUNTIFS(F99,"No") -> 1 | R99: Single IBss | S99: =Results!F50 -> 0 | AO99: IB095 | AP99: Phase 2 | AT99: IB12 | AU99: 2 | AV99: Respiratory system | AW99: efficacy | AX99: =COUNTIF(AT:AT,"IB95") -> 1
A100: IB098 | B100: Phase 2 b | C100: 7 | D100: b | E100: 0.4369747899 | F100: No | G100: 0 | H100: 1 | I100: 1 | AO100: IB096 | AP100: Phase 2 b | AT100: IB12 | AU100: 2 | AV100: Respiratory system | AW100: efficacy | AX100: =COUNTIF(AT:AT,"IB96") -> 1
A101: IB099 | B101: Phase 2 | C101: 11 | D101: c | E101: 0.4385026738 | F101: No | G101: 0 | H101: 1 | I101: 1 | AO101: IB097 | AP101: Phase 1 b | AQ101: IB097 | AR101: Phase 1 b | AS101: 2 | AT101: IB12 | AU101: 2 | AV101: Respiratory system | AW101: efficacy | AX101: =COUNTIF(AT:AT,"IB97") -> 2
A102: IB100 | B102: Phase 2 | C102: 0 | G102: 0 | H102: 0 | I102: 0 | AO102: IB098 | AP102: Phase 2 b | AQ102: IB098 | AR102: Phase 2 b | AS102: 7 | AT102: IB12 | AU102: 2 | AV102: Respiratory system | AW102: efficacy | AX102: =COUNTIF(AT:AT,"IB98") -> 7
A103: IB101 | B103: Phase 2 | C103: 0 | G103: 0 | H103: 0 | I103: 0 | J103: No | K103: =SUM(I3:I119) -> 84 | AO103: IB099 | AP103: Phase 2 | AQ103: IB099 | AR103: Phase 2 | AS103: 11 | AT103: IB12 | AU103: 2 | AV103: Respiratory system | AW103: efficacy | AX103: =COUNTIF(AT:AT,"IB99") -> 11
A104: IB102 | B104: Phase 1 / 2 | C104: 13 | D104: c | E104: 0.3438914027 | F104: No | G104: 0 | H104: 1 | I104: 1 | J104: Unclear | K104: =K106-K103-K105 -> 0 | AO104: IB100 | AP104: Phase 2 | AT104: IB14 | AU104: 2 | AV104: Anti-neoplastic & immune-modulating agents | AW104: efficacy | AX104: =COUNTIF(AT:AT,"IB100") -> 1
A105: IB103 | B105: Phase 1 b / 2 b | C105: 5 | D105: a | E105: 0.1176470588 | F105: No | G105: 0 | H105: 1 | I105: 1 | J105: First-in-man | K105: =SUM(G3:G119) -> 7 | AO105: IB101 | AP105: Phase 2 | AT105: IB14 | AU105: 2 | AV105: Anti-neoplastic & immune-modulating agents | AW105: efficacy | AX105: =COUNTIF(AT:AT,"IB101") -> 1
A106: IB104 | B106: Phase 2 a | C106: 5 | D106: a | E106: 0.4470588235 | F106: No | G106: 0 | H106: 1 | I106: 1 | J106: All Ibs | K106: =SUM(H3:H119) -> 91 | AO106: IB102 | AP106: Phase 1 / 2 | AQ106: IB102 | AR106: Phase 1 / 2 | AS106: 13 | AT106: IB15 | AU106: 2 | AV106: Anti-neoplastic & immune-modulating agents | AW106: efficacy | AX106: =COUNTIF(AT:AT,"IB102") -> 13
A107: IB105 | B107: Phase 1 / 2 | C107: 6 | D107: b | E107: 0.4901960784 | F107: No | G107: 0 | H107: 1 | I107: 1 | J107: Percentage | K107: =K105/K106 -> 0.07692307692 | AO107: IB103 | AP107: Phase 1 b / 2 b | AQ107: IB103 | AR107: Phase 1 b / 2 b | AS107: 5 | AT107: IB15 | AU107: 2 | AV107: Anti-neoplastic & immune-modulating agents | AW107: efficacy | AX107: =COUNTIF(AT:AT,"IB103") -> 5
A108: IB1a | B108: Phase 1 b | C108: 3 | D108: a | E108: 0.4901960784 | F108: no | G108: 0 | H108: 1 | I108: 1 | AO108: IB104 | AP108: Phase 2 a | AQ108: IB104 | AR108: Phase 2 a | AS108: 5 | AT108: IB15 | AU108: 2 | AV108: Anti-neoplastic & immune-modulating agents | AW108: efficacy | AX108: =COUNTIF(AT:AT,"IB104") -> 5
A109: IB2a | B109: Phase 2 a | C109: 3 | D109: a | E109: 0.5294117647 | F109: no | G109: 0 | H109: 1 | I109: 1 | AO109: IB105 | AP109: Phase 1 / 2 | AQ109: IB105 | AR109: Phase 1 / 2 | AS109: 6 | AT109: IB15 | AU109: 2 | AV109: Anti-neoplastic & immune-modulating agents | AW109: efficacy | AX109: =COUNTIF(AT:AT,"IB105") -> 6
A110: IB3a | B110: 2 | C110: 1 | D110: a | E110: 0.5294117647 | F110: no | G110: 0 | H110: 1 | I110: 1 | AS110: =SUM(AS5:AS109) -> 658 | AT110: IB15 | AU110: 2 | AV110: Anti-neoplastic & immune-modulating agents | AW110: efficacy
A111: IB4a | B111: 1 | C111: 2 | D111: a | E111: 0.4705882353 | F111: yes | G111: 1 | H111: 1 | I111: 0 | J111: =SUM(C115,C117,C111,C52,C48,C45,C5) -> 30 | AT111: IB15 | AU111: 2 | AV111: Anti-neoplastic & immune-modulating agents | AW111: efficacy
A112: IB5a | B112: Phase 2 a | C112: 5 | D112: a | E112: 0.4117647059 | F112: no | G112: 0 | H112: 1 | I112: 1 | J112: =708-J111 -> 678 | AT112: IB15 | AU112: 2 | AV112: Anti-neoplastic & immune-modulating agents | AW112: efficacy
A113: IB6a | B113: Phase 2 a | C113: 1 | D113: a | E113: 0.5411764706 | F113: no | G113: 0 | H113: 1 | I113: 1 | AT113: IB15 | AU113: 2 | AV113: Anti-neoplastic & immune-modulating agents | AW113: efficacy
A114: IB1b | B114: Phase 2 a | C114: 1 | D114: a | E114: 0.4117647059 | F114: no | G114: 0 | H114: 1 | I114: 1 | AT114: IB15 | AU114: 2 | AV114: Anti-neoplastic & immune-modulating agents | AW114: efficacy
A115: IB2b | B115: Phase 1 | C115: 3 | D115: a | E115: 0.5882352941 | F115: yes | G115: 1 | H115: 1 | I115: 0 | AT115: IB15 | AU115: 2 | AV115: Anti-neoplastic & immune-modulating agents | AW115: efficacy
A116: IB3b | B116: Phase 1 / 2 | C116: 5 | D116: a | E116: 0.5411764706 | F116: no | G116: 0 | H116: 1 | I116: 1 | AT116: IB15 | AU116: 2 | AV116: Anti-neoplastic & immune-modulating agents | AW116: efficacy
A117: IB4b | B117: Phase 1 | C117: 8 | D117: b | E117: 0.6544117647 | F117: yes | G117: 1 | H117: 1 | I117: 0 | AT117: IB15 | AU117: 2 | AV117: Anti-neoplastic & immune-modulating agents | AW117: efficacy
A118: IB5b | B118: Phase 2 a | C118: 4 | D118: a | E118: 0.3088235294 | F118: no | G118: 0 | H118: 1 | I118: 1 | AT118: IB15 | AU118: 2 | AV118: Anti-neoplastic & immune-modulating agents | AW118: efficacy
A119: IB6b | B119: Phase 1 / 2 | C119: 4 | D119: a | E119: 0.5294117647 | F119: no | G119: 0 | H119: 1 | I119: 1 | AT119: IB15 | AU119: 2 | AV119: Anti-neoplastic & immune-modulating agents | AW119: efficacy
AT120: IB15 | AU120: 2 | AV120: Anti-neoplastic & immune-modulating agents | AW120: efficacy
C121: 708 | AT121: IB15 | AU121: 2 | AV121: Anti-neoplastic & immune-modulating agents | AW121: efficacy
AT122: IB17 | AU122: 2 | AV122: Anti-infectives | AW122: efficacy
AT123: IB17 | AU123: 2 | AV123: Anti-infectives | AW123: efficacy
AT124: IB17 | AU124: 2 | AV124: Anti-infectives | AW124: efficacy
AT125: IB17 | AU125: 2 | AV125: Anti-infectives | AW125: efficacy
AT126: IB17 | AU126: 2 | AV126: Anti-infectives | AW126: efficacy
AT127: IB17 | AU127: 2 | AV127: Anti-infectives | AW127: efficacy
AT128: IB17 | AU128: 2 | AV128: Anti-infectives | AW128: efficacy
AT129: IB18 | AU129: 2 | AV129: Alimentary tract & metabolism | AW129: efficacy
AT130: IB18 | AU130: 2 | AV130: Alimentary tract & metabolism | AW130: efficacy
AT131: IB18 | AU131: 2 | AV131: Alimentary tract & metabolism | AW131: efficacy
AT132: IB18 | AU132: 2 | AV132: Alimentary tract & metabolism | AW132: efficacy
AT133: IB18 | AU133: 2 | AV133: Alimentary tract & metabolism | AW133: efficacy
AT134: IB18 | AU134: 2 | AV134: Alimentary tract & metabolism | AW134: efficacy
AT135: IB18 | AU135: 2 | AV135: Alimentary tract & metabolism | AW135: efficacy
AT136: IB18 | AU136: 2 | AV136: Alimentary tract & metabolism | AW136: efficacy
AT137: IB18 | AU137: 2 | AV137: Alimentary tract & metabolism | AW137: efficacy
AT138: IB18 | AU138: 2 | AV138: Alimentary tract & metabolism | AW138: efficacy
AT139: IB18 | AU139: 2 | AV139: Alimentary tract & metabolism | AW139: efficacy
AT140: IB19 | AU140: 2 | AV140: Anti-neoplastic & immune-modulating agents | AW140: efficacy
AT141: IB20 | AU141: 2 | AV141: Anti-neoplastic & immune-modulating agents | AW141: efficacy
AT142: IB20 | AU142: 2 | AV142: Anti-neoplastic & immune-modulating agents | AW142: efficacy
AT143: IB20 | AU143: 2 | AV143: Anti-neoplastic & immune-modulating agents | AW143: efficacy
AT144: IB20 | AU144: 2 | AV144: Anti-neoplastic & immune-modulating agents | AW144: efficacy
AT145: IB20 | AU145: 2 | AV145: Anti-neoplastic & immune-modulating agents | AW145: efficacy
AT146: IB20 | AU146: 2 | AV146: Anti-neoplastic & immune-modulating agents | AW146: efficacy
AT147: IB20 | AU147: 2 | AV147: Anti-neoplastic & immune-modulating agents | AW147: efficacy
AT148: IB20 | AU148: 2 | AV148: Anti-neoplastic & immune-modulating agents | AW148: efficacy
AT149: IB20 | AU149: 2 | AV149: Anti-neoplastic & immune-modulating agents | AW149: efficacy
AT150: IB20 | AU150: 2 | AV150: Anti-neoplastic & immune-modulating agents | AW150: efficacy
AT151: IB20 | AU151: 2 | AV151: Anti-neoplastic & immune-modulating agents | AW151: efficacy
AT152: IB20 | AU152: 2 | AV152: Anti-neoplastic & immune-modulating agents | AW152: efficacy
AT153: IB20 | AU153: 2 | AV153: Anti-neoplastic & immune-modulating agents | AW153: efficacy
AT154: IB20 | AU154: 2 | AV154: Anti-neoplastic & immune-modulating agents | AW154: efficacy
AT155: IB20 | AU155: 2 | AV155: Anti-neoplastic & immune-modulating agents | AW155: efficacy
AT156: IB20 | AU156: 2 | AV156: Anti-neoplastic & immune-modulating agents | AW156: efficacy
AT157: IB21 | AU157: 2 | AV157: Anti-neoplastic & immune-modulating agents | AW157: efficacy
AT158: IB21 | AU158: 2 | AV158: Anti-neoplastic & immune-modulating agents | AW158: efficacy
AT159: IB21 | AU159: 2 | AV159: Anti-neoplastic & immune-modulating agents | AW159: efficacy
AT160: IB21 | AU160: 2 | AV160: Anti-neoplastic & immune-modulating agents | AW160: efficacy
AT161: IB21 | AU161: 2 | AV161: Anti-neoplastic & immune-modulating agents | AW161: efficacy
AT162: IB21 | AU162: 2 | AV162: Anti-neoplastic & immune-modulating agents | AW162: efficacy
AT163: IB21 | AU163: 2 | AV163: Anti-neoplastic & immune-modulating agents | AW163: efficacy
AT164: IB21 | AU164: 2 | AV164: Anti-neoplastic & immune-modulating agents | AW164: efficacy
AT165: IB21 | AU165: 2 | AV165: Anti-neoplastic & immune-modulating agents | AW165: efficacy
AT166: IB21 | AU166: 2 | AV166: Anti-neoplastic & immune-modulating agents | AW166: efficacy
AT167: IB21 | AU167: 2 | AV167: Anti-neoplastic & immune-modulating agents | AW167: efficacy
AT168: IB21 | AU168: 2 | AV168: Anti-neoplastic & immune-modulating agents | AW168: efficacy
AT169: IB21 | AU169: 2 | AV169: Anti-neoplastic & immune-modulating agents | AW169: efficacy
AT170: IB21 | AU170: 2 | AV170: Anti-neoplastic & immune-modulating agents | AW170: efficacy
AT171: IB21 | AU171: 2 | AV171: Anti-neoplastic & immune-modulating agents | AW171: efficacy
AT172: IB21 | AU172: 2 | AV172: Anti-neoplastic & immune-modulating agents | AW172: efficacy
AT173: IB21 | AU173: 2 | AV173: Anti-neoplastic & immune-modulating agents | AW173: efficacy
AT174: IB21 | AU174: 2 | AV174: Anti-neoplastic & immune-modulating agents | AW174: efficacy
AT175: IB22 | AU175: 2 | AV175: Anti-neoplastic & immune-modulating agents | AW175: efficacy
AT176: IB22 | AU176: 2 | AV176: Anti-neoplastic & immune-modulating agents | AW176: efficacy
AT177: IB22 | AU177: 2 | AV177: Anti-neoplastic & immune-modulating agents | AW177: efficacy
AT178: IB22 | AU178: 2 | AV178: Anti-neoplastic & immune-modulating agents | AW178: efficacy
AT179: IB22 | AU179: 2 | AV179: Anti-neoplastic & immune-modulating agents | AW179: efficacy
AT180: IB22 | AU180: 2 | AV180: Anti-neoplastic & immune-modulating agents | AW180: efficacy
AT181: IB22 | AU181: 2 | AV181: Anti-neoplastic & immune-modulating agents | AW181: efficacy
AT182: IB22 | AU182: 2 | AV182: Anti-neoplastic & immune-modulating agents | AW182: efficacy
AT183: IB22 | AU183: 2 | AV183: Anti-neoplastic & immune-modulating agents | AW183: efficacy
AT184: IB22 | AU184: 2 | AV184: Anti-neoplastic & immune-modulating agents | AW184: efficacy
AT185: IB22 | AU185: 2 | AV185: Anti-neoplastic & immune-modulating agents | AW185: efficacy
AT186: IB22 | AU186: 2 | AV186: Anti-neoplastic & immune-modulating agents | AW186: efficacy
AT187: IB22 | AU187: 2 | AV187: Anti-neoplastic & immune-modulating agents | AW187: efficacy
AT188: IB22 | AU188: 2 | AV188: Anti-neoplastic & immune-modulating agents | AW188: efficacy
AT189: IB22 | AU189: 2 | AV189: Anti-neoplastic & immune-modulating agents | AW189: efficacy
AT190: IB22 | AU190: 2 | AV190: Anti-neoplastic & immune-modulating agents | AW190: efficacy
AT191: IB22 | AU191: 2 | AV191: Anti-neoplastic & immune-modulating agents | AW191: efficacy
AT192: IB22 | AU192: 2 | AV192: Anti-neoplastic & immune-modulating agents | AW192: efficacy
AT193: IB22 | AU193: 2 | AV193: Anti-neoplastic & immune-modulating agents | AW193: efficacy
AT194: IB22 | AU194: 2 | AV194: Anti-neoplastic & immune-modulating agents | AW194: efficacy
AT195: IB22 | AU195: 2 | AV195: Anti-neoplastic & immune-modulating agents | AW195: efficacy
AT196: IB22 | AU196: 2 | AV196: Anti-neoplastic & immune-modulating agents | AW196: efficacy
AT197: IB22 | AU197: 2 | AV197: Anti-neoplastic & immune-modulating agents | AW197: efficacy
AT198: IB22 | AU198: 2 | AV198: Anti-neoplastic & immune-modulating agents | AW198: efficacy
AT199: IB22 | AU199: 2 | AV199: Anti-neoplastic & immune-modulating agents | AW199: efficacy
AT200: IB22 | AU200: 2 | AV200: Anti-neoplastic & immune-modulating agents | AW200: efficacy
... 527 more rows

Sheet peer-reviewed publications pub
A1: Please note: Some rows in this table might have been deleted due to confidentiality reasons!
A2: Additional info in publication: yes=green, no= red, discrepant=yellow | C2: Item | D2: Phase | E2: Therapeutic area | F2: Type of study | G2: Sample size | J2: Randomisation | L2: Baseline characterization | N2: Blinded assessment | Q2: Exclusion of data from analysis | S2: Controls | U2: Model choice | Y2: Outcome choice | AA2: Dose reponse (RATE ON IB LEVEL) | AC2: Age matched to patients (RATE ON IB LEVEL) | AE2: Mechanistic evidence (RATE ON IB LEVEL) | AF2: Replication of experiment (RATE ON IB LEVEL) | AH2: Replication in different model (RATE ON IB LEVEL) | AI2: Replication in different species (RATE ON IB LEVEL) | AK2: Citation of references | AM2: Reporting on direction of results | AR2: Additional information? | AX2: 0.9125 | AY2: 0 | AZ2: 0 | BA2: 0.275 | BB2: 0 | BC2: 0.7625 | BD2: 0 | BE2: 0 | BF2: 0.05 | BG2: 0 | BH2: 0.1375 | BI2: 0.1 | BJ2: 0.975 | BK2: 0 | BL2: 1 | BM2: 0 | BN2: 1 | BP2: 0.925 | BR2: 1 | BS2: 0 | BT2: 0.65 | BU2: 0.65 | BV2: 0.7 | BW2: 0.05 | BX2: 0.75 | BY2: 0.4 | BZ2: 0.15 | CA2: 0.95 | CC2: 0.4 | CD2: 0 | CE2: 1 | CF2: 0 | CG2: 0.6125 | CH2: 0.7625 | CI2: 0.9625
C3: Research questions | F3: Determine whether experiment listed in an efficacy study, Yes, no or unclear | G3: Is sample size reported, Yes or no? | H3: If yes, how many? | I3: If yes, is sample size calculation reported, Yes or no? | J3: Is randomisation reported, Yes or no? | K3: If yes, describe the method used to generate the randomization sequence.? | L3: Is baseline characterization reported, Yes or no? | M3: If yes, what type? | N3: Is blinded assessment for treatment allocation reported, Yes or no? | O3: Is blinded assessment for outcome assessment reported, Yes or no? | P3: If yes, when? | Q3: Is exclusion of data reported, Yes or no? | R3: If yes, justification? | S3: Is control group reported, Yes or no? | T3: If yes, what type of control? | U3: Is the species of animal reported? | V3: If yes, what species? | W3: Is the type of model reported? | X3: Is the specifications of model reported? | Y3: Is the outcome choice reported, Yes or no? | Z3: If yes, is the metric or time-course or both reported? | AA3: Is dose response reported? Yes or no? | AB3: If yes, is positive reponse reported, Yes or no? | AC3: Is the age of animals reported, Yes or no? | AD3: If yes, is it matched to patients? | AE3: Yes or no? | AF3: Is there replication of experiment, Yes or no? | AG3: If no, is there other similar study? | AH3: Is there replication in different model, Yes or no? | AI3: Is there replication in different species, Yes or no? | AJ3: If yes, species type? | AK3: Is there references reported, Yes or no? | AL3: If yes, what type of references? | AM3: Is effect size reported? Yes or no? (Step 1) | AN3: Is significant value reported? Yes or no? (Step 2) | AO3: Was the investigation positive, inconclusive or negative? | AP3: Extracted text example for negative findings | AQ3: Reporting on effect other than with statistics/effect size/values: text examples (Step 3) | AR3: comments | AT3: Numbers of Ibs checked | AU3: % | AV3: Numbers of PCES checked | AW3: % | AX3: 80 | AY3: 80 | AZ3: 80 | BA3: 80 | BB3: 80 | BC3: 80 | BD3: 80 | BE3: 80 | BF3: 80 | BG3: 80 | BH3: 80 | BI3: 80 | BJ3: 80 | BK3: 80 | BL3: 80 | BM3: 80 | BN3: 80 | BO3: 80 | BP3: 80 | BQ3: 80 | BR3: 80 | BS3: 80 | BT3: 20 | BU3: 20 | BV3: 20 | BW3: 20 | BX3: 20 | BY3: 20 | BZ3: 20 | CA3: 20 | CB3: 1 | CC3: 20 | CD3: 20 | CE3: 80 | CF3: 80 | CG3: 80 | CH3: 80 | CI3: 80
A4: PCES | B4: IB | C4: Coding criteria | F4: ■ In cases where drug are tested for efficacy in their respective therapeutic indications, complete experiment level and IB level extraction. DO NOT PERFORM AN EXTRACTION for non-efficacy studies | G4: ■ Does the experiment report sample sizes for all extractable groups? ■ Is information provided on the number of animal per treatment group or total number of animal for the whole experiment? | H4: n = ? | I4: ■ Has a power calculation been performed a priori to determine sample size? ■ Select no if there are no explicit statements about sample size determination. | J4: ■ Were animals randomly assigned to treatment? ■ Select unclear if there are no explicit statements about allocation. | K4: Group designation, Cage randomization, Permanent designation, Randomization to treatment | L4: ■ Was the emergence of confounding physiological variables monitored and addressed (e.g. blood pressure, body temperature)? ■ Were the groups similar at baseline or were they adjusted for confounders in the analysis? ■ Was the distribution of relevant baseline characteristics balanced for the intervention and control groups? ■ If relevant, did the investigators adequately adjust for unequal distribution of some relevant baseline characteristics in the analysis? ■ Was the timing of disease induction adequate? | M4: Sex, age, immune status, weight, microbial status of the animal | N4: ■ Was treatment allocation concealed from the investigators during the experiment? ■ Select no if there are no explicit statements about blinding to treatment allocation. | O4: ■ Were investigators blinded to treatment allocation during outcome assessment? ■ Select no if there are no explicit statements about blinding to outcome assessment. | Q4: ■ Do studies explain the flow of animals from inclusion through to analysis? ■ Has every animal been accounted for, from entry into experiment through treatment, outcome assessment, sacri ce and analysis? | R4: Animal death | S4: ■ Were appropriate controls used in all in vivo experiments (e.g. positive, negative)? | T4: Positive control, negative control, sham, comparator arm | U4: Mouse, rat, dog, monkey, etc. | W4: Induced or Experimental, spontaneous (xenograft, orthotopic), transgenic, type of disease | X4: Tumor size, etc. | Y4: Endpoints, type of measurement (survival, tumor shrinkage, etc), time-course of measurement, mean survival | AA4: ■ Was there a demonstration of dose-response relationship of the adverse effect? ■ Was there a time course (e.g., onset and duration of response) of the adverse effect? ■ Was the doses eliciting the adverse effect compared to the doses eliciting the primary pharmacodynamic effect in the test species or the proposed therapeutic effect in humans? ■ Minimum of 3 different doses | AC4: ■ Is age of animals mentioned? | AD4: ■ Check inclusion criteria of patients | AF4: ■ Is it the same model? ■ Is it the same drug? ■ Is it measuring the same outcome? | AH4: ■ Whether efficacy studies were replicated in more than one model. ■ Is it the same species? | AI4: ■ Whether efficacy studies were replicated in more than one species. | AK4: ■ If there is internal study number, citation, … then it is a yes. | AL4: Peer-reviewed, in house data | AN4: ■ Is there a p-value reported in the figure description or in the experiment results? | AO4: ■ If p value significant (typically ≤ 0.05), then it is positiv.e | AT4: =COUNTIF(AT5,"*") -> 0 | AU4: =AT4/'Coding matrix'!AJ702 ->  | AV4: =COUNTIF(B5:B48,"*") -> 44 | AW4: =AV4/'Coding matrix'!AO702 ->  | AX4: 73 | AY4: 0 | AZ4: 0 | BA4: 22 | BB4: 0 | BC4: 61 | BD4: 0 | BE4: 0 | BF4: 4 | BG4: 0 | BH4: 11 | BI4: 8 | BJ4: 78 | BK4: 0 | BL4: 80 | BM4: 0 | BN4: 80 | BP4: 74 | BR4: 80 | BS4: 0 | BT4: 13 | BU4: 13 | BV4: 14 | BW4: 1 | BX4: 15 | BY4: 8 | BZ4: 3 | CA4: 19 | CC4: 8 | CD4: 0 | CE4: 80 | CF4: 0 | CG4: 49 | CH4: 61 | CI4: 77
A5: 45 | B5: IB7 | E5: Blood product & biotech | F5: efficacy | G5: no | H5: - | I5: na | J5: no | K5: - | L5: yes | M5: nude, female | N5: no | O5: no | P5: - | Q5: no | R5: - | S5: yes | T5: negative | U5: yes | V5: mouse | W5: yes | X5: yes | Y5: yes | Z5: both | AA5: yes | AB5: yes | AC5: no | AD5: - | AE5: yes | AF5: no | AG5: yes | AH5: yes | AI5: no | AJ5: - | AK5: yes | AL5: peer revieweded | AM5: yes | AN5: no | AO5: positive | AX5: 0 | AY5: 0 | AZ5: 0 | BA5: 0 | BB5: 0 | BC5: 1 | BD5: 0 | BE5: 0 | BF5: 0 | BG5: 0 | BH5: 0 | BI5: 0 | BJ5: 1 | BK5: 0 | BL5: 1 | BM5: 0 | BN5: 1 | BP5: 1 | BR5: 1 | BS5: 0 | BT5: 1 | BU5: 1 | BV5: 0 | BW5: 0 | BX5: 1 | BY5: 0 | BZ5: 1 | CA5: 1 | CC5: 0 | CD5: 0 | CE5: 1 | CF5: 0 | CG5: 1 | CH5: 0 | CI5: 1
A6: 63 | B6: IB13 | E6: Anti-neoplastic & immune-modulating agents | F6: efficacy | G6: yes | H6: 4-7 mice per group | I6: no | J6: no | K6: - | L6: no | M6: - | N6: no | O6: no | P6: - | Q6: yes | R6: yes | S6: yes | T6: Negative, positive | U6: yes | V6: mouse | W6: yes | X6: yes | Y6: yes | Z6: metric | AA6: no | AB6: - | AC6: yes | AD6: yes | AE6: yes | AF6: no | AG6: no | AH6: yes | AI6: no | AJ6: - | AK6: yes | AL6: Peer-reviewed | AM6: yes | AN6: yes | AO6: positive | AX6: 1 | AY6: 0 | AZ6: 0 | BA6: 0 | BB6: 0 | BC6: 0 | BD6: 0 | BE6: 0 | BF6: 0 | BG6: 0 | BH6: 1 | BI6: 1 | BJ6: 1 | BK6: 0 | BL6: 1 | BM6: 0 | BN6: 1 | BP6: 1 | BR6: 1 | BS6: 0 | BT6: 0 | BU6: 0 | BV6: 1 | BW6: 1 | BX6: 1 | BY6: 0 | BZ6: 0 | CA6: 1 | CC6: 0 | CD6: 0 | CE6: 1 | CF6: 0 | CG6: 1 | CH6: 1 | CI6: 1
A7: 64 | B7: IB13 | E7: Anti-neoplastic & immune-modulating agents | F7: efficacy | G7: yes | H7: 6 | I7: no | J7: no | K7: - | L7: no | M7: - | N7: no | O7: no | P7: - | Q7: yes | R7: yes | S7: yes | T7: Negative, positive | U7: yes | V7: mouse | W7: yes | X7: yes | Y7: yes | Z7: both | AK7: yes | AL7: Peer-reviewed | AM7: yes | AN7: yes | AO7: positive | AX7: 1 | AY7: 0 | AZ7: 0 | BA7: 0 | BB7: 0 | BC7: 0 | BD7: 0 | BE7: 0 | BF7: 0 | BG7: 0 | BH7: 1 | BI7: 1 | BJ7: 1 | BK7: 0 | BL7: 1 | BM7: 0 | BN7: 1 | BP7: 1 | BR7: 1 | BS7: 0 | BT7: 0 | BU7: 0 | BV7: 0 | BW7: 0 | BX7: 0 | BY7: 0 | BZ7: 0 | CA7: 0 | CC7: 0 | CD7: 0 | CE7: 1 | CF7: 0 | CG7: 1 | CH7: 1 | CI7: 1
A8: 65 | B8: IB13 | E8: Anti-neoplastic & immune-modulating agents | F8: efficacy | G8: yes | H8: 8-10 per group | I8: no | J8: yes | L8: no | M8: - | N8: no | O8: no | P8: - | Q8: no | R8: - | S8: yes | T8: negative | U8: yes | V8: mouse | W8: yes | X8: no | Y8: yes | Z8: metric | AK8: yes | AL8: Peer-reviewed | AM8: yes | AN8: yes | AO8: positive | AX8: 1 | AY8: 0 | AZ8: 0 | BA8: 1 | BB8: 0 | BC8: 0 | BD8: 0 | BE8: 0 | BF8: 0 | BG8: 0 | BH8: 0 | BI8: 0 | BJ8: 1 | BK8: 0 | BL8: 1 | BM8: 0 | BN8: 1 | BP8: 0 | BR8: 1 | BS8: 0 | BT8: 0 | BU8: 0 | BV8: 0 | BW8: 0 | BX8: 0 | BY8: 0 | BZ8: 0 | CA8: 0 | CC8: 0 | CD8: 0 | CE8: 1 | CF8: 0 | CG8: 1 | CH8: 1 | CI8: 1
A9: 66 | B9: IB13 | E9: Anti-neoplastic & immune-modulating agents | F9: efficacy | G9: yes | H9: 7 per group | I9: no | J9: yes | K9: Mice bearing successfully engrafted tumors were randomly distributed into two groups and treated with either cabozantinib (n = 7; XL184; Exelixis, South San Francisco, CA) or vehicle | L9: yes | M9: sex, age, housing, diet | N9: no | O9: no | P9: - | Q9: no | R9: - | S9: yes | T9: negative | U9: yes | V9: mouse | W9: yes | X9: yes | Y9: yes | Z9: metric | AK9: yes | AL9: Peer-reviewed | AM9: yes | AN9: yes | AO9: positive | AX9: 1 | AY9: 0 | AZ9: 0 | BA9: 1 | BB9: 0 | BC9: 1 | BD9: 0 | BE9: 0 | BF9: 0 | BG9: 0 | BH9: 0 | BI9: 0 | BJ9: 1 | BK9: 0 | BL9: 1 | BM9: 0 | BN9: 1 | BP9: 1 | BR9: 1 | BS9: 0 | BT9: 0 | BU9: 0 | BV9: 0 | BW9: 0 | BX9: 0 | BY9: 0 | BZ9: 0 | CA9: 0 | CC9: 0 | CD9: 0 | CE9: 1 | CF9: 0 | CG9: 1 | CH9: 1 | CI9: 1
A10: 101 | B10: IB14 | E10: Anti-neoplastic & immune-modulating agents | F10: efficacy | G10: yes | H10: 5-8 per group | I10: no | J10: yes | K10: random order of treatment | L10: yes | M10: sex, weight | N10: no | O10: no | P10: - | Q10: no | R10: - | S10: yes | T10: negative | U10: yes | V10: rat | W10: yes | X10: yes | Y10: yes | Z10: both | AA10: no | AB10: - | AC10: no | AD10: - | AE10: yes | AF10: no | AG10: no | AH10: yes | AI10: no | AJ10: - | AK10: yes | AL10: peer revieweded | AM10: yes | AN10: yes | AO10: positive | AX10: 1 | AY10: 0 | AZ10: 0 | BA10: 1 | BB10: 0 | BC10: 1 | BD10: 0 | BE10: 0 | BF10: 0 | BG10: 0 | BH10: 0 | BI10: 0 | BJ10: 1 | BK10: 0 | BL10: 1 | BM10: 0 | BN10: 1 | BP10: 1 | BR10: 1 | BS10: 0 | BT10: 0 | BU10: 0 | BV10: 0 | BW10: 0 | BX10: 1 | BY10: 0 | BZ10: 0 | CA10: 1 | CC10: 0 | CD10: 0 | CE10: 1 | CF10: 0 | CG10: 1 | CH10: 1 | CI10: 1
A11: 102 | B11: IB14 | E11: Anti-neoplastic & immune-modulating agents | F11: efficacy | G11: yes | H11: 4-8 per group | I11: no | J11: yes | K11: randomisation to treatment | L11: yes | M11: weight, sex | N11: no | O11: no | P11: - | Q11: no | R11: - | S11: yes | T11: negative | U11: yes | V11: rat | W11: yes | X11: yes | Y11: yes | Z11: both | AK11: yes | AL11: peer revieweded | AM11: yes | AN11: yes | AO11: positive | AX11: 1 | AY11: 0 | AZ11: 0 | BA11: 1 | BB11: 0 | BC11: 1 | BD11: 0 | BE11: 0 | BF11: 0 | BG11: 0 | BH11: 0 | BI11: 0 | BJ11: 1 | BK11: 0 | BL11: 1 | BM11: 0 | BN11: 1 | BP11: 1 | BR11: 1 | BS11: 0 | BT11: 0 | BU11: 0 | BV11: 0 | BW11: 0 | BX11: 0 | BY11: 0 | BZ11: 0 | CA11: 0 | CC11: 0 | CD11: 0 | CE11: 1 | CF11: 0 | CG11: 1 | CH11: 1 | CI11: 1
A12: 104 | B12: IB15 | E12: Anti-neoplastic & immune-modulating agents | F12: efficacy | G12: yes | H12: 6-7 per group | I12: no | J12: no | K12: - | L12: no | M12: - | N12: no | O12: no | P12: - | Q12: yes | R12: yes (tumor-free death, thymoma) | S12: yes | T12: negative | U12: yes | V12: mouse | W12: yes | X12: yes | Y12: yes | Z12: both | AA12: yes | AB12: yes | AC12: yes | AD12: no | AE12: yes | AF12: yes | AG12: yes | AH12: yes | AI12: yes | AJ12: rat, mice | AK12: yes | AL12: peer revieweded | AM12: yes | AN12: yes | AO12: positive | AX12: 1 | AY12: 0 | AZ12: 0 | BA12: 0 | BB12: 0 | BC12: 0 | BD12: 0 | BE12: 0 | BF12: 0 | BG12: 0 | BH12: 1 | BI12: 0 | BJ12: 1 | BK12: 0 | BL12: 1 | BM12: 0 | BN12: 1 | BP12: 1 | BR12: 1 | BS12: 0 | BT12: 1 | BU12: 1 | BV12: 1 | BW12: 0 | BX12: 1 | BY12: 1 | BZ12: 1 | CA12: 1 | CC12: 1 | CD12: 0 | CE12: 1 | CF12: 0 | CG12: 1 | CH12: 1 | CI12: 1
A13: 105 | B13: IB15 | E13: Anti-neoplastic & immune-modulating agents | F13: efficacy | G13: yes | H13: 6 per group | I13: - | J13: no | K13: - | L13: no | M13: - | N13: no | O13: no | P13: - | Q13: no | R13: - | S13: yes | T13: negative | U13: yes | V13: mouse | W13: yes | X13: yes | Y13: yes | Z13: both | AK13: yes | AL13: peer revieweded | AM13: yes | AN13: yes | AO13: positive | AX13: 1 | AY13: 0 | AZ13: 0 | BA13: 0 | BB13: 0 | BC13: 0 | BD13: 0 | BE13: 0 | BF13: 0 | BG13: 0 | BH13: 0 | BI13: 0 | BJ13: 1 | BK13: 0 | BL13: 1 | BM13: 0 | BN13: 1 | BP13: 1 | BR13: 1 | BS13: 0 | BT13: 0 | BU13: 0 | BV13: 0 | BW13: 0 | BX13: 0 | BY13: 0 | BZ13: 0 | CA13: 0 | CC13: 0 | CD13: 0 | CE13: 1 | CF13: 0 | CG13: 1 | CH13: 1 | CI13: 1
A14: 107 | B14: IB15 | E14: Anti-neoplastic & immune-modulating agents | F14: efficacy | G14: yes | H14: 30 | I14: - | J14: yes | K14: treatment assignment | L14: yes | M14: sex, age | N14: no | O14: no | P14: - | Q14: no | R14: - | S14: yes | T14: Negative, positive | U14: yes | V14: mouse | W14: yes | X14: yes | Y14: yes | Z14: both | AK14: yes | AL14: peer revieweded | AM14: no | AN14: no | AO14: positive | AX14: 1 | AY14: 0 | AZ14: 0 | BA14: 1 | BB14: 0 | BC14: 1 | BD14: 0 | BE14: 0 | BF14: 0 | BG14: 0 | BH14: 0 | BI14: 0 | BJ14: 1 | BK14: 0 | BL14: 1 | BM14: 0 | BN14: 1 | BP14: 1 | BR14: 1 | BS14: 0 | BT14: 0 | BU14: 0 | BV14: 0 | BW14: 0 | BX14: 0 | BY14: 0 | BZ14: 0 | CA14: 0 | CC14: 0 | CD14: 0 | CE14: 1 | CF14: 0 | CG14: 0 | CH14: 0 | CI14: 1
A15: 108 | B15: IB15 | E15: Anti-neoplastic & immune-modulating agents | F15: efficacy | G15: yes | H15: 30 | I15: - | J15: yes | K15: treatment assignment | L15: yes | M15: sex, age | N15: no | O15: no | P15: - | Q15: no | R15: - | S15: yes | T15: Negative, positive | U15: yes | V15: mouse | W15: yes | X15: yes | Y15: yes | Z15: both | AK15: yes | AL15: peer revieweded | AM15: no | AN15: no | AO15: positive | AX15: 1 | AY15: 0 | AZ15: 0 | BA15: 1 | BB15: 0 | BC15: 1 | BD15: 0 | BE15: 0 | BF15: 0 | BG15: 0 | BH15: 0 | BI15: 0 | BJ15: 1 | BK15: 0 | BL15: 1 | BM15: 0 | BN15: 1 | BP15: 1 | BR15: 1 | BS15: 0 | BT15: 0 | BU15: 0 | BV15: 0 | BW15: 0 | BX15: 0 | BY15: 0 | BZ15: 0 | CA15: 0 | CC15: 0 | CD15: 0 | CE15: 1 | CF15: 0 | CG15: 0 | CH15: 0 | CI15: 1
A16: 109 | B16: IB15 | E16: Anti-neoplastic & immune-modulating agents | F16: efficacy | G16: no | H16: - | I16: - | J16: no | K16: - | L16: no | M16: - | N16: no | O16: no | P16: - | Q16: no | R16: - | S16: yes | T16: Positive, negative control | U16: yes | V16: mouse | W16: yes | X16: no | Y16: yes | Z16: both | AK16: yes | AL16: peer revieweded | AM16: no | AN16: no | AO16: positive | AX16: 0 | AY16: 0 | AZ16: 0 | BA16: 0 | BB16: 0 | BC16: 0 | BD16: 0 | BE16: 0 | BF16: 0 | BG16: 0 | BH16: 0 | BI16: 0 | BJ16: 1 | BK16: 0 | BL16: 1 | BM16: 0 | BN16: 1 | BP16: 0 | BR16: 1 | BS16: 0 | BT16: 0 | BU16: 0 | BV16: 0 | BW16: 0 | BX16: 0 | BY16: 0 | BZ16: 0 | CA16: 0 | CC16: 0 | CD16: 0 | CE16: 1 | CF16: 0 | CG16: 0 | CH16: 0 | CI16: 1
A17: 110 | B17: IB15 | E17: Anti-neoplastic & immune-modulating agents | F17: efficacy | G17: yes | H17: 6+2 per time point | I17: no | J17: no | K17: - | L17: yes | M17: sex, age, weight | N17: no | O17: no | P17: - | Q17: no | R17: - | S17: yes | T17: Postive control, negative control | U17: yes | V17: mouse | W17: yes | X17: yes | Y17: yes | Z17: both | AK17: yes | AL17: peer revieweded | AM17: no | AN17: no | AO17: positive | AX17: 1 | AY17: 0 | AZ17: 0 | BA17: 0 | BB17: 0 | BC17: 1 | BD17: 0 | BE17: 0 | BF17: 0 | BG17: 0 | BH17: 0 | BI17: 0 | BJ17: 1 | BK17: 0 | BL17: 1 | BM17: 0 | BN17: 1 | BP17: 1 | BR17: 1 | BS17: 0 | BT17: 0 | BU17: 0 | BV17: 0 | BW17: 0 | BX17: 0 | BY17: 0 | BZ17: 0 | CA17: 0 | CC17: 0 | CD17: 0 | CE17: 1 | CF17: 0 | CG17: 0 | CH17: 0 | CI17: 1
A18: 111 | B18: IB15 | E18: Anti-neoplastic & immune-modulating agents | F18: efficacy | G18: yes | H18: 21 | I18: no | J18: no | K18: - | L18: yes | M18: sex, age | N18: no | O18: no | P18: - | Q18: no | R18: - | S18: yes | T18: Positive, negative control | U18: yes | V18: mouse | W18: yes | X18: yes | Y18: yes | Z18: both | AK18: yes | AL18: peer revieweded | AM18: no | AN18: yes | AO18: positive | AX18: 1 | AY18: 0 | AZ18: 0 | BA18: 0 | BB18: 0 | BC18: 1 | BD18: 0 | BE18: 0 | BF18: 0 | BG18: 0 | BH18: 0 | BI18: 0 | BJ18: 1 | BK18: 0 | BL18: 1 | BM18: 0 | BN18: 1 | BP18: 1 | BR18: 1 | BS18: 0 | BT18: 0 | BU18: 0 | BV18: 0 | BW18: 0 | BX18: 0 | BY18: 0 | BZ18: 0 | CA18: 0 | CC18: 0 | CD18: 0 | CE18: 1 | CF18: 0 | CG18: 0 | CH18: 1 | CI18: 1
A19: 112 | B19: IB15 | E19: Anti-neoplastic & immune-modulating agents | F19: efficacy | G19: yes | H19: 21 | I19: no | J19: no | K19: - | L19: yes | M19: sex, age | N19: no | O19: no | P19: - | Q19: no | R19: - | S19: yes | T19: Positive, negative control | U19: yes | V19: mouse | W19: yes | X19: yes | Y19: yes | Z19: both | AK19: yes | AL19: peer revieweded | AM19: no | AN19: no | AO19: positive | AX19: 1 | AY19: 0 | AZ19: 0 | BA19: 0 | BB19: 0 | BC19: 1 | BD19: 0 | BE19: 0 | BF19: 0 | BG19: 0 | BH19: 0 | BI19: 0 | BJ19: 1 | BK19: 0 | BL19: 1 | BM19: 0 | BN19: 1 | BP19: 1 | BR19: 1 | BS19: 0 | BT19: 0 | BU19: 0 | BV19: 0 | BW19: 0 | BX19: 0 | BY19: 0 | BZ19: 0 | CA19: 0 | CC19: 0 | CD19: 0 | CE19: 1 | CF19: 0 | CG19: 0 | CH19: 0 | CI19: 1
A20: 113 | B20: IB15 | E20: Anti-neoplastic & immune-modulating agents | F20: efficacy | G20: yes | H20: 5 per group | I20: no | J20: no | K20: - | L20: yes | M20: sex, age | N20: no | O20: no | P20: - | Q20: no | R20: - | S20: yes | T20: negative | U20: yes | V20: mouse | W20: yes | X20: yes | Y20: yes | Z20: both | AK20: yes | AL20: peer revieweded | AM20: no | AN20: yes | AO20: positive | AX20: 1 | AY20: 0 | AZ20: 0 | BA20: 0 | BB20: 0 | BC20: 1 | BD20: 0 | BE20: 0 | BF20: 0 | BG20: 0 | BH20: 0 | BI20: 0 | BJ20: 1 | BK20: 0 | BL20: 1 | BM20: 0 | BN20: 1 | BP20: 1 | BR20: 1 | BS20: 0 | BT20: 0 | BU20: 0 | BV20: 0 | BW20: 0 | BX20: 0 | BY20: 0 | BZ20: 0 | CA20: 0 | CC20: 0 | CD20: 0 | CE20: 1 | CF20: 0 | CG20: 0 | CH20: 1 | CI20: 1
A21: 114 | B21: IB15 | E21: Anti-neoplastic & immune-modulating agents | F21: efficacy | G21: yes | H21: 5 per group | I21: no | J21: no | K21: - | L21: yes | M21: sex, bodyweight | N21: no | O21: no | P21: - | Q21: no | R21: - | S21: yes | T21: negative | U21: yes | V21: mouse | W21: yes | X21: yes | Y21: yes | Z21: both | AK21: yes | AL21: peer revieweded | AM21: yes | AN21: yes | AO21: positive | AX21: 1 | AY21: 0 | AZ21: 0 | BA21: 0 | BB21: 0 | BC21: 1 | BD21: 0 | BE21: 0 | BF21: 0 | BG21: 0 | BH21: 0 | BI21: 0 | BJ21: 1 | BK21: 0 | BL21: 1 | BM21: 0 | BN21: 1 | BP21: 1 | BR21: 1 | BS21: 0 | BT21: 0 | BU21: 0 | BV21: 0 | BW21: 0 | BX21: 0 | BY21: 0 | BZ21: 0 | CA21: 0 | CC21: 0 | CD21: 0 | CE21: 1 | CF21: 0 | CG21: 1 | CH21: 1 | CI21: 1
A22: 115 | B22: IB15 | E22: Anti-neoplastic & immune-modulating agents | F22: efficacy | G22: yes | H22: 4-5 per group | I22: no | J22: no | K22: - | L22: yes | M22: sex, female | N22: no | O22: yes | P22: blinded assessment of histology | Q22: no | R22: - | S22: yes | T22: negative | U22: yes | V22: mouse | W22: yes | X22: yes | Y22: yes | Z22: both | AK22: yes | AL22: peer revieweded | AM22: no | AN22: yes | AO22: positive | AX22: 1 | AY22: 0 | AZ22: 0 | BA22: 0 | BB22: 0 | BC22: 1 | BD22: 0 | BE22: 0 | BF22: 1 | BG22: 0 | BH22: 0 | BI22: 0 | BJ22: 1 | BK22: 0 | BL22: 1 | BM22: 0 | BN22: 1 | BP22: 1 | BR22: 1 | BS22: 0 | BT22: 0 | BU22: 0 | BV22: 0 | BW22: 0 | BX22: 0 | BY22: 0 | BZ22: 0 | CA22: 0 | CC22: 0 | CD22: 0 | CE22: 1 | CF22: 0 | CG22: 0 | CH22: 1 | CI22: 1
A23: 116 | B23: IB15 | E23: Anti-neoplastic & immune-modulating agents | F23: efficacy | G23: yes | H23: 5 per group | I23: no | J23: no | K23: - | L23: no | M23: - | N23: no | O23: no | P23: - | Q23: yes | R23: Animal death | S23: yes | T23: Negative, positive | U23: yes | V23: mouse | W23: yes | X23: yes | Y23: yes | Z23: both | AK23: yes | AL23: peer revieweded | AM23: no | AN23: yes | AO23: positive | AX23: 1 | AY23: 0 | AZ23: 0 | BA23: 0 | BB23: 0 | BC23: 0 | BD23: 0 | BE23: 0 | BF23: 0 | BG23: 0 | BH23: 1 | BI23: 0 | BJ23: 1 | BK23: 0 | BL23: 1 | BM23: 0 | BN23: 1 | BP23: 1 | BR23: 1 | BS23: 0 | BT23: 0 | BU23: 0 | BV23: 0 | BW23: 0 | BX23: 0 | BY23: 0 | BZ23: 0 | CA23: 0 | CC23: 0 | CD23: 0 | CE23: 1 | CF23: 0 | CG23: 0 | CH23: 1 | CI23: 1
A24: 117 | B24: IB15 | E24: Anti-neoplastic & immune-modulating agents | F24: efficacy | G24: yes | H24: 4-12 per group | I24: no | J24: no | K24: - | L24: yes | M24: sex, age | N24: no | O24: no | P24: - | Q24: no | R24: - | S24: yes | T24: negative | U24: yes | V24: rat | W24: yes | X24: yes | Y24: yes | Z24: metric | AK24: yes | AL24: peer revieweded | AM24: yes | AN24: yes | AO24: positive | AX24: 1 | AY24: 0 | AZ24: 0 | BA24: 0 | BB24: 0 | BC24: 1 | BD24: 0 | BE24: 0 | BF24: 0 | BG24: 0 | BH24: 0 | BI24: 0 | BJ24: 1 | BK24: 0 | BL24: 1 | BM24: 0 | BN24: 1 | BP24: 1 | BR24: 1 | BS24: 0 | BT24: 0 | BU24: 0 | BV24: 0 | BW24: 0 | BX24: 0 | BY24: 0 | BZ24: 0 | CA24: 0 | CC24: 0 | CD24: 0 | CE24: 1 | CF24: 0 | CG24: 1 | CH24: 1 | CI24: 1
A25: 118 | B25: IB15 | E25: Anti-neoplastic & immune-modulating agents | F25: efficacy | G25: yes | H25: 5-15 per group | I25: - | J25: no | K25: - | L25: yes | M25: sex, age | N25: no | O25: no | P25: - | Q25: no | R25: - | S25: yes | T25: Postive, neagtive control | U25: yes | V25: rat | W25: yes | X25: yes | Y25: yes | Z25: both | AK25: yes | AL25: peer revieweded | AM25: no | AN25: yes | AO25: positive | AX25: 1 | AY25: 0 | AZ25: 0 | BA25: 0 | BB25: 0 | BC25: 1 | BD25: 0 | BE25: 0 | BF25: 0 | BG25: 0 | BH25: 0 | BI25: 0 | BJ25: 1 | BK25: 0 | BL25: 1 | BM25: 0 | BN25: 1 | BP25: 1 | BR25: 1 | BS25: 0 | BT25: 0 | BU25: 0 | BV25: 0 | BW25: 0 | BX25: 0 | BY25: 0 | BZ25: 0 | CA25: 0 | CC25: 0 | CD25: 0 | CE25: 1 | CF25: 0 | CG25: 0 | CH25: 1 | CI25: 1
A26: 206 | B26: IB23 | E26: Blood product & biotech | F26: efficacy | G26: yes | H26: 8 per group | I26: no | J26: no | K26: - | L26: yes | M26: sex, age | N26: no | O26: no | P26: - | Q26: no | R26: - | S26: yes | T26: negative | U26: yes | V26: mouse | W26: yes | X26: yes | Y26: yes | Z26: both | AA26: yes | AB26: yes | AC26: yes | AD26: no | AE26: no | AF26: yes | AG26: - | AH26: yes | AI26: yes | AJ26: mice, dogs | AK26: yes | AL26: peer revieweded | AM26: yes | AN26: yes | AO26: positive | AX26: 1 | AY26: 0 | AZ26: 0 | BA26: 0 | BB26: 0 | BC26: 1 | BD26: 0 | BE26: 0 | BF26: 0 | BG26: 0 | BH26: 0 | BI26: 0 | BJ26: 1 | BK26: 0 | BL26: 1 | BM26: 0 | BN26: 1 | BP26: 1 | BR26: 1 | BS26: 0 | BT26: 1 | BU26: 1 | BV26: 1 | BW26: 0 | BX26: 0 | BY26: 1 | BZ26: 0 | CA26: 1 | CC26: 1 | CD26: 0 | CE26: 1 | CF26: 0 | CG26: 1 | CH26: 1 | CI26: 1
A27: 209 | B27: IB23 | E27: Blood product & biotech | F27: efficacy | G27: yes | H27: 20 | I27: no | J27: no | K27: - | L27: yes | M27: age | N27: no | O27: no | P27: - | Q27: no | R27: - | S27: yes | T27: negative and positive | U27: yes | V27: mouse | W27: yes | X27: yes | Y27: yes | Z27: both | AK27: yes | AL27: peer revieweded | AM27: yes | AN27: yes | AO27: positive | AX27: 1 | AY27: 0 | AZ27: 0 | BA27: 0 | BB27: 0 | BC27: 1 | BD27: 0 | BE27: 0 | BF27: 0 | BG27: 0 | BH27: 0 | BI27: 0 | BJ27: 1 | BK27: 0 | BL27: 1 | BM27: 0 | BN27: 1 | BP27: 1 | BR27: 1 | BS27: 0 | BT27: 0 | BU27: 0 | BV27: 0 | BW27: 0 | BX27: 0 | BY27: 0 | BZ27: 0 | CA27: 0 | CC27: 0 | CD27: 0 | CE27: 1 | CF27: 0 | CG27: 1 | CH27: 1 | CI27: 1
A28: 227 | B28: IB23 | E28: Blood product & biotech | F28: efficacy | G28: yes | H28: 17 | I28: no | J28: no | K28: - | L28: yes | M28: age, sex, weight, tumor type | N28: no | O28: no | P28: - | Q28: no | R28: - | S28: no | T28: - | U28: yes | V28: dogs | W28: yes | X28: yes | Y28: yes | Z28: both | AK28: yes | AL28: peer revieweded | AM28: yes | AN28: yes | AO28: positive | AX28: 1 | AY28: 0 | AZ28: 0 | BA28: 0 | BB28: 0 | BC28: 1 | BD28: 0 | BE28: 0 | BF28: 0 | BG28: 0 | BH28: 0 | BI28: 0 | BJ28: 0 | BK28: 0 | BL28: 1 | BM28: 0 | BN28: 1 | BP28: 1 | BR28: 1 | BS28: 0 | BT28: 0 | BU28: 0 | BV28: 0 | BW28: 0 | BX28: 0 | BY28: 0 | BZ28: 0 | CA28: 0 | CC28: 0 | CD28: 0 | CE28: 1 | CF28: 0 | CG28: 1 | CH28: 1 | CI28: 1
A29: 257 | B29: IB28 | E29: Respiratory system | F29: efficacy | G29: yes | H29: 7-9 per group | I29: no | J29: yes | K29: - | L29: yes | M29: sex, weight | N29: no | O29: no | P29: - | Q29: no | R29: - | S29: yes | T29: negative | U29: yes | V29: rat | W29: yes | X29: yes | Y29: yes | Z29: metric | AA29: yes | AB29: yes | AC29: no | AD29: - | AE29: yes | AF29: yes | AG29: - | AH29: yes | AI29: yes | AJ29: mice, rats, dogs | AK29: yes | AL29: peer revieweded | AM29: no | AN29: yes | AO29: positive | AX29: 1 | AY29: 0 | AZ29: 0 | BA29: 1 | BB29: 0 | BC29: 1 | BD29: 0 | BE29: 0 | BF29: 0 | BG29: 0 | BH29: 0 | BI29: 0 | BJ29: 1 | BK29: 0 | BL29: 1 | BM29: 0 | BN29: 1 | BP29: 1 | BR29: 1 | BS29: 0 | BT29: 1 | BU29: 1 | BV29: 0 | BW29: 0 | BX29: 1 | BY29: 1 | BZ29: 0 | CA29: 1 | CC29: 1 | CD29: 0 | CE29: 1 | CF29: 0 | CG29: 0 | CH29: 1 | CI29: 1
A30: 310 | B30: IB40 | E30: Anti-neoplastic & immune-modulating agents | F30: efficacy | G30: yes | H30: 6 per group; 4 groups | I30: no | J30: no | K30: - | L30: yes | M30: sex, age | N30: no | O30: no | P30: - | Q30: yes | R30: yes | S30: yes | T30: negative | U30: yes | V30: mouse | W30: yes | X30: yes | Y30: yes | Z30: both | AA30: no | AB30: - | AC30: yes | AD30: no | AE30: yes | AF30: yes | AG30: - | AH30: yes | AI30: no | AJ30: - | AK30: yes | AL30: peer reviewed | AM30: no | AN30: yes | AO30: positive | AX30: 1 | AY30: 0 | AZ30: 0 | BA30: 0 | BB30: 0 | BC30: 1 | BD30: 0 | BE30: 0 | BF30: 0 | BG30: 0 | BH30: 1 | BI30: 1 | BJ30: 1 | BK30: 0 | BL30: 1 | BM30: 0 | BN30: 1 | BP30: 1 | BR30: 1 | BS30: 0 | BT30: 0 | BU30: 0 | BV30: 1 | BW30: 0 | BX30: 1 | BY30: 1 | BZ30: 0 | CA30: 1 | CC30: 0 | CD30: 0 | CE30: 1 | CF30: 0 | CG30: 0 | CH30: 1 | CI30: 1
A31: 315 | B31: IB40 | E31: Anti-neoplastic & immune-modulating agents | F31: efficacy | G31: yes | H31: 4-9 per group | I31: - | J31: yes | K31: no | L31: yes | M31: sex, age | N31: no | O31: no | P31: - | Q31: no | R31: - | S31: yes | T31: Positive, Negative | U31: yes | V31: mice | W31: yes | X31: yes | Y31: yes | Z31: both | AK31: yes | AL31: peer reviewed | AM31: no | AN31: yes | AO31: positive | AX31: 1 | AY31: 0 | AZ31: 0 | BA31: 1 | BB31: 0 | BC31: 1 | BD31: 0 | BE31: 0 | BF31: 0 | BG31: 0 | BH31: 0 | BI31: 0 | BJ31: 1 | BK31: 0 | BL31: 1 | BM31: 0 | BN31: 1 | BP31: 1 | BR31: 1 | BS31: 0 | BT31: 0 | BU31: 0 | BV31: 0 | BW31: 0 | BX31: 0 | BY31: 0 | BZ31: 0 | CA31: 0 | CC31: 0 | CD31: 0 | CE31: 1 | CF31: 0 | CG31: 0 | CH31: 1 | CI31: 1
A32: 336 | B32: IB48 | E32: Anti-infectives | F32: efficacy | G32: yes | H32: 4 | I32: no | J32: no | K32: - | L32: yes | M32: age | N32: no | O32: no | P32: - | Q32: no | R32: - | S32: yes | T32: negative | U32: yes | V32: mouse | W32: yes | X32: yes | Y32: yes | Z32: metric | AA32: yes | AB32: yes | AC32: yes | AD32: no | AE32: yes | AF32: yes | AG32: - | AH32: yes | AI32: no | AJ32: - | AK32: yes | AL32: peer reviewed | AM32: no | AN32: no | AO32: positive | AX32: 1 | AY32: 0 | AZ32: 0 | BA32: 0 | BB32: 0 | BC32: 1 | BD32: 0 | BE32: 0 | BF32: 0 | BG32: 0 | BH32: 0 | BI32: 0 | BJ32: 1 | BK32: 0 | BL32: 1 | BM32: 0 | BN32: 1 | BP32: 1 | BR32: 1 | BS32: 0 | BT32: 1 | BU32: 1 | BV32: 1 | BW32: 0 | BX32: 1 | BY32: 1 | BZ32: 0 | CA32: 1 | CC32: 0 | CD32: 0 | CE32: 1 | CF32: 0 | CG32: 0 | CH32: 0 | CI32: 1
A33: 344 | B33: IB48 | E33: Anti-infectives | F33: efficacy | G33: yes | H33: 2-6 per group | I33: no | J33: no | K33: - | L33: yes | M33: age | N33: no | O33: no | P33: - | Q33: no | R33: - | S33: yes | T33: positive | U33: yes | V33: mouse | W33: yes | X33: yes | Y33: yes | Z33: metric | AK33: yes | AL33: peer reviewed | AM33: no | AN33: yes | AO33: positive | AX33: 1 | AY33: 0 | AZ33: 0 | BA33: 0 | BB33: 0 | BC33: 1 | BD33: 0 | BE33: 0 | BF33: 0 | BG33: 0 | BH33: 0 | BI33: 0 | BJ33: 1 | BK33: 0 | BL33: 1 | BM33: 0 | BN33: 1 | BP33: 1 | BR33: 1 | BS33: 0 | BT33: 0 | BU33: 0 | BV33: 0 | BW33: 0 | BX33: 0 | BY33: 0 | BZ33: 0 | CA33: 0 | CC33: 0 | CD33: 0 | CE33: 1 | CF33: 0 | CG33: 0 | CH33: 1 | CI33: 1
A34: 401 | B34: IB55 | E34: Allergy & Immunology | F34: efficacy | G34: yes | H34: 10-14 per group | I34: no | J34: yes | K34: group randomization, crossover design | L34: yes | M34: sex | N34: no | O34: no | P34: - | Q34: no | R34: - | S34: yes | T34: negative | U34: yes | V34: guinea pigs | W34: yes | X34: yes | Y34: yes | Z34: both | AA34: yes | AB34: yes | AC34: no | AD34: - | AE34: no | AF34: no | AG34: allergic and inflamation models | AH34: yes | AI34: yes | AJ34: mice, rat, guinea pigs | AK34: yes | AL34: peer reviewed | AM34: yes | AN34: yes | AO34: positive | AX34: 1 | AY34: 0 | AZ34: 0 | BA34: 1 | BB34: 0 | BC34: 1 | BD34: 0 | BE34: 0 | BF34: 0 | BG34: 0 | BH34: 0 | BI34: 0 | BJ34: 1 | BK34: 0 | BL34: 1 | BM34: 0 | BN34: 1 | BP34: 1 | BR34: 1 | BS34: 0 | BT34: 1 | BU34: 1 | BV34: 0 | BW34: 0 | BX34: 0 | BY34: 0 | BZ34: 0 | CA34: 1 | CC34: 1 | CD34: 0 | CE34: 1 | CF34: 0 | CG34: 1 | CH34: 1 | CI34: 1
A35: 408 | B35: IB59 | E35: Anti-infectives | F35: efficacy | G35: yes | H35: 12 | I35: no | J35: no | K35: - | L35: yes | M35: weight | N35: no | O35: no | Q35: no | R35: - | S35: yes | T35: negative | U35: yes | V35: hamster | W35: yes | X35: yes | Y35: yes | Z35: metric | AA35: no | AB35: - | AC35: no | AD35: - | AE35: no | AF35: no | AG35: - | AH35: yes | AI35: no | AJ35: - | AK35: yes | AL35: peer reviewed | AM35: yes | AN35: yes | AO35: positive | AX35: 1 | AY35: 0 | AZ35: 0 | BA35: 0 | BB35: 0 | BC35: 1 | BD35: 0 | BE35: 0 | BF35: 0 | BG35: 0 | BH35: 0 | BI35: 0 | BJ35: 1 | BK35: 0 | BL35: 1 | BM35: 0 | BN35: 1 | BP35: 1 | BR35: 1 | BS35: 0 | BT35: 0 | BU35: 0 | BV35: 0 | BW35: 0 | BX35: 0 | BY35: 0 | BZ35: 0 | CA35: 1 | CC35: 0 | CD35: 0 | CE35: 1 | CF35: 0 | CG35: 1 | CH35: 1 | CI35: 1
A36: 410 | B36: IB59 | E36: Anti-infectives | F36: efficacy | G36: yes | H36: 5 per group | I36: no | J36: no | K36: - | L36: yes | M36: weight | N36: no | O36: no | Q36: yes | R36: yes | S36: yes | T36: negative | U36: yes | V36: hamster | W36: yes | X36: yes | Y36: yes | Z36: metric | AK36: yes | AL36: peer reviewed | AM36: yes | AN36: yes | AO36: positive | AX36: 1 | AY36: 0 | AZ36: 0 | BA36: 0 | BB36: 0 | BC36: 1 | BD36: 0 | BE36: 0 | BF36: 0 | BG36: 0 | BH36: 1 | BI36: 1 | BJ36: 1 | BK36: 0 | BL36: 1 | BM36: 0 | BN36: 1 | BP36: 1 | BR36: 1 | BS36: 0 | BT36: 0 | BU36: 0 | BV36: 0 | BW36: 0 | BX36: 0 | BY36: 0 | BZ36: 0 | CA36: 0 | CC36: 0 | CD36: 0 | CE36: 1 | CF36: 0 | CG36: 1 | CH36: 1 | CI36: 1
A37: 412 | B37: IB59 | E37: Anti-infectives | F37: efficacy | G37: yes | H37: 83 (2-5 per group | I37: no | J37: no | K37: - | L37: yes | M37: weight | N37: no | O37: no | Q37: no | R37: - | S37: yes | T37: negative | U37: yes | V37: hamster | W37: yes | X37: yes | Y37: yes | Z37: metric | AK37: yes | AL37: peer reviewed | AM37: yes | AN37: no | AO37: positive | AX37: 1 | AY37: 0 | AZ37: 0 | BA37: 0 | BB37: 0 | BC37: 1 | BD37: 0 | BE37: 0 | BF37: 0 | BG37: 0 | BH37: 0 | BI37: 0 | BJ37: 1 | BK37: 0 | BL37: 1 | BM37: 0 | BN37: 1 | BP37: 1 | BR37: 1 | BS37: 0 | BT37: 0 | BU37: 0 | BV37: 0 | BW37: 0 | BX37: 0 | BY37: 0 | BZ37: 0 | CA37: 0 | CC37: 0 | CD37: 0 | CE37: 1 | CF37: 0 | CG37: 1 | CH37: 0 | CI37: 1
A38: 424 | B38: IB63 | E38: Anti-infectives | F38: efficacy | G38: yes | H38: 3 per group | I38: no | J38: no | K38: - | L38: no | M38: - | N38: no | O38: no | P38: - | Q38: no | R38: - | S38: yes | T38: positive | U38: yes | V38: mouse | W38: yes | X38: yes | Y38: yes | Z38: both | AA38: yes | AB38: yes | AC38: yes | AD38: no | AE38: yes | AF38: no | AG38: - | AH38: yes | AI38: no | AJ38: - | AK38: yes | AL38: peer reviewed | AM38: yes | AN38: no | AO38: positive | AX38: 1 | AY38: 0 | AZ38: 0 | BA38: 0 | BB38: 0 | BC38: 0 | BD38: 0 | BE38: 0 | BF38: 0 | BG38: 0 | BH38: 0 | BI38: 0 | BJ38: 1 | BK38: 0 | BL38: 1 | BM38: 0 | BN38: 1 | BP38: 1 | BR38: 1 | BS38: 0 | BT38: 1 | BU38: 1 | BV38: 1 | BW38: 0 | BX38: 1 | BY38: 0 | BZ38: 0 | CA38: 1 | CC38: 0 | CD38: 0 | CE38: 1 | CF38: 0 | CG38: 1 | CH38: 0 | CI38: 1
A39: 425 | B39: IB63 | E39: Anti-infectives | F39: efficacy | G39: yes | H39: 3 per group | I39: no | J39: no | K39: - | L39: no | M39: - | N39: no | O39: no | P39: - | Q39: no | R39: - | S39: yes | T39: positive | U39: yes | V39: mouse | W39: yes | X39: yes | Y39: yes | Z39: both | AK39: yes | AL39: peer reviewed | AM39: yes | AN39: no | AO39: positive | AX39: 1 | AY39: 0 | AZ39: 0 | BA39: 0 | BB39: 0 | BC39: 0 | BD39: 0 | BE39: 0 | BF39: 0 | BG39: 0 | BH39: 0 | BI39: 0 | BJ39: 1 | BK39: 0 | BL39: 1 | BM39: 0 | BN39: 1 | BP39: 1 | BR39: 1 | BS39: 0 | BT39: 0 | BU39: 0 | BV39: 0 | BW39: 0 | BX39: 0 | BY39: 0 | BZ39: 0 | CA39: 0 | CC39: 0 | CD39: 0 | CE39: 1 | CF39: 0 | CG39: 1 | CH39: 0 | CI39: 1
A40: 428 | B40: IB63 | E40: Anti-infectives | F40: efficacy | G40: yes | H40: 5-9 per group | I40: no | J40: no | K40: - | L40: yes | M40: sex, age | N40: no | O40: no | P40: - | Q40: no | R40: - | S40: yes | T40: negative | U40: yes | V40: mouse | W40: yes | X40: no | Y40: yes | Z40: metric | AK40: yes | AL40: peer reviewed | AM40: no | AN40: yes | AO40: positive | AX40: 1 | AY40: 0 | AZ40: 0 | BA40: 0 | BB40: 0 | BC40: 1 | BD40: 0 | BE40: 0 | BF40: 0 | BG40: 0 | BH40: 0 | BI40: 0 | BJ40: 1 | BK40: 0 | BL40: 1 | BM40: 0 | BN40: 1 | BP40: 0 | BR40: 1 | BS40: 0 | BT40: 0 | BU40: 0 | BV40: 0 | BW40: 0 | BX40: 0 | BY40: 0 | BZ40: 0 | CA40: 0 | CC40: 0 | CD40: 0 | CE40: 1 | CF40: 0 | CG40: 0 | CH40: 1 | CI40: 1
A41: 429 | B41: IB63 | E41: Anti-infectives | F41: efficacy | G41: yes | H41: 3-7 per group | I41: no | J41: no | K41: - | L41: yes | M41: sex, age | N41: no | O41: no | P41: - | Q41: no | R41: - | S41: yes | T41: negative | U41: yes | V41: mouse | W41: yes | X41: no | Y41: yes | Z41: metric | AK41: yes | AL41: peer reviewed | AM41: no | AN41: yes | AO41: positive | AX41: 1 | AY41: 0 | AZ41: 0 | BA41: 0 | BB41: 0 | BC41: 1 | BD41: 0 | BE41: 0 | BF41: 0 | BG41: 0 | BH41: 0 | BI41: 0 | BJ41: 1 | BK41: 0 | BL41: 1 | BM41: 0 | BN41: 1 | BP41: 0 | BR41: 1 | BS41: 0 | BT41: 0 | BU41: 0 | BV41: 0 | BW41: 0 | BX41: 0 | BY41: 0 | BZ41: 0 | CA41: 0 | CC41: 0 | CD41: 0 | CE41: 1 | CF41: 0 | CG41: 0 | CH41: 1 | CI41: 1
A42: 443 | B42: IB66 | E42: Anti-neoplastic & immune-modulating agents | F42: efficacy | G42: yes | H42: 8-10 animals per group | J42: no | K42: - | L42: yes | M42: sex | N42: no | O42: no | P42: - | Q42: no | R42: - | S42: yes | T42: untreated? | U42: yes | V42: mouse | W42: yes | X42: yes | Y42: yes | Z42: metric | AK42: yes | AL42: peer reviewed | AM42: yes | AN42: yes | AO42: positive | AX42: 1 | AY42: 0 | AZ42: 0 | BA42: 0 | BB42: 0 | BC42: 1 | BD42: 0 | BE42: 0 | BF42: 0 | BG42: 0 | BH42: 0 | BI42: 0 | BJ42: 1 | BK42: 0 | BL42: 1 | BM42: 0 | BN42: 1 | BP42: 1 | BR42: 1 | BS42: 0 | BT42: 0 | BU42: 0 | BV42: 0 | BW42: 0 | BX42: 0 | BY42: 0 | BZ42: 0 | CA42: 0 | CC42: 0 | CD42: 0 | CE42: 1 | CF42: 0 | CG42: 1 | CH42: 1 | CI42: 1
A43: 445 | B43: IB66 | E43: Anti-neoplastic & immune-modulating agents | F43: efficacy | G43: yes | H43: 192 (6-10 per group) | I43: no | J43: no | K43: - | L43: yes | M43: weight | N43: no | O43: no | P43: - | Q43: no | R43: - | S43: yes | T43: negative | U43: yes | V43: mouse | W43: yes | X43: yes | Y43: yes | Z43: time-course | AA43: yes | AB43: yes | AC43: yes | AD43: no | AE43: yes | AF43: no | AG43: - | AH43: no | AI43: yes | AJ43: - | AK43: yes | AL43: peer reviewed | AM43: no | AN43: no | AO43: positive | AX43: 1 | AY43: 0 | AZ43: 0 | BA43: 0 | BB43: 0 | BC43: 1 | BD43: 0 | BE43: 0 | BF43: 0 | BG43: 0 | BH43: 0 | BI43: 0 | BJ43: 1 | BK43: 0 | BL43: 1 | BM43: 0 | BN43: 1 | BP43: 1 | BR43: 1 | BS43: 0 | BT43: 1 | BU43: 1 | BV43: 1 | BW43: 0 | BX43: 1 | BY43: 0 | BZ43: 0 | CA43: 0 | CC43: 1 | CD43: 0 | CE43: 1 | CF43: 0 | CG43: 0 | CH43: 0 | CI43: 1
A44: 446 | B44: IB66 | E44: Anti-neoplastic & immune-modulating agents | F44: efficacy | G44: yes | H44: 8-10 per group | I44: no | J44: no | K44: - | L44: no | M44: - | N44: no | O44: no | P44: - | Q44: no | R44: - | S44: yes | T44: negative | U44: yes | V44: mouse | W44: yes | X44: yes | Y44: yes | Z44: both | AK44: yes | AL44: peer reviewed | AM44: no | AN44: no | AO44: positive | AX44: 1 | AY44: 0 | AZ44: 0 | BA44: 0 | BB44: 0 | BC44: 0 | BD44: 0 | BE44: 0 | BF44: 0 | BG44: 0 | BH44: 0 | BI44: 0 | BJ44: 1 | BK44: 0 | BL44: 1 | BM44: 0 | BN44: 1 | BP44: 1 | BR44: 1 | BS44: 0 | BT44: 0 | BU44: 0 | BV44: 0 | BW44: 0 | BX44: 0 | BY44: 0 | BZ44: 0 | CA44: 0 | CC44: 0 | CD44: 0 | CE44: 1 | CF44: 0 | CG44: 0 | CH44: 0 | CI44: 1
A45: 468 | B45: IB72 | E45: Anti-neoplastic & immune-modulating agents | F45: unclear | G45: yes | H45: 8-11 per group | I45: no | J45: no | K45: - | L45: yes | M45: age | N45: no | O45: no | P45: - | Q45: no | R45: - | S45: yes | T45: negative | U45: yes | V45: mouse | W45: yes | X45: yes | Y45: yes | Z45: both | AA45: no | AB45: - | AC45: yes | AD45: no | AE45: yes | AF45: no | AG45: - | AH45: yes | AI45: no | AJ45: - | AK45: yes | AL45: peer reviewed | AM45: yes | AN45: yes | AO45: positive | AX45: 1 | AY45: 0 | AZ45: 0 | BA45: 0 | BB45: 0 | BC45: 1 | BD45: 0 | BE45: 0 | BF45: 0 | BG45: 0 | BH45: 0 | BI45: 0 | BJ45: 1 | BK45: 0 | BL45: 1 | BM45: 0 | BN45: 1 | BP45: 1 | BR45: 1 | BS45: 0 | BT45: 0 | BU45: 0 | BV45: 1 | BW45: 0 | BX45: 1 | BY45: 0 | BZ45: 0 | CA45: 1 | CC45: 0 | CD45: 0 | CE45: 1 | CF45: 0 | CG45: 1 | CH45: 1 | CI45: 1
A46: 499 | B46: IB77 | E46: Anti-neoplastic & immune-modulating agents | F46: efficacy | G46: yes | H46: 6 per group | I46: no | J46: yes | K46: no | L46: yes | M46: age, weight | N46: no | O46: no | P46: - | Q46: no | R46: - | S46: yes | T46: negative | U46: yes | V46: hamster | W46: yes | X46: yes | Y46: yes | Z46: both | AA46: yes | AB46: yes | AC46: yes | AD46: no | AE46: yes | AF46: yes | AG46: - | AH46: yes | AI46: yes | AJ46: rat, hamster, mouse | AK46: yes | AL46: peer reviewed | AM46: no | AN46: yes | AO46: positive | AX46: 1 | AY46: 0 | AZ46: 0 | BA46: 1 | BB46: 0 | BC46: 1 | BD46: 0 | BE46: 0 | BF46: 0 | BG46: 0 | BH46: 0 | BI46: 0 | BJ46: 1 | BK46: 0 | BL46: 1 | BM46: 0 | BN46: 1 | BP46: 1 | BR46: 1 | BS46: 0 | BT46: 1 | BU46: 1 | BV46: 1 | BW46: 0 | BX46: 1 | BY46: 1 | BZ46: 0 | CA46: 1 | CC46: 1 | CD46: 0 | CE46: 1 | CF46: 0 | CG46: 0 | CH46: 1 | CI46: 1
A47: 501 | B47: IB77 | E47: Anti-neoplastic & immune-modulating agents | F47: efficacy | G47: no | H47: - | I47: - | J47: no | K47: - | L47: yes | M47: age | N47: no | O47: no | P47: - | Q47: no | R47: - | S47: yes | T47: negative | U47: yes | V47: mouse | W47: yes | X47: yes | Y47: yes | Z47: metric | AK47: yes | AL47: peer reviewed | AM47: yes | AN47: yes | AO47: positive | AX47: 0 | AY47: 0 | AZ47: 0 | BA47: 0 | BB47: 0 | BC47: 1 | BD47: 0 | BE47: 0 | BF47: 0 | BG47: 0 | BH47: 0 | BI47: 0 | BJ47: 1 | BK47: 0 | BL47: 1 | BM47: 0 | BN47: 1 | BP47: 1 | BR47: 1 | BS47: 0 | BT47: 0 | BU47: 0 | BV47: 0 | BW47: 0 | BX47: 0 | BY47: 0 | BZ47: 0 | CA47: 0 | CC47: 0 | CD47: 0 | CE47: 1 | CF47: 0 | CG47: 1 | CH47: 1 | CI47: 1
A48: 504 | B48: IB77 | E48: Anti-neoplastic & immune-modulating agents | F48: efficacy | G48: yes | H48: 6-10 per group | I48: no | J48: no | K48: - | L48: yes | M48: sex, age | N48: no | O48: no | P48: - | Q48: no | R48: - | S48: yes | T48: positive, negative | U48: yes | V48: mouse | W48: yes | X48: yes | Y48: yes | Z48: both | AK48: yes | AL48: peer reviewed | AM48: no | AN48: yes | AO48: positive | AX48: 1 | AY48: 0 | AZ48: 0 | BA48: 0 | BB48: 0 | BC48: 1 | BD48: 0 | BE48: 0 | BF48: 0 | BG48: 0 | BH48: 0 | BI48: 0 | BJ48: 1 | BK48: 0 | BL48: 1 | BM48: 0 | BN48: 1 | BP48: 1 | BR48: 1 | BS48: 0 | BT48: 0 | BU48: 0 | BV48: 0 | BW48: 0 | BX48: 0 | BY48: 0 | BZ48: 0 | CA48: 0 | CC48: 0 | CD48: 0 | CE48: 1 | CF48: 0 | CG48: 0 | CH48: 1 | CI48: 1
A49: 506 | B49: IB77 | E49: Anti-neoplastic & immune-modulating agents | F49: efficacy | G49: yes | H49: 6 per group | I49: no | J49: no | K49: - | L49: no | M49: - | N49: no | O49: no | P49: - | Q49: no | R49: - | S49: yes | T49: negative | U49: yes | V49: mouse | W49: yes | X49: no | Y49: yes | Z49: both | AK49: yes | AL49: peer reviewed | AM49: no | AN49: yes | AO49: positive | AX49: 1 | AY49: 0 | AZ49: 0 | BA49: 0 | BB49: 0 | BC49: 0 | BD49: 0 | BE49: 0 | BF49: 0 | BG49: 0 | BH49: 0 | BI49: 0 | BJ49: 1 | BK49: 0 | BL49: 1 | BM49: 0 | BN49: 1 | BP49: 0 | BR49: 1 | BS49: 0 | BT49: 0 | BU49: 0 | BV49: 0 | BW49: 0 | BX49: 0 | BY49: 0 | BZ49: 0 | CA49: 0 | CC49: 0 | CD49: 0 | CE49: 1 | CF49: 0 | CG49: 0 | CH49: 1 | CI49: 1
A50: 508 | B50: IB77 | E50: Anti-neoplastic & immune-modulating agents | F50: efficacy | G50: yes | H50: 31 | I50: no | J50: no | K50: - | L50: no | M50: - | N50: no | O50: no | P50: - | Q50: no | R50: - | S50: yes | T50: negative | U50: yes | V50: rat | W50: yes | X50: yes | Y50: yes | Z50: both | AK50: yes | AL50: peer reviewed | AM50: no | AN50: yes | AO50: positive | AX50: 1 | AY50: 0 | AZ50: 0 | BA50: 0 | BB50: 0 | BC50: 0 | BD50: 0 | BE50: 0 | BF50: 0 | BG50: 0 | BH50: 0 | BI50: 0 | BJ50: 1 | BK50: 0 | BL50: 1 | BM50: 0 | BN50: 1 | BP50: 1 | BR50: 1 | BS50: 0 | BT50: 0 | BU50: 0 | BV50: 0 | BW50: 0 | BX50: 0 | BY50: 0 | BZ50: 0 | CA50: 0 | CC50: 0 | CD50: 0 | CE50: 1 | CF50: 0 | CG50: 0 | CH50: 1 | CI50: 1
A51: 509 | B51: IB77 | E51: Anti-neoplastic & immune-modulating agents | F51: efficacy | G51: yes | H51: 28 | I51: no | J51: yes | K51: no | L51: yes | M51: sex, age | N51: no | O51: no | P51: - | Q51: no | R51: - | S51: yes | T51: negative | U51: yes | V51: mouse | W51: yes | X51: yes | Y51: yes | Z51: metric | AK51: yes | AL51: peer reviewed | AM51: yes | AN51: yes | AO51: positive | AX51: 1 | AY51: 0 | AZ51: 0 | BA51: 1 | BB51: 0 | BC51: 1 | BD51: 0 | BE51: 0 | BF51: 0 | BG51: 0 | BH51: 0 | BI51: 0 | BJ51: 1 | BK51: 0 | BL51: 1 | BM51: 0 | BN51: 1 | BP51: 1 | BR51: 1 | BS51: 0 | BT51: 0 | BU51: 0 | BV51: 0 | BW51: 0 | BX51: 0 | BY51: 0 | BZ51: 0 | CA51: 0 | CC51: 0 | CD51: 0 | CE51: 1 | CF51: 0 | CG51: 1 | CH51: 1 | CI51: 1
A52: 516 | B52: IB80 | E52: Anti-neoplastic & immune-modulating agents | F52: efficacy | G52: yes | H52: 10 per group | I52: no | J52: no | K52: - | L52: yes | M52: age, sex | N52: no | O52: no | P52: - | Q52: no | R52: - | S52: yes | T52: negative | U52: yes | V52: mouse | W52: yes | X52: yes | Y52: yes | Z52: metric | AA52: yes | AB52: yes | AC52: yes | AD52: no | AE52: yes | AF52: no | AG52: - | AH52: yes | AI52: no | AJ52: - | AK52: yes | AL52: peer reviewed | AM52: yes | AN52: yes | AO52: positive | AX52: 1 | AY52: 0 | AZ52: 0 | BA52: 0 | BB52: 0 | BC52: 1 | BD52: 0 | BE52: 0 | BF52: 0 | BG52: 0 | BH52: 0 | BI52: 0 | BJ52: 1 | BK52: 0 | BL52: 1 | BM52: 0 | BN52: 1 | BP52: 1 | BR52: 1 | BS52: 0 | BT52: 1 | BU52: 1 | BV52: 1 | BW52: 0 | BX52: 1 | BY52: 0 | BZ52: 0 | CA52: 1 | CC52: 0 | CD52: 0 | CE52: 1 | CF52: 0 | CG52: 1 | CH52: 1 | CI52: 1
A53: 517 | B53: IB80 | E53: Anti-neoplastic & immune-modulating agents | F53: efficacy | G53: yes | H53: 10 per group | I53: no | J53: no | K53: - | L53: yes | M53: age, sex | N53: no | O53: no | P53: - | Q53: no | R53: - | S53: yes | T53: negative | U53: yes | V53: mouse | W53: yes | X53: yes | Y53: yes | Z53: metric | AK53: yes | AL53: peer reviewed | AM53: yes | AN53: yes | AO53: positive | AX53: 1 | AY53: 0 | AZ53: 0 | BA53: 0 | BB53: 0 | BC53: 1 | BD53: 0 | BE53: 0 | BF53: 0 | BG53: 0 | BH53: 0 | BI53: 0 | BJ53: 1 | BK53: 0 | BL53: 1 | BM53: 0 | BN53: 1 | BP53: 1 | BR53: 1 | BS53: 0 | BT53: 0 | BU53: 0 | BV53: 0 | BW53: 0 | BX53: 0 | BY53: 0 | BZ53: 0 | CA53: 0 | CC53: 0 | CD53: 0 | CE53: 1 | CF53: 0 | CG53: 1 | CH53: 1 | CI53: 1
A54: 518 | B54: IB80 | E54: Anti-neoplastic & immune-modulating agents | F54: efficacy | G54: yes | H54: 10 per group | I54: no | J54: no | K54: - | L54: yes | M54: age, sex | N54: no | O54: no | P54: - | Q54: no | R54: - | S54: yes | T54: negative | U54: yes | V54: mouse | W54: yes | X54: yes | Y54: yes | Z54: metric | AK54: yes | AL54: peer reviewed | AM54: yes | AN54: yes | AO54: positive | AX54: 1 | AY54: 0 | AZ54: 0 | BA54: 0 | BB54: 0 | BC54: 1 | BD54: 0 | BE54: 0 | BF54: 0 | BG54: 0 | BH54: 0 | BI54: 0 | BJ54: 1 | BK54: 0 | BL54: 1 | BM54: 0 | BN54: 1 | BP54: 1 | BR54: 1 | BS54: 0 | BT54: 0 | BU54: 0 | BV54: 0 | BW54: 0 | BX54: 0 | BY54: 0 | BZ54: 0 | CA54: 0 | CC54: 0 | CD54: 0 | CE54: 1 | CF54: 0 | CG54: 1 | CH54: 1 | CI54: 1
A55: 519 | B55: IB80 | E55: Anti-neoplastic & immune-modulating agents | F55: efficacy | G55: yes | H55: 5 for control and 7 for intervention | I55: no | J55: no | K55: - | L55: no | M55: - | N55: no | O55: no | P55: - | Q55: no | R55: - | S55: yes | T55: negative | U55: yes | V55: mouse | W55: yes | X55: yes | Y55: yes | Z55: metric | AK55: yes | AL55: peer reviewed | AM55: no | AN55: no | AO55: positive | AX55: 1 | AY55: 0 | AZ55: 0 | BA55: 0 | BB55: 0 | BC55: 0 | BD55: 0 | BE55: 0 | BF55: 0 | BG55: 0 | BH55: 0 | BI55: 0 | BJ55: 1 | BK55: 0 | BL55: 1 | BM55: 0 | BN55: 1 | BP55: 1 | BR55: 1 | BS55: 0 | BT55: 0 | BU55: 0 | BV55: 0 | BW55: 0 | BX55: 0 | BY55: 0 | BZ55: 0 | CA55: 0 | CC55: 0 | CD55: 0 | CE55: 1 | CF55: 0 | CG55: 0 | CH55: 0 | CI55: 1
A56: 520 | B56: IB80 | E56: Anti-neoplastic & immune-modulating agents | F56: efficacy | G56: yes | H56: 6 per group, 4 groups | I56: no | J56: yes | K56: no | L56: yes | M56: age, sex | N56: no | O56: no | P56: - | Q56: no | R56: - | S56: yes | T56: negative, the 2 combination drugs alone | U56: yes | V56: mouse | W56: yes | X56: yes | Y56: yes | Z56: both | AK56: yes | AL56: peer reviewed | AM56: yes | AN56: yes | AO56: positive | AX56: 1 | AY56: 0 | AZ56: 0 | BA56: 1 | BB56: 0 | BC56: 1 | BD56: 0 | BE56: 0 | BF56: 0 | BG56: 0 | BH56: 0 | BI56: 0 | BJ56: 1 | BK56: 0 | BL56: 1 | BM56: 0 | BN56: 1 | BP56: 1 | BR56: 1 | BS56: 0 | BT56: 0 | BU56: 0 | BV56: 0 | BW56: 0 | BX56: 0 | BY56: 0 | BZ56: 0 | CA56: 0 | CC56: 0 | CD56: 0 | CE56: 1 | CF56: 0 | CG56: 1 | CH56: 1 | CI56: 1
A57: 521 | B57: IB80 | E57: Anti-neoplastic & immune-modulating agents | F57: efficacy | G57: no | H57: - | J57: no | K57: - | L57: yes | M57: sex, weight | N57: no | O57: no | P57: - | Q57: no | R57: - | S57: yes | T57: negative | U57: yes | V57: mouse | W57: yes | X57: yes | Y57: yes | Z57: both | AK57: yes | AL57: peer reviewed | AM57: yes | AN57: yes | AO57: positive | AX57: 0 | AY57: 0 | AZ57: 0 | BA57: 0 | BB57: 0 | BC57: 1 | BD57: 0 | BE57: 0 | BF57: 0 | BG57: 0 | BH57: 0 | BI57: 0 | BJ57: 1 | BK57: 0 | BL57: 1 | BM57: 0 | BN57: 1 | BP57: 1 | BR57: 1 | BS57: 0 | BT57: 0 | BU57: 0 | BV57: 0 | BW57: 0 | BX57: 0 | BY57: 0 | BZ57: 0 | CA57: 0 | CC57: 0 | CD57: 0 | CE57: 1 | CF57: 0 | CG57: 1 | CH57: 1 | CI57: 1
A58: 522 | B58: IB80 | E58: Anti-neoplastic & immune-modulating agents | F58: efficacy | G58: yes | H58: 9 for intervention, 6 for control | I58: no | J58: no | K58: - | L58: yes | M58: sex, weight | N58: no | O58: no | P58: - | Q58: no | R58: - | S58: yes | T58: negative | U58: yes | V58: mouse | W58: yes | X58: yes | Y58: yes | Z58: both | AK58: yes | AL58: peer reviewed | AM58: yes | AN58: yes | AO58: positive | AX58: 1 | AY58: 0 | AZ58: 0 | BA58: 0 | BB58: 0 | BC58: 1 | BD58: 0 | BE58: 0 | BF58: 0 | BG58: 0 | BH58: 0 | BI58: 0 | BJ58: 1 | BK58: 0 | BL58: 1 | BM58: 0 | BN58: 1 | BP58: 1 | BR58: 1 | BS58: 0 | BT58: 0 | BU58: 0 | BV58: 0 | BW58: 0 | BX58: 0 | BY58: 0 | BZ58: 0 | CA58: 0 | CC58: 0 | CD58: 0 | CE58: 1 | CF58: 0 | CG58: 1 | CH58: 1 | CI58: 1
A59: 523 | B59: IB80 | E59: Anti-neoplastic & immune-modulating agents | F59: efficacy | G59: yes | H59: 11 for intervention, 5+5 for control | I59: no | J59: no | K59: - | L59: yes | M59: sex, weight | N59: no | O59: no | P59: - | Q59: no | R59: - | S59: yes | T59: negative | U59: yes | V59: mouse | W59: yes | X59: yes | Y59: yes | Z59: both | AK59: yes | AL59: peer reviewed | AM59: no | AN59: no | AO59: positive | AX59: 1 | AY59: 0 | AZ59: 0 | BA59: 0 | BB59: 0 | BC59: 1 | BD59: 0 | BE59: 0 | BF59: 0 | BG59: 0 | BH59: 0 | BI59: 0 | BJ59: 1 | BK59: 0 | BL59: 1 | BM59: 0 | BN59: 1 | BP59: 1 | BR59: 1 | BS59: 0 | BT59: 0 | BU59: 0 | BV59: 0 | BW59: 0 | BX59: 0 | BY59: 0 | BZ59: 0 | CA59: 0 | CC59: 0 | CD59: 0 | CE59: 1 | CF59: 0 | CG59: 0 | CH59: 0 | CI59: 1
A60: 524 | B60: IB80 | E60: Anti-neoplastic & immune-modulating agents | F60: efficacy | G60: no | H60: - | J60: no | K60: - | L60: yes | M60: sex, weight | N60: no | O60: no | P60: - | Q60: no | R60: - | S60: yes | T60: negative | U60: yes | V60: mouse | W60: yes | X60: yes | Y60: yes | Z60: both | AK60: yes | AL60: peer reviewed | AM60: yes | AN60: yes | AO60: positive | AX60: 0 | AY60: 0 | AZ60: 0 | BA60: 0 | BB60: 0 | BC60: 1 | BD60: 0 | BE60: 0 | BF60: 0 | BG60: 0 | BH60: 0 | BI60: 0 | BJ60: 1 | BK60: 0 | BL60: 1 | BM60: 0 | BN60: 1 | BP60: 1 | BR60: 1 | BS60: 0 | BT60: 0 | BU60: 0 | BV60: 0 | BW60: 0 | BX60: 0 | BY60: 0 | BZ60: 0 | CA60: 0 | CC60: 0 | CD60: 0 | CE60: 1 | CF60: 0 | CG60: 1 | CH60: 1 | CI60: 1
A61: 525 | B61: IB80 | E61: Anti-neoplastic & immune-modulating agents | F61: efficacy | G61: yes | H61: 4 intervention groups (n=4-6) and 4 control groups (n= 4-7) | I61: no | J61: no | K61: - | L61: no | M61: - | N61: no | O61: no | P61: - | Q61: no | R61: - | S61: yes | T61: negative | U61: yes | V61: mouse | W61: yes | X61: yes | Y61: yes | Z61: both | AK61: yes | AL61: peer reviewed | AM61: yes | AN61: yes | AO61: inconclusive | AX61: 1 | AY61: 0 | AZ61: 0 | BA61: 0 | BB61: 0 | BC61: 0 | BD61: 0 | BE61: 0 | BF61: 0 | BG61: 0 | BH61: 0 | BI61: 0 | BJ61: 1 | BK61: 0 | BL61: 1 | BM61: 0 | BN61: 1 | BP61: 1 | BR61: 1 | BS61: 0 | BT61: 0 | BU61: 0 | BV61: 0 | BW61: 0 | BX61: 0 | BY61: 0 | BZ61: 0 | CA61: 0 | CC61: 0 | CD61: 0 | CE61: 1 | CF61: 0 | CG61: 1 | CH61: 1 | CI61: 0
A62: 526 | B62: IB80 | E62: Anti-neoplastic & immune-modulating agents | F62: efficacy | G62: yes | H62: 3 per group | I62: no | J62: no | K62: - | L62: no | M62: - | N62: no | O62: no | P62: - | Q62: no | R62: - | S62: yes | T62: negative | U62: yes | V62: mouse | W62: yes | X62: yes | Y62: yes | Z62: metric | AK62: yes | AL62: peer reviewed | AM62: yes | AN62: yes | AO62: inconclusive | AX62: 1 | AY62: 0 | AZ62: 0 | BA62: 0 | BB62: 0 | BC62: 0 | BD62: 0 | BE62: 0 | BF62: 0 | BG62: 0 | BH62: 0 | BI62: 0 | BJ62: 1 | BK62: 0 | BL62: 1 | BM62: 0 | BN62: 1 | BP62: 1 | BR62: 1 | BS62: 0 | BT62: 0 | BU62: 0 | BV62: 0 | BW62: 0 | BX62: 0 | BY62: 0 | BZ62: 0 | CA62: 0 | CC62: 0 | CD62: 0 | CE62: 1 | CF62: 0 | CG62: 1 | CH62: 1 | CI62: 0
A63: 527 | B63: IB80 | E63: Anti-neoplastic & immune-modulating agents | F63: efficacy | G63: yes | H63: 3 per group | I63: no | J63: no | K63: - | L63: no | M63: - | N63: no | O63: no | P63: - | Q63: no | R63: - | S63: yes | T63: negative | U63: yes | V63: mouse | W63: yes | X63: yes | Y63: yes | Z63: both | AK63: yes | AL63: peer reviewed | AM63: yes | AN63: yes | AO63: inconclusive | AX63: 1 | AY63: 0 | AZ63: 0 | BA63: 0 | BB63: 0 | BC63: 0 | BD63: 0 | BE63: 0 | BF63: 0 | BG63: 0 | BH63: 0 | BI63: 0 | BJ63: 1 | BK63: 0 | BL63: 1 | BM63: 0 | BN63: 1 | BP63: 1 | BR63: 1 | BS63: 0 | BT63: 0 | BU63: 0 | BV63: 0 | BW63: 0 | BX63: 0 | BY63: 0 | BZ63: 0 | CA63: 0 | CC63: 0 | CD63: 0 | CE63: 1 | CF63: 0 | CG63: 1 | CH63: 1 | CI63: 0
A64: 546 | B64: IB85 | E64: Anti-neoplastic & immune-modulating agents | F64: efficacy | G64: yes | H64: control n=3 and intervention n=3 | I64: no | J64: no | K64: - | L64: yes | M64: sex | N64: no | O64: no | P64: - | Q64: no | R64: - | S64: yes | T64: negative | U64: yes | V64: mouse | W64: yes | X64: no | Y64: yes | Z64: both | AA64: no | AB64: - | AC64: no | AD64: - | AE64: yes | AF64: yes | AG64: - | AH64: yes | AI64: no | AJ64: - | AK64: yes | AL64: peer reviewed | AM64: yes | AN64: no | AO64: positive | AX64: 1 | AY64: 0 | AZ64: 0 | BA64: 0 | BB64: 0 | BC64: 1 | BD64: 0 | BE64: 0 | BF64: 0 | BG64: 0 | BH64: 0 | BI64: 0 | BJ64: 1 | BK64: 0 | BL64: 1 | BM64: 0 | BN64: 1 | BP64: 0 | BR64: 1 | BS64: 0 | BT64: 0 | BU64: 0 | BV64: 0 | BW64: 0 | BX64: 1 | BY64: 1 | BZ64: 0 | CA64: 1 | CC64: 0 | CD64: 0 | CE64: 1 | CF64: 0 | CG64: 1 | CH64: 0 | CI64: 1
A65: 547 | B65: IB85 | E65: Anti-neoplastic & immune-modulating agents | F65: efficacy | G65: yes | H65: 5 per group | I65: no | J65: no | K65: - | L65: yes | M65: sex, age | N65: no | O65: no | P65: - | Q65: no | R65: - | S65: yes | T65: negative | U65: yes | V65: mouse | W65: yes | X65: yes | Y65: yes | Z65: both | AK65: yes | AL65: peer reviewed | AM65: yes | AN65: yes | AO65: positive | AX65: 1 | AY65: 0 | AZ65: 0 | BA65: 0 | BB65: 0 | BC65: 1 | BD65: 0 | BE65: 0 | BF65: 0 | BG65: 0 | BH65: 0 | BI65: 0 | BJ65: 1 | BK65: 0 | BL65: 1 | BM65: 0 | BN65: 1 | BP65: 1 | BR65: 1 | BS65: 0 | BT65: 0 | BU65: 0 | BV65: 0 | BW65: 0 | BX65: 0 | BY65: 0 | BZ65: 0 | CA65: 0 | CC65: 0 | CD65: 0 | CE65: 1 | CF65: 0 | CG65: 1 | CH65: 1 | CI65: 1
A66: 548 | B66: IB85 | E66: Anti-neoplastic & immune-modulating agents | F66: efficacy | G66: yes | H66: 5-7 per group | I66: no | J66: yes | K66: no | L66: yes | M66: sex, weight | N66: no | O66: no | P66: - | Q66: no | R66: - | S66: yes | T66: negative | U66: yes | V66: mouse | W66: yes | X66: yes | Y66: yes | Z66: both | AK66: yes | AL66: peer reviewed | AM66: yes | AN66: yes | AO66: positive | AX66: 1 | AY66: 0 | AZ66: 0 | BA66: 1 | BB66: 0 | BC66: 1 | BD66: 0 | BE66: 0 | BF66: 0 | BG66: 0 | BH66: 0 | BI66: 0 | BJ66: 1 | BK66: 0 | BL66: 1 | BM66: 0 | BN66: 1 | BP66: 1 | BR66: 1 | BS66: 0 | BT66: 0 | BU66: 0 | BV66: 0 | BW66: 0 | BX66: 0 | BY66: 0 | BZ66: 0 | CA66: 0 | CC66: 0 | CD66: 0 | CE66: 1 | CF66: 0 | CG66: 1 | CH66: 1 | CI66: 1
A67: 549 | B67: IB85 | E67: Anti-neoplastic & immune-modulating agents | F67: efficacy | G67: yes | H67: at least 7 per group | I67: no | J67: no | K67: - | L67: yes | M67: sex, age | N67: no | O67: no | P67: - | Q67: yes | R67: no | S67: no | T67: negative | U67: yes | V67: mouse | W67: yes | X67: yes | Y67: yes | Z67: both | AK67: yes | AL67: peer reviewed | AM67: yes | AN67: yes | AO67: positive | AX67: 1 | AY67: 0 | AZ67: 0 | BA67: 0 | BB67: 0 | BC67: 1 | BD67: 0 | BE67: 0 | BF67: 0 | BG67: 0 | BH67: 1 | BI67: 0 | BJ67: 0 | BK67: 0 | BL67: 1 | BM67: 0 | BN67: 1 | BP67: 1 | BR67: 1 | BS67: 0 | BT67: 0 | BU67: 0 | BV67: 0 | BW67: 0 | BX67: 0 | BY67: 0 | BZ67: 0 | CA67: 0 | CC67: 0 | CD67: 0 | CE67: 1 | CF67: 0 | CG67: 1 | CH67: 1 | CI67: 1
A68: 550 | B68: IB85 | E68: Anti-neoplastic & immune-modulating agents | F68: efficacy | G68: yes | H68: 6 per group | I68: no | J68: yes | K68: no | L68: yes | M68: sex, age | N68: no | O68: no | P68: - | Q68: no | R68: - | S68: yes | T68: negative | U68: yes | V68: mouse | W68: yes | X68: yes | Y68: yes | Z68: both | AK68: yes | AL68: peer reviewed | AM68: yes | AN68: yes | AO68: positive | AX68: 1 | AY68: 0 | AZ68: 0 | BA68: 1 | BB68: 0 | BC68: 1 | BD68: 0 | BE68: 0 | BF68: 0 | BG68: 0 | BH68: 0 | BI68: 0 | BJ68: 1 | BK68: 0 | BL68: 1 | BM68: 0 | BN68: 1 | BP68: 1 | BR68: 1 | BS68: 0 | BT68: 0 | BU68: 0 | BV68: 0 | BW68: 0 | BX68: 0 | BY68: 0 | BZ68: 0 | CA68: 0 | CC68: 0 | CD68: 0 | CE68: 1 | CF68: 0 | CG68: 1 | CH68: 1 | CI68: 1
A69: 590 | B69: IB89 | E69: Anti-neoplastic & immune-modulating agents | F69: efficacy | G69: yes | H69: 7-15 per group | I69: no | J69: yes | K69: - | L69: yes | M69: sex | N69: no | O69: no | P69: - | Q69: no | R69: - | S69: yes | T69: negative | U69: yes | V69: mouse | W69: yes | X69: yes | Y69: yes | Z69: both | AA69: yes | AB69: yes | AC69: yes | AD69: no | AE69: yes | AF69: no | AG69: - | AH69: yes | AI69: no | AJ69: - | AK69: yes | AL69: peer reviewed | AM69: yes | AN69: yes | AO69: positive | AX69: 1 | AY69: 0 | AZ69: 0 | BA69: 1 | BB69: 0 | BC69: 1 | BD69: 0 | BE69: 0 | BF69: 0 | BG69: 0 | BH69: 0 | BI69: 0 | BJ69: 1 | BK69: 0 | BL69: 1 | BM69: 0 | BN69: 1 | BP69: 1 | BR69: 1 | BS69: 0 | BT69: 1 | BU69: 1 | BV69: 1 | BW69: 0 | BX69: 1 | BY69: 0 | BZ69: 0 | CA69: 1 | CC69: 0 | CD69: 0 | CE69: 1 | CF69: 0 | CG69: 1 | CH69: 1 | CI69: 1
A70: 591 | B70: IB89 | E70: Anti-neoplastic & immune-modulating agents | F70: efficacy | G70: yes | H70: 7-15 per group | I70: no | J70: yes | K70: - | L70: yes | M70: sex | N70: no | O70: no | P70: - | Q70: no | R70: - | S70: yes | T70: negative | U70: yes | V70: mouse | W70: yes | X70: yes | Y70: yes | Z70: both | AK70: yes | AL70: peer reviewed | AM70: yes | AN70: yes | AO70: positive | AX70: 1 | AY70: 0 | AZ70: 0 | BA70: 1 | BB70: 0 | BC70: 1 | BD70: 0 | BE70: 0 | BF70: 0 | BG70: 0 | BH70: 0 | BI70: 0 | BJ70: 1 | BK70: 0 | BL70: 1 | BM70: 0 | BN70: 1 | BP70: 1 | BR70: 1 | BS70: 0 | BT70: 0 | BU70: 0 | BV70: 0 | BW70: 0 | BX70: 0 | BY70: 0 | BZ70: 0 | CA70: 0 | CC70: 0 | CD70: 0 | CE70: 1 | CF70: 0 | CG70: 1 | CH70: 1 | CI70: 1
A71: 592 | B71: IB89 | E71: Anti-neoplastic & immune-modulating agents | F71: efficacy | G71: yes | H71: 6-12 per group | I71: no | J71: yes | K71: - | L71: yes | M71: sex, age, body weight | N71: no | O71: yes | P71: - | Q71: no | R71: - | S71: yes | T71: negative | U71: yes | V71: mouse | W71: yes | X71: yes | Y71: yes | Z71: both | AK71: yes | AL71: peer reviewed | AM71: no | AN71: yes | AO71: positive | AX71: 1 | AY71: 0 | AZ71: 0 | BA71: 1 | BB71: 0 | BC71: 1 | BD71: 0 | BE71: 0 | BF71: 1 | BG71: 0 | BH71: 0 | BI71: 0 | BJ71: 1 | BK71: 0 | BL71: 1 | BM71: 0 | BN71: 1 | BP71: 1 | BR71: 1 | BS71: 0 | BT71: 0 | BU71: 0 | BV71: 0 | BW71: 0 | BX71: 0 | BY71: 0 | BZ71: 0 | CA71: 0 | CC71: 0 | CD71: 0 | CE71: 1 | CF71: 0 | CG71: 0 | CH71: 1 | CI71: 1
A72: 593 | B72: IB89 | E72: Anti-neoplastic & immune-modulating agents | F72: efficacy | G72: no | H72: - | I72: - | J72: yes | K72: - | L72: yes | M72: sex, age | N72: no | O72: no | P72: - | Q72: yes | R72: yes | S72: yes | T72: negative | U72: yes | V72: mouse | W72: yes | X72: yes | Y72: yes | Z72: both | AK72: yes | AL72: peer reviewed | AM72: yes | AN72: yes | AO72: positive | AX72: 0 | AY72: 0 | AZ72: 0 | BA72: 1 | BB72: 0 | BC72: 1 | BD72: 0 | BE72: 0 | BF72: 0 | BG72: 0 | BH72: 1 | BI72: 1 | BJ72: 1 | BK72: 0 | BL72: 1 | BM72: 0 | BN72: 1 | BP72: 1 | BR72: 1 | BS72: 0 | BT72: 0 | BU72: 0 | BV72: 0 | BW72: 0 | BX72: 0 | BY72: 0 | BZ72: 0 | CA72: 0 | CC72: 0 | CD72: 0 | CE72: 1 | CF72: 0 | CG72: 1 | CH72: 1 | CI72: 1
A73: 594 | B73: IB89 | E73: Anti-neoplastic & immune-modulating agents | F73: efficacy | G73: yes | H73: 5-10 per group | I73: no | J73: yes | K73: no | L73: yes | M73: sex, age | N73: no | O73: no | P73: - | Q73: no | R73: - | S73: yes | T73: negative | U73: yes | V73: mice | W73: yes | X73: yes | Y73: yes | Z73: both | AK73: yes | AL73: peer reviewed | AM73: yes | AN73: no | AO73: positive | AX73: 1 | AY73: 0 | AZ73: 0 | BA73: 1 | BB73: 0 | BC73: 1 | BD73: 0 | BE73: 0 | BF73: 0 | BG73: 0 | BH73: 0 | BI73: 0 | BJ73: 1 | BK73: 0 | BL73: 1 | BM73: 0 | BN73: 1 | BP73: 1 | BR73: 1 | BS73: 0 | BT73: 0 | BU73: 0 | BV73: 0 | BW73: 0 | BX73: 0 | BY73: 0 | BZ73: 0 | CA73: 0 | CC73: 0 | CD73: 0 | CE73: 1 | CF73: 0 | CG73: 1 | CH73: 0 | CI73: 1
A74: 597 | B74: IB89 | E74: Anti-neoplastic & immune-modulating agents | F74: efficacy | G74: yes | H74: 10 per group | I74: - | J74: no | K74: - | L74: yes | M74: age, sex | N74: no | O74: no | P74: - | Q74: yes | R74: yes | S74: yes | T74: negative | U74: yes | V74: mice | W74: yes | X74: yes | Y74: yes | Z74: both | AK74: yes | AL74: peer reviewed | AM74: no | AN74: no | AO74: positive | AX74: 1 | AY74: 0 | AZ74: 0 | BA74: 0 | BB74: 0 | BC74: 1 | BD74: 0 | BE74: 0 | BF74: 0 | BG74: 0 | BH74: 1 | BI74: 1 | BJ74: 1 | BK74: 0 | BL74: 1 | BM74: 0 | BN74: 1 | BP74: 1 | BR74: 1 | BS74: 0 | BT74: 0 | BU74: 0 | BV74: 0 | BW74: 0 | BX74: 0 | BY74: 0 | BZ74: 0 | CA74: 0 | CC74: 0 | CD74: 0 | CE74: 1 | CF74: 0 | CG74: 0 | CH74: 0 | CI74: 1
A75: 598 | B75: IB89 | E75: Anti-neoplastic & immune-modulating agents | F75: efficacy | G75: yes | H75: 7 per group | I75: - | J75: yes | K75: "restricted randomization" | L75: yes | M75: age, sex | N75: no | O75: no | P75: - | Q75: no | R75: - | S75: yes | T75: negative | U75: yes | V75: mice | W75: yes | X75: yes | Y75: yes | Z75: both | AK75: yes | AL75: peer reviewed | AM75: yes | AN75: yes | AO75: positive | AX75: 1 | AY75: 0 | AZ75: 0 | BA75: 1 | BB75: 0 | BC75: 1 | BD75: 0 | BE75: 0 | BF75: 0 | BG75: 0 | BH75: 0 | BI75: 0 | BJ75: 1 | BK75: 0 | BL75: 1 | BM75: 0 | BN75: 1 | BP75: 1 | BR75: 1 | BS75: 0 | BT75: 0 | BU75: 0 | BV75: 0 | BW75: 0 | BX75: 0 | BY75: 0 | BZ75: 0 | CA75: 0 | CC75: 0 | CD75: 0 | CE75: 1 | CF75: 0 | CG75: 1 | CH75: 1 | CI75: 1
A76: 620 | B76: IB92 | E76: Anti-infectives | F76: efficacy | G76: yes | H76: 2-6 per group | I76: - | J76: no | K76: - | L76: yes | M76: age | N76: no | O76: no | P76: - | Q76: no | R76: - | S76: yes | T76: positive | U76: yes | V76: mouse | W76: yes | X76: yes | Y76: yes | Z76: both | AA76: yes | AB76: yes | AC76: yes | AD76: no | AE76: yes | AF76: yes | AG76: - | AH76: yes | AI76: yes | AJ76: - | AK76: yes | AL76: peer reviewed | AM76: no | AN76: yes | AO76: positive | AX76: 1 | AY76: 0 | AZ76: 0 | BA76: 0 | BB76: 0 | BC76: 1 | BD76: 0 | BE76: 0 | BF76: 0 | BG76: 0 | BH76: 0 | BI76: 0 | BJ76: 1 | BK76: 0 | BL76: 1 | BM76: 0 | BN76: 1 | BP76: 1 | BR76: 1 | BS76: 0 | BT76: 1 | BU76: 1 | BV76: 1 | BW76: 0 | BX76: 1 | BY76: 1 | BZ76: 0 | CA76: 1 | CC76: 1 | CD76: 0 | CE76: 1 | CF76: 0 | CG76: 0 | CH76: 1 | CI76: 1
A77: 635 | B77: IB98 | E77: Anti-neoplastic & immune-modulating agents | F77: efficacy | G77: yes | H77: 5-15 per group | I77: no | J77: no | K77: - | L77: yes | M77: sex, age | N77: no | O77: no | P77: - | Q77: no | R77: - | S77: yes | T77: negative | U77: yes | V77: mouse | W77: yes | X77: yes | Y77: yes | Z77: both | AA77: no | AB77: - | AC77: yes | AD77: no | AE77: no | AF77: no | AG77: - | AH77: yes | AI77: yes | AJ77: - | AK77: yes | AL77: peer reviewed | AM77: no | AN77: yes | AO77: positive | AX77: 1 | AY77: 0 | AZ77: 0 | BA77: 0 | BB77: 0 | BC77: 1 | BD77: 0 | BE77: 0 | BF77: 0 | BG77: 0 | BH77: 0 | BI77: 0 | BJ77: 1 | BK77: 0 | BL77: 1 | BM77: 0 | BN77: 1 | BP77: 1 | BR77: 1 | BS77: 0 | BT77: 0 | BU77: 0 | BV77: 1 | BW77: 0 | BX77: 0 | BY77: 0 | BZ77: 0 | CA77: 1 | CC77: 1 | CD77: 0 | CE77: 1 | CF77: 0 | CG77: 0 | CH77: 1 | CI77: 1
A78: 637 | B78: IB98 | E78: Anti-neoplastic & immune-modulating agents | F78: efficacy | G78: yes | H78: 6 per group | I78: - | J78: yes | K78: no | L78: yes | M78: sex, age | N78: no | O78: no | P78: - | Q78: no | R78: - | S78: yes | T78: negative | U78: yes | V78: mouse | W78: yes | X78: yes | Y78: yes | Z78: metric | AK78: yes | AL78: peer reviewed | AM78: yes | AN78: yes | AO78: positive | AX78: 1 | AY78: 0 | AZ78: 0 | BA78: 1 | BB78: 0 | BC78: 1 | BD78: 0 | BE78: 0 | BF78: 0 | BG78: 0 | BH78: 0 | BI78: 0 | BJ78: 1 | BK78: 0 | BL78: 1 | BM78: 0 | BN78: 1 | BP78: 1 | BR78: 1 | BS78: 0 | BT78: 0 | BU78: 0 | BV78: 0 | BW78: 0 | BX78: 0 | BY78: 0 | BZ78: 0 | CA78: 0 | CC78: 0 | CD78: 0 | CE78: 1 | CF78: 0 | CG78: 1 | CH78: 1 | CI78: 1
A79: 639 | B79: IB98 | E79: Anti-neoplastic & immune-modulating agents | F79: efficacy | G79: yes | H79: 12 | I79: no | J79: no | K79: - | L79: no | N79: no | O79: no | P79: - | Q79: no | R79: - | S79: yes | T79: negative | U79: yes | V79: rat | W79: yes | X79: yes | Y79: yes | Z79: time-course | AK79: yes | AL79: peer reviewed | AM79: no | AN79: yes | AO79: positive | AX79: 1 | AY79: 0 | AZ79: 0 | BA79: 0 | BB79: 0 | BC79: 0 | BD79: 0 | BE79: 0 | BF79: 0 | BG79: 0 | BH79: 0 | BI79: 0 | BJ79: 1 | BK79: 0 | BL79: 1 | BM79: 0 | BN79: 1 | BP79: 1 | BR79: 1 | BS79: 0 | BT79: 0 | BU79: 0 | BV79: 0 | BW79: 0 | BX79: 0 | BY79: 0 | BZ79: 0 | CA79: 0 | CC79: 0 | CD79: 0 | CE79: 1 | CF79: 0 | CG79: 0 | CH79: 1 | CI79: 1
A80: 640 | B80: IB98 | E80: Anti-neoplastic & immune-modulating agents | F80: efficacy | G80: yes | H80: 10 per group | I80: no | J80: no | K80: - | L80: yes | M80: sex, age | N80: no | O80: yes | P80: - | Q80: no | R80: - | S80: yes | T80: negative | U80: yes | V80: mouse | W80: yes | X80: yes | Y80: yes | Z80: both | AK80: yes | AL80: peer reviewed | AM80: yes | AN80: yes | AO80: positive | AX80: 1 | AY80: 0 | AZ80: 0 | BA80: 0 | BB80: 0 | BC80: 1 | BD80: 0 | BE80: 0 | BF80: 1 | BG80: 0 | BH80: 0 | BI80: 0 | BJ80: 1 | BK80: 0 | BL80: 1 | BM80: 0 | BN80: 1 | BP80: 1 | BR80: 1 | BS80: 0 | BT80: 0 | BU80: 0 | BV80: 0 | BW80: 0 | BX80: 0 | BY80: 0 | BZ80: 0 | CA80: 0 | CC80: 0 | CD80: 0 | CE80: 1 | CF80: 0 | CG80: 1 | CH80: 1 | CI80: 1
A81: 641 | B81: IB98 | E81: Anti-neoplastic & immune-modulating agents | F81: efficacy | G81: yes | H81: 48 | I81: no | J81: yes | K81: no | L81: yes | M81: sex | N81: no | O81: yes | P81: - | Q81: yes | R81: yes | S81: yes | T81: negative | U81: yes | V81: mouse | W81: yes | X81: yes | Y81: yes | Z81: both | AK81: yes | AL81: peer reviewed | AM81: no | AN81: yes | AO81: positive | AX81: 1 | AY81: 0 | AZ81: 0 | BA81: 1 | BB81: 0 | BC81: 1 | BD81: 0 | BE81: 0 | BF81: 1 | BG81: 0 | BH81: 1 | BI81: 1 | BJ81: 1 | BK81: 0 | BL81: 1 | BM81: 0 | BN81: 1 | BP81: 1 | BR81: 1 | BS81: 0 | BT81: 0 | BU81: 0 | BV81: 0 | BW81: 0 | BX81: 0 | BY81: 0 | BZ81: 0 | CA81: 0 | CC81: 0 | CD81: 0 | CE81: 1 | CF81: 0 | CG81: 0 | CH81: 1 | CI81: 1
A82: 655 | B82: IB102 | E82: Anti-neoplastic & immune-modulating agents | F82: efficacy | G82: no | H82: - | I82: - | J82: no | K82: - | L82: no | N82: no | O82: no | P82: - | Q82: no | R82: - | S82: yes | T82: negative | U82: yes | V82: mouse | W82: yes | X82: yes | Y82: yes | Z82: metric | AA82: yes | AB82: yes | AC82: yes | AD82: no | AE82: no | AF82: no | AG82: yes | AH82: yes | AI82: no | AJ82: - | AK82: yes | AL82: peer reviewed | AM82: yes | AN82: no | AO82: positive | AX82: 0 | AY82: 0 | AZ82: 0 | BA82: 0 | BB82: 0 | BC82: 0 | BD82: 0 | BE82: 0 | BF82: 0 | BG82: 0 | BH82: 0 | BI82: 0 | BJ82: 1 | BK82: 0 | BL82: 1 | BM82: 0 | BN82: 1 | BP82: 1 | BR82: 1 | BS82: 0 | BT82: 1 | BU82: 1 | BV82: 1 | BW82: 0 | BX82: 0 | BY82: 0 | BZ82: 1 | CA82: 1 | CC82: 0 | CD82: 0 | CE82: 1 | CF82: 0 | CG82: 1 | CH82: 0 | CI82: 1
A83: 656 | B83: IB102 | E83: Anti-neoplastic & immune-modulating agents | F83: efficacy | G83: yes | H83: 5 per group | I83: no | J83: no | K83: - | L83: yes | M83: age, sex | N83: no | O83: no | P83: - | Q83: no | R83: - | S83: yes | T83: negative | U83: yes | V83: mouse | W83: yes | X83: yes | Y83: yes | Z83: both | AK83: yes | AL83: peer reviewed | AM83: yes | AN83: yes | AO83: positive | AX83: 1 | AY83: 0 | AZ83: 0 | BA83: 0 | BB83: 0 | BC83: 1 | BD83: 0 | BE83: 0 | BF83: 0 | BG83: 0 | BH83: 0 | BI83: 0 | BJ83: 1 | BK83: 0 | BL83: 1 | BM83: 0 | BN83: 1 | BP83: 1 | BR83: 1 | BS83: 0 | BT83: 0 | BU83: 0 | BV83: 0 | BW83: 0 | BX83: 0 | BY83: 0 | BZ83: 0 | CA83: 0 | CC83: 0 | CD83: 0 | CE83: 1 | CF83: 0 | CG83: 1 | CH83: 1 | CI83: 1
A84: 667 | B84: IB102 | E84: Anti-neoplastic & immune-modulating agents | F84: efficacy | G84: yes | H84: 30 | I84: no | J84: no | K84: - | L84: no | M84: - | N84: no | O84: no | P84: - | Q84: yes | R84: yes | S84: yes | T84: negative | U84: yes | V84: mouse | W84: yes | X84: yes | Y84: yes | Z84: metric | AK84: yes | AL84: peer reviewed | AM84: yes | AN84: no | AO84: positive | AX84: 1 | AY84: 0 | AZ84: 0 | BA84: 0 | BB84: 0 | BC84: 0 | BD84: 0 | BE84: 0 | BF84: 0 | BG84: 0 | BH84: 1 | BI84: 1 | BJ84: 1 | BK84: 0 | BL84: 1 | BM84: 0 | BN84: 1 | BP84: 1 | BR84: 1 | BS84: 0 | BT84: 0 | BU84: 0 | BV84: 0 | BW84: 0 | BX84: 0 | BY84: 0 | BZ84: 0 | CA84: 0 | CC84: 0 | CD84: 0 | CE84: 1 | CF84: 0 | CG84: 1 | CH84: 0 | CI84: 1
B86: 21 Ibs | C86: 113 PCES

Sheet peer-reviewed publications IB
A1: Please note: Some rows in this table might have been deleted due to confidentiality reasons!
A2: Additional info in publication: yes=green, no= red, discrepant=yellow | C2: Item | D2: Phase | E2: Therapeutic area | F2: Type of study | G2: Sample size | J2: Randomisation | L2: Baseline characterization | N2: Blinded assessment | Q2: Exclusion of data from analysis | S2: Controls | U2: Model choice | Y2: Outcome choice | AA2: Dose reponse (RATE ON IB LEVEL) | AC2: Age matched to patients (RATE ON IB LEVEL) | AE2: Mechanistic evidence (RATE ON IB LEVEL) | AF2: Replication of experiment (RATE ON IB LEVEL) | AH2: Replication in different model (RATE ON IB LEVEL) | AI2: Replication in different species (RATE ON IB LEVEL) | AK2: Citation of references | AM2: Reporting on direction of results | AR2: Additional information? | AX2: 0.0875 | AY2: 0 | AZ2: 0 | BA2: 0.0125 | BB2: 0 | BC2: 0.05 | BD2: 0 | BE2: 0 | BF2: 0 | BG2: 0 | BH2: 0.05 | BI2: 0.05 | BJ2: 0.3625 | BK2: 0.0125 | BL2: 0.85 | BM2: 0.0125 | BN2: 0.9 | BP2: 0.1375 | BR2: 0.825 | BS2: 0 | BT2: 0.6 | BU2: 0.6 | BV2: 0.1 | BW2: 0.05 | BX2: 0.7 | BY2: 0.4 | BZ2: 0.15 | CA2: 0.9 | CC2: 0.4 | CD2: 0 | CE2: 0.9875 | CF2: 0 | CG2: 0.1625 | CH2: 0.1375 | CI2: 0.975 | CJ2: 0 | CK2: 0 | CL2: 0 | CM2: 0 | CN2: 0 | CO2: 0 | CP2: 0 | CQ2: 0 | CR2: 0 | CS2: 0 | CT2: 0 | CU2: 0 | CV2: 0 | CW2: 0 | CY2: 0 | CZ2: 0 | DA2: 0 | DB2: 0 | DC2: 0 | DD2: 0 | DE2: 0 | DF2: 0 | DG2: 0 | DH2: 0 | DI2: 0 | DJ2: 0 | DK2: 0 | DL2: 0 | DM2: 0 | DN2: 0 | DO2: 0 | DP2: 0 | DQ2: 0 | DR2: 0 | DS2: 0 | DT2: 0 | DU2: 0 | DV2: 0
